{"text_format":"1","workbook":"xlsx","n_sheets":5,"sheets":["Registro","Ctrl","Equivalencias","Dictamen","Puntuación"],"not_rendered":{"charts":0,"images":4,"macros":1,"external_links":0,"defined_names":3,"comments":1,"pivot_tables":0},"unopened":[],"bounds":{"document_bytes":16777216,"sheet_cells":100000,"rows_first":2000,"rows_last":500,"rows_between":2000,"halvings":0,"cell_chars":16384,"cell_head_chars":4096},"cells_cut":0,"cells_raw":0,"read":"whole","date_system":"1900"}

{"sheet":"Registro","index":0,"n_rows":159,"n_cols":15,"rows_kept":159,"cut":false,"hidden":false,"merged":[[0,1,0,5],[78,1,78,3],[88,1,88,3],[97,1,97,3],[40,1,40,3],[54,1,54,3],[63,1,63,3],[11,3,11,5],[13,3,13,5],[15,3,15,5],[2,1,2,3],[21,1,21,3],[17,3,17,5],[155,1,155,2],[155,4,155,5],[154,1,154,2],[9,3,9,5],[158,1,158,2],[158,4,158,5],[156,4,156,5],[157,1,157,2],[157,4,157,5],[154,4,154,5],[107,1,107,3],[118,1,118,3],[127,1,127,3],[137,1,137,3],[23,1,23,5],[24,1,24,5]]}
[null,"Evaluación de Desempeño 2025"]
[null,null,null,null,null,"Evaluador"]
[null,"Datos Generales"]
[]
[]
[null,"ID"]
[]
[null,"Categoría en que Concursa"]
[]
[null,"Nombre "]
[]
[null,"Instituto"]
[]
[null,"Nombramiento"]
[]
[null,"Código Funcional"]
[null,null,null,null,null,null,null,null,null,null,null,null,null,"cont 3-7",0]
[null,"Ingreso",null,null,null,null,null,null,"Puntaje Total  Final",null,{"$f":"SUM(K31,K45,K59,K68,K83,K93,K102,K112,K123,K132)","v":0},null,null,"cont4-7",0]
[null,null,null,null,null,null,null,null,null,null,null,null,null,"cont2",0]
[null,null,null,"Puntaje Total\nAuto-evaluación ",null,{"$f":"F31+F45+F59+F68+F83+F93+F102+F112+F123+F132","v":0},null,null,"Dictamen Final",null,null,null,null,"resul cat",0]
[]
[null,"Comentarios (observaciones)"]
[]
[null,"Comisión Interna de Investigación",null,null,null,null,null,null,"Dictaminador",null,"Comisión Externa de Investigación en Salud"]
[]
[]
[null,"Publicaciones en REVISTAS (Autor Principal o Autor Correspondiente)"]
[]
[null,"Tipo",null,"Cantidad\n(Autoevaluación)",null,"Puntos\n(Autoevaluación) ",null,null,"Cantidad\n(Evaluador DGPIS)",null,"Puntos\n(Evaluador DGPIS) "]
[]
[null,"Subtotal",null,{"$f":"SUM(D33:D39)","v":0},null,{"$f":"SUM(F33:F39)","v":0},null,null,{"$f":"SUM(I33:I39)","v":0},null,{"$f":"SUM(K33:K39)","v":0}]
[]
[null,"Grupo I (x10) ",null,null,null,{"$f":"D33 * VALUE(MID($B33, FIND(\"x\", $B33) + 1,\n    MATCH(FALSE, ISNUMBER(--MID($B33, FIND(\"x\", $B33)+ROW(INDIRECT(\"1:10\")), 1)), 0) - 1))","v":0},null,null,null,null,{"$f":"I33 * VALUE(MID($B33, FIND(\"x\", $B33) + 1,\n    MATCH(FALSE, ISNUMBER(--MID($B33, FIND(\"x\", $B33)+ROW(INDIRECT(\"1:10\")), 1)), 0) - 1))","v":0}]
[null,"Grupo II (x25)",null,null,null,{"$f":"D34 * VALUE(MID($B34, FIND(\"x\", $B34) + 1,\n    MATCH(FALSE, ISNUMBER(--MID($B34, FIND(\"x\", $B34)+ROW(INDIRECT(\"1:10\")), 1)), 0) - 1))","v":0},null,null,null,null,{"$f":"I34 * VALUE(MID($B34, FIND(\"x\", $B34) + 1,\n    MATCH(FALSE, ISNUMBER(--MID($B34, FIND(\"x\", $B34)+ROW(INDIRECT(\"1:10\")), 1)), 0) - 1))","v":0}]
[null,"Grupo III (x50)",null,null,null,{"$f":"D35 * VALUE(MID($B35, FIND(\"x\", $B35) + 1,\n    MATCH(FALSE, ISNUMBER(--MID($B35, FIND(\"x\", $B35)+ROW(INDIRECT(\"1:10\")), 1)), 0) - 1))","v":0},null,null,null,null,{"$f":"I35 * VALUE(MID($B35, FIND(\"x\", $B35) + 1,\n    MATCH(FALSE, ISNUMBER(--MID($B35, FIND(\"x\", $B35)+ROW(INDIRECT(\"1:10\")), 1)), 0) - 1))","v":0}]
[null,"Grupo IV (x100)",null,null,null,{"$f":"D36 * VALUE(MID($B36, FIND(\"x\", $B36) + 1,\n    MATCH(FALSE, ISNUMBER(--MID($B36, FIND(\"x\", $B36)+ROW(INDIRECT(\"1:10\")), 1)), 0) - 1))","v":0},null,null,null,null,{"$f":"I36 * VALUE(MID($B36, FIND(\"x\", $B36) + 1,\n    MATCH(FALSE, ISNUMBER(--MID($B36, FIND(\"x\", $B36)+ROW(INDIRECT(\"1:10\")), 1)), 0) - 1))","v":0}]
[null,"Grupo V (x150)",null,null,null,{"$f":"D37 * VALUE(MID($B37, FIND(\"x\", $B37) + 1,\n    MATCH(FALSE, ISNUMBER(--MID($B37, FIND(\"x\", $B37)+ROW(INDIRECT(\"1:10\")), 1)), 0) - 1))","v":0},null,null,null,null,{"$f":"I37 * VALUE(MID($B37, FIND(\"x\", $B37) + 1,\n    MATCH(FALSE, ISNUMBER(--MID($B37, FIND(\"x\", $B37)+ROW(INDIRECT(\"1:10\")), 1)), 0) - 1))","v":0}]
[null,"Grupo VI (x200)",null,null,null,{"$f":"D38 * VALUE(MID($B38, FIND(\"x\", $B38) + 1,\n    MATCH(FALSE, ISNUMBER(--MID($B38, FIND(\"x\", $B38)+ROW(INDIRECT(\"1:10\")), 1)), 0) - 1))","v":0},null,null,null,null,{"$f":"I38 * VALUE(MID($B38, FIND(\"x\", $B38) + 1,\n    MATCH(FALSE, ISNUMBER(--MID($B38, FIND(\"x\", $B38)+ROW(INDIRECT(\"1:10\")), 1)), 0) - 1))","v":0}]
[null,"Grupo VII (x250)",null,null,null,{"$f":"D39 * VALUE(MID($B39, FIND(\"x\", $B39) + 1,\n    MATCH(FALSE, ISNUMBER(--MID($B39, FIND(\"x\", $B39)+ROW(INDIRECT(\"1:10\")), 1)), 0) - 1))","v":0},null,null,null,null,{"$f":"I39 * VALUE(MID($B39, FIND(\"x\", $B39) + 1,\n    MATCH(FALSE, ISNUMBER(--MID($B39, FIND(\"x\", $B39)+ROW(INDIRECT(\"1:10\")), 1)), 0) - 1))","v":0}]
[]
[null,"Publicaciones en REVISTAS (Coautores)"]
[]
[null,"Tipo",null,"Cantidad\n(Autoevaluación)",null,"Puntos\n(Autoevaluación) ",null,null,"Cantidad\n(Evaluador DGPIS)",null,"Puntos\n(Evaluador DGPIS) "]
[]
[null,"Subtotal",null,{"$f":"SUM(D47:D53)","v":0},null,{"$f":"SUM(F47:F53)","v":0},null,null,{"$f":"SUM(I47:I53)","v":0},null,{"$f":"SUM(K47:K53)","v":0}]
[]
[null,"Grupo I (x5) ",null,null,null,{"$f":"D47 * VALUE(MID(B47, FIND(\"x\", B47) + 1,\n    MATCH(FALSE, ISNUMBER(--MID(B47, FIND(\"x\", B47)+ROW(INDIRECT(\"1:10\")), 1)), 0) - 1))","v":0},null,null,null,null,{"$f":"I47 * VALUE(MID($B47, FIND(\"x\", $B47) + 1,\n    MATCH(FALSE, ISNUMBER(--MID($B47, FIND(\"x\", $B47)+ROW(INDIRECT(\"1:10\")), 1)), 0) - 1))","v":0}]
[null,"Grupo II (x15)",null,null,null,{"$f":"D48 * VALUE(MID(B48, FIND(\"x\", B48) + 1,\n    MATCH(FALSE, ISNUMBER(--MID(B48, FIND(\"x\", B48)+ROW(INDIRECT(\"1:10\")), 1)), 0) - 1))","v":0},null,null,null,null,{"$f":"I48 * VALUE(MID($B48, FIND(\"x\", $B48) + 1,\n    MATCH(FALSE, ISNUMBER(--MID($B48, FIND(\"x\", $B48)+ROW(INDIRECT(\"1:10\")), 1)), 0) - 1))","v":0}]
[null,"Grupo III (x30",null,null,null,{"$f":"D49 * VALUE(MID(B49, FIND(\"x\", B49) + 1,\n    MATCH(FALSE, ISNUMBER(--MID(B49, FIND(\"x\", B49)+ROW(INDIRECT(\"1:10\")), 1)), 0) - 1))","v":0},null,null,null,null,{"$f":"I49 * VALUE(MID($B49, FIND(\"x\", $B49) + 1,\n    MATCH(FALSE, ISNUMBER(--MID($B49, FIND(\"x\", $B49)+ROW(INDIRECT(\"1:10\")), 1)), 0) - 1))","v":0}]
[null,"Grupo IV (x60)",null,null,null,{"$f":"D50 * VALUE(MID(B50, FIND(\"x\", B50) + 1,\n    MATCH(FALSE, ISNUMBER(--MID(B50, FIND(\"x\", B50)+ROW(INDIRECT(\"1:10\")), 1)), 0) - 1))","v":0},null,null,null,null,{"$f":"I50 * VALUE(MID($B50, FIND(\"x\", $B50) + 1,\n    MATCH(FALSE, ISNUMBER(--MID($B50, FIND(\"x\", $B50)+ROW(INDIRECT(\"1:10\")), 1)), 0) - 1))","v":0}]
[null,"Grupo V (x90)",null,null,null,{"$f":"D51 * VALUE(MID(B51, FIND(\"x\", B51) + 1,\n    MATCH(FALSE, ISNUMBER(--MID(B51, FIND(\"x\", B51)+ROW(INDIRECT(\"1:10\")), 1)), 0) - 1))","v":0},null,null,null,null,{"$f":"I51 * VALUE(MID($B51, FIND(\"x\", $B51) + 1,\n    MATCH(FALSE, ISNUMBER(--MID($B51, FIND(\"x\", $B51)+ROW(INDIRECT(\"1:10\")), 1)), 0) - 1))","v":0}]
[null,"Grupo VI (x120)",null,null,null,{"$f":"D52 * VALUE(MID(B52, FIND(\"x\", B52) + 1,\n    MATCH(FALSE, ISNUMBER(--MID(B52, FIND(\"x\", B52)+ROW(INDIRECT(\"1:10\")), 1)), 0) - 1))","v":0},null,null,null,null,{"$f":"I52 * VALUE(MID($B52, FIND(\"x\", $B52) + 1,\n    MATCH(FALSE, ISNUMBER(--MID($B52, FIND(\"x\", $B52)+ROW(INDIRECT(\"1:10\")), 1)), 0) - 1))","v":0}]
[null,"Grupo VII (x150)",null,null,null,{"$f":"D53 * VALUE(MID(B53, FIND(\"x\", B53) + 1,\n    MATCH(FALSE, ISNUMBER(--MID(B53, FIND(\"x\", B53)+ROW(INDIRECT(\"1:10\")), 1)), 0) - 1))","v":0},null,null,null,null,{"$f":"I53 * VALUE(MID($B53, FIND(\"x\", $B53) + 1,\n    MATCH(FALSE, ISNUMBER(--MID($B53, FIND(\"x\", $B53)+ROW(INDIRECT(\"1:10\")), 1)), 0) - 1))","v":0}]
[]
[null,"Libros Científicos (Editor o Coeditor)"]
[]
[null,"Tipo",null,"Cantidad\n(Autoevaluación)",null,"Puntos\n(Autoevaluación) ",null,null,"Cantidad\n(Evaluador DGPIS)",null,"Puntos\n(Evaluador DGPIS) "]
[]
[null,"Subtotal",null,{"$f":"SUM(D61:D62)","v":0},null,{"$f":"SUM(F61:F62)","v":0},null,null,{"$f":"SUM(I61:I62)","v":0},null,{"$f":"SUM(K61:K62)","v":0}]
[]
[null,"Internacional Grupo B (x150)",null,null,null,{"$f":"D61 * VALUE(MID(B61, FIND(\"x\", B61) + 1,\n    MATCH(FALSE, ISNUMBER(--MID(B61, FIND(\"x\", B61)+ROW(INDIRECT(\"1:10\")), 1)), 0) - 1))","v":0},null,null,null,null,{"$f":"I61 * VALUE(MID($B61, FIND(\"x\", $B61) + 1,\n    MATCH(FALSE, ISNUMBER(--MID($B61, FIND(\"x\", $B61)+ROW(INDIRECT(\"1:10\")), 1)), 0) - 1))","v":0}]
[null,"Internacional Grupo A (x250)",null,null,null,{"$f":"D62 * VALUE(MID(B62, FIND(\"x\", B62) + 1,\n    MATCH(FALSE, ISNUMBER(--MID(B62, FIND(\"x\", B62)+ROW(INDIRECT(\"1:10\")), 1)), 0) - 1))","v":0},null,null,null,null,{"$f":"I62 * VALUE(MID($B62, FIND(\"x\", $B62) + 1,\n    MATCH(FALSE, ISNUMBER(--MID($B62, FIND(\"x\", $B62)+ROW(INDIRECT(\"1:10\")), 1)), 0) - 1))","v":0}]
[]
[null,"Libros Científicos (Capítulos)"]
[]
[null,"Tipo",null,"Cantidad\n(Autoevaluación)",null,"Puntos\n(Autoevaluación) ",null,null,"Cantidad\n(Evaluador DGPIS)",null,"Puntos\n(Evaluador DGPIS) "]
[]
[null,"Subtotal",null,{"$f":"SUM(D70:D77)","v":0},null,{"$f":"SUM(F70:F77)","v":0},null,null,{"$f":"SUM(I70:I77)","v":0},null,{"$f":"SUM(K70:K77)","v":0}]
[]
[null,"Autor Grupo D o E (x10)",null,null,null,{"$f":"D70 * VALUE(MID(B70, FIND(\"x\", B70) + 1,\n    MATCH(FALSE, ISNUMBER(--MID(B70, FIND(\"x\", B70)+ROW(INDIRECT(\"1:10\")), 1)), 0) - 1))","v":0},null,null,null,null,{"$f":"I70 * VALUE(MID($B70, FIND(\"x\", $B70) + 1,\n    MATCH(FALSE, ISNUMBER(--MID($B70, FIND(\"x\", $B70)+ROW(INDIRECT(\"1:10\")), 1)), 0) - 1))","v":0}]
[null,"Autor Grupo C (x25)",null,null,null,{"$f":"D71 * VALUE(MID(B71, FIND(\"x\", B71) + 1,\n    MATCH(FALSE, ISNUMBER(--MID(B71, FIND(\"x\", B71)+ROW(INDIRECT(\"1:10\")), 1)), 0) - 1))","v":0},null,null,null,null,{"$f":"I71 * VALUE(MID($B71, FIND(\"x\", $B71) + 1,\n    MATCH(FALSE, ISNUMBER(--MID($B71, FIND(\"x\", $B71)+ROW(INDIRECT(\"1:10\")), 1)), 0) - 1))","v":0}]
[null,"Autor Grupo B (x50)",null,null,null,{"$f":"D72 * VALUE(MID(B72, FIND(\"x\", B72) + 1,\n    MATCH(FALSE, ISNUMBER(--MID(B72, FIND(\"x\", B72)+ROW(INDIRECT(\"1:10\")), 1)), 0) - 1))","v":0},null,null,null,null,{"$f":"I72 * VALUE(MID($B72, FIND(\"x\", $B72) + 1,\n    MATCH(FALSE, ISNUMBER(--MID($B72, FIND(\"x\", $B72)+ROW(INDIRECT(\"1:10\")), 1)), 0) - 1))","v":0}]
[null,"Autor Grupo A (x100)",null,null,null,{"$f":"D73 * VALUE(MID(B73, FIND(\"x\", B73) + 1,\n    MATCH(FALSE, ISNUMBER(--MID(B73, FIND(\"x\", B73)+ROW(INDIRECT(\"1:10\")), 1)), 0) - 1))","v":0},null,null,null,null,{"$f":"I73 * VALUE(MID($B73, FIND(\"x\", $B73) + 1,\n    MATCH(FALSE, ISNUMBER(--MID($B73, FIND(\"x\", $B73)+ROW(INDIRECT(\"1:10\")), 1)), 0) - 1))","v":0}]
[null,"Coautor Grupo D o E (x5)",null,null,null,{"$f":"D74 * VALUE(MID(B74, FIND(\"x\", B74) + 1,\n    MATCH(FALSE, ISNUMBER(--MID(B74, FIND(\"x\", B74)+ROW(INDIRECT(\"1:10\")), 1)), 0) - 1))","v":0},null,null,null,null,{"$f":"I74 * VALUE(MID($B74, FIND(\"x\", $B74) + 1,\n    MATCH(FALSE, ISNUMBER(--MID($B74, FIND(\"x\", $B74)+ROW(INDIRECT(\"1:10\")), 1)), 0) - 1))","v":0}]
[null,"Coautor Grupo C (x15)",null,null,null,{"$f":"D75 * VALUE(MID(B75, FIND(\"x\", B75) + 1,\n    MATCH(FALSE, ISNUMBER(--MID(B75, FIND(\"x\", B75)+ROW(INDIRECT(\"1:10\")), 1)), 0) - 1))","v":0},null,null,null,null,{"$f":"I75 * VALUE(MID($B75, FIND(\"x\", $B75) + 1,\n    MATCH(FALSE, ISNUMBER(--MID($B75, FIND(\"x\", $B75)+ROW(INDIRECT(\"1:10\")), 1)), 0) - 1))","v":0}]
[null,"Coautor Grupo B (x30)",null,null,null,{"$f":"D76 * VALUE(MID(B76, FIND(\"x\", B76) + 1,\n    MATCH(FALSE, ISNUMBER(--MID(B76, FIND(\"x\", B76)+ROW(INDIRECT(\"1:10\")), 1)), 0) - 1))","v":0},null,null,null,null,{"$f":"I76 * VALUE(MID($B76, FIND(\"x\", $B76) + 1,\n    MATCH(FALSE, ISNUMBER(--MID($B76, FIND(\"x\", $B76)+ROW(INDIRECT(\"1:10\")), 1)), 0) - 1))","v":0}]
[null,"Coautor Grupo A (x60)",null,null,null,{"$f":"D77 * VALUE(MID(B77, FIND(\"x\", B77) + 1,\n    MATCH(FALSE, ISNUMBER(--MID(B77, FIND(\"x\", B77)+ROW(INDIRECT(\"1:10\")), 1)), 0) - 1))","v":0},null,null,null,null,{"$f":"I77 * VALUE(MID($B77, FIND(\"x\", $B77) + 1,\n    MATCH(FALSE, ISNUMBER(--MID($B77, FIND(\"x\", $B77)+ROW(INDIRECT(\"1:10\")), 1)), 0) - 1))","v":0}]
[]
[null,"Dirección o Asesoría de Tesis"]
[]
[null,"Tipo\n(máximo dos en total)",null,"Cantidad\n(Autoevaluación)",null,"Puntos\n(Autoevaluación) ",null,null,"Cantidad\n(Evaluador DGPIS)",null,"Puntos\n(Evaluador DGPIS) "]
[]
[null,"Subtotal",null,{"$f":"SUM(D85:D87)","v":0},null,{"$f":"SUM(F85:F87)","v":0},null,null,{"$f":"SUM(I85:I87)","v":0},null,{"$f":"SUM(K85:K87)","v":0}]
[]
[null,"Especialidad (x20)",null,null,null,{"$f":"IF(SUM($D$85:$D$87)<3,(D85 * VALUE(MID(B85, FIND(\"x\", B85) + 1,\n    MATCH(FALSE, ISNUMBER(--MID(B85, FIND(\"x\", B85)+ROW(INDIRECT(\"1:10\")), 1)), 0) - 1))),0)","v":0},null,null,null,null,{"$f":"IF(SUM($I$85:$I$87)<3,(I85 * VALUE(MID(B85, FIND(\"x\", B85) + 1,\n    MATCH(FALSE, ISNUMBER(--MID(B85, FIND(\"x\", B85)+ROW(INDIRECT(\"1:10\")), 1)), 0) - 1))),0)","v":0}]
[null,"Maestría (x40)",null,null,null,{"$f":"IF(SUM($D$85:$D$87)<3,(D86 * VALUE(MID(B86, FIND(\"x\", B86) + 1,\n    MATCH(FALSE, ISNUMBER(--MID(B86, FIND(\"x\", B86)+ROW(INDIRECT(\"1:10\")), 1)), 0) - 1))),0)","v":0},null,null,null,null,{"$f":"IF(SUM($I$85:$I$87)<3,(I86 * VALUE(MID(B86, FIND(\"x\", B86) + 1,\n    MATCH(FALSE, ISNUMBER(--MID(B86, FIND(\"x\", B86)+ROW(INDIRECT(\"1:10\")), 1)), 0) - 1))),0)","v":0}]
[null,"Doctorado (x80)",null,null,null,{"$f":"IF(SUM($D$85:$D$87)<3,(D87 * VALUE(MID(B87, FIND(\"x\", B87) + 1,\n    MATCH(FALSE, ISNUMBER(--MID(B87, FIND(\"x\", B87)+ROW(INDIRECT(\"1:10\")), 1)), 0) - 1))),0)","v":0},null,null,null,null,{"$f":"IF(SUM($I$85:$I$87)<3,(I87 * VALUE(MID(B87, FIND(\"x\", B87) + 1,\n    MATCH(FALSE, ISNUMBER(--MID(B87, FIND(\"x\", B87)+ROW(INDIRECT(\"1:10\")), 1)), 0) - 1))),0)","v":0}]
[]
[null,"Financiamientos Externos"]
[]
[null,"Tipo",null,"Cantidad\n(Autoevaluación)",null,"Puntos\n(Autoevaluación) ",null,null,"Cantidad\n(Evaluador DGPIS)",null,"Puntos\n(Evaluador DGPIS) "]
[]
[null,"Subtotal",null,{"$f":"SUM(D95:D96)","v":0},null,{"$f":"SUM(F95:F96)","v":0},null,null,{"$f":"SUM(I95:I96)","v":0},null,{"$f":"SUM(K95:K96)","v":0}]
[]
[null,"Nacionales (x25)",null,null,null,{"$f":"D95 * VALUE(MID(B95, FIND(\"x\", B95) + 1,\n    MATCH(FALSE, ISNUMBER(--MID(B95, FIND(\"x\", B95)+ROW(INDIRECT(\"1:10\")), 1)), 0) - 1))","v":0},null,null,null,null,{"$f":"I95 * VALUE(MID($B95, FIND(\"x\", $B95) + 1,\n    MATCH(FALSE, ISNUMBER(--MID($B95, FIND(\"x\", $B95)+ROW(INDIRECT(\"1:10\")), 1)), 0) - 1))","v":0}]
[null,"Internacionales (x50)",null,null,null,{"$f":"D96 * VALUE(MID(B96, FIND(\"x\", B96) + 1,\n    MATCH(FALSE, ISNUMBER(--MID(B96, FIND(\"x\", B96)+ROW(INDIRECT(\"1:10\")), 1)), 0) - 1))","v":0},null,null,null,null,{"$f":"I96 * VALUE(MID($B96, FIND(\"x\", $B96) + 1,\n    MATCH(FALSE, ISNUMBER(--MID($B96, FIND(\"x\", $B96)+ROW(INDIRECT(\"1:10\")), 1)), 0) - 1))","v":0}]
[]
[null,"Revista Científica Internacional (Editor o miembro de Comité Editorial)"]
[]
[null,"Tipo",null,"Cantidad\n(Autoevaluación)",null,"Puntos\n(Autoevaluación) ",null,null,"Cantidad\n(Evaluador DGPIS)",null,"Puntos\n(Evaluador DGPIS) "]
[]
[null,"Subtotal",null,{"$f":"SUM(D104:D106)","v":0},null,{"$f":"SUM(F104:F106)","v":0},null,null,{"$f":"SUM(I104:I106)","v":0},null,{"$f":"SUM(K104:K106)","v":0}]
[]
[null,"Editor del Grupo III (x25)",null,null,null,{"$f":"D104 * VALUE(MID(B104, FIND(\"x\", B104) + 1,\n    MATCH(FALSE, ISNUMBER(--MID(B104, FIND(\"x\", B104)+ROW(INDIRECT(\"1:10\")), 1)), 0) - 1))","v":0},null,null,null,null,{"$f":"I104 * VALUE(MID($B104, FIND(\"x\", $B104) + 1,\n    MATCH(FALSE, ISNUMBER(--MID($B104, FIND(\"x\", $B104)+ROW(INDIRECT(\"1:10\")), 1)), 0) - 1))","v":0}]
[null,"Editor del Grupo IV a VII (x75)",null,null,null,{"$f":"D105 * VALUE(MID(B105, FIND(\"x\", B105) + 1,\n    MATCH(FALSE, ISNUMBER(--MID(B105, FIND(\"x\", B105)+ROW(INDIRECT(\"1:10\")), 1)), 0) - 1))","v":0},null,null,null,null,{"$f":"I105 * VALUE(MID($B105, FIND(\"x\", $B105) + 1,\n    MATCH(FALSE, ISNUMBER(--MID($B105, FIND(\"x\", $B105)+ROW(INDIRECT(\"1:10\")), 1)), 0) - 1))","v":0}]
[null,"Pertenecer al comité editorial\ngrupo 4 a 7 (x50)",null,null,null,{"$f":"D106 * VALUE(MID(B106, FIND(\"x\", B106) + 1,\n    MATCH(FALSE, ISNUMBER(--MID(B106, FIND(\"x\", B106)+ROW(INDIRECT(\"1:10\")), 1)), 0) - 1))","v":0},null,null,null,null,{"$f":"I106 * VALUE(MID($B106, FIND(\"x\", $B106) + 1,\n    MATCH(FALSE, ISNUMBER(--MID($B106, FIND(\"x\", $B106)+ROW(INDIRECT(\"1:10\")), 1)), 0) - 1))","v":0}]
[]
[null,"SNI Vigente"]
[]
[null,"Tipo",null,"Cantidad\n(Autoevaluación)",null,"Puntos\n(Autoevaluación) ",null,null,"Cantidad\n(Evaluador DGPIS)",null,"Puntos\n(Evaluador DGPIS) "]
[]
[null,"Subtotal",null,{"$f":"SUM(D114:D117)","v":0},null,{"$f":"SUM(F114:F117)","v":0},null,null,{"$f":"SUM(I114:I117)","v":0},null,{"$f":"SUM(K114:K117)","v":0}]
[]
[null,"Candidato (x5)",null,null,null,{"$f":"D114 * VALUE(MID(B114, FIND(\"x\", B114) + 1,\n    MATCH(FALSE, ISNUMBER(--MID(B114, FIND(\"x\", B114)+ROW(INDIRECT(\"1:10\")), 1)), 0) - 1))","v":0},null,null,null,null,{"$f":"I114 * VALUE(MID($B114, FIND(\"x\", $B114) + 1,\n    MATCH(FALSE, ISNUMBER(--MID($B114, FIND(\"x\", $B114)+ROW(INDIRECT(\"1:10\")), 1)), 0) - 1))","v":0}]
[null,"SNI I (x10)",null,null,null,{"$f":"D115 * VALUE(MID(B115, FIND(\"x\", B115) + 1,\n    MATCH(FALSE, ISNUMBER(--MID(B115, FIND(\"x\", B115)+ROW(INDIRECT(\"1:10\")), 1)), 0) - 1))","v":0},null,null,null,null,{"$f":"I115 * VALUE(MID($B115, FIND(\"x\", $B115) + 1,\n    MATCH(FALSE, ISNUMBER(--MID($B115, FIND(\"x\", $B115)+ROW(INDIRECT(\"1:10\")), 1)), 0) - 1))","v":0}]
[null,"SNI II (x20)",null,null,null,{"$f":"D116 * VALUE(MID(B116, FIND(\"x\", B116) + 1,\n    MATCH(FALSE, ISNUMBER(--MID(B116, FIND(\"x\", B116)+ROW(INDIRECT(\"1:10\")), 1)), 0) - 1))","v":0},null,null,null,null,{"$f":"I116 * VALUE(MID($B116, FIND(\"x\", $B116) + 1,\n    MATCH(FALSE, ISNUMBER(--MID($B116, FIND(\"x\", $B116)+ROW(INDIRECT(\"1:10\")), 1)), 0) - 1))","v":0}]
[null,"SNI III (x30)",null,null,null,{"$f":"D117 * VALUE(MID(B117, FIND(\"x\", B117) + 1,\n    MATCH(FALSE, ISNUMBER(--MID(B117, FIND(\"x\", B117)+ROW(INDIRECT(\"1:10\")), 1)), 0) - 1))","v":0},null,null,null,null,{"$f":"I117 * VALUE(MID($B117, FIND(\"x\", $B117) + 1,\n    MATCH(FALSE, ISNUMBER(--MID($B117, FIND(\"x\", $B117)+ROW(INDIRECT(\"1:10\")), 1)), 0) - 1))","v":0}]
[]
[null,"Patentes"]
[]
[null,"Tipo",null,"Cantidad\n(Autoevaluación)",null,"Puntos\n(Autoevaluación) ",null,null,"Cantidad\n(Evaluador DGPIS)",null,"Puntos\n(Evaluador DGPIS) "]
[]
[null,"Subtotal",null,{"$f":"SUM(D125:D126)","v":0},null,{"$f":"SUM(F125:F126)","v":0},null,null,{"$f":"SUM(I125:I126)","v":0},null,{"$f":"SUM(K125:K126)","v":0}]
[]
[null,"Registrada y Aprobada \n(x100)",null,null,null,{"$f":"D125 * VALUE(MID(B125, FIND(\"x\", B125) + 1,\n    MATCH(FALSE, ISNUMBER(--MID(B125, FIND(\"x\", B125)+ROW(INDIRECT(\"1:10\")), 1)), 0) - 1))","v":0},null,null,null,null,{"$f":"I125 * VALUE(MID($B125, FIND(\"x\", $B125) + 1,\n    MATCH(FALSE, ISNUMBER(--MID($B125, FIND(\"x\", $B125)+ROW(INDIRECT(\"1:10\")), 1)), 0) - 1))","v":0}]
[null,"Registrada, Aprobada y en Uso demostrado (x200)",null,null,null,{"$f":"D126 * VALUE(MID(B126, FIND(\"x\", B126) + 1,\n    MATCH(FALSE, ISNUMBER(--MID(B126, FIND(\"x\", B126)+ROW(INDIRECT(\"1:10\")), 1)), 0) - 1))","v":0},null,null,null,null,{"$f":"I126 * VALUE(MID($B126, FIND(\"x\", $B126) + 1,\n    MATCH(FALSE, ISNUMBER(--MID($B126, FIND(\"x\", $B126)+ROW(INDIRECT(\"1:10\")), 1)), 0) - 1))","v":0}]
[]
[null,"Comités"]
[]
[null,"Tipo\n(sólo seleccionar 1)",null,"Cantidad\n(Autoevaluación)",null,"Puntos\n(Autoevaluación) ",null,null,"Cantidad\n(Evaluador DGPIS)",null,"Puntos\n(Evaluador DGPIS) "]
[]
[null,"Subtotal",null,{"$f":"SUM(D134:D136)","v":0},null,{"$f":"SUM(F134:F136)","v":0},null,null,{"$f":"SUM(I134:I136)","v":0},null,{"$f":"SUM(K134:K136)","v":0}]
[]
[null,"Bioética (x5)",null,null,null,{"$f":"IF(SUM($D$134:$D$136)=1,(D134 * VALUE(MID(B134, FIND(\"x\", B134) + 1,\n    MATCH(FALSE, ISNUMBER(--MID(B134, FIND(\"x\", B134)+ROW(INDIRECT(\"1:10\")), 1)), 0) - 1))),0)","v":0},null,null,null,null,{"$f":"IF(SUM($I$134:$I$136)=1,(I134 * VALUE(MID(B134, FIND(\"x\", B134) + 1,\n    MATCH(FALSE, ISNUMBER(--MID(B134, FIND(\"x\", B134)+ROW(INDIRECT(\"1:10\")), 1)), 0) - 1))),0)","v":0}]
[null,"Ética (x5)",null,null,null,{"$f":"IF(SUM($D$134:$D$136)=1,(D135 * VALUE(MID(B135, FIND(\"x\", B135) + 1,\n    MATCH(FALSE, ISNUMBER(--MID(B135, FIND(\"x\", B135)+ROW(INDIRECT(\"1:10\")), 1)), 0) - 1))),0)","v":0},null,null,null,null,{"$f":"IF(SUM($I$134:$I$136)=1,(I135 * VALUE(MID(B135, FIND(\"x\", B135) + 1,\n    MATCH(FALSE, ISNUMBER(--MID(B135, FIND(\"x\", B135)+ROW(INDIRECT(\"1:10\")), 1)), 0) - 1))),0)","v":0}]
[null,"Investigación (x5)",null,null,null,{"$f":"IF(SUM($D$134:$D$136)=1,(D136 * VALUE(MID(B136, FIND(\"x\", B136) + 1,\n    MATCH(FALSE, ISNUMBER(--MID(B136, FIND(\"x\", B136)+ROW(INDIRECT(\"1:10\")), 1)), 0) - 1))),0)","v":0},null,null,null,null,{"$f":"IF(SUM($I$134:$I$136)=1,(I136 * VALUE(MID(B136, FIND(\"x\", B136) + 1,\n    MATCH(FALSE, ISNUMBER(--MID(B136, FIND(\"x\", B136)+ROW(INDIRECT(\"1:10\")), 1)), 0) - 1))),0)","v":0}]
[]
[null,"Equivalencia a un artículo"]
[]
[null,"Tipo",null,"Marque con una X\ndónde corresponda",null,"Equivalencia\n(Autoevaluación) ",null,null,"Marque con una X\ndónde corresponda",null,"Equivalencia\n(Evaluador DGPIS) "]
[]
[null,"Autor libro Gpo A ",null,null,null,{"$f":"IF(D142=\"X\",VLOOKUP(B142,Equivalencias!$A$1:$B$11,2,0),\"\")","v":""},null,null,null,null,{"$f":"IF(I142=\"X\",VLOOKUP(B142,Equivalencias!$A$1:$B$11,2,0),\"\")","v":""}]
[null,"Autor libro Gpo B ",null,null,null,{"$f":"IF(D143=\"X\",VLOOKUP(B143,Equivalencias!$A$1:$B$11,2,0),\"\")","v":""},null,null,null,null,{"$f":"IF(I143=\"X\",VLOOKUP(B143,Equivalencias!$A$1:$B$11,2,0),\"\")","v":""}]
[null,"Autor Cap Gpo A ",null,null,null,{"$f":"IF(D144=\"X\",VLOOKUP(B144,Equivalencias!$A$1:$B$11,2,0),\"\")","v":""},null,null,null,null,{"$f":"IF(I144=\"X\",VLOOKUP(B144,Equivalencias!$A$1:$B$11,2,0),\"\")","v":""}]
[null,"Autor Cap Gpo B ",null,null,null,{"$f":"IF(D145=\"X\",VLOOKUP(B145,Equivalencias!$A$1:$B$11,2,0),\"\")","v":""},null,null,null,null,{"$f":"IF(I145=\"X\",VLOOKUP(B145,Equivalencias!$A$1:$B$11,2,0),\"\")","v":""}]
[null,"Autor Cap Gpo C ",null,null,null,{"$f":"IF(D146=\"X\",VLOOKUP(B146,Equivalencias!$A$1:$B$11,2,0),\"\")","v":""},null,null,null,null,{"$f":"IF(I146=\"X\",VLOOKUP(B146,Equivalencias!$A$1:$B$11,2,0),\"\")","v":""}]
[null,"Coautor Cap Gpo A ",null,null,null,{"$f":"IF(D147=\"X\",VLOOKUP(B147,Equivalencias!$A$1:$B$11,2,0),\"\")","v":""},null,null,null,null,{"$f":"IF(I147=\"X\",VLOOKUP(B147,Equivalencias!$A$1:$B$11,2,0),\"\")","v":""}]
[null,"Coautor Cap Gpo B ",null,null,null,{"$f":"IF(D148=\"X\",VLOOKUP(B148,Equivalencias!$A$1:$B$11,2,0),\"\")","v":""},null,null,null,null,{"$f":"IF(I148=\"X\",VLOOKUP(B148,Equivalencias!$A$1:$B$11,2,0),\"\")","v":""}]
[null,"Coautor Cap Gpo C ",null,null,null,{"$f":"IF(D149=\"X\",VLOOKUP(B149,Equivalencias!$A$1:$B$11,2,0),\"\")","v":""},null,null,null,null,{"$f":"IF(I149=\"X\",VLOOKUP(B149,Equivalencias!$A$1:$B$11,2,0),\"\")","v":""}]
[null,"Pat. Reg. Y Aprob ",null,null,null,{"$f":"IF(D150=\"X\",VLOOKUP(B150,Equivalencias!$A$1:$B$11,2,0),\"\")","v":""},null,null,null,null,{"$f":"IF(I150=\"X\",VLOOKUP(B150,Equivalencias!$A$1:$B$11,2,0),\"\")","v":""}]
[null,"Pat. Reg., Aprob. Y en Uso ",null,null,null,{"$f":"IF(D151=\"X\",VLOOKUP(B151,Equivalencias!$A$1:$B$11,2,0),\"\")","v":""},null,null,null,null,{"$f":"IF(I151=\"X\",VLOOKUP(B151,Equivalencias!$A$1:$B$11,2,0),\"\")","v":""}]
[null,"Revista Ric/Salud Mental ",null,null,null,{"$f":"IFERROR(IF(D152=\"X\",VLOOKUP(B152,Equivalencias!$A$1:$B$11,2,0),\"\"),\"Equivalencia no encontrada\")","v":""},null,null,null,null,{"$f":"IFERROR(IF(I152=\"X\",VLOOKUP(B152,Equivalencias!$A$1:$B$11,2,0),\"\"),\"Equivalencia no encontrada\")","v":""}]
[]
[]
[null,"Investigador",null,null,"Vo. Bo. "]
[]
[null,null,null,"Sello Institucional \nde Evaluación de Interna"]
[null,"Nombre",null,null,"Nombre"]
[null,"Cargo",null,null,"Cargo"]

{"sheet":"Ctrl","index":1,"n_rows":2525,"n_cols":6,"rows_kept":2525,"cut":false,"hidden":true,"merged":[]}
["ID","Adscripcion","Nombre","Nombramiento","Código funcional","Ingreso"]
[6326,"CENTRO NACIONAL DE LA TRANSFUSION SANGUINEA","ALCANTARA QUINTANA LUZ EUGENIA","BAJA","NULL","NULL"]
[7238,"CENTRO NACIONAL DE LA TRANSFUSION SANGUINEA","DIMAS GONZALEZ JISELA","ICM C","CF41046","IPP 2019"]
[6325,"CENTRO NACIONAL DE LA TRANSFUSION SANGUINEA","MONTAÑO FIGUEROA EFREEN HORACIO","BAJA","NULL","NULL"]
[6350,"CENTRO NACIONAL DE LA TRANSFUSION SANGUINEA","TREJO GOMORA JORGE ENRIQUE","BAJA","NULL","NULL"]
[5428,"CENTRO REGIONAL DE ALTA ESPECIALIDAD DE CHIAPAS","CANSECO AVILA LUIS MIGUEL","BAJA","NULL","NULL"]
[5429,"CENTRO REGIONAL DE ALTA ESPECIALIDAD DE CHIAPAS","DOMINGUEZ ARREVILLAGA SERGIO","BAJA","NULL","NULL"]
[6324,"CENTRO REGIONAL DE ALTA ESPECIALIDAD DE CHIAPAS","GARCIA CHONG NESTOR RODOLFO","BAJA","NULL","NULL"]
[6509,"CENTRO REGIONAL DE ALTA ESPECIALIDAD DE CHIAPAS","LEPE ZUÑIGA JOSE LUIS","BAJA","NULL","NULL"]
[7569,"CENTRO REGIONAL DE ALTA ESPECIALIDAD DE CHIAPAS","RODRIGUEZ RAMIREZ LETICIA","BAJA","NULL","NULL"]
[7239,"CENTRO REGIONAL DE ALTA ESPECIALIDAD DE CHIAPAS","SEPULVEDA DELGADO JESUS","BAJA","NULL","NULL"]
[6261,"CENTRO REGIONAL DE ALTA ESPECIALIDAD DE CHIAPAS","TAPIA GARDUÑO FERNANDO","BAJA","NULL","NULL"]
[5430,"CENTRO REGIONAL DE ALTA ESPECIALIDAD DE CHIAPAS","TRUJILLO MURILLO KARINA DEL CARMEN","BAJA","NULL","NULL"]
[6438,"COMISION COORDINADORA DE INSTITUTOS NACIONALES DE SALUD Y HOSPITALES DE ALTA ESPECIALIDAD","CANO JIMENEZ RODOLFO","BAJA","NULL","NULL"]
[7237,"COMISION COORDINADORA DE INSTITUTOS NACIONALES DE SALUD Y HOSPITALES DE ALTA ESPECIALIDAD","CANO JIMENEZ RODOLFO","BAJA","NULL","NULL"]
[6170,"COMISION COORDINADORA DE INSTITUTOS NACIONALES DE SALUD Y HOSPITALES DE ALTA ESPECIALIDAD","HICKS GOMEZ JUAN JOSE","BAJA","NULL","NULL"]
[4861,"COMISION COORDINADORA DE INSTITUTOS NACIONALES DE SALUD Y HOSPITALES DE ALTA ESPECIALIDAD","REYES TERAN GUSTAVO","BAJA","NULL","NULL"]
[7299,"COMISION NACIONAL DE ARBITRAJE MEDICO","ENSALDO CARRASCO EDUARDO","BAJA","NULL","NULL"]
[7298,"COMISION NACIONAL DE ARBITRAJE MEDICO","LEIJA MARTINEZ JOSE DE JESUS","BAJA","NULL","NULL"]
[7301,"COMISION NACIONAL DE ARBITRAJE MEDICO","LEZANA FERNANDEZ MIGUEL ANGEL","BAJA","NULL","NULL"]
[7295,"COMISION NACIONAL DE ARBITRAJE MEDICO","MENESES GONZALEZ FERNANDO","BAJA","NULL","NULL"]
[6191,"COMISION NACIONAL DE SALUD MENTAL Y ADICCIONES","ALBORES GALLO LILIA","ICM D","CF41013","IPP 2012"]
[7695,"COMISION NACIONAL DE SALUD MENTAL Y ADICCIONES","ARTEAGA CONTRERAS KAREN MICHELLE","BAJA","NULL","NULL"]
[7704,"COMISION NACIONAL DE SALUD MENTAL Y ADICCIONES","BOJORGE ESTRADA ALEXIZ","BAJA","NULL","NULL"]
[7291,"COMISION NACIONAL DE SALUD MENTAL Y ADICCIONES","CABELLO RANGEL HECTOR","ICM C","CF41012","IPP 2019"]
[6784,"COMISION NACIONAL DE SALUD MENTAL Y ADICCIONES","CASTILLA PEON MARIA FERNANDA","ICM C","CF41046","IPP 2017"]
[7452,"COMISION NACIONAL DE SALUD MENTAL Y ADICCIONES","CRUZ CRUZ COPYTZY","ICM C","CF41046","IPP 2020"]
[5408,"COMISION NACIONAL DE SALUD MENTAL Y ADICCIONES","FLORES LAZARO JULIO CESAR","BAJA","NULL","NULL"]
[7214,"COMISION NACIONAL DE SALUD MENTAL Y ADICCIONES","FREYRE GALICIA JUANA","NO VIGENTE","CF41044","NULL"]
[5409,"COMISION NACIONAL DE SALUD MENTAL Y ADICCIONES","GENIS MENDOZA ALMA DELIA","ICM D","CF41041","IPP 2009"]
[7694,"COMISION NACIONAL DE SALUD MENTAL Y ADICCIONES","GOMEZ GARCIA LOURDES","ICM B","CF41045","IPP 2024"]
[4704,"COMISION NACIONAL DE SALUD MENTAL Y ADICCIONES","GONZALEZ OLVERA JORGE JULIO","ICM D","CF41004","2006_INGRESO ANTERIOR"]
[7615,"COMISION NACIONAL DE SALUD MENTAL Y ADICCIONES","LOPEZ PEREZ LORENA ","BAJA","NULL","NULL"]
[6327,"COMISION NACIONAL DE SALUD MENTAL Y ADICCIONES","MARQUEZ CARAVEO MARIA ELENA DE LOS DOLORES","ICM D","CF41013","IPP 2013"]
[6192,"COMISION NACIONAL DE SALUD MENTAL Y ADICCIONES","MARTINEZ JAIME MARIA MAGDALENA","NO VIGENTE","CF41044","NULL"]
[7076,"COMISION NACIONAL DE SALUD MENTAL Y ADICCIONES","MOLINA LOPEZ ALEJANDRO","BAJA","NULL","NULL"]
[7696,"COMISION NACIONAL DE SALUD MENTAL Y ADICCIONES","NAVARRO LUNA ENRIQUE ","NO VIGENTE","CF41013","NULL"]
[6985,"COMISION NACIONAL DE SALUD MENTAL Y ADICCIONES","PAEZ AGRAZ FRANCISCO","BAJA","NULL","NULL"]
[6328,"COMISION NACIONAL DE SALUD MENTAL Y ADICCIONES","PEREZ BARRON VERONICA","ICM A","CF41044","IPP 2016"]
[6440,"COMISION NACIONAL DE SALUD MENTAL Y ADICCIONES","SOTELO MONROY GABRIEL EUGENIO","ICM A","CF41003","IPP 2016"]
[5410,"COMISION NACIONAL DE SALUD MENTAL Y ADICCIONES","ULLOA FLORES ROSA ELENA","ICM D","CF41041","IPP 2009"]
[6567,"COMISION NACIONAL DE SALUD MENTAL Y ADICCIONES","ZAVALETA RAMIREZ PATRICIA","ICM B","CF41012","IPP 2022"]
[5431,"HOSPITAL GENERAL DE CULIACAN","VELARDE FELIX JESUS SALVADOR","NULL","NULL","NULL"]
[6260,"HOSPITAL GENERAL DE MEXICO","ACOSTA ALTAMIRANO GUSTAVO","ICM C","CFM2101037","IPP 2017"]
[4172,"HOSPITAL GENERAL DE MEXICO","ALONSO Y VIVEROS PATRICIA","BAJA","NULL","NULL"]
[6895,"HOSPITAL GENERAL DE MEXICO","ALVAREZ ALTAMIRANO KAROLINA","ICM B","CF41045","IPP 2016"]
[4173,"HOSPITAL GENERAL DE MEXICO","ARROYO VALERIO AMERICA GUADALUPE","ICM B","CF41012","IPP 2011"]
[6664,"HOSPITAL GENERAL DE MEXICO","ARROYO YLLANES MARIA ESTELA","BAJA","NULL","NULL"]
[6447,"HOSPITAL GENERAL DE MEXICO","BARRON PALMA EIRA VALERIA","ICM B","CF41045","IPP 2024"]
[7303,"HOSPITAL GENERAL DE MEXICO","BELTRAN MENDOZA JESUS QUETZALCOATL","ICM C","CF41046","IPP 2020"]
[4174,"HOSPITAL GENERAL DE MEXICO","BERUMEN CAMPOS JAIME","BAJA","NULL","NULL"]
[4175,"HOSPITAL GENERAL DE MEXICO","BONIFAZ TRUJILLO JOSE ALEXANDRO","ICM D","CF41041","2015_INGRESO ANTERIOR"]
[6666,"HOSPITAL GENERAL DE MEXICO","BRIONES GARDUÑO JESUS CARLOS","ICM B","CF41012","IPP 2020"]
[7000,"HOSPITAL GENERAL DE MEXICO","BUENO HERNANDEZ NALLELY","ICM C","CF41046","IPP 2017"]
[4176,"HOSPITAL GENERAL DE MEXICO","BURGOS VARGAS RUBEN","BAJA","NULL","NULL"]
[4177,"HOSPITAL GENERAL DE MEXICO","CAMACHO HERNANDEZ SANTIAGO","ICM B","CF41045","IPP 2024"]
[7294,"HOSPITAL GENERAL DE MEXICO","CARRILLO RUIZ JOSE DAMIAN","ICM D","CF41041","IPP 2021"]
[7304,"HOSPITAL GENERAL DE MEXICO","CARRILLO TORRES ORLANDO","BAJA","NULL","NULL"]
[4178,"HOSPITAL GENERAL DE MEXICO","CASTRO FARFAN FREDDY GUILLERMO","BAJA","NULL","NULL"]
[7573,"HOSPITAL GENERAL DE MEXICO","CERON MALDONADO RAFAEL","ICM B","CF41045","IPP 2023"]
[4179,"HOSPITAL GENERAL DE MEXICO","CERVANTES PEREDO ALICIA BEATRIZ","ICM D","CF41041","2006_INGRESO ANTERIOR"]
[7302,"HOSPITAL GENERAL DE MEXICO","COLMENARES ROA TIRSA ALEJANDRA","ICM B","CF41045","IPP 2020"]
[4181,"HOSPITAL GENERAL DE MEXICO","CORTES POZA DAVID","BAJA","NULL","NULL"]
[4182,"HOSPITAL GENERAL DE MEXICO","CUELLAR HERRERA MANOLA","ICM C","CF41046","IPP 2009"]
[6727,"HOSPITAL GENERAL DE MEXICO","DE LA ROSA ZAMBONI DANIELA","ICM B","CF41013","IPP 2015"]
[4183,"HOSPITAL GENERAL DE MEXICO","ESCOBEDO GONZALEZ EUSTACIO GALILEO","ICM D"," CF41041","IPP 2009"]
[7240,"HOSPITAL GENERAL DE MEXICO","ESPINOSA GARCIA ANA MARIA","ICM D","CF41041","IPP 2020"]
[6894,"HOSPITAL GENERAL DE MEXICO","ESQUIVEL BUSTOS MAYRA ARACELI","BAJA","NULL","NULL"]
[7002,"HOSPITAL GENERAL DE MEXICO","ESQUIVEL VELAZQUEZ MARCELA","ICM C","CF41046","IPP 2017"]
[4184,"HOSPITAL GENERAL DE MEXICO","FERNANDEZ RAMIREZ FERNANDO","ICM C","CF41046","2010_INGRESO ANTERIOR"]
[6354,"HOSPITAL GENERAL DE MEXICO","FONSECA SANCHEZ MIGUEL ANGEL","ICM C","CF50000","IPP 2014"]
[4185,"HOSPITAL GENERAL DE MEXICO","FUCHS TARLOVSKY VANESSA","ICM D","CF41041","2009_INGRESO ANTERIOR"]
[6668,"HOSPITAL GENERAL DE MEXICO","GARCIA COVARRUBIAS LUIS","ICM C","CF41013","IPP 2015"]
[4186,"HOSPITAL GENERAL DE MEXICO","GARIBAY NIETO GUADALUPE NAYELY","ICM C","CF41046","2010_INGRESO ANTERIOR"]
[4187,"HOSPITAL GENERAL DE MEXICO","GOMEZ LAGUNA LAURA","ICM B","CF41045","IPP 2015"]
[7242,"HOSPITAL GENERAL DE MEXICO","GOMEZ RUIZ CITLALLYC JOSEFINA ","ICM B","CF41045","IPP 2020"]
[4188,"HOSPITAL GENERAL DE MEXICO","GONZALEZ HUERTA LUZ MARIA","ICM C","CF41046","IPP 2008"]
[4189,"HOSPITAL GENERAL DE MEXICO","GUARDADO ESTRADA JOSE MARIANO","BAJA","NULL","NULL"]
[4190,"HOSPITAL GENERAL DE MEXICO","GUTIERREZ SUAREZ RAUL","BAJA","NULL","NULL"]
[4191,"HOSPITAL GENERAL DE MEXICO","GUZMAN ARRIAGA CAROLINA","ICM D","CF41041","IPP 2009"]
[4192,"HOSPITAL GENERAL DE MEXICO","HERNANDEZ RUIZ JOSELIN","BAJA","NULL","NULL"]
[4193,"HOSPITAL GENERAL DE MEXICO","HERNANDEZ SOLIS ALEJANDRO","NULL","M01011","NULL"]
[4194,"HOSPITAL GENERAL DE MEXICO","KOFMAN EPSTEIN SUSANA HELENA","BAJA","NULL","NULL"]
[4195,"HOSPITAL GENERAL DE MEXICO","LOPEZ ALVARENGA JUAN CARLOS","BAJA","NULL","NULL"]
[6446,"HOSPITAL GENERAL DE MEXICO","LOPEZ LOPEZ CARLOS OMAR","BAJA","NULL","NULL"]
[7081,"HOSPITAL GENERAL DE MEXICO","MADRAZO NAVARRO IGNACIO MARIO","BAJA","NULL","NULL"]
[7618,"HOSPITAL GENERAL DE MEXICO","MANRIQUE DE LARA Y RAMIREZ AMARANTA","ICM B","CF41045","IPP 2024"]
[7004,"HOSPITAL GENERAL DE MEXICO","MARQUEZ ISLAS ROBERTO ","ICM C","CF41046","IPP 2017"]
[7003,"HOSPITAL GENERAL DE MEXICO","MARQUEZ MARQUEZ MARIA DEL CARMEN","ICM A ","CF41044","IPP 2023"]
[6439,"HOSPITAL GENERAL DE MEXICO","MELENDEZ MIER GUILLERMO","BAJA","NULL","NULL"]
[7241,"HOSPITAL GENERAL DE MEXICO","MENDEZ GARCIA LUCIA ANGELICA","ICM C","CF41046","IPP 2024"]
[4196,"HOSPITAL GENERAL DE MEXICO","MIRANDA PERALTA ISABEL ENRIQUE","BAJA","NULL","NULL"]
[4197,"HOSPITAL GENERAL DE MEXICO","MONROY GUZMAN ADRIANA","ICM D","CF41041","IPP 2010"]
[6713,"HOSPITAL GENERAL DE MEXICO","MORAN BARROSO VERONICA FABIOLA","ICM C","CF41013","IPP 2015"]
[4198,"HOSPITAL GENERAL DE MEXICO","OLARTE CARRILLO IRMA","ICM C","CF41046","IPP 2008"]
[7619,"HOSPITAL GENERAL DE MEXICO","OMAÑA GUZMAN LUZ ISABEL","ICM C","CF41046","IPP 2024"]
[4199,"HOSPITAL GENERAL DE MEXICO","PELAEZ BALLESTAS INGRIS DEL PILAR","ICM F","CF41043","2009_INGRESO ANTERIOR"]
[6448,"HOSPITAL GENERAL DE MEXICO","PEREZ NAVARRO LUCIA MONSERRAT","ICM D","CF41041","IPP 2015"]
[6896,"HOSPITAL GENERAL DE MEXICO","PEREZ PACHECO ARGELIA","ICM C","CF41046","IPP 2017"]
[6284,"HOSPITAL GENERAL DE MEXICO","QUISPE SICCHA ROSA MARIA","ICM C","CF41046","IPP 2013"]
[7705,"HOSPITAL GENERAL DE MEXICO","RAMIREZ LEDESMA ANA LAURA","ICM B","CF41045","IPP 2025"]
[4200,"HOSPITAL GENERAL DE MEXICO","RAMIREZ TAPIA YLIAN","BAJA","NULL","NULL"]
[4201,"HOSPITAL GENERAL DE MEXICO","REDING BERNAL ARTURO","ICM C","CF41046","IPP 2011"]
[4202,"HOSPITAL GENERAL DE MEXICO","RODRIGUEZ MARTINEZ HECTOR ABELARDO","BAJA","NULL","NULL"]
[6352,"HOSPITAL GENERAL DE MEXICO","SAN CRISTOBAL ZEPEDA PEDRO","BAJA","NULL","NULL"]
[6874,"HOSPITAL GENERAL DE MEXICO","SANCHEZ CONEJO ALMA ROSA","NO VIGENTE","CFK2259149","NULL"]
[7472,"HOSPITAL GENERAL DE MEXICO","SANCHEZ SANDOVAL ANA LAURA","ICM C","CF41046","IPP 2021"]
[4203,"HOSPITAL GENERAL DE MEXICO","SANTANA VARGAS ANGEL DANIEL","ICM C","CF41046","IPP 2013"]
[7574,"HOSPITAL GENERAL DE MEXICO","SIERRA JUAREZ MIGUEL ANGEL ","NO VIGENTE","CF41013","NULL"]
[4204,"HOSPITAL GENERAL DE MEXICO","TREJO MARTINEZ DAVID","ICM B","CF41045","IPP 2008"]
[6680,"HOSPITAL GENERAL DE MEXICO","VALDEZ ORTIZ RAFAEL","NO VIGENTE","M01010","NULL"]
[4205,"HOSPITAL GENERAL DE MEXICO","VAZQUEZ MELLADO CERVANTES NORA JANITZIA","ICM D","CF41041","2006_INGRESO ANTERIOR"]
[4206,"HOSPITAL GENERAL DE MEXICO","VELASCO CAMPOS FRANCISCO JESUS","BAJA","NULL","NULL"]
[6685,"HOSPITAL GENERAL MANUEL GEA GONZALEZ","AGUILAR MONTES GUSTAVO","NO VIGENTE","CFN31","NULL"]
[4096,"HOSPITAL GENERAL MANUEL GEA GONZALEZ","ARENAS GUZMAN ROBERTO","ICM E","CF41042","2006_INGRESO ANTERIOR"]
[6277,"HOSPITAL GENERAL MANUEL GEA GONZALEZ","AUZA BENAVIDES ALEJANDRA","ICM B","CF41045","IPP 2013"]
[6281,"HOSPITAL GENERAL MANUEL GEA GONZALEZ","BERISTAIN HERNANDEZ JOSE LUIS","BAJA","NULL","NULL"]
[4097,"HOSPITAL GENERAL MANUEL GEA GONZALEZ","CARRILLO CASAS ERIKA MARGARITA","ICM B","CF41045","IPP 2021"]
[7085,"HOSPITAL GENERAL MANUEL GEA GONZALEZ","CASTRO MARTINEZ ELVIRA","NULL","M01004","NULL"]
[6577,"HOSPITAL GENERAL MANUEL GEA GONZALEZ","DOMINGUEZ CHERIT JUDITH GUADALUPE","NULL","M01004","NULL"]
[6704,"HOSPITAL GENERAL MANUEL GEA GONZALEZ","ESCOBEDO TORRES MONICA PATRICIA","NULL","M01004","NULL"]
[4098,"HOSPITAL GENERAL MANUEL GEA GONZALEZ","ESPINOSA DE LOS MONTEROS PEREZ LUZ ELENA","NO VIGENTE","CF50000","NULL"]
[6698,"HOSPITAL GENERAL MANUEL GEA GONZALEZ","FIGUEROA MORENO RAFAEL","NO VIGENTE","CF41012","NULL"]
[4099,"HOSPITAL GENERAL MANUEL GEA GONZALEZ","FUENTES MERA LIZETH  ALICIA","BAJA","NULL","NULL"]
[4100,"HOSPITAL GENERAL MANUEL GEA GONZALEZ","GARGOLLO ORVAÑANOS CARLOS","BAJA","NULL","NULL"]
[4101,"HOSPITAL GENERAL MANUEL GEA GONZALEZ","GONZALEZ RAMIREZ RICARDO","ICM C","CF41046","IPP 2009"]
[4268,"HOSPITAL GENERAL MANUEL GEA GONZALEZ","GUTIERREZ CASTRELLON PEDRO","BAJA","NULL","NULL"]
[7244,"HOSPITAL GENERAL MANUEL GEA GONZALEZ","GUTIERREZ PALOMARES JESSICA","BAJA","NULL","NULL"]
[4102,"HOSPITAL GENERAL MANUEL GEA GONZALEZ","HERNANDEZ CASTRO RIGOBERTO ","ICM D","CF41041","IPP 2009"]
[7621,"HOSPITAL GENERAL MANUEL GEA GONZALEZ","HERNANDEZ VERA MARCELA ","NULL","M01011","NULL"]
[7084,"HOSPITAL GENERAL MANUEL GEA GONZALEZ","HERRERA ESQUIVEL JOSE DE JESUS","NULL","M01011","NULL"]
[6518,"HOSPITAL GENERAL MANUEL GEA GONZALEZ","HERRERA SOLIS MONICA ANDREA","ICM C","CF41046","IPP 2015"]
[7307,"HOSPITAL GENERAL MANUEL GEA GONZALEZ","HUAZANO GARCIA ALICIA ","BAJA","NULL","NULL"]
[6278,"HOSPITAL GENERAL MANUEL GEA GONZALEZ","IBARRA ARCE AURORA","ICM B","CF41045","IPP 2015"]
[6684,"HOSPITAL GENERAL MANUEL GEA GONZALEZ","JIMENEZ ESCOBAR IRMA","NO VIGENTE","CF41012","NULL"]
[6320,"HOSPITAL GENERAL MANUEL GEA GONZALEZ","JIMENEZ GUTIERREZ CARLOS","ICM C","CF41046","IPP 2018"]
[7474,"HOSPITAL GENERAL MANUEL GEA GONZALEZ","JUAREZ DURAN EDER RODRIGO","ICM A","CF41044","IPP 2022"]
[7576,"HOSPITAL GENERAL MANUEL GEA GONZALEZ","KAWA KARASIK SIMÓN","ICM A ","CFK2252343 ","IPP 2023"]
[6688,"HOSPITAL GENERAL MANUEL GEA GONZALEZ","KING MARTINEZ ANA CRISTINA","ICM A","CF41012","IPP 2015"]
[6367,"HOSPITAL GENERAL MANUEL GEA GONZALEZ","LAMMOGLIA ORDIALES LORENA","BAJA","NULL","NULL"]
[7308,"HOSPITAL GENERAL MANUEL GEA GONZALEZ","LANDA RAMIREZ EDGAR ","NULL","M02015","NULL"]
[4103,"HOSPITAL GENERAL MANUEL GEA GONZALEZ","LEYVA LEYVA MARGARITA ","ICM B","CF41045","IPP 2023"]
[4117,"HOSPITAL GENERAL MANUEL GEA GONZALEZ","LOPEZ HERNANDEZ JULIO CESAR","BAJA","NULL","NULL"]
[4118,"HOSPITAL GENERAL MANUEL GEA GONZALEZ","LOPEZ MENDOZA FRANCISCO JAVIER","BAJA","NULL","NULL"]
[4119,"HOSPITAL GENERAL MANUEL GEA GONZALEZ","LOZANO PLATONOFF ADRIANA","BAJA","NULL","NULL"]
[7309,"HOSPITAL GENERAL MANUEL GEA GONZALEZ","MANJARREZ HERNANDEZ HIPOLITO ANGEL","NULL","NULL","NULL"]
[4104,"HOSPITAL GENERAL MANUEL GEA GONZALEZ","MARAVILLA CAMPILLO JOSE PABLO ","ICM E","CF50000","2006_INGRESO ANTERIOR"]
[7082,"HOSPITAL GENERAL MANUEL GEA GONZALEZ","MARTINEZ FLORES WILLIAMS ARONY","ICM D","CF41041","IPP 2018"]
[4105,"HOSPITAL GENERAL MANUEL GEA GONZALEZ","MARTINEZ HERNANDEZ FERNANDO","ICM D","CF41041","IPP 2008"]
[4106,"HOSPITAL GENERAL MANUEL GEA GONZALEZ","MARTINEZ OCAÑA JOEL","ICM C","CF41046","IPP 2022"]
[6279,"HOSPITAL GENERAL MANUEL GEA GONZALEZ","MORENO COUTIÑO LAURA GABRIELA","NULL","M01011","NULL"]
[6898,"HOSPITAL GENERAL MANUEL GEA GONZALEZ","MORENO PORTILLO MUCIO","NULL","M01011","NULL"]
[6692,"HOSPITAL GENERAL MANUEL GEA GONZALEZ","NIEBLA CARDENAS DANNIELA","NO VIGENTE","CF41013","NULL"]
[7620,"HOSPITAL GENERAL MANUEL GEA GONZALEZ","NUÑEZ VENZOR ALEJANDRA","ICM A","CF41012","IPP 2024"]
[6519,"HOSPITAL GENERAL MANUEL GEA GONZALEZ","OLIVARES BAÑUELOS DANIEL","BAJA","NULL","NULL"]
[4107,"HOSPITAL GENERAL MANUEL GEA GONZALEZ","OLIVO DIAZ MARIA ANGELICA ALFONSINA ","ICM D","CF50000","2009_INGRESO ANTERIOR"]
[6689,"HOSPITAL GENERAL MANUEL GEA GONZALEZ","PACHECO GAHBLER CARLOS","NO VIGENTE","CF41012","NULL"]
[6686,"HOSPITAL GENERAL MANUEL GEA GONZALEZ","PALOMO PEREZ JUAN CARLOS","NULL","CFN31","NULL"]
[4108,"HOSPITAL GENERAL MANUEL GEA GONZALEZ","PAMPLONA FERREIRA MARIA DEL CARMEN ","BAJA","NULL","NULL"]
[6700,"HOSPITAL GENERAL MANUEL GEA GONZALEZ","PARRAGUIRRE MARTINEZ SARA","NO VIGENTE","CF41012","NULL"]
[6690,"HOSPITAL GENERAL MANUEL GEA GONZALEZ","PRADO CALLEROS HECTOR MANUEL","NULL","M01011","NULL"]
[6365,"HOSPITAL GENERAL MANUEL GEA GONZALEZ","QUIROZ GUADARRAMA CESAR DAVID","BAJA","NULL","NULL"]
[7083,"HOSPITAL GENERAL MANUEL GEA GONZALEZ","RAMIREZ HINOJOSA JUAN PABLO","ICM C","CFN31","IPP 2018"]
[4109,"HOSPITAL GENERAL MANUEL GEA GONZALEZ","RANGEL GAMBOA ELBA LUCIA","ICM C","CF41046","IPP 2015"]
[6280,"HOSPITAL GENERAL MANUEL GEA GONZALEZ","RESENDIZ BARRAGAN AIDA MONSERRAT","BAJA","NULL","NULL"]
[7706,"HOSPITAL GENERAL MANUEL GEA GONZALEZ","REYNA FIGUEROA JESUS","BAJA","NULL","NULL"]
[6151,"HOSPITAL GENERAL MANUEL GEA GONZALEZ","RODRIGUEZ CARREON ALMA ANGELICA","BAJA","NULL","NULL"]
[6699,"HOSPITAL GENERAL MANUEL GEA GONZALEZ","RODRIGUEZ ZULUETA ANA PATRICIA","ICM A ","CF41012","IPP 2023"]
[6705,"HOSPITAL GENERAL MANUEL GEA GONZALEZ","ROJANO RODRIGUEZ MARTIN EDGARDO","NULL","M01004","NULL"]
[4111,"HOSPITAL GENERAL MANUEL GEA GONZALEZ","ROMERO VALDOVINOS MIRZA GABRIELA","ICM D","CF41041","2006_INGRESO ANTERIOR"]
[4112,"HOSPITAL GENERAL MANUEL GEA GONZALEZ","SIERRA MARTINEZ OCTAVIO","NULL","M01011","NULL"]
[4120,"HOSPITAL GENERAL MANUEL GEA GONZALEZ","SIERRA MURGIA MARIANA ALEJANDRA","BAJA","NULL","NULL"]
[4113,"HOSPITAL GENERAL MANUEL GEA GONZALEZ","SUAREZ ROA MARIA DE LOURDES ","ICM A","CF41012","IPP 2024"]
[7577,"HOSPITAL GENERAL MANUEL GEA GONZALEZ","TALAYERO PETRA JOSE ANTONIO","ICM A ","CF41012","IPP 2023"]
[6366,"HOSPITAL GENERAL MANUEL GEA GONZALEZ","TORRES GUERRERO DAVID EDOARDO","BAJA","NULL","NULL"]
[7578,"HOSPITAL GENERAL MANUEL GEA GONZALEZ","TREJO AVILA MARIO EDUARDO","ICM B","CFM21","IPP 2024"]
[6706,"HOSPITAL GENERAL MANUEL GEA GONZALEZ","VALDES CASTRO RICARDO","NO VIGENTE","CF41013","NULL"]
[7473,"HOSPITAL GENERAL MANUEL GEA GONZALEZ","VALENZUELA SALAZAR CARLOS","BAJA","NULL","NULL"]
[6899,"HOSPITAL GENERAL MANUEL GEA GONZALEZ","VAZQUEZ CARDENAS CLAUDIA PAOLA","ICM B","CF41045","IPP 2016"]
[6697,"HOSPITAL GENERAL MANUEL GEA GONZALEZ","VAZQUEZ ZAVALA GENOVEVA","NO VIGENTE","CF41012","NULL"]
[4115,"HOSPITAL GENERAL MANUEL GEA GONZALEZ","VEGA MEMIJE MARIA ELISA ","NO VIGENTE","CF41012","NULL"]
[7575,"HOSPITAL GENERAL MANUEL GEA GONZALEZ","VIDAL VAZQUEZ ROSA PATRICIA","ICM A ","CFN31","IPP 2023"]
[4116,"HOSPITAL GENERAL MANUEL GEA GONZALEZ","YSUNZA RIVERA ANTONIO ","BAJA","NULL","NULL"]
[7707,"HOSPITAL INFANTIL DE MEXICO FEDERICO GOMEZ","ACOSTA RODRIGUEZ BUENO CARLOS PATRICIO","ICM A","CF50000","IPP 2025"]
[6210,"HOSPITAL INFANTIL DE MEXICO FEDERICO GOMEZ","AGUIRRE HERNANDEZ JESUS","NO VIGENTE","CF41046","NULL"]
[7321,"HOSPITAL INFANTIL DE MEXICO FEDERICO GOMEZ","ALVAREZ ARELLANO MARIA DE LOURDES","NULL","NULL","NULL"]
[7087,"HOSPITAL INFANTIL DE MEXICO FEDERICO GOMEZ","ANTONIO ANDRES GABRIELA ","A ICM C","CF41049","IPP 2025"]
[4121,"HOSPITAL INFANTIL DE MEXICO FEDERICO GOMEZ","AQUINO JARQUIN GUILLERMO ","ICM D","CF41041","IPP 2009"]
[4122,"HOSPITAL INFANTIL DE MEXICO FEDERICO GOMEZ","ARELLANO GALINDO JOSE","ICM E","CF41042","2009_INGRESO ANTERIOR"]
[4123,"HOSPITAL INFANTIL DE MEXICO FEDERICO GOMEZ","ARENAS HUERTERO FRANCISCO JESUS","ICM D","CF41041","IPP 2009"]
[7086,"HOSPITAL INFANTIL DE MEXICO FEDERICO GOMEZ","AVILA MONTIEL DIANA","ICM B","CF41045","IPP 2021"]
[7310,"HOSPITAL INFANTIL DE MEXICO FEDERICO GOMEZ","AVILES ROBLES MARTHA JOSEFINA","ICM C","CF41013","IPP 2021"]
[6211,"HOSPITAL INFANTIL DE MEXICO FEDERICO GOMEZ","BAAY GUZMAN GUILLERMINA JULIANA","ICM D","CF41041","IPP 2012"]
[7062,"HOSPITAL INFANTIL DE MEXICO FEDERICO GOMEZ","BALDERRABANO SAUCEDO NORMA ALICIA","NULL","M01004","NULL"]
[6310,"HOSPITAL INFANTIL DE MEXICO FEDERICO GOMEZ","BARAJAS NAVA LETICIA ANDREA","ICM D","CF41041","IPP 2013"]
[6724,"HOSPITAL INFANTIL DE MEXICO FEDERICO GOMEZ","BARRAGAN PEREZ EDUARDO JAVIER","BAJA","NULL","NULL"]
[6766,"HOSPITAL INFANTIL DE MEXICO FEDERICO GOMEZ","BRACHO BLANCHET EDUARDO DEL SAGRADO CORAZON","NULL","NULL","NULL"]
[4124,"HOSPITAL INFANTIL DE MEXICO FEDERICO GOMEZ","CABALLERO GARCIA MA. DE LOURDES","NO VIGENTE","CF41045","NULL"]
[6779,"HOSPITAL INFANTIL DE MEXICO FEDERICO GOMEZ","CABRERA MUÑOZ MARIA DE LOURDES","NULL","NULL","NULL"]
[6230,"HOSPITAL INFANTIL DE MEXICO FEDERICO GOMEZ","CALDERON JAIMES ERNESTO","ICM B","CF41013","IPP 2019"]
[7088,"HOSPITAL INFANTIL DE MEXICO FEDERICO GOMEZ","CAMACHO GONZALEZ BENJAMIN","NO VIGENTE","CF41049","NULL"]
[6783,"HOSPITAL INFANTIL DE MEXICO FEDERICO GOMEZ","CAMPOS LARA MARIA GUADALUPE","NO VIGENTE","CF50000","NULL"]
[6754,"HOSPITAL INFANTIL DE MEXICO FEDERICO GOMEZ","CASTILLO MARTINEZ IO DAIELA","BAJA","NULL","NULL"]
[4125,"HOSPITAL INFANTIL DE MEXICO FEDERICO GOMEZ","CASTRO Y SIERRA EDUARDO","BAJA","NULL","NULL"]
[7708,"HOSPITAL INFANTIL DE MEXICO FEDERICO GOMEZ","CERON RODRIGUEZ MAGDALENA","NO VIGENTE","CF41013","NULL"]
[7709,"HOSPITAL INFANTIL DE MEXICO FEDERICO GOMEZ","CHAVEZ LOPEZ ADRIAN","ICM B","CFK2252383","IPP 2025"]
[6731,"HOSPITAL INFANTIL DE MEXICO FEDERICO GOMEZ","CHICO PONCE DE LEON FERNANDO","NULL","M01004","NULL"]
[4126,"HOSPITAL INFANTIL DE MEXICO FEDERICO GOMEZ","CLARK PERALTA PATRICIA ELENA","BAJA","NULL","NULL"]
[4127,"HOSPITAL INFANTIL DE MEXICO FEDERICO GOMEZ","CONTRERAS RAMOS ALEJANDRA","ICM D","CF41041","IPP 2008"]
[6357,"HOSPITAL INFANTIL DE MEXICO FEDERICO GOMEZ","CORONA CASTILLO JUAN CARLOS","ICM D","CF41041","IPP 2014"]
[7475,"HOSPITAL INFANTIL DE MEXICO FEDERICO GOMEZ","COTA ROMERO CARLOS FEDERICO","A ICM C","CF41049","IPP 2023"]
[4128,"HOSPITAL INFANTIL DE MEXICO FEDERICO GOMEZ","CRISOSTOMO VAZQUEZ MARIA DEL PILAR","ICM C","CF41046","IPP 2025"]
[4129,"HOSPITAL INFANTIL DE MEXICO FEDERICO GOMEZ","CRUZ CORDOVA ARIADNNA DEL CARMEN","ICM C","CF41046","IPP 2009"]
[6763,"HOSPITAL INFANTIL DE MEXICO FEDERICO GOMEZ","DAVILA PEREZ ROBERTO","ICM C","CF41013","IPP 2015"]
[4130,"HOSPITAL INFANTIL DE MEXICO FEDERICO GOMEZ","DEL REY PINEDA GUILLERMO","BAJA","NULL","NULL"]
[4131,"HOSPITAL INFANTIL DE MEXICO FEDERICO GOMEZ","DEL RIO NAVARRO BLANCA ESTELA","ICM F","CF41043","2009_INGRESO ANTERIOR"]
[6736,"HOSPITAL INFANTIL DE MEXICO FEDERICO GOMEZ","DIES SUAREZ PILAR","NULL","M01004","NULL"]
[4132,"HOSPITAL INFANTIL DE MEXICO FEDERICO GOMEZ","DORANTES ACOSTA ELISA MARIA","ICM D","CF41041","IPP 2011"]
[4133,"HOSPITAL INFANTIL DE MEXICO FEDERICO GOMEZ","EGUIA AGUILAR MARIA DEL PILAR","ICM C","CF41046","2009_INGRESO ANTERIOR"]
[4134,"HOSPITAL INFANTIL DE MEXICO FEDERICO GOMEZ","ELIGIO GARCIA LETICIA","ICM C","CF41046","IPP 2020"]
[7710,"HOSPITAL INFANTIL DE MEXICO FEDERICO GOMEZ","FAUGIER FUENTES ENRIQUE","ICM C","CF50000","IPP 2025"]
[4165,"HOSPITAL INFANTIL DE MEXICO FEDERICO GOMEZ","FLORES HUERTA SAMUEL","BAJA","NULL","NULL"]
[4135,"HOSPITAL INFANTIL DE MEXICO FEDERICO GOMEZ","FRANCO PAREDES CARLOS ERNESTO","ICM E","CF41042","2006_INGRESO ANTERIOR"]
[6872,"HOSPITAL INFANTIL DE MEXICO FEDERICO GOMEZ","FRIGOLET VAZQUEZ VELA MARIA EUGENIA","BAJA","NULL","NULL"]
[6359,"HOSPITAL INFANTIL DE MEXICO FEDERICO GOMEZ","FUENTES PANANA EZEQUIEL MOISES","ICM F","CF41043","IPP 2014"]
[6422,"HOSPITAL INFANTIL DE MEXICO FEDERICO GOMEZ","GAMIÑO ARROYO ANA ESTELA","NULL","M01004","NULL"]
[4136,"HOSPITAL INFANTIL DE MEXICO FEDERICO GOMEZ","GARDUÑO ESPINOSA JUAN","ICM D"," CF41041","IPP 2009"]
[7711,"HOSPITAL INFANTIL DE MEXICO FEDERICO GOMEZ","GAYTAN MORALES JOSE FELIX","NO VIGENTE","CF41013","NULL"]
[4166,"HOSPITAL INFANTIL DE MEXICO FEDERICO GOMEZ","GONZALEZ GARCIA NADIA","ICM C","CF41046","IPP 2012"]
[6209,"HOSPITAL INFANTIL DE MEXICO FEDERICO GOMEZ","GRANADOS RIVERON JAVIER TADEO","ICM D","CF41041","IPP 2012"]
[7712,"HOSPITAL INFANTIL DE MEXICO FEDERICO GOMEZ","GUADARRAMA OROZCO JESSICA HAYDEE","ICM B","CF50000","IPP 2025"]
[6355,"HOSPITAL INFANTIL DE MEXICO FEDERICO GOMEZ","GUTIERREZ AGUILAR RUTH","BAJA","NULL","NULL"]
[4137,"HOSPITAL INFANTIL DE MEXICO FEDERICO GOMEZ","HEBRERO MARTINEZ MIRNA","BAJA","NULL","NULL"]
[7089,"HOSPITAL INFANTIL DE MEXICO FEDERICO GOMEZ","HERNANDEZ CUETO DANIEL DIMITRI","A ICM C","CF41049","IPP 2018"]
[7007,"HOSPITAL INFANTIL DE MEXICO FEDERICO GOMEZ","HERNANDEZ HERNANDEZ ABRAHAN","BAJA","NULL","NULL"]
[7064,"HOSPITAL INFANTIL DE MEXICO FEDERICO GOMEZ","HIDALGO TOBON SILVIA SANDRA","NULL","M01004","NULL"]
[4138,"HOSPITAL INFANTIL DE MEXICO FEDERICO GOMEZ","HUANG FENGYANG ","ICM D","CF41041","2006_INGRESO ANTERIOR"]
[4139,"HOSPITAL INFANTIL DE MEXICO FEDERICO GOMEZ","HUERTA YEPEZ SARA","ICM F","CF41043","2006_INGRESO ANTERIOR"]
[6782,"HOSPITAL INFANTIL DE MEXICO FEDERICO GOMEZ","JASSO GUTIERREZ LUIS","BAJA","NULL","NULL"]
[4140,"HOSPITAL INFANTIL DE MEXICO FEDERICO GOMEZ","JIMENEZ CARDOSO ENEDINA","ICM F","CF41043","2009_INGRESO ANTERIOR"]
[6745,"HOSPITAL INFANTIL DE MEXICO FEDERICO GOMEZ","JIMENEZ JUAREZ RODOLFO NORBERTO","ICM C","CF50000","IPP 2018"]
[4141,"HOSPITAL INFANTIL DE MEXICO FEDERICO GOMEZ","JIMENEZ ROJAS LETICIA VERONICA","ICM C","CF41046","IPP 2020"]
[4142,"HOSPITAL INFANTIL DE MEXICO FEDERICO GOMEZ","KLUNDER KLUNDER MIGUEL","ICM D"," CF41041","2009_INGRESO ANTERIOR"]
[6764,"HOSPITAL INFANTIL DE MEXICO FEDERICO GOMEZ","LEZAMA DEL VALLE PABLO","ICM B","CF41013","IPP 2025"]
[7311,"HOSPITAL INFANTIL DE MEXICO FEDERICO GOMEZ","LOPEZ GONZALEZ DESIREE","ICM C","CF41046","IPP 2024"]
[6511,"HOSPITAL INFANTIL DE MEXICO FEDERICO GOMEZ","LOPEZ PEREZ TANIA VALENTINA","BAJA","NULL","NULL"]
[7313,"HOSPITAL INFANTIL DE MEXICO FEDERICO GOMEZ","LUNA PINEDA VICTOR MANUEL","ICM C","CF41046","IPP 2024"]
[4143,"HOSPITAL INFANTIL DE MEXICO FEDERICO GOMEZ","LURIA PEREZ ROSENDO","ICM D","CF41041","IPP 2006"]
[4144,"HOSPITAL INFANTIL DE MEXICO FEDERICO GOMEZ","MALDONADO BERNAL MARIA DEL CARMEN","ICM D","CF41041","IPP 2010"]
[7314,"HOSPITAL INFANTIL DE MEXICO FEDERICO GOMEZ","MARQUEZ GONZALEZ HORACIO","ICM C","CF41013","IPP 2020"]
[4167,"HOSPITAL INFANTIL DE MEXICO FEDERICO GOMEZ","MARTINEZ GARCIA MARIA DEL CARMEN","BAJA","NULL","NULL"]
[6904,"HOSPITAL INFANTIL DE MEXICO FEDERICO GOMEZ","MARTINEZ RODRIGUEZ NANCY LUCERO","ICM C","CF41046","IPP 2016"]
[7320,"HOSPITAL INFANTIL DE MEXICO FEDERICO GOMEZ","MARTINEZ RUIZ GUSTAVO ULISES","NULL","NULL","NULL"]
[4145,"HOSPITAL INFANTIL DE MEXICO FEDERICO GOMEZ","MARTINEZ SALGADO LEONARDO HOMERO","NULL","NULL","NULL"]
[4146,"HOSPITAL INFANTIL DE MEXICO FEDERICO GOMEZ","MARTINEZ VALVERDE SILVIA","ICM C","CF41046","IPP 2017"]
[4147,"HOSPITAL INFANTIL DE MEXICO FEDERICO GOMEZ","MEDEIROS DOMINGO MARA","ICM E","CFM1156538","IPP 2025"]
[6243,"HOSPITAL INFANTIL DE MEXICO FEDERICO GOMEZ","MEDINA BRAVO PATRICIA GUADALUPE","NULL","M01011","NULL"]
[6903,"HOSPITAL INFANTIL DE MEXICO FEDERICO GOMEZ","MEDINA CONTRERAS OSCAR","ICM D","CF41041","IPP 2016"]
[7061,"HOSPITAL INFANTIL DE MEXICO FEDERICO GOMEZ","MEDINA SANSON AURORA","NULL","M01004","NULL"]
[6250,"HOSPITAL INFANTIL DE MEXICO FEDERICO GOMEZ","MENDEZ GALVAN JORGE FERNANDO","NULL","M01004","NULL"]
[7245,"HOSPITAL INFANTIL DE MEXICO FEDERICO GOMEZ","MENDEZ SANCHEZ LUCIA","NULL","NULL","NULL"]
[7315,"HOSPITAL INFANTIL DE MEXICO FEDERICO GOMEZ","MENDOZA ELIZALDE SANDRA","NULL","NULL","NULL"]
[7006,"HOSPITAL INFANTIL DE MEXICO FEDERICO GOMEZ","MIRANDA LORA AMERICA LILIANA","ICM C","CF41046","IPP 2017"]
[6902,"HOSPITAL INFANTIL DE MEXICO FEDERICO GOMEZ","MORALES SANCHEZ ABIGAIL","ICM C","CF41046","IPP 2016"]
[4148,"HOSPITAL INFANTIL DE MEXICO FEDERICO GOMEZ","MORENO GALVAN MONICA","ICM A","CF41044","IPP 2016"]
[6905,"HOSPITAL INFANTIL DE MEXICO FEDERICO GOMEZ","MORENO VARGAS LILIANA MARISOL ","ICM C","CF41046","IPP 2017"]
[4169,"HOSPITAL INFANTIL DE MEXICO FEDERICO GOMEZ","MUÑOZ ARISPE RICARDO","BAJA","NULL","NULL"]
[4170,"HOSPITAL INFANTIL DE MEXICO FEDERICO GOMEZ","MUÑOZ HERNANDEZ ONOFRE","NULL","NULL","NULL"]
[7318,"HOSPITAL INFANTIL DE MEXICO FEDERICO GOMEZ","NAVARRETE RODRIGUEZ ELSY MAUREEN","NULL","M01004","NULL"]
[6707,"HOSPITAL INFANTIL DE MEXICO FEDERICO GOMEZ","NIETO ZERMEÑO JAIME","NULL","M01011","NULL"]
[4149,"HOSPITAL INFANTIL DE MEXICO FEDERICO GOMEZ","OCHOA PEREZ SARA ARIADNA","ICM C","CF41046","IPP 2009"]
[7713,"HOSPITAL INFANTIL DE MEXICO FEDERICO GOMEZ","OLIVAR LOPEZ VICTOR BALTAZAR","ICM C","CFM2101041","IPP 2025"]
[6765,"HOSPITAL INFANTIL DE MEXICO FEDERICO GOMEZ","ORDORICA FLORES RICARDO MANUEL","ICM C","CF41013","IPP 2015"]
[7623,"HOSPITAL INFANTIL DE MEXICO FEDERICO GOMEZ","OROZCO MORALES JOSE ANTONIO","ICM C","CF50000","IPP 2025"]
[7501,"HOSPITAL INFANTIL DE MEXICO FEDERICO GOMEZ","ORTEGA RIOSVELASCO FERNANDO","ICM B","CF50000","IPP 2022"]
[6739,"HOSPITAL INFANTIL DE MEXICO FEDERICO GOMEZ","PARRA ORTEGA ISRAEL","ICM B","CF50000","IPP 2015"]
[6311,"HOSPITAL INFANTIL DE MEXICO FEDERICO GOMEZ","PATIÑO LOPEZ GENARO","ICM E","CF41042","IPP 2013"]
[7714,"HOSPITAL INFANTIL DE MEXICO FEDERICO GOMEZ","PATIÑO MORALES CARLOS CESAR","A ICM C","CF41049","IPP 2025"]
[6769,"HOSPITAL INFANTIL DE MEXICO FEDERICO GOMEZ","PENCHYNA GRUB JAIME","ICM A","CF41013","IPP 2025"]
[4150,"HOSPITAL INFANTIL DE MEXICO FEDERICO GOMEZ","PIETROPAOLO CIENFUEGOS DINO ROBERTO","BAJA","NULL","NULL"]
[4151,"HOSPITAL INFANTIL DE MEXICO FEDERICO GOMEZ","PIZARRO CASTELLANOS MARIEL","BAJA","NULL","NULL"]
[7091,"HOSPITAL INFANTIL DE MEXICO FEDERICO GOMEZ","PRADA GRACIA DIEGO","ICM C","CF41046","IPP 2018"]
[4631,"HOSPITAL INFANTIL DE MEXICO FEDERICO GOMEZ","QUEZADA PABLO HECTOR ","ICM D","CF41041","IPP 2016"]
[6767,"HOSPITAL INFANTIL DE MEXICO FEDERICO GOMEZ","RAMIREZ ORTIZ MARCO ANTONIO","NO VIGENTE","M01004","NULL"]
[4152,"HOSPITAL INFANTIL DE MEXICO FEDERICO GOMEZ","RIVAS RUIZ RODOLFO","BAJA","NULL","NULL"]
[7715,"HOSPITAL INFANTIL DE MEXICO FEDERICO GOMEZ","RIZZOLI CORDOBA ANTONIO","ICM A","CF41013","IPP 2025"]
[7502,"HOSPITAL INFANTIL DE MEXICO FEDERICO GOMEZ","ROCHA RAMIREZ LUZ MARIA","NULL","M02089","NULL"]
[7622,"HOSPITAL INFANTIL DE MEXICO FEDERICO GOMEZ","RODEA MONTEALEGRE GERARDO ERBEY","BAJA","NULL","NULL"]
[7093,"HOSPITAL INFANTIL DE MEXICO FEDERICO GOMEZ","RODRIGUEZ ESPINO BENJAMIN ANTONIO","NO VIGENTE","CF41046","NULL"]
[6258,"HOSPITAL INFANTIL DE MEXICO FEDERICO GOMEZ","RODRIGUEZ SUAREZ ROMEO SERGIO","BAJA","NULL","NULL"]
[7090,"HOSPITAL INFANTIL DE MEXICO FEDERICO GOMEZ","RODRIGUEZ ZAPATA DANIELA PATRICIA","A ICM C","CF41049","IPP 2019"]
[6775,"HOSPITAL INFANTIL DE MEXICO FEDERICO GOMEZ","RUIZ BEDOLLA ELISEO","ICM A","CF41013","IPP 2025"]
[6777,"HOSPITAL INFANTIL DE MEXICO FEDERICO GOMEZ","SADOWINSKI PINE STANISLAW WLADISLAW","ICM C","CF41013","IPP 2015"]
[7247,"HOSPITAL INFANTIL DE MEXICO FEDERICO GOMEZ","SALAZAR GARCIA MARCELA","ICM C","CF50000","IPP 2019"]
[4154,"HOSPITAL INFANTIL DE MEXICO FEDERICO GOMEZ","SALINAS ESCUDERO GUILLERMO","ICM D","CF41041","IPP 2009"]
[4155,"HOSPITAL INFANTIL DE MEXICO FEDERICO GOMEZ","SANCHEZ GOMEZ CONCEPCION","BAJA","NULL","NULL"]
[4156,"HOSPITAL INFANTIL DE MEXICO FEDERICO GOMEZ","SANCHEZ URBINA ROCIO","ICM D","CF41041","IPP 2008"]
[6309,"HOSPITAL INFANTIL DE MEXICO FEDERICO GOMEZ","SAUCEDO RAMIREZ OMAR JOSUE","BAJA","NULL","NULL"]
[7065,"HOSPITAL INFANTIL DE MEXICO FEDERICO GOMEZ","SIENRA MONGE JUAN JOSE LUIS","ICM C","CFN3101773","IPP 2018"]
[7092,"HOSPITAL INFANTIL DE MEXICO FEDERICO GOMEZ","SOLORZANO SANTOS FORTINO","ICM C","CF41046","IPP 2018"]
[7316,"HOSPITAL INFANTIL DE MEXICO FEDERICO GOMEZ","TIRADO RODRIGUEZ ANA BELEN","NULL","NULL","NULL"]
[4157,"HOSPITAL INFANTIL DE MEXICO FEDERICO GOMEZ","TOLEDO BAHENA MIRNA ERENDIRA","NULL","M01004","NULL"]
[6901,"HOSPITAL INFANTIL DE MEXICO FEDERICO GOMEZ","TRILLO TINOCO JIMENA","BAJA","NULL","NULL"]
[7503,"HOSPITAL INFANTIL DE MEXICO FEDERICO GOMEZ","VALENCIA HERRERA ADRIANA MARIA","NULL","M01004","NULL"]
[4158,"HOSPITAL INFANTIL DE MEXICO FEDERICO GOMEZ","VALENCIA MAYORAL PEDRO FRANCISCO","NULL","M01004","NULL"]
[6358,"HOSPITAL INFANTIL DE MEXICO FEDERICO GOMEZ","VALLE RIOS RICARDO","NULL","NULL","NULL"]
[7624,"HOSPITAL INFANTIL DE MEXICO FEDERICO GOMEZ","VARGAS NERI JESSICA LILIANA","ICM C","CF50000","IPP 2025"]
[7500,"HOSPITAL INFANTIL DE MEXICO FEDERICO GOMEZ","VAZQUEZ CORNEJO EDMUNDO","BAJA","NULL","NULL"]
[7579,"HOSPITAL INFANTIL DE MEXICO FEDERICO GOMEZ","VAZQUEZ FRIAS RODRIGO","ICM C","CFN3101773","IPP 2025"]
[4159,"HOSPITAL INFANTIL DE MEXICO FEDERICO GOMEZ","VELASQUEZ FORERO FRANCISCO HERNANY","BAJA","NULL","NULL"]
[4160,"HOSPITAL INFANTIL DE MEXICO FEDERICO GOMEZ","VELAZQUEZ GUADARRAMA NORMA","ICM D","CF41041","2006_INGRESO ANTERIOR"]
[4161,"HOSPITAL INFANTIL DE MEXICO FEDERICO GOMEZ","VILCHIS GIL JENNY","ICM D","CF41041","IPP 2011"]
[6723,"HOSPITAL INFANTIL DE MEXICO FEDERICO GOMEZ","VILLALPANDO CARRION SALVADOR","NULL","M01004","NULL"]
[6752,"HOSPITAL INFANTIL DE MEXICO FEDERICO GOMEZ","VILLANUEVA GARCIA DINA","ICM C","CF41013","IPP 2022"]
[4162,"HOSPITAL INFANTIL DE MEXICO FEDERICO GOMEZ","VILLAVICENCIO GUZMAN LAURA","ICM B","CF41045","IPP 2017"]
[6356,"HOSPITAL INFANTIL DE MEXICO FEDERICO GOMEZ","VINIEGRA VELAZQUEZ LEONARDO ENRIQUE","NULL","NULL","NULL"]
[4163,"HOSPITAL INFANTIL DE MEXICO FEDERICO GOMEZ","XICOHTENCATL CORTES JUAN","ICM F","CF41043","2009_INGRESO ANTERIOR"]
[4164,"HOSPITAL INFANTIL DE MEXICO FEDERICO GOMEZ","ZAPATA TARRES MARTHA ","BAJA","NULL","NULL"]
[4281,"HOSPITAL JUAREZ DE MEXICO","ARRIAGA ALBA MYRIAM","BAJA","NULL","NULL"]
[6639,"HOSPITAL JUAREZ DE MEXICO","BARBOSA COBOS ROSA ELDA","NULL","M01010","NULL"]
[7512,"HOSPITAL JUAREZ DE MEXICO","BECERRIL MENDOZA LIZBETH TERESA","NO VIGENTE","CF41013","NULL"]
[6460,"HOSPITAL JUAREZ DE MEXICO","BELLO LOPEZ JUAN MANUEL","ICM E","CF41042","IPP 2016"]
[4292,"HOSPITAL JUAREZ DE MEXICO","BELTRAN RAMIREZ OLGA","BAJA","NULL","NULL"]
[7627,"HOSPITAL JUAREZ DE MEXICO","CARPINTEYRO ESPIN PAULINA","NULL","CF41013","NULL"]
[6906,"HOSPITAL JUAREZ DE MEXICO","CASTAÑON GONZALEZ JORGE ALBERTO","BAJA","NULL","NULL"]
[4294,"HOSPITAL JUAREZ DE MEXICO","CASTRO MEDRANO ERNESTINA","BAJA","NULL","NULL"]
[6275,"HOSPITAL JUAREZ DE MEXICO","CORTES MALAGON ENOC MARIANO","ICM D","CF41041","IPP 2013"]
[7505,"HOSPITAL JUAREZ DE MEXICO","CRUZ CRUZ CLEMENTE","A ICM C","CF41049","IPP 2022"]
[7506,"HOSPITAL JUAREZ DE MEXICO","DURAN  MANUEL EMILIO MARIANO","A ICM C","CF41049","IPP 2022"]
[6462,"HOSPITAL JUAREZ DE MEXICO","FERNANDEZ SANCHEZ VERONICA\t","BAJA","NULL","NULL"]
[4283,"HOSPITAL JUAREZ DE MEXICO","FLORES ESTRADA JOSE JAVIER","ICM C","CF41046","IPP 2018"]
[6207,"HOSPITAL JUAREZ DE MEXICO","GARCIA LOPEZ EDUARDO STALIN","BAJA","NULL","NULL"]
[7625,"HOSPITAL JUAREZ DE MEXICO","GOMEZ ZAMORA ERIKA","ICM A","CFM2356476","IPP 2024"]
[4284,"HOSPITAL JUAREZ DE MEXICO","GONZALEZ ESPINOSA ALICIA MARIA DOLORES","BAJA","NULL","NULL"]
[4285,"HOSPITAL JUAREZ DE MEXICO","GRANADOS SILVESTRE MARIA DE LOS ANGELES","BAJA","NULL","NULL"]
[7630,"HOSPITAL JUAREZ DE MEXICO","HERNANDEZ MARIANO JOSE ANGEL","ICM B","CF41045","IPP 2024"]
[6461,"HOSPITAL JUAREZ DE MEXICO","IBAÑEZ CERVANTES GABRIELA","BAJA","NULL","NULL"]
[7629,"HOSPITAL JUAREZ DE MEXICO","JIMENEZ HERNANDEZ ADRIANA","ICM C","CF41046","IPP 2024"]
[7097,"HOSPITAL JUAREZ DE MEXICO","JUAREZ ASCENCIO  DANIEL ARTURO","A ICM C","CF41049","IPP 2018"]
[6256,"HOSPITAL JUAREZ DE MEXICO","LIMA GOMEZ VIRGILIO","NULL","M01011","NULL"]
[6709,"HOSPITAL JUAREZ DE MEXICO","LOPEZ MARTINEZ BRICEIDA","NO VIGENTE","CF41013","NULL"]
[7008,"HOSPITAL JUAREZ DE MEXICO","LOPEZ ORNELAS ADOLFO","ICM C","CF41046","IPP 2017"]
[6651,"HOSPITAL JUAREZ DE MEXICO","LUGO ZAMUDIO GUSTAVO ESTEBAN","ICM C","CFK2259148","IPP 2016"]
[7325,"HOSPITAL JUAREZ DE MEXICO","MACIAS CORTES EMMA DEL CARMEN","NULL","M01011","NULL"]
[7509,"HOSPITAL JUAREZ DE MEXICO","MADRIGAL ANAYA JESUS DEL CARMEN","NO VIGENTE","M01004","NULL"]
[7511,"HOSPITAL JUAREZ DE MEXICO","MEJIA  BLANQUEL MARIA ALICIA","A ICM C","CF41049","IPP 2023"]
[7508,"HOSPITAL JUAREZ DE MEXICO","MONCAYO COELLO CAROL VIVIAN","NULL","M01004","NULL"]
[6206,"HOSPITAL JUAREZ DE MEXICO","MONTUFAR ROBLES ISELA","ICM B","CF41045","IPP 2022"]
[6205,"HOSPITAL JUAREZ DE MEXICO","MORENO EUTIMIO MARIO ADAN","BAJA","NULL","NULL"]
[4481,"HOSPITAL JUAREZ DE MEXICO","MORENO RODRIGUEZ JOSE","BAJA","NULL","NULL"]
[6316,"HOSPITAL JUAREZ DE MEXICO","NIETO VELAZQUEZ NAYELI GORETI","ICM C","CF41046","IPP 2013"]
[7718,"HOSPITAL JUAREZ DE MEXICO","OLIVARES CRUZ SANDRA","ICM A","CF41013","IPP 2025"]
[6317,"HOSPITAL JUAREZ DE MEXICO","OLVERA GOMEZ IRLANDA","ICM C","CF41046","IPP 2025"]
[7717,"HOSPITAL JUAREZ DE MEXICO","ONTIVEROS MERCADO HERIBERTO","ICM A","CF41013","IPP 2025"]
[4286,"HOSPITAL JUAREZ DE MEXICO","ORTIZ LOPEZ MARIA GUADALUPE","ICM D","CF41041","2009_INGRESO ANTERIOR"]
[7252,"HOSPITAL JUAREZ DE MEXICO","PALACIOS REYES MARIA DEL CARMEN","BAJA","NULL","NULL"]
[4291,"HOSPITAL JUAREZ DE MEXICO","PONCE VERGARA JOSE LUIS","BAJA","NULL","NULL"]
[7631,"HOSPITAL JUAREZ DE MEXICO","PUENTE RIVERA JONATHAN","ICM C","CF41046","IPP 2024"]
[4288,"HOSPITAL JUAREZ DE MEXICO","RAZO BLANCO HERNANDEZ DULCE MILAGROS","NULL","M01006","NULL"]
[4293,"HOSPITAL JUAREZ DE MEXICO","REYES HERNANDEZ OCTAVIO DANIEL","BAJA","NULL","NULL"]
[7507,"HOSPITAL JUAREZ DE MEXICO","ROJO GUTIERREZ MARIA ISABEL","BAJA","NULL","NULL"]
[7250,"HOSPITAL JUAREZ DE MEXICO","SANCHEZ POZOS KATY ALEJANDRA","ICM C","CF41046","IPP 2021"]
[7628,"HOSPITAL JUAREZ DE MEXICO","SOSA DURAN ERIK EFRAIN","NO VIGENTE","M01010","NULL"]
[4290,"HOSPITAL JUAREZ DE MEXICO","TOVAR RODRIGUEZ JOSE MARIA","BAJA","NULL","NULL"]
[6654,"HOSPITAL JUAREZ DE MEXICO","UGARTE BRIONES CARLOS","BAJA","NULL","NULL"]
[7504,"HOSPITAL JUAREZ DE MEXICO","VARGAS  DE LEON CRUZ","ICM C","CF41046","IPP 2022"]
[7626,"HOSPITAL JUAREZ DE MEXICO","VASQUEZ JIMENEZ ENZO CHRISTOPHER","ICM B","CF41013","IPP 2024"]
[7095,"HOSPITAL JUAREZ DE MEXICO","VICTORIA  ACOSTA GEORGINA","ICM C","CF41046","IPP 2018"]
[6463,"HOSPITAL REGIONAL DE ALTA ESPECIALIDAD DE CIUDAD VICTORIA","BERLANGA BOLADO OSCAR MANUEL","BAJA","NULL","NULL"]
[6412,"HOSPITAL REGIONAL DE ALTA ESPECIALIDAD DE CIUDAD VICTORIA","CASILLAS RAMIREZ ARANI","BAJA","NULL","NULL"]
[7067,"HOSPITAL REGIONAL DE ALTA ESPECIALIDAD DE CIUDAD VICTORIA","CRESPO  SOLIS ERICK","BAJA","NULL","NULL"]
[7632,"HOSPITAL REGIONAL DE ALTA ESPECIALIDAD DE CIUDAD VICTORIA","MARTÍNEZ PADRÓN HADASSA YUEF","BAJA","NULL","NULL"]
[6262,"HOSPITAL REGIONAL DE ALTA ESPECIALIDAD DE CIUDAD VICTORIA","VARGAS GONZALEZ DOMINGO","BAJA","NULL","NULL"]
[7099,"HOSPITAL REGIONAL DE ALTA ESPECIALIDAD DE LA PENINSULA DE YUCATAN","AVILA NAVA AZALIA","BAJA","NULL","NULL"]
[5414,"HOSPITAL REGIONAL DE ALTA ESPECIALIDAD DE LA PENINSULA DE YUCATAN","CAMPOS TAMAYO FREDDY DANIEL","BAJA","NULL","NULL"]
[6988,"HOSPITAL REGIONAL DE ALTA ESPECIALIDAD DE LA PENINSULA DE YUCATAN","DE LOS SANTOS BRIONES SAUL","BAJA","NULL","NULL"]
[5413,"HOSPITAL REGIONAL DE ALTA ESPECIALIDAD DE LA PENINSULA DE YUCATAN","GOMEZ DE REGIL LIZZETTE MARIA DE GUADALUPE","BAJA","NULL","NULL"]
[7297,"HOSPITAL REGIONAL DE ALTA ESPECIALIDAD DE LA PENINSULA DE YUCATAN","GUILLERMO HERRERA JORGE CARLOS","BAJA","NULL","NULL"]
[7100,"HOSPITAL REGIONAL DE ALTA ESPECIALIDAD DE LA PENINSULA DE YUCATAN","GUTIERREZ SOLIS ANA LIGIA","BAJA","NULL","NULL"]
[7101,"HOSPITAL REGIONAL DE ALTA ESPECIALIDAD DE LA PENINSULA DE YUCATAN","LUGO GOMEZ JOSE ROBERTO","BAJA","NULL","NULL"]
[7580,"HOSPITAL REGIONAL DE ALTA ESPECIALIDAD DE LA PENINSULA DE YUCATAN","MENDEZ  DOMINGUEZ NINA ISABEL","BAJA","NULL","NULL"]
[5412,"HOSPITAL REGIONAL DE ALTA ESPECIALIDAD DE LA PENINSULA DE YUCATAN","MUSSARET BANO ZAIDI JACOBSON","BAJA","NULL","NULL"]
[6890,"HOSPITAL REGIONAL DE ALTA ESPECIALIDAD DE LA PENINSULA DE YUCATAN","NEMEGYEI ALVAREZ JOSE","BAJA","NULL","NULL"]
[6263,"HOSPITAL REGIONAL DE ALTA ESPECIALIDAD DE LA PENINSULA DE YUCATAN","PEREZ FERNANDEZ CELIA JOSEFINA","BAJA","NULL","NULL"]
[6274,"HOSPITAL REGIONAL DE ALTA ESPECIALIDAD DE OAXACA","CASTAÑON SANCHEZ CARLOS ALBERTO","BAJA","NULL","NULL"]
[6435,"HOSPITAL REGIONAL DE ALTA ESPECIALIDAD DE OAXACA","GARCIA MENDEZ SERGIO","BAJA","NULL","NULL"]
[7296,"HOSPITAL REGIONAL DE ALTA ESPECIALIDAD DE OAXACA","GARCIA PEREZ LILIAM IRASEMA","BAJA","NULL","NULL"]
[5415,"HOSPITAL REGIONAL DE ALTA ESPECIALIDAD DE OAXACA","GÜNTHER JEANNETTE","BAJA","NULL","NULL"]
[6264,"HOSPITAL REGIONAL DE ALTA ESPECIALIDAD DE OAXACA","HERNANDEZ JIMENEZ MARIA EUGENIA","BAJA","NULL","NULL"]
[5417,"HOSPITAL REGIONAL DE ALTA ESPECIALIDAD DE OAXACA","RUVALCABA LEDEZMA JESUS CARLOS","BAJA","NULL","NULL"]
[6370,"HOSPITAL REGIONAL DE ALTA ESPECIALIDAD DE OAXACA","TAPIA PASTRANA GABRIELA","BAJA","NULL","NULL"]
[5416,"HOSPITAL REGIONAL DE ALTA ESPECIALIDAD DE OAXACA","VELAZQUEZ PAZ ARTURO LUIS","BAJA","NULL","NULL"]
[7010,"HOSPITAL REGIONAL DE ALTA ESPECIALIDAD DEL BAJIO","ACEVEDO GOMEZ PABLO FRANCISCO ","BAJA","NULL","NULL"]
[5418,"HOSPITAL REGIONAL DE ALTA ESPECIALIDAD DEL BAJIO","ALVAREZ CANALES JOSE ANTONIO DE JESUS","BAJA","NULL","NULL"]
[6196,"HOSPITAL REGIONAL DE ALTA ESPECIALIDAD DEL BAJIO","APOLINAR JIMENEZ EVELIA","BAJA","NULL","NULL"]
[5419,"HOSPITAL REGIONAL DE ALTA ESPECIALIDAD DEL BAJIO","AREVALO RIVAS BERTHA ISABEL","BAJA","NULL","NULL"]
[5420,"HOSPITAL REGIONAL DE ALTA ESPECIALIDAD DEL BAJIO","AYALA GARCIA MARCO ANTONIO","BAJA","NULL","NULL"]
[7332,"HOSPITAL REGIONAL DE ALTA ESPECIALIDAD DEL BAJIO","BUENO ROSARIO LUIS JONATHAN ","BAJA","NULL","NULL"]
[7326,"HOSPITAL REGIONAL DE ALTA ESPECIALIDAD DEL BAJIO","CANO ROSAS MARTIN","BAJA","NULL","NULL"]
[7516,"HOSPITAL REGIONAL DE ALTA ESPECIALIDAD DEL BAJIO","CASILLAS ARAIZA MA. ELIZABETH","BAJA","NULL","NULL"]
[7012,"HOSPITAL REGIONAL DE ALTA ESPECIALIDAD DEL BAJIO","CONTRERAS ZAVALA FERNANDO","BAJA","NULL","NULL"]
[6913,"HOSPITAL REGIONAL DE ALTA ESPECIALIDAD DEL BAJIO","ESPAÑA GOMEZ MARIA NAYVI","BAJA","NULL","NULL"]
[7515,"HOSPITAL REGIONAL DE ALTA ESPECIALIDAD DEL BAJIO","EVIA VISCARRA MARIA LOLA","BAJA","NULL","NULL"]
[6568,"HOSPITAL REGIONAL DE ALTA ESPECIALIDAD DEL BAJIO","FARIAS SERRATOS FELIPE","BAJA","NULL","NULL"]
[7570,"HOSPITAL REGIONAL DE ALTA ESPECIALIDAD DEL BAJIO","GARCIA MORENO ESPERANZA","BAJA","NULL","NULL"]
[5421,"HOSPITAL REGIONAL DE ALTA ESPECIALIDAD DEL BAJIO","GONZALEZ RIVERA RUBEN","BAJA","NULL","NULL"]
[5422,"HOSPITAL REGIONAL DE ALTA ESPECIALIDAD DEL BAJIO","GONZALEZ YEBRA BEATRIZ","BAJA","NULL","NULL"]
[5423,"HOSPITAL REGIONAL DE ALTA ESPECIALIDAD DEL BAJIO","GUANI GUERRA EDUARDO","BAJA","NULL","NULL"]
[7471,"HOSPITAL REGIONAL DE ALTA ESPECIALIDAD DEL BAJIO","GUERRERO RAMOS MIGUEL ANGEL","BAJA","NULL","NULL"]
[7331,"HOSPITAL REGIONAL DE ALTA ESPECIALIDAD DEL BAJIO","IBARRA SANCHEZ SILVIA","BAJA","NULL","NULL"]
[6893,"HOSPITAL REGIONAL DE ALTA ESPECIALIDAD DEL BAJIO","LOPEZ SALAZAR LUIS HUMBERTO","BAJA","NULL","NULL"]
[7011,"HOSPITAL REGIONAL DE ALTA ESPECIALIDAD DEL BAJIO","LOZADA HERNANDEZ EDGARD EFREN","BAJA","NULL","NULL"]
[7513,"HOSPITAL REGIONAL DE ALTA ESPECIALIDAD DEL BAJIO","MALDONADO VALADEZ  RAFAEL EDGARDO ","BAJA","NULL","NULL"]
[5424,"HOSPITAL REGIONAL DE ALTA ESPECIALIDAD DEL BAJIO","MALDONADO VEGA MARIA","BAJA","NULL","NULL"]
[6186,"HOSPITAL REGIONAL DE ALTA ESPECIALIDAD DEL BAJIO","MARTINEZ CORDERO CLAUDIA","BAJA","NULL","NULL"]
[6569,"HOSPITAL REGIONAL DE ALTA ESPECIALIDAD DEL BAJIO","MARTINEZ CORDERO ERIKA DEL CARMEN","BAJA","NULL","NULL"]
[7330,"HOSPITAL REGIONAL DE ALTA ESPECIALIDAD DEL BAJIO","MENDOZA TRUJILLO ROCIO DEL CARMEN ","BAJA","NULL","NULL"]
[5425,"HOSPITAL REGIONAL DE ALTA ESPECIALIDAD DEL BAJIO","MORALES TLALPAN VERONICA","BAJA","NULL","NULL"]
[7514,"HOSPITAL REGIONAL DE ALTA ESPECIALIDAD DEL BAJIO","MOSQUEDA GOMEZ JUAN LUIS","BAJA","NULL","NULL"]
[6414,"HOSPITAL REGIONAL DE ALTA ESPECIALIDAD DEL BAJIO","NEGRETE PULIDO OSCAR RAUL","BAJA","NULL","NULL"]
[7014,"HOSPITAL REGIONAL DE ALTA ESPECIALIDAD DEL BAJIO","OLIVARES DURAN ENRIQUE MARIO","BAJA","NULL","NULL"]
[6265,"HOSPITAL REGIONAL DE ALTA ESPECIALIDAD DEL BAJIO","PEREZ CARRILLO RODOLFO","BAJA","NULL","NULL"]
[5426,"HOSPITAL REGIONAL DE ALTA ESPECIALIDAD DEL BAJIO","QUIROZ GUERRERO JAVIER DE JESUS","BAJA","NULL","NULL"]
[5427,"HOSPITAL REGIONAL DE ALTA ESPECIALIDAD DEL BAJIO","RODEA MONTERO EDEL RAFAEL","BAJA","NULL","NULL"]
[6415,"HOSPITAL REGIONAL DE ALTA ESPECIALIDAD DEL BAJIO","RODOLFO GUARDADO MENDOZA","BAJA","NULL","NULL"]
[7329,"HOSPITAL REGIONAL DE ALTA ESPECIALIDAD DEL BAJIO","ROSAS MONTES MARIO","BAJA","NULL","NULL"]
[7327,"HOSPITAL REGIONAL DE ALTA ESPECIALIDAD DEL BAJIO","SANCHEZ LOPEZ HECTOR MANUEL","BAJA","NULL","NULL"]
[7328,"HOSPITAL REGIONAL DE ALTA ESPECIALIDAD DEL BAJIO","SEGURA PORTILLA JAVIER","BAJA","NULL","NULL"]
[6914,"HOSPITAL REGIONAL DE ALTA ESPECIALIDAD DEL BAJIO","TENA  TAMAYO CARLOS","BAJA","NULL","NULL"]
[6390,"HOSPITAL REGIONAL DE ALTA ESPECIALIDAD IXTAPALUCA","ALVA ESPINOSA CARLOS ALFONSO","BAJA","NULL","NULL"]
[4282,"HOSPITAL REGIONAL DE ALTA ESPECIALIDAD IXTAPALUCA","BONILLA DELGADO JOSE","BAJA","NULL","NULL"]
[6877,"HOSPITAL REGIONAL DE ALTA ESPECIALIDAD IXTAPALUCA","CEBALLOS MEDINA JAVIER","BAJA","NULL","NULL"]
[6879,"HOSPITAL REGIONAL DE ALTA ESPECIALIDAD IXTAPALUCA","CHAVEZ MARTINEZ MIGUEL ANGEL","BAJA","NULL","NULL"]
[7105,"HOSPITAL REGIONAL DE ALTA ESPECIALIDAD IXTAPALUCA","CORTES MORENO GABRIELA YANET","BAJA","NULL","NULL"]
[6212,"HOSPITAL REGIONAL DE ALTA ESPECIALIDAD IXTAPALUCA","FRIAS DE LEON MARIA GUADALUPE","BAJA","NULL","NULL"]
[6916,"HOSPITAL REGIONAL DE ALTA ESPECIALIDAD IXTAPALUCA","GASCA LOPEZ GILBERTO ADRIAN","BAJA","NULL","NULL"]
[7103,"HOSPITAL REGIONAL DE ALTA ESPECIALIDAD IXTAPALUCA","MARTINEZ HERRERA ERICK OBED","BAJA","NULL","NULL"]
[7104,"HOSPITAL REGIONAL DE ALTA ESPECIALIDAD IXTAPALUCA","MENDEZ HERNANDEZ EDNA MADAI","BAJA","NULL","NULL"]
[6428,"HOSPITAL REGIONAL DE ALTA ESPECIALIDAD IXTAPALUCA","PINTO ALMAZAN RODOLFO","BAJA","NULL","NULL"]
[6880,"HOSPITAL REGIONAL DE ALTA ESPECIALIDAD IXTAPALUCA","RAMIREZ LOZADA TITO","BAJA","NULL","NULL"]
[6427,"HOSPITAL REGIONAL DE ALTA ESPECIALIDAD IXTAPALUCA","RIOS GUERRA HULME","BAJA","NULL","NULL"]
[6888,"HOSPITAL REGIONAL DE ALTA ESPECIALIDAD IXTAPALUCA","RODRIGUEZ CRUZ RENE","BAJA","NULL","NULL"]
[4289,"HOSPITAL REGIONAL DE ALTA ESPECIALIDAD IXTAPALUCA","SIERRA MARTINEZ MONICA","BAJA","NULL","NULL"]
[4295,"HOSPITAL REGIONAL DE ALTA ESPECIALIDAD IXTAPALUCA","TOSCANO GARIBAY JULIA DOLORES","BAJA","NULL","NULL"]
[7633,"HOSPITAL REGIONAL DE ALTA ESPECIALIDAD IXTAPALUCA","VALENCIA LEDEZMA OMAR ESTEBAN","BAJA","NULL","NULL"]
[6875,"HOSPITAL REGIONAL DE ALTA ESPECIALIDAD IXTAPALUCA","VELEZ DONIS VERONICA HORTENSIA","BAJA","NULL","NULL"]
[6876,"HOSPITAL REGIONAL DE ALTA ESPECIALIDAD IXTAPALUCA","VILLASEÑOR NAVARRO LUIS FELIPE","BAJA","NULL","NULL"]
[6381,"INSTITUTO NACIONAL DE CANCEROLOGIA","ALVAREZ GOMEZ ROSA MARIA","ICM D","CF41041","IPP 2014"]
[4297,"INSTITUTO NACIONAL DE CANCEROLOGIA","AMADOR MOLINA ALFREDO","BAJA","NULL","NULL"]
[6197,"INSTITUTO NACIONAL DE CANCEROLOGIA","ANDONEGUI ELGUERA MARCO ALONSO","ICM C","CF41046","IPP 2012"]
[4298,"INSTITUTO NACIONAL DE CANCEROLOGIA","ARECHAGA OCAMPO ELENA","BAJA","NULL","NULL"]
[7253,"INSTITUTO NACIONAL DE CANCEROLOGIA","ARRIAGA CANON CRISTIAN GABRIEL OLIVERIO","ICM D","CF41041","IPP 2019"]
[4299,"INSTITUTO NACIONAL DE CANCEROLOGIA","ARRIETA RODRIGUEZ OSCAR GERARDO","ICM F","CFKC002","IPP 2009"]
[4792,"INSTITUTO NACIONAL DE CANCEROLOGIA","AVILA MORENO FEDERICO","ICM E","CFN3001 ","IPP 2025"]
[4300,"INSTITUTO NACIONAL DE CANCEROLOGIA","BARANDA AVILA NOEMI","ICM C","CF41046","IPP 2011"]
[6527,"INSTITUTO NACIONAL DE CANCEROLOGIA","BARGALLO ROCHA JUAN ENRIQUE","ICM C","CF50000","IPP 2018"]
[7478,"INSTITUTO NACIONAL DE CANCEROLOGIA","CACERES GUTIERREZ RODRIGO ENRIQUE","BAJA","NULL","NULL"]
[4301,"INSTITUTO NACIONAL DE CANCEROLOGIA","CAMPOS PARRA ALMA DELIA","BAJA","NULL","NULL"]
[4302,"INSTITUTO NACIONAL DE CANCEROLOGIA","CANDELARIA HERNANDEZ MYRNA GLORIA","BAJA","NULL","NULL"]
[4303,"INSTITUTO NACIONAL DE CANCEROLOGIA","CANTU DE LEON DAVID FRANCISCO","ICM D","CF41041","IPP 2006"]
[4304,"INSTITUTO NACIONAL DE CANCEROLOGIA","CARRILLO GARCIA ADELA LUCIA","ICM C","CF41046","2009_INGRESO ANTERIOR"]
[7333,"INSTITUTO NACIONAL DE CANCEROLOGIA","CASTRO EGUILUZ ANGEL DENISSE","NULL","NULL","NULL"]
[4305,"INSTITUTO NACIONAL DE CANCEROLOGIA","CEREZO CAMACHO OSCAR","BAJA","NULL","NULL"]
[4306,"INSTITUTO NACIONAL DE CANCEROLOGIA","CETINA PEREZ LUCELY DEL CARMEN","ICM D","CF41041","2006_INGRESO ANTERIOR"]
[4307,"INSTITUTO NACIONAL DE CANCEROLOGIA","CHAVEZ BLANCO ALMA DELIA","ICM D","CF41041","2006_INGRESO ANTERIOR"]
[7111,"INSTITUTO NACIONAL DE CANCEROLOGIA","CISNEROS SOBERANIS FERNANDA","BAJA","NULL","NULL"]
[4308,"INSTITUTO NACIONAL DE CANCEROLOGIA","CONTRERAS PAREDES ADRIANA","ICM D","CF41041","2006_INGRESO ANTERIOR"]
[7568,"INSTITUTO NACIONAL DE CANCEROLOGIA","CORONEL HERNANDEZ JOSSIMAR","ICM B","CF41045","IPP 2022"]
[4309,"INSTITUTO NACIONAL DE CANCEROLOGIA","CORONEL MARTINEZ JAIME ALBERTO","ICM D","CF41041","IPP 2009"]
[4353,"INSTITUTO NACIONAL DE CANCEROLOGIA","CORTES GONZALEZ CARLO CESAR","ICM D","CF41041","IPP 2012"]
[6154,"INSTITUTO NACIONAL DE CANCEROLOGIA","CRUZ RAMOS MARLID","NULL","NULL","NULL"]
[6919,"INSTITUTO NACIONAL DE CANCEROLOGIA","CUELLAR GUZMAN LUIS FELIPE","BAJA","NULL","NULL"]
[7251,"INSTITUTO NACIONAL DE CANCEROLOGIA","CUREÑO DIAZ MONICA ALETHIA","ICM C","CF41013","IPP 2022"]
[6237,"INSTITUTO NACIONAL DE CANCEROLOGIA","DE LA GARZA SALAZAR JAIME GUADALUPE","NULL","M01011","NULL"]
[7108,"INSTITUTO NACIONAL DE CANCEROLOGIA","DEL CASTILLO FALCONI VICTOR MANUEL","A ICM C","CF41049","IPP 2018"]
[4311,"INSTITUTO NACIONAL DE CANCEROLOGIA","DIAZ CHAVEZ JOSE DE LA LUZ","ICM E","CF41042","IPP 2009"]
[4312,"INSTITUTO NACIONAL DE CANCEROLOGIA","DOMINGUEZ GOMEZ MARIA GUADALUPE ISABEL","ICM C","CF41046","IPP 2011"]
[4313,"INSTITUTO NACIONAL DE CANCEROLOGIA","DUEÑAS GONZALEZ ALFONSO","ICM F","CF41043","2006_INGRESO ANTERIOR"]
[7334,"INSTITUTO NACIONAL DE CANCEROLOGIA","FIGUEROA GONZALEZ GABRIELA","BAJA","NULL","NULL"]
[4314,"INSTITUTO NACIONAL DE CANCEROLOGIA","FLORES ESTRADA DIANA","ICM C","CF41046","2009_INGRESO ANTERIOR"]
[4315,"INSTITUTO NACIONAL DE CANCEROLOGIA","FRAGOSO ONTIVEROS VERONICA ZORAYA","ICM B","CF41045","IPP 2009"]
[7335,"INSTITUTO NACIONAL DE CANCEROLOGIA","GALLARDO ALVARADO LENNY NADIA","NULL","M01011","NULL"]
[7336,"INSTITUTO NACIONAL DE CANCEROLOGIA","GALVEZ HERNANDEZ CARMEN LIZETTE","NULL","NULL","NULL"]
[4316,"INSTITUTO NACIONAL DE CANCEROLOGIA","GARCIA CARRANCA ALEJANDRO MANUEL","BAJA","NULL","NULL"]
[4317,"INSTITUTO NACIONAL DE CANCEROLOGIA","GARCIA CUELLAR CLAUDIA MARIA","ICM F","CFM2001","2006_INGRESO ANTERIOR"]
[4318,"INSTITUTO NACIONAL DE CANCEROLOGIA","GARCIA LOPEZ PATRICIA","ICM E","CF41042","2006_INGRESO ANTERIOR"]
[4352,"INSTITUTO NACIONAL DE CANCEROLOGIA","GONZALEZ BARRIOS DE LA PARRA RODRIGO","ICM D","CF41041","IPP 2012"]
[4319,"INSTITUTO NACIONAL DE CANCEROLOGIA","GONZALEZ FIERRO AURORA","ICM C","CF41046","2009_INGRESO ANTERIOR"]
[4349,"INSTITUTO NACIONAL DE CANCEROLOGIA","GONZALEZ RAMIREZ IMELDA DEL CARMEN","BAJA","NULL","NULL"]
[6234,"INSTITUTO NACIONAL DE CANCEROLOGIA","GRANADOS GARCIA MARTIN","NO VIGENTE","CF50000","NULL"]
[7109,"INSTITUTO NACIONAL DE CANCEROLOGIA","GUERRERO CERON MARIA DE LA PAZ GABRIELA","NO VIGENTE","CF41049","NULL"]
[4320,"INSTITUTO NACIONAL DE CANCEROLOGIA","GUTIERREZ HERNANDEZ OLGA","ICM A","CF41044","IPP 2006"]
[7337,"INSTITUTO NACIONAL DE CANCEROLOGIA","HERNANDEZ MARTINEZ JUAN MANUEL","NULL","NULL","NULL"]
[6638,"INSTITUTO NACIONAL DE CANCEROLOGIA","HERNANDEZ PEDRO NORMA YANET","ICM C","CF41046","IPP 2015"]
[4350,"INSTITUTO NACIONAL DE CANCEROLOGIA","HERNANDEZ RAMIREZ GRECO","ICM E","CF41042","IPP 2012"]
[4322,"INSTITUTO NACIONAL DE CANCEROLOGIA","JURADO LEON FRANCISCO RAFAEL","ICM B","CF41045","IPP 2010"]
[4323,"INSTITUTO NACIONAL DE CANCEROLOGIA","LANGLEY MCCARRON ELIZABETH","ICM D","CF41041","2006_INGRESO ANTERIOR"]
[4324,"INSTITUTO NACIONAL DE CANCEROLOGIA","LIZANO SOBERON MARCELA","BAJA","NULL","NULL"]
[6541,"INSTITUTO NACIONAL DE CANCEROLOGIA","LOPEZ BASAVE HORACIO NOE","NULL","M01011","NULL"]
[4325,"INSTITUTO NACIONAL DE CANCEROLOGIA","LOPEZ SAAVEDRA ALEJANDRO","ICM C","CF41046","IPP 2009"]
[4326,"INSTITUTO NACIONAL DE CANCEROLOGIA","MANZANO LEON NATALIA","ICM C","CF41046","IPP 2009"]
[7338,"INSTITUTO NACIONAL DE CANCEROLOGIA","MANZO MERINO JOAQUIN","BAJA","NULL","NULL"]
[7107,"INSTITUTO NACIONAL DE CANCEROLOGIA","MARTINEZ RAMIREZ IMELDA","A ICM C","CF41049","IPP 2018"]
[4327,"INSTITUTO NACIONAL DE CANCEROLOGIA","MENDEZ MARTINEZ ROCIO SUSANA","ICM C","CF41046","IPP 2006"]
[6917,"INSTITUTO NACIONAL DE CANCEROLOGIA","MENESES GARCIA ANTELMO ABELARDO","BAJA","NULL","NULL"]
[7476,"INSTITUTO NACIONAL DE CANCEROLOGIA","MILLAN CATALAN OLIVER","ICM B","CF41045","IPP 2021"]
[4329,"INSTITUTO NACIONAL DE CANCEROLOGIA","MOHAR BETANCOURT ALEJANDRO","BAJA","NULL","NULL"]
[4330,"INSTITUTO NACIONAL DE CANCEROLOGIA","MONTIEL DAVALOS ANGELICA","ICM C","CF41046","IPP 2009"]
[4331,"INSTITUTO NACIONAL DE CANCEROLOGIA","MORALES BARCENAS MARIA DEL ROCIO","ICM A","CF41044","2009_INGRESO ANTERIOR"]
[7634,"INSTITUTO NACIONAL DE CANCEROLOGIA","MORENO FLORES GUILLERMO","A ICM C","CF41049","IPP 2024"]
[4332,"INSTITUTO NACIONAL DE CANCEROLOGIA","MUÑIZ HERNANDEZ SAE","ICM D","CF41041","IPP 2009"]
[7517,"INSTITUTO NACIONAL DE CANCEROLOGIA","MUÑOZ BELLO JESUS  OMAR","ICM C","CF41046","IPP 2022"]
[6236,"INSTITUTO NACIONAL DE CANCEROLOGIA","ÑAMENDYS SILVA SILVIO ANTONIO","NULL","M01010","NULL"]
[7720,"INSTITUTO NACIONAL DE CANCEROLOGIA","OÑATE OCAÑA LUIS FERNANDO","ICM C","CFN3001","IPP 2025"]
[4333,"INSTITUTO NACIONAL DE CANCEROLOGIA","ORTIZ SANCHEZ ELIZABETH","ICM E","CF41042","IPP 2009"]
[7339,"INSTITUTO NACIONAL DE CANCEROLOGIA","PEDROZA TORRES ABRAHAM","NULL","NULL","NULL"]
[4334,"INSTITUTO NACIONAL DE CANCEROLOGIA","PEREZ CARDENAS ZEFERINO ENRIQUE","ICM D","CF41041","2006_INGRESO ANTERIOR"]
[4335,"INSTITUTO NACIONAL DE CANCEROLOGIA","PEREZ PLASENCIA CARLOS GUADALUPE","BAJA","NULL","NULL"]
[4336,"INSTITUTO NACIONAL DE CANCEROLOGIA","PEREZ ROJAS JAZMIN MARLEN ","ICM D","CF41041","IPP 2009"]
[7340,"INSTITUTO NACIONAL DE CANCEROLOGIA","PEREZ YEPEZ ELOY ANDRES","ICM D","CF41041","IPP 2024"]
[4337,"INSTITUTO NACIONAL DE CANCEROLOGIA","PRADA ORTEGA DIDDIER GIOVANNI","BAJA","NULL","NULL"]
[7477,"INSTITUTO NACIONAL DE CANCEROLOGIA","QUEZADA MALDONADO ERICKA MAREL","ICM C","CF41046","IPP 2021"]
[4338,"INSTITUTO NACIONAL DE CANCEROLOGIA","QUINTANA BELMARES RAUL OMAR","ICM C","CF41046","IPP 2009"]
[6336,"INSTITUTO NACIONAL DE CANCEROLOGIA","REYNOSO NOVERON NANCY","ICM D","CF41041","IPP 2014"]
[7719,"INSTITUTO NACIONAL DE CANCEROLOGIA","RUIZ GARCIA ERIKA BETZABE","ICM C","CFM2001","IPP 2025"]
[4339,"INSTITUTO NACIONAL DE CANCEROLOGIA","SALCIDO NEYOY MARTHA ESTELA","BAJA","NULL","NULL"]
[4340,"INSTITUTO NACIONAL DE CANCEROLOGIA","SANCHEZ PEREZ YESENNIA","ICM E","CF41042","IPP 2009"]
[4341,"INSTITUTO NACIONAL DE CANCEROLOGIA","SANTIBAÑEZ ANDRADE MIGUEL","ICM C","CF41046","IPP 2011"]
[4343,"INSTITUTO NACIONAL DE CANCEROLOGIA","SOTO REYES SOLIS ERNESTO","BAJA","NULL","NULL"]
[4344,"INSTITUTO NACIONAL DE CANCEROLOGIA","TAJA CHAYEB LUCIA GUADALUPE","ICM D","CF41041","2009_INGRESO ANTERIOR"]
[4345,"INSTITUTO NACIONAL DE CANCEROLOGIA","TREJO BECERRIL CATALINA","NO VIGENTE","CF41041","NULL"]
[7341,"INSTITUTO NACIONAL DE CANCEROLOGIA","UNGER SALDAÑA KARLA","NULL","NULL","NULL"]
[4346,"INSTITUTO NACIONAL DE CANCEROLOGIA","VACA PANIAGUA FELIPE","BAJA","NULL","NULL"]
[7106,"INSTITUTO NACIONAL DE CANCEROLOGIA","VALLEJO ESCAMILLA DAVID GREGORIO","BAJA","NULL","NULL"]
[4347,"INSTITUTO NACIONAL DE CANCEROLOGIA","VAZQUEZ LOPEZ MARIA INES","ICM A","CF41044","2009_INGRESO ANTERIOR"]
[4348,"INSTITUTO NACIONAL DE CANCEROLOGIA","VIDAL MILLAN SILVIA","ICM C","CF41046","2009_INGRESO ANTERIOR"]
[6233,"INSTITUTO NACIONAL DE CANCEROLOGIA","VILLARREAL GARZA CYNTHIA MAYTE","BAJA","NULL","NULL"]
[7110,"INSTITUTO NACIONAL DE CANCEROLOGIA","WEGMAN OSTROSKY TALIA","ICM D","CF41041","IPP 2018"]
[7352,"INSTITUTO NACIONAL DE CARDIOLOGIA IGNACIO CHAVEZ","AGUIRRE GARCIA MARIA MAGDALENA","NULL","NULL","NULL"]
[6583,"INSTITUTO NACIONAL DE CARDIOLOGIA IGNACIO CHAVEZ","ALEXANDERSON ROSAS ERICK","ICM C","CF50000","IPP 2015"]
[4567,"INSTITUTO NACIONAL DE CARDIOLOGIA IGNACIO CHAVEZ","AMEZCUA GUERRA LUIS MANUEL ","ICM D","CF50000","2009_INGRESO ANTERIOR"]
[7636,"INSTITUTO NACIONAL DE CARDIOLOGIA IGNACIO CHAVEZ","ANTONIO VILLA NEFTALI EDUARDO","ICM B","CF41045","IPP 2024"]
[7518,"INSTITUTO NACIONAL DE CARDIOLOGIA IGNACIO CHAVEZ","APARICIO TREJO OMAR EMILIANO","ICM C","CF41046","IPP 2022"]
[4568,"INSTITUTO NACIONAL DE CARDIOLOGIA IGNACIO CHAVEZ","ARCE FONSECA MINERVA","BAJA","NULL","NULL"]
[7112,"INSTITUTO NACIONAL DE CARDIOLOGIA IGNACIO CHAVEZ","ARELLANO BUENDIA ABRAHAM SAID","ICM C","CF41046","IPP 2018"]
[7356,"INSTITUTO NACIONAL DE CARDIOLOGIA IGNACIO CHAVEZ","ARELLANO GONZALEZ MARVA ILIAN","A ICM B","CF41048","IPP 2020"]
[7639,"INSTITUTO NACIONAL DE CARDIOLOGIA IGNACIO CHAVEZ","ARIAS MENDOZA MARIA ALEXANDRA","ICM C","CF50000","IPP 2024"]
[4569,"INSTITUTO NACIONAL DE CARDIOLOGIA IGNACIO CHAVEZ","BAÑOS MARHABER GUADALUPE DEL CARMEN ","BAJA","NULL","NULL"]
[7353,"INSTITUTO NACIONAL DE CARDIOLOGIA IGNACIO CHAVEZ","BARRERA CHIMAL JONATAN","BAJA","NULL","NULL"]
[4570,"INSTITUTO NACIONAL DE CARDIOLOGIA IGNACIO CHAVEZ","BAUTISTA PEREZ MARIA DEL ROCIO ","ICM D","CF41041","IPP 2007"]
[6297,"INSTITUTO NACIONAL DE CARDIOLOGIA IGNACIO CHAVEZ","BELMONT DIAZ JAVIER ALEJANDRO","ICM C","CF41046","IPP 2015"]
[4571,"INSTITUTO NACIONAL DE CARDIOLOGIA IGNACIO CHAVEZ","BOJALIL PARRA RAFAEL ","BAJA","NULL","NULL"]
[7113,"INSTITUTO NACIONAL DE CARDIOLOGIA IGNACIO CHAVEZ","BRIANZA PADILLA MALINALLI","ICM C","CF41046","IPP 2019"]
[6298,"INSTITUTO NACIONAL DE CARDIOLOGIA IGNACIO CHAVEZ","BUELNA CHONTAL MABEL","ICM C","CF41046","IPP 2013"]
[7362,"INSTITUTO NACIONAL DE CARDIOLOGIA IGNACIO CHAVEZ","CALDERON COLMENERO JUAN EBERTO","ICM C","CF50000","IPP 2020"]
[7260,"INSTITUTO NACIONAL DE CARDIOLOGIA IGNACIO CHAVEZ","CAMPILLO NAVARRO MARCIA","NULL","NULL","NULL"]
[4572,"INSTITUTO NACIONAL DE CARDIOLOGIA IGNACIO CHAVEZ","CANO MARTINEZ AGUSTINA ","ICM C","CF41046","IPP 2017"]
[4573,"INSTITUTO NACIONAL DE CARDIOLOGIA IGNACIO CHAVEZ","CARBO ZABALA ROXANA ","ICM B","CF41045","IPP 2015"]
[4574,"INSTITUTO NACIONAL DE CARDIOLOGIA IGNACIO CHAVEZ","CARDENAS LOAEZA MANUEL ","BAJA","NULL","NULL"]
[4575,"INSTITUTO NACIONAL DE CARDIOLOGIA IGNACIO CHAVEZ","CARDOSO SALDAÑA GUILLERMO CELESTINO ","ICM D","CF41041","2006_INGRESO ANTERIOR"]
[4576,"INSTITUTO NACIONAL DE CARDIOLOGIA IGNACIO CHAVEZ","CARREON TORRES JUANA ELIZABETH ","ICM C","CF41046","IPP 2009"]
[6588,"INSTITUTO NACIONAL DE CARDIOLOGIA IGNACIO CHAVEZ","CASTILLO CASTELLON FRANCISCO","ICM B","CF41013","IPP 2015"]
[4577,"INSTITUTO NACIONAL DE CARDIOLOGIA IGNACIO CHAVEZ","CASTREJON TELLEZ VICENTE ","ICM B","CF41045","2009_INGRESO ANTERIOR"]
[6436,"INSTITUTO NACIONAL DE CARDIOLOGIA IGNACIO CHAVEZ","CERVANTES PEREZ LUZ GRACIELA","ICM C","CF41046","IPP 2014"]
[7359,"INSTITUTO NACIONAL DE CARDIOLOGIA IGNACIO CHAVEZ","CHAVEZ CANALES MARIA DE JESUS","NULL","NULL","NULL"]
[4578,"INSTITUTO NACIONAL DE CARDIOLOGIA IGNACIO CHAVEZ","CHAVEZ COSIO EDMUNDO ","BAJA","NULL","NULL"]
[4579,"INSTITUTO NACIONAL DE CARDIOLOGIA IGNACIO CHAVEZ","CORREA SEGURA FRANCISCO ","ICM D","CF41041","2009_INGRESO ANTERIOR"]
[6590,"INSTITUTO NACIONAL DE CARDIOLOGIA IGNACIO CHAVEZ","COSSIO ARANDA JORGE EDUARDO","BAJA","NULL","NULL"]
[7637,"INSTITUTO NACIONAL DE CARDIOLOGIA IGNACIO CHAVEZ","CRUZ GREGORIO ALFREDO","ICM C","CF41046","IPP 2024"]
[4580,"INSTITUTO NACIONAL DE CARDIOLOGIA IGNACIO CHAVEZ","CRUZ ROBLES DAVID ","ICM D","CF41041","2006_INGRESO ANTERIOR"]
[7351,"INSTITUTO NACIONAL DE CARDIOLOGIA IGNACIO CHAVEZ","DE LOS HEROS RIOS PAOLA ANA","NULL","NULL","NULL"]
[4581,"INSTITUTO NACIONAL DE CARDIOLOGIA IGNACIO CHAVEZ","DE MICHELI SERRA ALFREDO ALESSANDRO ","BAJA","NULL","NULL"]
[4582,"INSTITUTO NACIONAL DE CARDIOLOGIA IGNACIO CHAVEZ","DEL VALLE MONDRAGON LEONARDO ","ICM A","CF41044","2009_INGRESO ANTERIOR"]
[4583,"INSTITUTO NACIONAL DE CARDIOLOGIA IGNACIO CHAVEZ","DIAZ JUAREZ JULIETA ANABELL","ICM C","CF41046","2009_INGRESO ANTERIOR"]
[7343,"INSTITUTO NACIONAL DE CARDIOLOGIA IGNACIO CHAVEZ","EID LIDT GUERING","ICM A","CF50000","IPP 2020"]
[4584,"INSTITUTO NACIONAL DE CARDIOLOGIA IGNACIO CHAVEZ","EL HAFIDI BENTLAKDER MOHAMMED ","ICM D","CF50000","2009_INGRESO ANTERIOR"]
[4585,"INSTITUTO NACIONAL DE CARDIOLOGIA IGNACIO CHAVEZ","ENCALADA OREGON ELIA RUSELY ","ICM B","CF41045","IPP 2009"]
[7114,"INSTITUTO NACIONAL DE CARDIOLOGIA IGNACIO CHAVEZ","ESCOBAR ALVARADO JENNIFER DEL CARMEN","A ICM C","CF41049","IPP 2019"]
[7347,"INSTITUTO NACIONAL DE CARDIOLOGIA IGNACIO CHAVEZ","ESPINOLA ZAVALETA NILDA GLADYS","NULL","M01004","NULL"]
[7358,"INSTITUTO NACIONAL DE CARDIOLOGIA IGNACIO CHAVEZ","FEREGRINO MONDRAGON ROCIO DANIELA","A ICM B","CF41048","IPP 2021"]
[4586,"INSTITUTO NACIONAL DE CARDIOLOGIA IGNACIO CHAVEZ","FLORES CHAVEZ PEDRO LORENZO ","ICM A","CF41044","2009_INGRESO ANTERIOR"]
[4587,"INSTITUTO NACIONAL DE CARDIOLOGIA IGNACIO CHAVEZ","FLORES GARCIA MIRTHALA","ICM C","CF41046","IPP 2019"]
[7638,"INSTITUTO NACIONAL DE CARDIOLOGIA IGNACIO CHAVEZ","FONSECA CAMARILLO GABRIELA COLUMBA","ICM C","CF41046","IPP 2024"]
[4588,"INSTITUTO NACIONAL DE CARDIOLOGIA IGNACIO CHAVEZ","FRAGOSO LONA JOSE MANUEL ","ICM D","CF41041","IPP 2009"]
[4589,"INSTITUTO NACIONAL DE CARDIOLOGIA IGNACIO CHAVEZ","FRANCO GUEVARA MARTHA ","ICM F","CF41043","2006_INGRESO ANTERIOR"]
[7361,"INSTITUTO NACIONAL DE CARDIOLOGIA IGNACIO CHAVEZ","FRITCHE SALAZAR JUAN FRANCISCO","NULL","M01004","NULL"]
[4590,"INSTITUTO NACIONAL DE CARDIOLOGIA IGNACIO CHAVEZ","GALLARDO PEREZ JUAN CARLOS","ICM C","CF41046","IPP 2010"]
[4591,"INSTITUTO NACIONAL DE CARDIOLOGIA IGNACIO CHAVEZ","GAMBOA AVILA RICARDO ","ICM D","CF41041","2006_INGRESO ANTERIOR"]
[7344,"INSTITUTO NACIONAL DE CARDIOLOGIA IGNACIO CHAVEZ","GARCIA ARROYO FERNANDO ENRIQUE","ICM C","CF41046","IPP 2020"]
[4592,"INSTITUTO NACIONAL DE CARDIOLOGIA IGNACIO CHAVEZ","GARCIA CONTRERAS RODOLFO","BAJA","NULL","NULL"]
[4593,"INSTITUTO NACIONAL DE CARDIOLOGIA IGNACIO CHAVEZ","GARCIA GARCIA JORGE DONATO ","BAJA","NULL","NULL"]
[7254,"INSTITUTO NACIONAL DE CARDIOLOGIA IGNACIO CHAVEZ","GARCIA NIÑO WYLLY RAMSES","ICM C","CF41046","IPP 2019"]
[4594,"INSTITUTO NACIONAL DE CARDIOLOGIA IGNACIO CHAVEZ","GOMEZ GARCIA LORENA","BAJA","NULL","NULL"]
[7016,"INSTITUTO NACIONAL DE CARDIOLOGIA IGNACIO CHAVEZ","GONZALEZ CHAVEZ ZABDI ABRAHAM","BAJA","NULL","NULL"]
[6922,"INSTITUTO NACIONAL DE CARDIOLOGIA IGNACIO CHAVEZ","GONZALEZ HERMOSILLO GONZALEZ JESUS ANTONIO","NULL","M01011","NULL"]
[7348,"INSTITUTO NACIONAL DE CARDIOLOGIA IGNACIO CHAVEZ","GONZALEZ PACHECO HECTOR","NULL","M01010","NULL"]
[4595,"INSTITUTO NACIONAL DE CARDIOLOGIA IGNACIO CHAVEZ","GUARNER LANS VERONICA ","BAJA","NULL","NULL"]
[7354,"INSTITUTO NACIONAL DE CARDIOLOGIA IGNACIO CHAVEZ","GUTIERREZ ESPARZA GUADALUPE OBDULIA","NULL","NULL","NULL"]
[7345,"INSTITUTO NACIONAL DE CARDIOLOGIA IGNACIO CHAVEZ","GUTIERREZ KOBEH LAILA","NULL","NULL","NULL"]
[7355,"INSTITUTO NACIONAL DE CARDIOLOGIA IGNACIO CHAVEZ","GUTIERREZ RUIZ MARIA CONCEPCION","NULL","NULL","NULL"]
[7115,"INSTITUTO NACIONAL DE CARDIOLOGIA IGNACIO CHAVEZ","HERNANDEZ DUEÑAS ANA MARIA DEL ROCIO","A ICM C","CF41049","IPP 2018"]
[6198,"INSTITUTO NACIONAL DE CARDIOLOGIA IGNACIO CHAVEZ","HERNANDEZ ESQUIVEL MARIA DE LA LUZ","ICM A","CF41044","IPP 2012"]
[4596,"INSTITUTO NACIONAL DE CARDIOLOGIA IGNACIO CHAVEZ","HERNANDEZ PACHECO MARIA GUADALUPE ","NO VIGENTE","CF41046","NULL"]
[4597,"INSTITUTO NACIONAL DE CARDIOLOGIA IGNACIO CHAVEZ","HERNANDEZ RESENDIZ SAURI","BAJA","NULL","NULL"]
[4598,"INSTITUTO NACIONAL DE CARDIOLOGIA IGNACIO CHAVEZ","HUESCA GOMEZ CLAUDIA ","ICM C","CF41046","2009_INGRESO ANTERIOR"]
[4599,"INSTITUTO NACIONAL DE CARDIOLOGIA IGNACIO CHAVEZ","IBARRA LARA MARIA DE LA LUZ ","ICM C","CF41046","2009_INGRESO ANTERIOR"]
[6596,"INSTITUTO NACIONAL DE CARDIOLOGIA IGNACIO CHAVEZ","ILARRAZA LOMELI HERMES","NO VIGENTE","CF41013","NULL"]
[4600,"INSTITUTO NACIONAL DE CARDIOLOGIA IGNACIO CHAVEZ","INFANTE VAZQUEZ OSCAR","BAJA","NULL","NULL"]
[6597,"INSTITUTO NACIONAL DE CARDIOLOGIA IGNACIO CHAVEZ","ITURRALDE TORRES PEDRO","ICM C","CFN3156540","IPP 2015"]
[4601,"INSTITUTO NACIONAL DE CARDIOLOGIA IGNACIO CHAVEZ","JASSO CHAVEZ RICARDO ","ICM D","CF41041","2009_INGRESO ANTERIOR"]
[4602,"INSTITUTO NACIONAL DE CARDIOLOGIA IGNACIO CHAVEZ","JIMENEZ BECERRA SILVIA","BAJA","NULL","NULL"]
[7360,"INSTITUTO NACIONAL DE CARDIOLOGIA IGNACIO CHAVEZ","JIMENEZ CORONA MARIA EUGENIA","ICM E","CF50000","IPP 2020"]
[4603,"INSTITUTO NACIONAL DE CARDIOLOGIA IGNACIO CHAVEZ","JUAREZ ROJAS JUAN GABRIEL ","ICM C","CF41046","IPP 2009"]
[7357,"INSTITUTO NACIONAL DE CARDIOLOGIA IGNACIO CHAVEZ","JUAREZ VICUÑA YANELI","ICM C","CF41046","IPP 2022"]
[4604,"INSTITUTO NACIONAL DE CARDIOLOGIA IGNACIO CHAVEZ","LERMA GONZALEZ CLAUDIA ","ICM D","CF41041","2006_INGRESO ANTERIOR"]
[6296,"INSTITUTO NACIONAL DE CARDIOLOGIA IGNACIO CHAVEZ","LIRA SILVA ELIZABETH","ICM C","CF41046","IPP 2013"]
[7722,"INSTITUTO NACIONAL DE CARDIOLOGIA IGNACIO CHAVEZ","LOPEZ GIL JOSE SALVADOR","ICM C","CF41013","IPP 2025"]
[4605,"INSTITUTO NACIONAL DE CARDIOLOGIA IGNACIO CHAVEZ","LOPEZ MARURE REBECA ","ICM D","CF50000","2006_INGRESO ANTERIOR"]
[4606,"INSTITUTO NACIONAL DE CARDIOLOGIA IGNACIO CHAVEZ","LOPEZ OLMOS MARIA VICTORIA","ICM B","CF41045","IPP 2009"]
[7520,"INSTITUTO NACIONAL DE CARDIOLOGIA IGNACIO CHAVEZ","LUNA LUNA MARIA DE JESUS","A ICM C","CF41049","IPP 2022"]
[6600,"INSTITUTO NACIONAL DE CARDIOLOGIA IGNACIO CHAVEZ","MADERO ROVALO MAGDALENA","ICM E","CF50000","IPP 2015"]
[4607,"INSTITUTO NACIONAL DE CARDIOLOGIA IGNACIO CHAVEZ","MARIN HERNANDEZ ALVARO","ICM D","CF41041","2009_INGRESO ANTERIOR"]
[7342,"INSTITUTO NACIONAL DE CARDIOLOGIA IGNACIO CHAVEZ","MARQUEZ MURILLO MANLIO FABIO","NULL","M01011","NULL"]
[4608,"INSTITUTO NACIONAL DE CARDIOLOGIA IGNACIO CHAVEZ","MARQUEZ VELASCO RICARDO ","ICM D","CF41041","2006_INGRESO ANTERIOR"]
[7116,"INSTITUTO NACIONAL DE CARDIOLOGIA IGNACIO CHAVEZ","MARTINEZ ALVARADO MARIA DEL ROCIO","A ICM C","CF41049","IPP 2018"]
[4609,"INSTITUTO NACIONAL DE CARDIOLOGIA IGNACIO CHAVEZ","MARTINEZ LAVIN GARCIA LASCURAIN MANUEL","ICM F","CF50000","2006_INGRESO ANTERIOR"]
[4610,"INSTITUTO NACIONAL DE CARDIOLOGIA IGNACIO CHAVEZ","MARTINEZ MARTINEZ LAURA ALINE ","ICM C","CF41046","IPP 2009"]
[4611,"INSTITUTO NACIONAL DE CARDIOLOGIA IGNACIO CHAVEZ","MARTINEZ MEMIJE RAUL ","ICM B","CF41045","2009_INGRESO ANTERIOR"]
[4613,"INSTITUTO NACIONAL DE CARDIOLOGIA IGNACIO CHAVEZ","MARTINEZ ROSAS MARTIN ","ICM C","CF41046","2009_INGRESO ANTERIOR"]
[4614,"INSTITUTO NACIONAL DE CARDIOLOGIA IGNACIO CHAVEZ","MASSO ROJAS FELIPE ALONSO ","ICM D","CF41041","2009_INGRESO ANTERIOR"]
[4615,"INSTITUTO NACIONAL DE CARDIOLOGIA IGNACIO CHAVEZ","MEDINA URRUTIA AIDA XOCHITL ","ICM C","CF41046","IPP 2009"]
[4616,"INSTITUTO NACIONAL DE CARDIOLOGIA IGNACIO CHAVEZ","MELENDEZ RAMIREZ GABRIELA ","NULL","M01011","NULL"]
[4617,"INSTITUTO NACIONAL DE CARDIOLOGIA IGNACIO CHAVEZ","MERCADO CABRERA ADRIANA PATRICIA","ICM D","CF41041","IPP 2009"]
[4618,"INSTITUTO NACIONAL DE CARDIOLOGIA IGNACIO CHAVEZ","MORENO SANCHEZ RAFAEL","BAJA","NULL","NULL"]
[4619,"INSTITUTO NACIONAL DE CARDIOLOGIA IGNACIO CHAVEZ","MUÑOZ CASTELLANOS LUIS","BAJA","NULL","NULL"]
[5180,"INSTITUTO NACIONAL DE CARDIOLOGIA IGNACIO CHAVEZ","OROZCO IBARRA MARISOL","ICM D","CF41041","IPP 2009"]
[4621,"INSTITUTO NACIONAL DE CARDIOLOGIA IGNACIO CHAVEZ","OSORIO ALONSO HORACIO","ICM C","CF41046","IPP 2009"]
[4622,"INSTITUTO NACIONAL DE CARDIOLOGIA IGNACIO CHAVEZ","PACHECO GARCIA URSINO ","ICM A ","CF41044","IPP 2023"]
[6437,"INSTITUTO NACIONAL DE CARDIOLOGIA IGNACIO CHAVEZ","PACHECO VELAZQUEZ SILVIA CECILIA","BAJA","NULL","NULL"]
[4623,"INSTITUTO NACIONAL DE CARDIOLOGIA IGNACIO CHAVEZ","PAEZ ARENAS ARACELI ","ICM D","CF41041","2009_INGRESO ANTERIOR"]
[4624,"INSTITUTO NACIONAL DE CARDIOLOGIA IGNACIO CHAVEZ","PASTELIN HERNANDEZ GUSTAVO SETH ","BAJA","NULL","NULL"]
[4625,"INSTITUTO NACIONAL DE CARDIOLOGIA IGNACIO CHAVEZ","PAVON MARTINEZ NATALIA ISMENE","ICM D","CF41041","IPP 2009"]
[6609,"INSTITUTO NACIONAL DE CARDIOLOGIA IGNACIO CHAVEZ","PEÑA DUQUE MARCO ANTONIO","BAJA","NULL","NULL"]
[7519,"INSTITUTO NACIONAL DE CARDIOLOGIA IGNACIO CHAVEZ","PEÑA OCAÑA BETSY ANAID","ICM C","CF41046","IPP 2022"]
[4626,"INSTITUTO NACIONAL DE CARDIOLOGIA IGNACIO CHAVEZ","PEREZ HERNANDEZ NONANZIT IRACEMA ","ICM D","CF41041","IPP 2009"]
[4627,"INSTITUTO NACIONAL DE CARDIOLOGIA IGNACIO CHAVEZ","PEREZ MENDEZ OSCAR ARMANDO ","ICM D","CF50000","2006_INGRESO ANTERIOR"]
[4628,"INSTITUTO NACIONAL DE CARDIOLOGIA IGNACIO CHAVEZ","PEREZ TORRES ISRAEL ","ICM D","CF41041","2009_INGRESO ANTERIOR"]
[4629,"INSTITUTO NACIONAL DE CARDIOLOGIA IGNACIO CHAVEZ","PINEDA RAMIREZ ERIKA","BAJA","NULL","NULL"]
[7479,"INSTITUTO NACIONAL DE CARDIOLOGIA IGNACIO CHAVEZ","POLANCO GONZALEZ CARLOS","ICM C","CF50000","IPP 2021"]
[4630,"INSTITUTO NACIONAL DE CARDIOLOGIA IGNACIO CHAVEZ","POSADAS ROMERO CARLOS ","BAJA","NULL","NULL"]
[6921,"INSTITUTO NACIONAL DE CARDIOLOGIA IGNACIO CHAVEZ","POSADAS SANCHEZ ROSALINDA","ICM E","CF50000","IPP 2016"]
[6611,"INSTITUTO NACIONAL DE CARDIOLOGIA IGNACIO CHAVEZ","PULIDO ZAMUDIO TOMAS RENE","ICM D","CFN3156540","IPP 2019"]
[5242,"INSTITUTO NACIONAL DE CARDIOLOGIA IGNACIO CHAVEZ","RAMIREZ BELLO JULIAN","ICM D","CF41041","2010_INGRESO ANTERIOR"]
[7120,"INSTITUTO NACIONAL DE CARDIOLOGIA IGNACIO CHAVEZ","RAMIREZ FUENTES SILVESTRE","A ICM B","CF41048","IPP 2022"]
[7635,"INSTITUTO NACIONAL DE CARDIOLOGIA IGNACIO CHAVEZ","RAMIREZ JARQUIN URI NIMROD","ICM C","CF41046","IPP 2024"]
[4632,"INSTITUTO NACIONAL DE CARDIOLOGIA IGNACIO CHAVEZ","RAMIREZ ORTEGA MARGARITA DEL CARMEN","ICM D","CF41041","2009_INGRESO ANTERIOR"]
[4633,"INSTITUTO NACIONAL DE CARDIOLOGIA IGNACIO CHAVEZ","REYES LOPEZ PEDRO ANTONIO ","BAJA","NULL","NULL"]
[7121,"INSTITUTO NACIONAL DE CARDIOLOGIA IGNACIO CHAVEZ","ROBLEDO CADENA DIANA XOCHIQUETZAL","ICM B","CF41045","IPP 2020"]
[4634,"INSTITUTO NACIONAL DE CARDIOLOGIA IGNACIO CHAVEZ","RODRIGUEZ ALMENDROS NIELZER ARMANDO","BAJA","NULL","NULL"]
[4635,"INSTITUTO NACIONAL DE CARDIOLOGIA IGNACIO CHAVEZ","RODRIGUEZ ENRIQUEZ SARA ","BAJA","NULL","NULL"]
[7122,"INSTITUTO NACIONAL DE CARDIOLOGIA IGNACIO CHAVEZ","RODRIGUEZ GALICIA VERONICA","NO VIGENTE","CF41048","NULL"]
[4636,"INSTITUTO NACIONAL DE CARDIOLOGIA IGNACIO CHAVEZ","RODRIGUEZ MALDONADO EMMA ","ICM C","CF41046","IPP 2024"]
[4637,"INSTITUTO NACIONAL DE CARDIOLOGIA IGNACIO CHAVEZ","RODRIGUEZ MORALES OLIVIA ","ICM C","CF41046","IPP 2009"]
[4638,"INSTITUTO NACIONAL DE CARDIOLOGIA IGNACIO CHAVEZ","RODRIGUEZ PEREZ JOSE MANUEL ","ICM D","CF41041","2009_INGRESO ANTERIOR"]
[7350,"INSTITUTO NACIONAL DE CARDIOLOGIA IGNACIO CHAVEZ","RODRIGUEZ ZANELLA HUGO GERARDO","NULL","M01004","NULL"]
[4639,"INSTITUTO NACIONAL DE CARDIOLOGIA IGNACIO CHAVEZ","RODRIGUEZ ZAVALA JOSE SALUD ","ICM D","CF41041","2006_INGRESO ANTERIOR"]
[7640,"INSTITUTO NACIONAL DE CARDIOLOGIA IGNACIO CHAVEZ","ROJAS VELASCO GUSTAVO","ICM A","CF41013","IPP 2024"]
[4640,"INSTITUTO NACIONAL DE CARDIOLOGIA IGNACIO CHAVEZ","RUBIO RUIZ MARIA ESTHER","ICM C","CF41046","2009_INGRESO ANTERIOR"]
[7015,"INSTITUTO NACIONAL DE CARDIOLOGIA IGNACIO CHAVEZ","RUIZ RAMIREZ ANGELICA","ICM B","CF41045","IPP 2017"]
[4641,"INSTITUTO NACIONAL DE CARDIOLOGIA IGNACIO CHAVEZ","SAAVEDRA LIRA EMMA CECILIA ","ICM F","CF50000","2006_INGRESO ANTERIOR"]
[4642,"INSTITUTO NACIONAL DE CARDIOLOGIA IGNACIO CHAVEZ","SANCHEZ AGUILAR MARIA ","ICM B","CF41045","IPP 2016"]
[4643,"INSTITUTO NACIONAL DE CARDIOLOGIA IGNACIO CHAVEZ","SANCHEZ LOZADA LAURA GABRIELA ","ICM D","CF50000","2006_INGRESO ANTERIOR"]
[4644,"INSTITUTO NACIONAL DE CARDIOLOGIA IGNACIO CHAVEZ","SANCHEZ MENDOZA MARIA ALICIA ","ICM E","CF50000","2009_INGRESO ANTERIOR"]
[4645,"INSTITUTO NACIONAL DE CARDIOLOGIA IGNACIO CHAVEZ","SANCHEZ MUÑOZ FAUSTO ","ICM D","CF41041","IPP 2009"]
[7117,"INSTITUTO NACIONAL DE CARDIOLOGIA IGNACIO CHAVEZ","SANCHEZ PEREZ TOMAS EFRAIN","A ICM C","CF41049","IPP 2018"]
[7123,"INSTITUTO NACIONAL DE CARDIOLOGIA IGNACIO CHAVEZ","SANCHEZ THOMAS ROSINA","BAJA","NULL","NULL"]
[7349,"INSTITUTO NACIONAL DE CARDIOLOGIA IGNACIO CHAVEZ","SANDOVAL JONES JUAN PABLO","NULL","M01004","NULL"]
[6299,"INSTITUTO NACIONAL DE CARDIOLOGIA IGNACIO CHAVEZ","SANDOVAL ZARATE JULIO","BAJA","NULL","NULL"]
[7124,"INSTITUTO NACIONAL DE CARDIOLOGIA IGNACIO CHAVEZ","SANTAMARIA SOSA JOSE","A ICM A","CF41047","IPP 2018"]
[7721,"INSTITUTO NACIONAL DE CARDIOLOGIA IGNACIO CHAVEZ","SIERRA FERNANDEZ CARLOS RAFAEL","ICM C","CFM2101046","IPP 2025"]
[7346,"INSTITUTO NACIONAL DE CARDIOLOGIA IGNACIO CHAVEZ","SILVA PALACIOS ALEJANDRO","ICM C","CF41046","IPP 2020"]
[4646,"INSTITUTO NACIONAL DE CARDIOLOGIA IGNACIO CHAVEZ","SORIA CASTRO ELIZABETH ","ICM B","CF41045","2009_INGRESO ANTERIOR"]
[4647,"INSTITUTO NACIONAL DE CARDIOLOGIA IGNACIO CHAVEZ","SOTO LOPEZ MARIA ELENA ","ICM E","CF41042","2006_INGRESO ANTERIOR"]
[4648,"INSTITUTO NACIONAL DE CARDIOLOGIA IGNACIO CHAVEZ","SPRINGALL DEL VILLAR MARIA RASHIDI ","ICM C","CF41046","IPP 2009"]
[4649,"INSTITUTO NACIONAL DE CARDIOLOGIA IGNACIO CHAVEZ","TAPIA RODRIGUEZ EDILIA ","ICM E","CF41042","2006_INGRESO ANTERIOR"]
[4650,"INSTITUTO NACIONAL DE CARDIOLOGIA IGNACIO CHAVEZ","TORRES NARVAEZ JUAN CARLOS ","ICM B","CF41045","2009_INGRESO ANTERIOR"]
[7255,"INSTITUTO NACIONAL DE CARDIOLOGIA IGNACIO CHAVEZ","TORRES TAMAYO MARGARITA","BAJA","NULL","NULL"]
[4651,"INSTITUTO NACIONAL DE CARDIOLOGIA IGNACIO CHAVEZ","VALLEJO ALLENDE MAITE","BAJA","NULL","NULL"]
[4652,"INSTITUTO NACIONAL DE CARDIOLOGIA IGNACIO CHAVEZ","VARELA LOPEZ ELVIRA ","ICM B","CF41045","IPP 2013"]
[4654,"INSTITUTO NACIONAL DE CARDIOLOGIA IGNACIO CHAVEZ","VARGAS ALARCON GILBERTO ","ICM F","CFM2101046","2006_INGRESO ANTERIOR"]
[4655,"INSTITUTO NACIONAL DE CARDIOLOGIA IGNACIO CHAVEZ","VARGAS BARRON JESUS","EMERITO","CF41043","2006_INGRESO ANTERIOR"]
[4653,"INSTITUTO NACIONAL DE CARDIOLOGIA IGNACIO CHAVEZ","VARGAS GONZALEZ J. ALVARO","ICM A","CF41044","IPP 2020"]
[6403,"INSTITUTO NACIONAL DE CARDIOLOGIA IGNACIO CHAVEZ","YOVAL SANCHEZ BELEM","BAJA","NULL","NULL"]
[4656,"INSTITUTO NACIONAL DE CARDIOLOGIA IGNACIO CHAVEZ","ZAPATA GOMEZ ESTRELLA ","BAJA","NULL","NULL"]
[4657,"INSTITUTO NACIONAL DE CARDIOLOGIA IGNACIO CHAVEZ","ZARCO OLVERA GABRIELA ","A ICM C","CF41049","IPP 2018"]
[7641,"INSTITUTO NACIONAL DE CARDIOLOGIA IGNACIO CHAVEZ","ZAYAS HERNANDEZ NAYELI GUADALUPE","ICM A","CF50000","IPP 2024"]
[4658,"INSTITUTO NACIONAL DE CARDIOLOGIA IGNACIO CHAVEZ","ZAZUETA MENDIZABAL ANA CECILIA ","ICM F","CFN3301776","2006_INGRESO ANTERIOR"]
[7118,"INSTITUTO NACIONAL DE CARDIOLOGIA IGNACIO CHAVEZ","ZUÑIGA MUÑOZ ALEJANDRA MARIA","A ICM C","CF41049","IPP 2018"]
[7256,"INSTITUTO NACIONAL DE CIENCIAS MEDICAS Y NUTRICION SALVADOR ZUBIRAN","ACEVES BUENDIA JOSE DE JESUS","NO VIGENTE","CF41046","NULL"]
[4956,"INSTITUTO NACIONAL DE CIENCIAS MEDICAS Y NUTRICION SALVADOR ZUBIRAN","AGUAYO GONZALEZ ALVARO","ICM D","CF41046","2006_INGRESO ANTERIOR"]
[7369,"INSTITUTO NACIONAL DE CIENCIAS MEDICAS Y NUTRICION SALVADOR ZUBIRAN","AGUILAR HERNANDEZ MARIA MONTSERRAT","BAJA","NULL","NULL"]
[4957,"INSTITUTO NACIONAL DE CIENCIAS MEDICAS Y NUTRICION SALVADOR ZUBIRAN","AGUILAR LEON DIANA ELODIA","NO VIGENTE","CF41041","NULL"]
[7483,"INSTITUTO NACIONAL DE CIENCIAS MEDICAS Y NUTRICION SALVADOR ZUBIRAN","AGUILAR LOPEZ ANAHI LETICIA","ICM A ","CF41044","IPP 2023"]
[4958,"INSTITUTO NACIONAL DE CIENCIAS MEDICAS Y NUTRICION SALVADOR ZUBIRAN","AGUILAR NAVARRO SARA GLORIA","ICM D","CF41041","IPP 2008"]
[4959,"INSTITUTO NACIONAL DE CIENCIAS MEDICAS Y NUTRICION SALVADOR ZUBIRAN","AGUILAR SALINAS CARLOS ALBERTO","ICM F","CFM2101050","2006_INGRESO ANTERIOR"]
[4960,"INSTITUTO NACIONAL DE CIENCIAS MEDICAS Y NUTRICION SALVADOR ZUBIRAN","AGUIRRE ARENAS JUDITH","BAJA","NULL","NULL"]
[6222,"INSTITUTO NACIONAL DE CIENCIAS MEDICAS Y NUTRICION SALVADOR ZUBIRAN","ALBERU GOMEZ JOSEFINA MARIA","BAJA","NULL","NULL"]
[4964,"INSTITUTO NACIONAL DE CIENCIAS MEDICAS Y NUTRICION SALVADOR ZUBIRAN","ALBORES SAAVEDRA JORGE","BAJA","NULL","NULL"]
[4961,"INSTITUTO NACIONAL DE CIENCIAS MEDICAS Y NUTRICION SALVADOR ZUBIRAN","ALCOCER VARELA JORGE CARLOS","BAJA","NULL","NULL"]
[4962,"INSTITUTO NACIONAL DE CIENCIAS MEDICAS Y NUTRICION SALVADOR ZUBIRAN","ALEMAN ESCONDRILLAS GABRIELA","ICM D","CF41041","2010_INGRESO ANTERIOR"]
[4963,"INSTITUTO NACIONAL DE CIENCIAS MEDICAS Y NUTRICION SALVADOR ZUBIRAN","ALVAREZ IZAZAGA MARSELA ALEJANDRA","ICM A","CF41044","IPP 2010"]
[4965,"INSTITUTO NACIONAL DE CIENCIAS MEDICAS Y NUTRICION SALVADOR ZUBIRAN","ARANA CEDEÑO MARCOS","BAJA","NULL","NULL"]
[6339,"INSTITUTO NACIONAL DE CIENCIAS MEDICAS Y NUTRICION SALVADOR ZUBIRAN","ARELLANO CAMPOS OLIMPIA","BAJA","NULL","NULL"]
[4966,"INSTITUTO NACIONAL DE CIENCIAS MEDICAS Y NUTRICION SALVADOR ZUBIRAN","ARISTA NASR JULIAN JORGE","NO VIGENTE","CF41041","NULL"]
[4967,"INSTITUTO NACIONAL DE CIENCIAS MEDICAS Y NUTRICION SALVADOR ZUBIRAN","ARTEAGA VAZQUEZ JAZMIN","ICM C","CF41046","IPP 2008"]
[6228,"INSTITUTO NACIONAL DE CIENCIAS MEDICAS Y NUTRICION SALVADOR ZUBIRAN","ATILANO CARSI XIMENA","ICM B","CF41045","IPP 2012"]
[4968,"INSTITUTO NACIONAL DE CIENCIAS MEDICAS Y NUTRICION SALVADOR ZUBIRAN","AVILA CHAVEZ EUCLIDES","ICM E","CF41042","2009_INGRESO ANTERIOR"]
[4969,"INSTITUTO NACIONAL DE CIENCIAS MEDICAS Y NUTRICION SALVADOR ZUBIRAN","AVILA CURIEL ABELARDO CESAR","ICM B","CF41046","IPP 2022"]
[4970,"INSTITUTO NACIONAL DE CIENCIAS MEDICAS Y NUTRICION SALVADOR ZUBIRAN","BARRAGAN HEREDIA LINDA MARGARITA","NO VIGENTE","CF41044","NULL"]
[4971,"INSTITUTO NACIONAL DE CIENCIAS MEDICAS Y NUTRICION SALVADOR ZUBIRAN","BARRERA HERNANDEZ DAVID","ICM D","CF41041","IPP 2008"]
[6220,"INSTITUTO NACIONAL DE CIENCIAS MEDICAS Y NUTRICION SALVADOR ZUBIRAN","BARRIOS PAYAN JORGE ALBERTO","ICM D","CF41041","IPP 2012"]
[4972,"INSTITUTO NACIONAL DE CIENCIAS MEDICAS Y NUTRICION SALVADOR ZUBIRAN","BAUTISTA CARBAJAL CLAUDIA JANET","ICM C","CF41046","IPP 2009"]
[7584,"INSTITUTO NACIONAL DE CIENCIAS MEDICAS Y NUTRICION SALVADOR ZUBIRAN","BAZUA VALENTI SILVANA","BAJA","NULL","NULL"]
[6195,"INSTITUTO NACIONAL DE CIENCIAS MEDICAS Y NUTRICION SALVADOR ZUBIRAN","BELAUNZARAN ZAMUDIO PABLO FRANCISCO","BAJA","NULL","NULL"]
[4973,"INSTITUTO NACIONAL DE CIENCIAS MEDICAS Y NUTRICION SALVADOR ZUBIRAN","BOBADILLA DEL VALLE JUDITH MIRIAM","ICM D","CF41041","IPP 2015"]
[4974,"INSTITUTO NACIONAL DE CIENCIAS MEDICAS Y NUTRICION SALVADOR ZUBIRAN","BOBADILLA SANDOVAL NORMA ARACELI","ICM F","CF41043","2006_INGRESO ANTERIOR"]
[4975,"INSTITUTO NACIONAL DE CIENCIAS MEDICAS Y NUTRICION SALVADOR ZUBIRAN","BOURGES RODRIGUEZ HECTOR GENARO NICOLAS","BAJA","NULL","NULL"]
[6217,"INSTITUTO NACIONAL DE CIENCIAS MEDICAS Y NUTRICION SALVADOR ZUBIRAN","BRAVO REYNA CARLOS CESAR","ICM B","CF41045","IPP 2020"]
[4976,"INSTITUTO NACIONAL DE CIENCIAS MEDICAS Y NUTRICION SALVADOR ZUBIRAN","CABRAL CASTAÑEDA ANTONIO RAFAEL","BAJA","NULL","NULL"]
[4977,"INSTITUTO NACIONAL DE CIENCIAS MEDICAS Y NUTRICION SALVADOR ZUBIRAN","CALVA MERCADO JUAN JOSE","ICM F ","CF41043","2006_INGRESO ANTERIOR"]
[4978,"INSTITUTO NACIONAL DE CIENCIAS MEDICAS Y NUTRICION SALVADOR ZUBIRAN","CALVO CARRILLO MARIA DE LA CONCEPCION","BAJA","NULL","NULL"]
[4979,"INSTITUTO NACIONAL DE CIENCIAS MEDICAS Y NUTRICION SALVADOR ZUBIRAN","CAMACHO REA MARIA DEL CARMEN","ICM B","CF41045","IPP 2021"]
[6575,"INSTITUTO NACIONAL DE CIENCIAS MEDICAS Y NUTRICION SALVADOR ZUBIRAN","CANTU BRITO CARLOS GERARDO","ICM F","CF50000","IPP 2015"]
[7729,"INSTITUTO NACIONAL DE CIENCIAS MEDICAS Y NUTRICION SALVADOR ZUBIRAN","CARABALLO HERNANDEZ GERSON ISAAC","NO VIGENTE","CF41045","NULL"]
[4981,"INSTITUTO NACIONAL DE CIENCIAS MEDICAS Y NUTRICION SALVADOR ZUBIRAN","CARDENAS LEON MARIO","BAJA","NULL","NULL"]
[7642,"INSTITUTO NACIONAL DE CIENCIAS MEDICAS Y NUTRICION SALVADOR ZUBIRAN","CARDENAS SOTO KARLA","ICM B","CF41045","IPP 2024"]
[6924,"INSTITUTO NACIONAL DE CIENCIAS MEDICAS Y NUTRICION SALVADOR ZUBIRAN","CARO VEGA YANINK NERIED","ICM C","CF41046","IPP 2016"]
[4982,"INSTITUTO NACIONAL DE CIENCIAS MEDICAS Y NUTRICION SALVADOR ZUBIRAN","CARRANCO JAUREGUI MARIA ELENA","ICM C","CF41046","2009_INGRESO ANTERIOR"]
[4983,"INSTITUTO NACIONAL DE CIENCIAS MEDICAS Y NUTRICION SALVADOR ZUBIRAN","CARRASCO QUINTERO MARIA DEL REFUGIO","ICM B","CF41045","2009_INGRESO ANTERIOR"]
[4984,"INSTITUTO NACIONAL DE CIENCIAS MEDICAS Y NUTRICION SALVADOR ZUBIRAN","CARRILLO DOMINGUEZ SILVIA","ICM C","CF50000","IPP 2023"]
[6560,"INSTITUTO NACIONAL DE CIENCIAS MEDICAS Y NUTRICION SALVADOR ZUBIRAN","CASTAÑEDA BUENO MARIA","ICM D","CF41041","IPP 2015"]
[4985,"INSTITUTO NACIONAL DE CIENCIAS MEDICAS Y NUTRICION SALVADOR ZUBIRAN","CASTILLO DOMINGUEZ ROSA MARIA","BAJA","NULL","NULL"]
[4986,"INSTITUTO NACIONAL DE CIENCIAS MEDICAS Y NUTRICION SALVADOR ZUBIRAN","CASTILLO MARTINEZ LILIA","ICM D","CF41041","IPP 2014"]
[4987,"INSTITUTO NACIONAL DE CIENCIAS MEDICAS Y NUTRICION SALVADOR ZUBIRAN","CASTRO GONZALEZ MARIA ISABEL DE LOS DOLORES","BAJA","NULL","NULL"]
[7372,"INSTITUTO NACIONAL DE CIENCIAS MEDICAS Y NUTRICION SALVADOR ZUBIRAN","CASTRO RODRIGUEZ DIANA CATALINA","NULL","NULL","NULL"]
[4988,"INSTITUTO NACIONAL DE CIENCIAS MEDICAS Y NUTRICION SALVADOR ZUBIRAN","CERVANTES TURRUBIATES LETICIA ARCELIA","NO VIGENTE","CF50000","NULL"]
[6574,"INSTITUTO NACIONAL DE CIENCIAS MEDICAS Y NUTRICION SALVADOR ZUBIRAN","CHARLI JOSEPH YANN VINCENT","BAJA","NULL","NULL"]
[4989,"INSTITUTO NACIONAL DE CIENCIAS MEDICAS Y NUTRICION SALVADOR ZUBIRAN","CHAVARRI GUERRA YANIN","ICM F","CF41043","2009_INGRESO ANTERIOR"]
[7670,"INSTITUTO NACIONAL DE CIENCIAS MEDICAS Y NUTRICION SALVADOR ZUBIRAN","CHAVARRIA YAÑEZ VICTOR DAVID","NULL"," M04001","NULL"]
[4990,"INSTITUTO NACIONAL DE CIENCIAS MEDICAS Y NUTRICION SALVADOR ZUBIRAN","CHAVEZ CANO BERTHA ALICIA","BAJA","NULL","NULL"]
[4991,"INSTITUTO NACIONAL DE CIENCIAS MEDICAS Y NUTRICION SALVADOR ZUBIRAN","CHAVEZ VILLASANA ADOLFO","BAJA","NULL","NULL"]
[4992,"INSTITUTO NACIONAL DE CIENCIAS MEDICAS Y NUTRICION SALVADOR ZUBIRAN","CHAVIRA RAMIREZ DAVID ROBERTO","ICM B","CF41045","IPP 2011"]
[6573,"INSTITUTO NACIONAL DE CIENCIAS MEDICAS Y NUTRICION SALVADOR ZUBIRAN","CHIQUETE ANAYA ERWIN","ICM E","CF41042","IPP 2015"]
[4993,"INSTITUTO NACIONAL DE CIENCIAS MEDICAS Y NUTRICION SALVADOR ZUBIRAN","CHIRINOS ESPIN MAYEL DEL VALLE","ICM D","CF41041","2009_INGRESO ANTERIOR"]
[4994,"INSTITUTO NACIONAL DE CIENCIAS MEDICAS Y NUTRICION SALVADOR ZUBIRAN","COLIN RAMIREZ ELOISA","ICM D","CF41041","IPP 2025"]
[7650,"INSTITUTO NACIONAL DE CIENCIAS MEDICAS Y NUTRICION SALVADOR ZUBIRAN","CONTRERAS YAÑEZ IRAZU","ICM C","CF41046","IPP 2024"]
[4995,"INSTITUTO NACIONAL DE CIENCIAS MEDICAS Y NUTRICION SALVADOR ZUBIRAN","CORAL HINOSTROZA GLADIS ","BAJA","NULL","NULL"]
[4996,"INSTITUTO NACIONAL DE CIENCIAS MEDICAS Y NUTRICION SALVADOR ZUBIRAN","CORREA ROTTER JOSE RICARDO","ICM F","CF41043","2006_INGRESO ANTERIOR"]
[6420,"INSTITUTO NACIONAL DE CIENCIAS MEDICAS Y NUTRICION SALVADOR ZUBIRAN","COSS ADAME ENRIQUE","ICM A","CF41044","IPP 2025"]
[6227,"INSTITUTO NACIONAL DE CIENCIAS MEDICAS Y NUTRICION SALVADOR ZUBIRAN","CRABTREE RAMIREZ BRENDA ELOISA","ICM D","CF41041","IPP 2012"]
[4997,"INSTITUTO NACIONAL DE CIENCIAS MEDICAS Y NUTRICION SALVADOR ZUBIRAN","CRAVIOTO GALINDO MA. DEL CARMEN","ICM D","CF41042","IPP 2016"]
[6892,"INSTITUTO NACIONAL DE CIENCIAS MEDICAS Y NUTRICION SALVADOR ZUBIRAN","CRISPIN ACUÑA JOSE CARLOS","ICM F","CF41043","IPP 2015"]
[4998,"INSTITUTO NACIONAL DE CIENCIAS MEDICAS Y NUTRICION SALVADOR ZUBIRAN","CRUZ BAUTISTA IVETTE","ICM D","CF41041","IPP 2008"]
[4999,"INSTITUTO NACIONAL DE CIENCIAS MEDICAS Y NUTRICION SALVADOR ZUBIRAN","CRUZ RIVERA CRISTINO","ICM D","CF41041","2006_INGRESO ANTERIOR"]
[6421,"INSTITUTO NACIONAL DE CIENCIAS MEDICAS Y NUTRICION SALVADOR ZUBIRAN","CUCHILLO HILARIO MARIO","ICM C","CF41046","IPP 2014"]
[6194,"INSTITUTO NACIONAL DE CIENCIAS MEDICAS Y NUTRICION SALVADOR ZUBIRAN","CUELLAR RODRIGUEZ JENNIFER MARGARITA","BAJA","NULL","NULL"]
[5000,"INSTITUTO NACIONAL DE CIENCIAS MEDICAS Y NUTRICION SALVADOR ZUBIRAN","DE LA GARZA VILLASEÑOR JOSE LORENZO","BAJA","NULL","NULL"]
[7371,"INSTITUTO NACIONAL DE CIENCIAS MEDICAS Y NUTRICION SALVADOR ZUBIRAN","DEL RAZO OLVERA FABIOLA MABEL","ICM D","CF41041","IPP 2020"]
[5001,"INSTITUTO NACIONAL DE CIENCIAS MEDICAS Y NUTRICION SALVADOR ZUBIRAN","DELGADILLO PUGA CLAUDIA","ICM D","CF41041","2009_INGRESO ANTERIOR"]
[5002,"INSTITUTO NACIONAL DE CIENCIAS MEDICAS Y NUTRICION SALVADOR ZUBIRAN","DIAZ DIAZ EULISES","ICM D","CF41041","2009_INGRESO ANTERIOR"]
[5003,"INSTITUTO NACIONAL DE CIENCIAS MEDICAS Y NUTRICION SALVADOR ZUBIRAN","DIAZ MARTINEZ MARGARITA","ICM A ","CF41044","IPP 2023"]
[5004,"INSTITUTO NACIONAL DE CIENCIAS MEDICAS Y NUTRICION SALVADOR ZUBIRAN","DIAZ NIETO LORENZA","ICM F","CF41043","2006_INGRESO ANTERIOR"]
[7368,"INSTITUTO NACIONAL DE CIENCIAS MEDICAS Y NUTRICION SALVADOR ZUBIRAN","DIAZ RAMOS BERENICE","A ICM C","CF41049","IPP 2022"]
[5005,"INSTITUTO NACIONAL DE CIENCIAS MEDICAS Y NUTRICION SALVADOR ZUBIRAN","DIAZ VILLASEÑOR ANDREA SACHI","BAJA","NULL","NULL"]
[5006,"INSTITUTO NACIONAL DE CIENCIAS MEDICAS Y NUTRICION SALVADOR ZUBIRAN","DIEZ URDANIVIA CORIA SILVIA","ICM B","CF41045","IPP 2025"]
[6576,"INSTITUTO NACIONAL DE CIENCIAS MEDICAS Y NUTRICION SALVADOR ZUBIRAN","DOMINGUEZ CHERIT JOSE GUILLERMO","NULL","M01011","NULL"]
[7017,"INSTITUTO NACIONAL DE CIENCIAS MEDICAS Y NUTRICION SALVADOR ZUBIRAN","DOMINGUEZ ROSADO ISMAEL","ICM C","CF41046","IPP 2017"]
[7736,"INSTITUTO NACIONAL DE CIENCIAS MEDICAS Y NUTRICION SALVADOR ZUBIRAN","ELIAS LOPEZ DANIEL BENJAMIN","NO VIGENTE","CF41043","NULL"]
[5007,"INSTITUTO NACIONAL DE CIENCIAS MEDICAS Y NUTRICION SALVADOR ZUBIRAN","ENRIQUEZ JIMENEZ JUANA","ICM C","CF41046","2009_INGRESO ANTERIOR"]
[5008,"INSTITUTO NACIONAL DE CIENCIAS MEDICAS Y NUTRICION SALVADOR ZUBIRAN","ESPARZA LOPEZ JOSE","ICM C","CF41046","IPP 2014"]
[5009,"INSTITUTO NACIONAL DE CIENCIAS MEDICAS Y NUTRICION SALVADOR ZUBIRAN","ESPINOSA CORTES LUZ MARIA","ICM B","CF41045","IPP 2013"]
[5010,"INSTITUTO NACIONAL DE CIENCIAS MEDICAS Y NUTRICION SALVADOR ZUBIRAN","ESPINOSA CUEVAS MARIA ANGELES","ICM C","CF41046","IPP 2011"]
[7129,"INSTITUTO NACIONAL DE CIENCIAS MEDICAS Y NUTRICION SALVADOR ZUBIRAN","ESPINOSA ZEPEDA MARIA TERESA","BAJA","NULL","NULL"]
[5011,"INSTITUTO NACIONAL DE CIENCIAS MEDICAS Y NUTRICION SALVADOR ZUBIRAN","ESTANES HERNANDEZ ALMA","ICM A","CF41044","IPP 2015"]
[5012,"INSTITUTO NACIONAL DE CIENCIAS MEDICAS Y NUTRICION SALVADOR ZUBIRAN","ESTAÑOL VIDAL BRUNO","ICM D","CF41041","2006_INGRESO ANTERIOR"]
[6239,"INSTITUTO NACIONAL DE CIENCIAS MEDICAS Y NUTRICION SALVADOR ZUBIRAN","FRAGOSO LOYO HILDA ESTHER","NULL","M01004","NULL"]
[5013,"INSTITUTO NACIONAL DE CIENCIAS MEDICAS Y NUTRICION SALVADOR ZUBIRAN","FURUZAWA CARBALLEDA GUADALUPE JANETTE","ICM D","CF41041","2009_INGRESO ANTERIOR"]
[5014,"INSTITUTO NACIONAL DE CIENCIAS MEDICAS Y NUTRICION SALVADOR ZUBIRAN","GABILONDO NAVARRO FERNANDO BERNARDO","BAJA","NULL","NULL"]
[7583,"INSTITUTO NACIONAL DE CIENCIAS MEDICAS Y NUTRICION SALVADOR ZUBIRAN","GALAN  RAMIREZ GABRIELA ALEJANDRA ","ICM B","CF41045","IPP 2023"]
[5015,"INSTITUTO NACIONAL DE CIENCIAS MEDICAS Y NUTRICION SALVADOR ZUBIRAN","GALINDO FRAGA ARTURO","ICM C","CFN3101908","IPP 2009"]
[5016,"INSTITUTO NACIONAL DE CIENCIAS MEDICAS Y NUTRICION SALVADOR ZUBIRAN","GALINDO GOMEZ CARLOS","ICM C","CF41046","2010_INGRESO ANTERIOR"]
[5017,"INSTITUTO NACIONAL DE CIENCIAS MEDICAS Y NUTRICION SALVADOR ZUBIRAN","GAMBA AYALA GERARDO","ICM F","CF41043","2006_INGRESO ANTERIOR"]
[5018,"INSTITUTO NACIONAL DE CIENCIAS MEDICAS Y NUTRICION SALVADOR ZUBIRAN","GAMBOA DOMINGUEZ ARMANDO","ICM D","CF50000","2006_INGRESO ANTERIOR"]
[5019,"INSTITUTO NACIONAL DE CIENCIAS MEDICAS Y NUTRICION SALVADOR ZUBIRAN","GARCIA BECERRA ROCIO ANGELES","BAJA","NULL","NULL"]
[7581,"INSTITUTO NACIONAL DE CIENCIAS MEDICAS Y NUTRICION SALVADOR ZUBIRAN","GARCIA CANO ISRAEL","ICM C","CF50000","IPP 2023"]
[7645,"INSTITUTO NACIONAL DE CIENCIAS MEDICAS Y NUTRICION SALVADOR ZUBIRAN","GARCIA GRIMSHAW MIGUEL ANTONIO","ICM C","CF41046","IPP 2024"]
[6571,"INSTITUTO NACIONAL DE CIENCIAS MEDICAS Y NUTRICION SALVADOR ZUBIRAN","GARCIA QUIROZ JANICE","ICM C","CF41046","IPP 2015"]
[5020,"INSTITUTO NACIONAL DE CIENCIAS MEDICAS Y NUTRICION SALVADOR ZUBIRAN","GARCIA VILLEGAS ELSY AIDE","ICM B","CF41045","IPP 2025"]
[6226,"INSTITUTO NACIONAL DE CIENCIAS MEDICAS Y NUTRICION SALVADOR ZUBIRAN","GOMEZ MARTIN DIANA","ICM E","CF41042","IPP 2012"]
[6578,"INSTITUTO NACIONAL DE CIENCIAS MEDICAS Y NUTRICION SALVADOR ZUBIRAN","GOMEZ PEREZ FRANCISCO JAVIER","ICM C","CF50000","IPP 2015"]
[6341,"INSTITUTO NACIONAL DE CIENCIAS MEDICAS Y NUTRICION SALVADOR ZUBIRAN","GOMEZ REYES ELISA","BAJA","NULL","NULL"]
[5021,"INSTITUTO NACIONAL DE CIENCIAS MEDICAS Y NUTRICION SALVADOR ZUBIRAN","GOMEZ RODRIGUEZ FRANCISCO ENRIQUE","ICM D","CF41041","IPP 2025"]
[5022,"INSTITUTO NACIONAL DE CIENCIAS MEDICAS Y NUTRICION SALVADOR ZUBIRAN","GONZALEZ CASANOVA HENRIQUEZ PABLO","BAJA","NULL","NULL"]
[5023,"INSTITUTO NACIONAL DE CIENCIAS MEDICAS Y NUTRICION SALVADOR ZUBIRAN","GONZALEZ DUARTE BRISEÑO MARIA ALEJANDRA","NULL","NULL","NULL"]
[5024,"INSTITUTO NACIONAL DE CIENCIAS MEDICAS Y NUTRICION SALVADOR ZUBIRAN","GONZALEZ GONZALEZ PACHECO MARIA ELENA","BAJA","NULL","NULL"]
[7482,"INSTITUTO NACIONAL DE CIENCIAS MEDICAS Y NUTRICION SALVADOR ZUBIRAN","GONZALEZ YAÑEZ MARYSOL","ICM A","CF41044","IPP 2021"]
[5025,"INSTITUTO NACIONAL DE CIENCIAS MEDICAS Y NUTRICION SALVADOR ZUBIRAN","GRANADOS ARRIOLA JULIO","BAJA","NULL","NULL"]
[5026,"INSTITUTO NACIONAL DE CIENCIAS MEDICAS Y NUTRICION SALVADOR ZUBIRAN","GRANADOS PORTILLO OMAR","ICM C","CF41046","2009_INGRESO ANTERIOR"]
[5027,"INSTITUTO NACIONAL DE CIENCIAS MEDICAS Y NUTRICION SALVADOR ZUBIRAN","GUARNEROS SOTO NOE","BAJA","NULL","NULL"]
[5028,"INSTITUTO NACIONAL DE CIENCIAS MEDICAS Y NUTRICION SALVADOR ZUBIRAN","GUERRERO ALMEIDA MARIA DE LOURDES","BAJA","NULL","NULL"]
[6219,"INSTITUTO NACIONAL DE CIENCIAS MEDICAS Y NUTRICION SALVADOR ZUBIRAN","GUEVARA CRUZ MARTHA","ICM F","CF41043","IPP 2012"]
[5029,"INSTITUTO NACIONAL DE CIENCIAS MEDICAS Y NUTRICION SALVADOR ZUBIRAN","GULIAS HERRERO ALFONSO","NULL","M01004","NULL"]
[5030,"INSTITUTO NACIONAL DE CIENCIAS MEDICAS Y NUTRICION SALVADOR ZUBIRAN","HALHALI BAGHDAD ALI","BAJA","NULL","NULL"]
[7649,"INSTITUTO NACIONAL DE CIENCIAS MEDICAS Y NUTRICION SALVADOR ZUBIRAN","HERNANDEZ GARCIA ANDREA","BAJA","NULL","NULL"]
[5031,"INSTITUTO NACIONAL DE CIENCIAS MEDICAS Y NUTRICION SALVADOR ZUBIRAN","HERNANDEZ GONZALEZ RAFAEL","BAJA","NULL","NULL"]
[6225,"INSTITUTO NACIONAL DE CIENCIAS MEDICAS Y NUTRICION SALVADOR ZUBIRAN","HERNANDEZ MOLINA GABRIELA AURORA","ICM E","CF41042","IPP 2012"]
[5032,"INSTITUTO NACIONAL DE CIENCIAS MEDICAS Y NUTRICION SALVADOR ZUBIRAN","HERNANDEZ PANDO ROGELIO ENRIQUE","ICM F","CF41043","2006_INGRESO ANTERIOR"]
[7731,"INSTITUTO NACIONAL DE CIENCIAS MEDICAS Y NUTRICION SALVADOR ZUBIRAN","HERNANDEZ RUIZ VIRGILIO ALEJANDRO","NO VIGENTE","CF41046","NULL"]
[7653,"INSTITUTO NACIONAL DE CIENCIAS MEDICAS Y NUTRICION SALVADOR ZUBIRAN","HERNANDEZ SILVA GABRIELA","NULL","M02005","NULL"]
[5033,"INSTITUTO NACIONAL DE CIENCIAS MEDICAS Y NUTRICION SALVADOR ZUBIRAN","HERRERA HERNANDEZ MIGUEL FRANCISCO","BAJA","NULL","NULL"]
[5034,"INSTITUTO NACIONAL DE CIENCIAS MEDICAS Y NUTRICION SALVADOR ZUBIRAN","HINOJOSA BECERRIL CARLOS ARTURO","ICM C","CFN3101908","IPP 2016"]
[5035,"INSTITUTO NACIONAL DE CIENCIAS MEDICAS Y NUTRICION SALVADOR ZUBIRAN","HUBERMAN WAJSMAN ALBERTO","BAJA","NULL","NULL"]
[7364,"INSTITUTO NACIONAL DE CIENCIAS MEDICAS Y NUTRICION SALVADOR ZUBIRAN","HUERTA CHAGOYA ALICIA","BAJA","NULL","NULL"]
[5036,"INSTITUTO NACIONAL DE CIENCIAS MEDICAS Y NUTRICION SALVADOR ZUBIRAN","IBARRA SANCHEZ MARIA DE JESUS","ICM C","CF41046","IPP 2008"]
[6429,"INSTITUTO NACIONAL DE CIENCIAS MEDICAS Y NUTRICION SALVADOR ZUBIRAN","ILLESCAS ZARATE DANIEL","ICM C","CF50000","IPP 2023"]
[7128,"INSTITUTO NACIONAL DE CIENCIAS MEDICAS Y NUTRICION SALVADOR ZUBIRAN","IÑIGUEZ ARIZA NICOLE MARIE","NO VIGENTE","CF41046","NULL"]
[5037,"INSTITUTO NACIONAL DE CIENCIAS MEDICAS Y NUTRICION SALVADOR ZUBIRAN","JACOBO HERRERA NADIA JUDITH","ICM D","CF41041","IPP 2013"]
[5038,"INSTITUTO NACIONAL DE CIENCIAS MEDICAS Y NUTRICION SALVADOR ZUBIRAN","JAKEZ OCAMPO JUAN DE JESUS","ICM D","CF41041","2006_INGRESO ANTERIOR"]
[5039,"INSTITUTO NACIONAL DE CIENCIAS MEDICAS Y NUTRICION SALVADOR ZUBIRAN","JUAREZ MARTINEZ MARIA DE JESUS LILIANA","ICM B","CF41045","IPP 2018"]
[7585,"INSTITUTO NACIONAL DE CIENCIAS MEDICAS Y NUTRICION SALVADOR ZUBIRAN","JUAREZ PILARES GIMENA","NO VIGENTE","CF41049","NULL"]
[5040,"INSTITUTO NACIONAL DE CIENCIAS MEDICAS Y NUTRICION SALVADOR ZUBIRAN","JUAREZ SILVA MA. EUGENIA","BAJA","NULL","NULL"]
[5041,"INSTITUTO NACIONAL DE CIENCIAS MEDICAS Y NUTRICION SALVADOR ZUBIRAN","KAUFER HORWITZ MARTHA","ICM E","CFM2101050","IPP 2008"]
[5042,"INSTITUTO NACIONAL DE CIENCIAS MEDICAS Y NUTRICION SALVADOR ZUBIRAN","LARREA GALLO FERNANDO","EMERITO","CF50000","2006_INGRESO ANTERIOR"]
[5043,"INSTITUTO NACIONAL DE CIENCIAS MEDICAS Y NUTRICION SALVADOR ZUBIRAN","LARRIETA CARRASCO MARIA ELENA","ICM D","CF41041","IPP 2009"]
[7258,"INSTITUTO NACIONAL DE CIENCIAS MEDICAS Y NUTRICION SALVADOR ZUBIRAN","LAU CORONA DANA","BAJA","NULL","NULL"]
[5044,"INSTITUTO NACIONAL DE CIENCIAS MEDICAS Y NUTRICION SALVADOR ZUBIRAN","LEDESMA SOLANO JOSE ANGEL","ICM A","CF41044","IPP 2011"]
[7646,"INSTITUTO NACIONAL DE CIENCIAS MEDICAS Y NUTRICION SALVADOR ZUBIRAN","LEDON LLANES LORAINE","ICM A","CF41044","IPP 2024"]
[6342,"INSTITUTO NACIONAL DE CIENCIAS MEDICAS Y NUTRICION SALVADOR ZUBIRAN","LEON CONTRERAS JUAN CARLOS","ICM A","CF41044","IPP 2014"]
[5045,"INSTITUTO NACIONAL DE CIENCIAS MEDICAS Y NUTRICION SALVADOR ZUBIRAN","LIMA GONZALEZ GUADALUPE ARMINDA","ICM A","CF41044","2009_INGRESO ANTERIOR"]
[6423,"INSTITUTO NACIONAL DE CIENCIAS MEDICAS Y NUTRICION SALVADOR ZUBIRAN","LIRA ALBARRAN SAUL","BAJA","NULL","NULL"]
[5046,"INSTITUTO NACIONAL DE CIENCIAS MEDICAS Y NUTRICION SALVADOR ZUBIRAN","LISKER YOURKOWITZKY RUBEN","BAJA","NULL","NULL"]
[5047,"INSTITUTO NACIONAL DE CIENCIAS MEDICAS Y NUTRICION SALVADOR ZUBIRAN","LLORENTE PETERS LUIS GUILLERMO","ICM F","CF41043","2006_INGRESO ANTERIOR"]
[7374,"INSTITUTO NACIONAL DE CIENCIAS MEDICAS Y NUTRICION SALVADOR ZUBIRAN","LOMAS SORIA MARIA DEL CONSUELO","ICM C","CF41046","IPP 2025"]
[5048,"INSTITUTO NACIONAL DE CIENCIAS MEDICAS Y NUTRICION SALVADOR ZUBIRAN","LOPEZ BARRADAS ADRIANA MARGARITA","ICM C","CF41046","2009_INGRESO ANTERIOR"]
[5049,"INSTITUTO NACIONAL DE CIENCIAS MEDICAS Y NUTRICION SALVADOR ZUBIRAN","LOPEZ CARRASCO MARIA GUADALUPE","ICM A","CF41044","IPP 2013"]
[5050,"INSTITUTO NACIONAL DE CIENCIAS MEDICAS Y NUTRICION SALVADOR ZUBIRAN","LOPEZ KARPOVITCH JOSEPH XAVIER","BAJA","NULL","NULL"]
[5051,"INSTITUTO NACIONAL DE CIENCIAS MEDICAS Y NUTRICION SALVADOR ZUBIRAN","LOPEZ ROMERO PATRICIA","BAJA","NULL","NULL"]
[7724,"INSTITUTO NACIONAL DE CIENCIAS MEDICAS Y NUTRICION SALVADOR ZUBIRAN","LOPEZ TEROS MIRIAM TERESA","ICM B","CF41045","IPP 2025"]
[5052,"INSTITUTO NACIONAL DE CIENCIAS MEDICAS Y NUTRICION SALVADOR ZUBIRAN","LORIA ACERETO ALVAR","BAJA","NULL","NULL"]
[5053,"INSTITUTO NACIONAL DE CIENCIAS MEDICAS Y NUTRICION SALVADOR ZUBIRAN","LUNA MUÑOZ LEONORA","ICM A","CF41044","2009_INGRESO ANTERIOR"]
[5054,"INSTITUTO NACIONAL DE CIENCIAS MEDICAS Y NUTRICION SALVADOR ZUBIRAN","LUQUEÑO MARTINEZ VERONICA GABRIELA","NO VIGENTE","CF41044","NULL"]
[6424,"INSTITUTO NACIONAL DE CIENCIAS MEDICAS Y NUTRICION SALVADOR ZUBIRAN","MAAFS RODRIGUEZ ANA GABRIELA","BAJA","NULL","NULL"]
[6426,"INSTITUTO NACIONAL DE CIENCIAS MEDICAS Y NUTRICION SALVADOR ZUBIRAN","MACIAS HERNANDEZ ALEJANDRO ERNESTO","BAJA","NULL","NULL"]
[7127,"INSTITUTO NACIONAL DE CIENCIAS MEDICAS Y NUTRICION SALVADOR ZUBIRAN","MACIAS RODRIGUEZ RICARDO ULISES","ICM C","CF41046","IPP 2018"]
[7257,"INSTITUTO NACIONAL DE CIENCIAS MEDICAS Y NUTRICION SALVADOR ZUBIRAN","MADERA SALCEDO IRIS KARINA","ICM C","CF41046","IPP 2019"]
[5055,"INSTITUTO NACIONAL DE CIENCIAS MEDICAS Y NUTRICION SALVADOR ZUBIRAN","MADRIGAL FRITSH MA. HERLINDA GILDA","BAJA","NULL","NULL"]
[6520,"INSTITUTO NACIONAL DE CIENCIAS MEDICAS Y NUTRICION SALVADOR ZUBIRAN","MARINO VAZQUEZ LLUVIA AURORA","ICM B","CF41045","IPP 2015"]
[6214,"INSTITUTO NACIONAL DE CIENCIAS MEDICAS Y NUTRICION SALVADOR ZUBIRAN","MARQUINA CASTILLO BRENDA NOEMI","ICM D","CF41041","IPP 2012"]
[7363,"INSTITUTO NACIONAL DE CIENCIAS MEDICAS Y NUTRICION SALVADOR ZUBIRAN","MARTAGON ROSADO ALEXANDRO JOSE","ICM C","CF41046","IPP 2020"]
[7723,"INSTITUTO NACIONAL DE CIENCIAS MEDICAS Y NUTRICION SALVADOR ZUBIRAN","MARTINEZ CLAUDIA FRANCISCA","BAJA","NULL","NULL"]
[5056,"INSTITUTO NACIONAL DE CIENCIAS MEDICAS Y NUTRICION SALVADOR ZUBIRAN","MARTINEZ GAMBOA ROSA ARELI","ICM B","CF41045","2009_INGRESO ANTERIOR"]
[5057,"INSTITUTO NACIONAL DE CIENCIAS MEDICAS Y NUTRICION SALVADOR ZUBIRAN","MATA ESPINOSA DULCE ADRIANA","ICM D","CF41041","IPP 2009"]
[5094,"INSTITUTO NACIONAL DE CIENCIAS MEDICAS Y NUTRICION SALVADOR ZUBIRAN","MEHTA ROOPA PRAVIN","ICM D","CF41041","2006_INGRESO ANTERIOR"]
[7732,"INSTITUTO NACIONAL DE CIENCIAS MEDICAS Y NUTRICION SALVADOR ZUBIRAN","MENDEZ GUERRERO INES OSVELY","ICM B","CF41045","IPP 2025"]
[5058,"INSTITUTO NACIONAL DE CIENCIAS MEDICAS Y NUTRICION SALVADOR ZUBIRAN","MENDEZ HERNANDEZ ISABEL CRISTINA","BAJA","NULL","NULL"]
[5059,"INSTITUTO NACIONAL DE CIENCIAS MEDICAS Y NUTRICION SALVADOR ZUBIRAN","MENDOZA MARTINEZ EDUARDO","BAJA","NULL","NULL"]
[7730,"INSTITUTO NACIONAL DE CIENCIAS MEDICAS Y NUTRICION SALVADOR ZUBIRAN","MENESES MEDINA MONICA ISABEL","ICM B","CF41045","IPP 2025"]
[5060,"INSTITUTO NACIONAL DE CIENCIAS MEDICAS Y NUTRICION SALVADOR ZUBIRAN","MERCADO DIAZ MIGUEL ANGEL","ICM E","CFM2101050","2012_INGRESO ANTERIOR"]
[6215,"INSTITUTO NACIONAL DE CIENCIAS MEDICAS Y NUTRICION SALVADOR ZUBIRAN","MERINO ZEFERINO BEATRIZ","ICM A","CF41044","IPP 2012"]
[7259,"INSTITUTO NACIONAL DE CIENCIAS MEDICAS Y NUTRICION SALVADOR ZUBIRAN","MIGUEL CRUZ ERIKA ELIZABETH","BAJA","NULL","NULL"]
[5061,"INSTITUTO NACIONAL DE CIENCIAS MEDICAS Y NUTRICION SALVADOR ZUBIRAN","MILKE GARCIA MARIA DEL PILAR ","ICM B","CF41045","IPP 2019"]
[6425,"INSTITUTO NACIONAL DE CIENCIAS MEDICAS Y NUTRICION SALVADOR ZUBIRAN","MIMENZA ALVARADO ALBERTO","NULL","M01004","NULL"]
[5062,"INSTITUTO NACIONAL DE CIENCIAS MEDICAS Y NUTRICION SALVADOR ZUBIRAN","MIRANDA ALATRISTE PAOLA VANESSA","ICM C","CF41046","IPP 2014"]
[6229,"INSTITUTO NACIONAL DE CIENCIAS MEDICAS Y NUTRICION SALVADOR ZUBIRAN","MITRE AGUILAR IRMA BEATRIZ","ICM C","CF41046","IPP 2012"]
[7370,"INSTITUTO NACIONAL DE CIENCIAS MEDICAS Y NUTRICION SALVADOR ZUBIRAN","MOCTEZUMA VELAZQUEZ CARLOS","BAJA","NULL","NULL"]
[5063,"INSTITUTO NACIONAL DE CIENCIAS MEDICAS Y NUTRICION SALVADOR ZUBIRAN","MORALES BUENROSTRO LUIS EDUARDO","ICM E","CF41042","IPP 2011"]
[5064,"INSTITUTO NACIONAL DE CIENCIAS MEDICAS Y NUTRICION SALVADOR ZUBIRAN","MORALES GUERRERO JOSEFINA CONSUELO","ICM C","CF41041","IPP 2016"]
[5065,"INSTITUTO NACIONAL DE CIENCIAS MEDICAS Y NUTRICION SALVADOR ZUBIRAN","MORALES MIRANDA ANGELICA","NO VIGENTE","CF41041","NULL"]
[5066,"INSTITUTO NACIONAL DE CIENCIAS MEDICAS Y NUTRICION SALVADOR ZUBIRAN","MORALES SUAREZ JUAN JOSE","ICM B","CF41045","IPP 2014"]
[6216,"INSTITUTO NACIONAL DE CIENCIAS MEDICAS Y NUTRICION SALVADOR ZUBIRAN","MORENO MARTINEZ REYNA ERIKA","ICM D","CF41041","IPP 2012"]
[5067,"INSTITUTO NACIONAL DE CIENCIAS MEDICAS Y NUTRICION SALVADOR ZUBIRAN","MORIMOTO MARTINEZ LIDYA SUMIKO","ICM D","CF41041","2006_INGRESO ANTERIOR"]
[7375,"INSTITUTO NACIONAL DE CIENCIAS MEDICAS Y NUTRICION SALVADOR ZUBIRAN","MUÑOZ HERNANDEZ LINDA LILIANA","NULL","NULL","NULL"]
[5068,"INSTITUTO NACIONAL DE CIENCIAS MEDICAS Y NUTRICION SALVADOR ZUBIRAN","MUÑOZ LOZANO ELSA CONCEPCION","BAJA","NULL","NULL"]
[5069,"INSTITUTO NACIONAL DE CIENCIAS MEDICAS Y NUTRICION SALVADOR ZUBIRAN","MUTCHINICK BARINGOLTZ OSVALDO MAXIMO","EMERITO","CF50000","2006_INGRESO ANTERIOR"]
[7018,"INSTITUTO NACIONAL DE CIENCIAS MEDICAS Y NUTRICION SALVADOR ZUBIRAN","NAVARRO ALVAREZ NALU","BAJA","NULL","NULL"]
[5070,"INSTITUTO NACIONAL DE CIENCIAS MEDICAS Y NUTRICION SALVADOR ZUBIRAN","NORIEGA LOPEZ LILIA GUADALUPE","ICM D","CF41041","IPP 2009"]
[7644,"INSTITUTO NACIONAL DE CIENCIAS MEDICAS Y NUTRICION SALVADOR ZUBIRAN","OCHOA GUZMAN ANA TERESA","ICM C","CF41046","IPP 2024"]
[4620,"INSTITUTO NACIONAL DE CIENCIAS MEDICAS Y NUTRICION SALVADOR ZUBIRAN","OLIN SANDOVAL MARIA VIRIDIANA","BAJA","NULL","NULL"]
[6223,"INSTITUTO NACIONAL DE CIENCIAS MEDICAS Y NUTRICION SALVADOR ZUBIRAN","ORDAZ ROSADO DAVID","ICM A","CF41044","IPP 2012"]
[5071,"INSTITUTO NACIONAL DE CIENCIAS MEDICAS Y NUTRICION SALVADOR ZUBIRAN","ORDOÑEZ SANCHEZ MARIA LUISA","ICM B","CF41045","IPP 2012"]
[5073,"INSTITUTO NACIONAL DE CIENCIAS MEDICAS Y NUTRICION SALVADOR ZUBIRAN","ORTEGA GALLEGOS HILDA","NO VIGENTE","CF41044","NULL"]
[5074,"INSTITUTO NACIONAL DE CIENCIAS MEDICAS Y NUTRICION SALVADOR ZUBIRAN","ORTIZ ORTEGA VICTOR MANUEL","ICM D","CF41041","2009_INGRESO ANTERIOR"]
[7733,"INSTITUTO NACIONAL DE CIENCIAS MEDICAS Y NUTRICION SALVADOR ZUBIRAN","PALESTINO DOMINGUEZ MAYREL","NO VIGENTE","CF41041","NULL"]
[6251,"INSTITUTO NACIONAL DE CIENCIAS MEDICAS Y NUTRICION SALVADOR ZUBIRAN","PASCUAL RAMOS VIRGINIA","NULL","M01011","NULL"]
[5075,"INSTITUTO NACIONAL DE CIENCIAS MEDICAS Y NUTRICION SALVADOR ZUBIRAN","PEDRAZA LOPEZ MARTHA","NO VIGENTE","CF41046","NULL"]
[5076,"INSTITUTO NACIONAL DE CIENCIAS MEDICAS Y NUTRICION SALVADOR ZUBIRAN","PEDRAZA SANCHEZ SIGIFREDO","ICM C","CF41046","IPP 2008"]
[5077,"INSTITUTO NACIONAL DE CIENCIAS MEDICAS Y NUTRICION SALVADOR ZUBIRAN","PELAEZ CASABLANCA MANUEL","BAJA","NULL","NULL"]
[7373,"INSTITUTO NACIONAL DE CIENCIAS MEDICAS Y NUTRICION SALVADOR ZUBIRAN","PEREZ  BENHUMEA TANIA","A ICM C","CF41049","IPP 2024"]
[5078,"INSTITUTO NACIONAL DE CIENCIAS MEDICAS Y NUTRICION SALVADOR ZUBIRAN","PEREZ GIL ROMO SARA ELENA","BAJA","NULL","NULL"]
[6224,"INSTITUTO NACIONAL DE CIENCIAS MEDICAS Y NUTRICION SALVADOR ZUBIRAN","PEREZ MONTER JUAN CARLOS","BAJA","NULL","NULL"]
[6193,"INSTITUTO NACIONAL DE CIENCIAS MEDICAS Y NUTRICION SALVADOR ZUBIRAN","PEREZ PATRIGEON SANTIAGO","BAJA","NULL","NULL"]
[5079,"INSTITUTO NACIONAL DE CIENCIAS MEDICAS Y NUTRICION SALVADOR ZUBIRAN","PICHARDO ONTIVEROS EDGAR","ICM B","CF41045","IPP 2015"]
[5080,"INSTITUTO NACIONAL DE CIENCIAS MEDICAS Y NUTRICION SALVADOR ZUBIRAN","PLATA RAMOS MARIA DEL CONSUELO","ICM D","CF41041","2006_INGRESO ANTERIOR"]
[5081,"INSTITUTO NACIONAL DE CIENCIAS MEDICAS Y NUTRICION SALVADOR ZUBIRAN","PONCE DE LEON GARDUÑO LUIS ALFREDO","ICM E","CF50000","2006_INGRESO ANTERIOR"]
[5082,"INSTITUTO NACIONAL DE CIENCIAS MEDICAS Y NUTRICION SALVADOR ZUBIRAN","PONCE DE LEON ROSALES SERGIO","NULL","M01011","NULL"]
[5083,"INSTITUTO NACIONAL DE CIENCIAS MEDICAS Y NUTRICION SALVADOR ZUBIRAN","QUIROZ AGUILAR MARCO ANTONIO","ICM A","CF41044","IPP 2024"]
[7725,"INSTITUTO NACIONAL DE CIENCIAS MEDICAS Y NUTRICION SALVADOR ZUBIRAN","RABADAN CHAVEZ GRISELDA MERICIA","ICM B","CF41045","IPP 2025"]
[7643,"INSTITUTO NACIONAL DE CIENCIAS MEDICAS Y NUTRICION SALVADOR ZUBIRAN","RAJME LOPEZ SANDRA","ICM C","CF41046","IPP 2024"]
[5084,"INSTITUTO NACIONAL DE CIENCIAS MEDICAS Y NUTRICION SALVADOR ZUBIRAN","RAMIREZ GONZALEZ VICTORIA","ICM D","CF41041","IPP 2009"]
[5085,"INSTITUTO NACIONAL DE CIENCIAS MEDICAS Y NUTRICION SALVADOR ZUBIRAN","RAMOS TAVERA LUIS","ICM D","CF41041","IPP 2018"]
[7365,"INSTITUTO NACIONAL DE CIENCIAS MEDICAS Y NUTRICION SALVADOR ZUBIRAN","RASMUSSEN ALMARAZ ASTRID OLIVIA","BAJA","NULL","NULL"]
[5086,"INSTITUTO NACIONAL DE CIENCIAS MEDICAS Y NUTRICION SALVADOR ZUBIRAN","RESENDIZ GARCIA MONTSERRAT CONCEPCION","NO VIGENTE","CF41045","NULL"]
[5087,"INSTITUTO NACIONAL DE CIENCIAS MEDICAS Y NUTRICION SALVADOR ZUBIRAN","REYES CASTRO LUIS ANTONIO","ICM C","CF41046","IPP 2009"]
[5088,"INSTITUTO NACIONAL DE CIENCIAS MEDICAS Y NUTRICION SALVADOR ZUBIRAN","REYES GUTIERREZ EDGARDO FRANCISCO","BAJA","NULL","NULL"]
[7734,"INSTITUTO NACIONAL DE CIENCIAS MEDICAS Y NUTRICION SALVADOR ZUBIRAN","RIOS ARGAIZ EDUARDO","ICM C","CF41046","IPP 2025"]
[7522,"INSTITUTO NACIONAL DE CIENCIAS MEDICAS Y NUTRICION SALVADOR ZUBIRAN","RODRIGUEZ  ITURBE BERNARDO","NO VIGENTE","CF41043","NULL"]
[7727,"INSTITUTO NACIONAL DE CIENCIAS MEDICAS Y NUTRICION SALVADOR ZUBIRAN","RODRIGUEZ CALLEJAS JUAN DE DIOS ","NO VIGENTE","CF41044","NULL"]
[6221,"INSTITUTO NACIONAL DE CIENCIAS MEDICAS Y NUTRICION SALVADOR ZUBIRAN","RODRIGUEZ GONZALEZ GUADALUPE LETICIA","ICM C","CF41046","IPP 2012"]
[5089,"INSTITUTO NACIONAL DE CIENCIAS MEDICAS Y NUTRICION SALVADOR ZUBIRAN","RODRIGUEZ HERNANDEZ GERARDO JUAN","ICM A","CF41044","IPP 2025"]
[5090,"INSTITUTO NACIONAL DE CIENCIAS MEDICAS Y NUTRICION SALVADOR ZUBIRAN","RODRIGUEZ REYNA TATIANA SOFIA","ICM D","CF41041","IPP 2010"]
[5091,"INSTITUTO NACIONAL DE CIENCIAS MEDICAS Y NUTRICION SALVADOR ZUBIRAN","RODRIGUEZ TORRES MARIBEL","ICM A","CF41044","IPP 2024"]
[7728,"INSTITUTO NACIONAL DE CIENCIAS MEDICAS Y NUTRICION SALVADOR ZUBIRAN","ROJAS ORTEGA ERENDIRA ","ICM A","CF41044","IPP 2025"]
[6925,"INSTITUTO NACIONAL DE CIENCIAS MEDICAS Y NUTRICION SALVADOR ZUBIRAN","ROJAS VEGA LORENA LEONOR ","BAJA","NULL","NULL"]
[5092,"INSTITUTO NACIONAL DE CIENCIAS MEDICAS Y NUTRICION SALVADOR ZUBIRAN","ROLDAN AMARO JOSE ANTONIO","ICM B","CF41045","2009_INGRESO ANTERIOR"]
[7648,"INSTITUTO NACIONAL DE CIENCIAS MEDICAS Y NUTRICION SALVADOR ZUBIRAN","ROMAN MONTES CARLA MARINA","ICM C","CF41046","IPP 2025"]
[7367,"INSTITUTO NACIONAL DE CIENCIAS MEDICAS Y NUTRICION SALVADOR ZUBIRAN","ROMERO CORDOBA SANDRA LORENA","ICM C","CF41046","IPP 2020"]
[5093,"INSTITUTO NACIONAL DE CIENCIAS MEDICAS Y NUTRICION SALVADOR ZUBIRAN","ROMERO JUAREZ ANA GABRIELA","NO VIGENTE","CF41045","NULL"]
[5095,"INSTITUTO NACIONAL DE CIENCIAS MEDICAS Y NUTRICION SALVADOR ZUBIRAN","ROSAS BARUCH AGUSTINA","NO VIGENTE","CF41045","NULL"]
[5096,"INSTITUTO NACIONAL DE CIENCIAS MEDICAS Y NUTRICION SALVADOR ZUBIRAN","ROSAS ROMERO MA. JESUS REYNALDA","ICM A","CF41044","IPP 2015"]
[6572,"INSTITUTO NACIONAL DE CIENCIAS MEDICAS Y NUTRICION SALVADOR ZUBIRAN","ROSETTI SCIUTTO FLORENCIA","ICM C","CF41046","IPP 2015"]
[5097,"INSTITUTO NACIONAL DE CIENCIAS MEDICAS Y NUTRICION SALVADOR ZUBIRAN","RUIZ ARREGUI LILIANA","NO VIGENTE","CF41046","NULL"]
[5098,"INSTITUTO NACIONAL DE CIENCIAS MEDICAS Y NUTRICION SALVADOR ZUBIRAN","RUIZ JUVERA AIDA MA. DE LOS ANGELES","BAJA","NULL","NULL"]
[7125,"INSTITUTO NACIONAL DE CIENCIAS MEDICAS Y NUTRICION SALVADOR ZUBIRAN","RUIZ MARGAIN ASTRID","ICM B","CF41045","IPP 2018"]
[5099,"INSTITUTO NACIONAL DE CIENCIAS MEDICAS Y NUTRICION SALVADOR ZUBIRAN","RUIZ PALACIOS Y SANTOS GUILLERMO MIGUEL","ICM F","CF41043","2006_INGRESO ANTERIOR"]
[5100,"INSTITUTO NACIONAL DE CIENCIAS MEDICAS Y NUTRICION SALVADOR ZUBIRAN","SALAS MONTIEL MARIA DE LA LUZ ROCIO","BAJA","NULL","NULL"]
[5101,"INSTITUTO NACIONAL DE CIENCIAS MEDICAS Y NUTRICION SALVADOR ZUBIRAN","SALAS VALENZUELA MONSERRAT AMADA","BAJA","NULL","NULL"]
[5102,"INSTITUTO NACIONAL DE CIENCIAS MEDICAS Y NUTRICION SALVADOR ZUBIRAN","SANCHEZ CASTILLO CLAUDIA PAULINA","BAJA","NULL","NULL"]
[5103,"INSTITUTO NACIONAL DE CIENCIAS MEDICAS Y NUTRICION SALVADOR ZUBIRAN","SANCHEZ HERNANDEZ BEATRIZ EUGENIA","ICM C","CF41046","IPP 2017"]
[7652,"INSTITUTO NACIONAL DE CIENCIAS MEDICAS Y NUTRICION SALVADOR ZUBIRAN","SANCHEZ TAPIA MONICA TODD CURIE","ICM C","CF41046","IPP 2024"]
[7521,"INSTITUTO NACIONAL DE CIENCIAS MEDICAS Y NUTRICION SALVADOR ZUBIRAN","SANCHEZ VIDAL HILDA","ICM A","CF41044","IPP 2022"]
[5104,"INSTITUTO NACIONAL DE CIENCIAS MEDICAS Y NUTRICION SALVADOR ZUBIRAN","SANGINES GARCIA LEONOR","BAJA","NULL","NULL"]
[5105,"INSTITUTO NACIONAL DE CIENCIAS MEDICAS Y NUTRICION SALVADOR ZUBIRAN","SANTIAGO AYALA MARIA VICTORIA","NO VIGENTE","CF41045","NULL"]
[5106,"INSTITUTO NACIONAL DE CIENCIAS MEDICAS Y NUTRICION SALVADOR ZUBIRAN","SAUCEDO ARTEAGA GABRIEL JUSTO","BAJA","NULL","NULL"]
[6345,"INSTITUTO NACIONAL DE CIENCIAS MEDICAS Y NUTRICION SALVADOR ZUBIRAN","SEGURA KATO YAYOI XOCHITL","ICM B","CF41045","IPP 2018"]
[6521,"INSTITUTO NACIONAL DE CIENCIAS MEDICAS Y NUTRICION SALVADOR ZUBIRAN","SERRALDE ZUÑIGA AURORA ELIZABETH","ICM E","CF41042","IPP 2015"]
[6346,"INSTITUTO NACIONAL DE CIENCIAS MEDICAS Y NUTRICION SALVADOR ZUBIRAN","SERRANO MONEY FELIPE EDUARDO","BAJA","NULL","NULL"]
[5107,"INSTITUTO NACIONAL DE CIENCIAS MEDICAS Y NUTRICION SALVADOR ZUBIRAN","SIERRA MADERO JUAN GERARDO","ICM F","CF41043","2009_INGRESO ANTERIOR"]
[5108,"INSTITUTO NACIONAL DE CIENCIAS MEDICAS Y NUTRICION SALVADOR ZUBIRAN","SIFUENTES OSORNIO JOSE","ICM F","CFK2252394","2006_INGRESO ANTERIOR"]
[5109,"INSTITUTO NACIONAL DE CIENCIAS MEDICAS Y NUTRICION SALVADOR ZUBIRAN","SILENCIO BARRITA JOSE LUIS","BAJA","NULL","NULL"]
[5110,"INSTITUTO NACIONAL DE CIENCIAS MEDICAS Y NUTRICION SALVADOR ZUBIRAN","SIXTOS ALONSO MARIA SARA","BAJA","NULL","NULL"]
[5111,"INSTITUTO NACIONAL DE CIENCIAS MEDICAS Y NUTRICION SALVADOR ZUBIRAN","SOLANO MARIA DE LOURDES","BAJA","NULL","NULL"]
[7481,"INSTITUTO NACIONAL DE CIENCIAS MEDICAS Y NUTRICION SALVADOR ZUBIRAN","SOTO MOTA LUIS ADRIAN","ICM C","CF41046","IPP 2021"]
[7126,"INSTITUTO NACIONAL DE CIENCIAS MEDICAS Y NUTRICION SALVADOR ZUBIRAN","SOTO PEREZ DE CELIS ENRIQUE","BAJA","NULL","NULL"]
[5112,"INSTITUTO NACIONAL DE CIENCIAS MEDICAS Y NUTRICION SALVADOR ZUBIRAN","SOTO RAMIREZ LUIS ENRIQUE","NO VIGENTE","CF41041","NULL"]
[5113,"INSTITUTO NACIONAL DE CIENCIAS MEDICAS Y NUTRICION SALVADOR ZUBIRAN","SVYRYD YEVGENIYA","ICM B","CF41045","IPP 2011"]
[5114,"INSTITUTO NACIONAL DE CIENCIAS MEDICAS Y NUTRICION SALVADOR ZUBIRAN","TESORO CRUZ EMILIANO","BAJA","NULL","NULL"]
[7651,"INSTITUTO NACIONAL DE CIENCIAS MEDICAS Y NUTRICION SALVADOR ZUBIRAN","TOBON CORNEJO SANDRA","ICM B","CF41045","IPP 2024"]
[5115,"INSTITUTO NACIONAL DE CIENCIAS MEDICAS Y NUTRICION SALVADOR ZUBIRAN","TORRE VILLALVAZO IVAN","ICM C","CF41046","2009_INGRESO ANTERIOR"]
[7735,"INSTITUTO NACIONAL DE CIENCIAS MEDICAS Y NUTRICION SALVADOR ZUBIRAN","TORRES DOMINGUEZ JUAN ALEJANDRO ","ICM C","CF41046","IPP 2025"]
[7647,"INSTITUTO NACIONAL DE CIENCIAS MEDICAS Y NUTRICION SALVADOR ZUBIRAN","TORRES RUIZ JOSE JIRAM","ICM D","CF41041","IPP 2024"]
[5116,"INSTITUTO NACIONAL DE CIENCIAS MEDICAS Y NUTRICION SALVADOR ZUBIRAN","TORRES VEGA MIGUEL ANGEL","ICM A","CF41046","IPP 2014"]
[6579,"INSTITUTO NACIONAL DE CIENCIAS MEDICAS Y NUTRICION SALVADOR ZUBIRAN","TORRES VILLALOBOS GONZALO MANUEL","ICM C","CF50000","IPP 2025"]
[5117,"INSTITUTO NACIONAL DE CIENCIAS MEDICAS Y NUTRICION SALVADOR ZUBIRAN","TORRES Y TORRES NIMBE","ICM F","CF41043","2009_INGRESO ANTERIOR"]
[5118,"INSTITUTO NACIONAL DE CIENCIAS MEDICAS Y NUTRICION SALVADOR ZUBIRAN","TOVAR PALACIO ARMANDO ROBERTO","ICM F","CF50000","2006_INGRESO ANTERIOR"]
[5119,"INSTITUTO NACIONAL DE CIENCIAS MEDICAS Y NUTRICION SALVADOR ZUBIRAN","TOVAR PALACIO CLAUDIA TERESA","ICM C","CF41046","IPP 2018"]
[5120,"INSTITUTO NACIONAL DE CIENCIAS MEDICAS Y NUTRICION SALVADOR ZUBIRAN","TUSIE LUNA MARIA TERESA","ICM F","CF41043","2009_INGRESO ANTERIOR"]
[6177,"INSTITUTO NACIONAL DE CIENCIAS MEDICAS Y NUTRICION SALVADOR ZUBIRAN","ULLOA Y AGUIRRE ALFREDO ANTONIO","NO VIGENTE","CF41042","NULL"]
[5121,"INSTITUTO NACIONAL DE CIENCIAS MEDICAS Y NUTRICION SALVADOR ZUBIRAN","URIBE ESQUIVEL MISAEL","BAJA","NULL","NULL"]
[5122,"INSTITUTO NACIONAL DE CIENCIAS MEDICAS Y NUTRICION SALVADOR ZUBIRAN","URIBE URIBE NORMA OFELIA","NO VIGENTE","CF41041","NULL"]
[6923,"INSTITUTO NACIONAL DE CIENCIAS MEDICAS Y NUTRICION SALVADOR ZUBIRAN","VALDES FERRER SERGIO IVAN","BAJA","NULL","NULL"]
[7582,"INSTITUTO NACIONAL DE CIENCIAS MEDICAS Y NUTRICION SALVADOR ZUBIRAN","VALDEZ ECHEVERRIA RAYMUNDO DAVID","NO VIGENTE","CF50000","NULL"]
[7726,"INSTITUTO NACIONAL DE CIENCIAS MEDICAS Y NUTRICION SALVADOR ZUBIRAN","VALERO MORALES MARIA ISABEL","NO VIGENTE","CF41046","NULL"]
[5123,"INSTITUTO NACIONAL DE CIENCIAS MEDICAS Y NUTRICION SALVADOR ZUBIRAN","VALLES Y SANCHEZ VICTORIA EUGENIA","BAJA","NULL","NULL"]
[5124,"INSTITUTO NACIONAL DE CIENCIAS MEDICAS Y NUTRICION SALVADOR ZUBIRAN","VARGAS VORACKOVA FLORENCIA","BAJA","NULL","NULL"]
[7366,"INSTITUTO NACIONAL DE CIENCIAS MEDICAS Y NUTRICION SALVADOR ZUBIRAN","VAZQUEZ MANJARREZ NATALIA","ICM C","CF41046","IPP 2020"]
[5125,"INSTITUTO NACIONAL DE CIENCIAS MEDICAS Y NUTRICION SALVADOR ZUBIRAN","VELAZQUEZ CAMACHO BERTHA L","BAJA","NULL","NULL"]
[7480,"INSTITUTO NACIONAL DE CIENCIAS MEDICAS Y NUTRICION SALVADOR ZUBIRAN","VELAZQUEZ VILLEGAS LAURA ALEJANDRA","ICM C","CF41046","IPP 2021"]
[7737,"INSTITUTO NACIONAL DE CIENCIAS MEDICAS Y NUTRICION SALVADOR ZUBIRAN","VERGARA MENDOZA MOISES","ICM C","CF41046","IPP 2025"]
[6581,"INSTITUTO NACIONAL DE CIENCIAS MEDICAS Y NUTRICION SALVADOR ZUBIRAN","VILATOBA CHAPA MARIO","ICM D","CF50000","IPP 2016"]
[5126,"INSTITUTO NACIONAL DE CIENCIAS MEDICAS Y NUTRICION SALVADOR ZUBIRAN","VILCHIS URIBE FELIPE DE JESUS","BAJA","NULL","NULL"]
[5127,"INSTITUTO NACIONAL DE CIENCIAS MEDICAS Y NUTRICION SALVADOR ZUBIRAN","VILLARREAL DELGADO LAUREANO ENRIQUE","BAJA","NULL","NULL"]
[5128,"INSTITUTO NACIONAL DE CIENCIAS MEDICAS Y NUTRICION SALVADOR ZUBIRAN","VIVEROS ROGEL MONICA","ICM C","CF41041","IPP 2022"]
[6252,"INSTITUTO NACIONAL DE CIENCIAS MEDICAS Y NUTRICION SALVADOR ZUBIRAN","YAMAMOTO FURUSHO JESUS KAZUO","NULL","M01004","NULL"]
[5129,"INSTITUTO NACIONAL DE CIENCIAS MEDICAS Y NUTRICION SALVADOR ZUBIRAN","YSUNZA OGAZON ALBERTO MIGUEL","BAJA","NULL","NULL"]
[5130,"INSTITUTO NACIONAL DE CIENCIAS MEDICAS Y NUTRICION SALVADOR ZUBIRAN","ZAMBRANO GONZALEZ ELENA","ICM F","CF41043","2009_INGRESO ANTERIOR"]
[5131,"INSTITUTO NACIONAL DE CIENCIAS MEDICAS Y NUTRICION SALVADOR ZUBIRAN","ZENTELLA DEHESA ALEJANDRO","ICM F","CF41043","2009_INGRESO ANTERIOR"]
[4787,"INSTITUTO NACIONAL DE ENFERMEDADES RESPIRATORIAS ISMAEL COSIO VILLEGAS","AGUILAR CAZARES DOLORES","ICM C","CF41046","2009_INGRESO ANTERIOR"]
[4788,"INSTITUTO NACIONAL DE ENFERMEDADES RESPIRATORIAS ISMAEL COSIO VILLEGAS","ALFARO RAMOS LETICIA","BAJA","NULL","NULL"]
[4789,"INSTITUTO NACIONAL DE ENFERMEDADES RESPIRATORIAS ISMAEL COSIO VILLEGAS","ALVARADO VASQUEZ HIPOLITO NOE","ICM D","CF41041","2009_INGRESO ANTERIOR"]
[4790,"INSTITUTO NACIONAL DE ENFERMEDADES RESPIRATORIAS ISMAEL COSIO VILLEGAS","AQUINO GALVEZ ARNOLDO ","ICM D","CF41041","IPP 2009"]
[4791,"INSTITUTO NACIONAL DE ENFERMEDADES RESPIRATORIAS ISMAEL COSIO VILLEGAS","ARREOLA RAMIREZ JOSE LUIS","ICM D","CF41041","2009_INGRESO ANTERIOR"]
[4793,"INSTITUTO NACIONAL DE ENFERMEDADES RESPIRATORIAS ISMAEL COSIO VILLEGAS","AVILA RIOS SANTIAGO","ICM F","CF50000","2009_INGRESO ANTERIOR"]
[7376,"INSTITUTO NACIONAL DE ENFERMEDADES RESPIRATORIAS ISMAEL COSIO VILLEGAS","BALDERAS MARTINEZ YALBI ITZEL","ICM C","CF41046","IPP 2020"]
[4794,"INSTITUTO NACIONAL DE ENFERMEDADES RESPIRATORIAS ISMAEL COSIO VILLEGAS","BARRANCO GARDUÑO LINA MARCELA","ICM B","CF41045","IPP 2016"]
[4795,"INSTITUTO NACIONAL DE ENFERMEDADES RESPIRATORIAS ISMAEL COSIO VILLEGAS","BARRERA RAMIREZ LOURDES MARIA","BAJA","NULL","NULL"]
[4796,"INSTITUTO NACIONAL DE ENFERMEDADES RESPIRATORIAS ISMAEL COSIO VILLEGAS","BARRERA RODRIGUEZ RAUL","BAJA","NULL","NULL"]
[4797,"INSTITUTO NACIONAL DE ENFERMEDADES RESPIRATORIAS ISMAEL COSIO VILLEGAS","BAZAN PERKINS BLANCA MARGARITA","ICM E","CF41042","2009_INGRESO ANTERIOR"]
[4798,"INSTITUTO NACIONAL DE ENFERMEDADES RESPIRATORIAS ISMAEL COSIO VILLEGAS","BECERRIL BERROCAL LILIA CARINA","ICM C","CF41046","2010_INGRESO ANTERIOR"]
[4799,"INSTITUTO NACIONAL DE ENFERMEDADES RESPIRATORIAS ISMAEL COSIO VILLEGAS","BOBADILLA LOZOYA KAREN","BAJA","NULL","NULL"]
[6932,"INSTITUTO NACIONAL DE ENFERMEDADES RESPIRATORIAS ISMAEL COSIO VILLEGAS","BOUKADIDA  CELIA INES","BAJA","NULL","NULL"]
[6927,"INSTITUTO NACIONAL DE ENFERMEDADES RESPIRATORIAS ISMAEL COSIO VILLEGAS","BRICEÑO CARDENAS OLIVIA YAZMIN","ICM B","CF41045","IPP 2016"]
[4800,"INSTITUTO NACIONAL DE ENFERMEDADES RESPIRATORIAS ISMAEL COSIO VILLEGAS","BUENDIA ROLDAN IVETTE","ICM E","CF41042","IPP 2010"]
[4801,"INSTITUTO NACIONAL DE ENFERMEDADES RESPIRATORIAS ISMAEL COSIO VILLEGAS","CABELLO GUTIERREZ CARLOS","ICM D","CF50000","2009_INGRESO ANTERIOR"]
[4802,"INSTITUTO NACIONAL DE ENFERMEDADES RESPIRATORIAS ISMAEL COSIO VILLEGAS","CAMARENA OLVERA ANGEL EDUARDO","ICM B","CF41045","2009_INGRESO ANTERIOR"]
[4803,"INSTITUTO NACIONAL DE ENFERMEDADES RESPIRATORIAS ISMAEL COSIO VILLEGAS","CARBAJAL SALINAS VERONICA ESTELA","ICM C","CF41046","2009_INGRESO ANTERIOR"]
[6144,"INSTITUTO NACIONAL DE ENFERMEDADES RESPIRATORIAS ISMAEL COSIO VILLEGAS","CARLOS REYES MARIA DE LOS ANGELES","ICM C","CF41046","IPP 2012"]
[4804,"INSTITUTO NACIONAL DE ENFERMEDADES RESPIRATORIAS ISMAEL COSIO VILLEGAS","CARRANZA SALAZAR CLAUDIA","ICM C","CF41046","2009_INGRESO ANTERIOR"]
[4805,"INSTITUTO NACIONAL DE ENFERMEDADES RESPIRATORIAS ISMAEL COSIO VILLEGAS","CARRASCO PORTUGAL MIRIAM DEL CARMEN","ICM D","CF41041","IPP 2008"]
[7130,"INSTITUTO NACIONAL DE ENFERMEDADES RESPIRATORIAS ISMAEL COSIO VILLEGAS","CARRETO BINAGHI LAURA ELENA","BAJA","NULL","NULL"]
[4806,"INSTITUTO NACIONAL DE ENFERMEDADES RESPIRATORIAS ISMAEL COSIO VILLEGAS","CASTILLEJOS LOPEZ MANUEL DE JESUS","ICM C","CF41046","2010_INGRESO ANTERIOR"]
[6930,"INSTITUTO NACIONAL DE ENFERMEDADES RESPIRATORIAS ISMAEL COSIO VILLEGAS","CASTORENA MALDONADO ARMANDO ROBERTO","NO VIGENTE","CFM2101048","NULL"]
[4807,"INSTITUTO NACIONAL DE ENFERMEDADES RESPIRATORIAS ISMAEL COSIO VILLEGAS","CATALAN VAZQUEZ MINERVA","BAJA","NULL","NULL"]
[6148,"INSTITUTO NACIONAL DE ENFERMEDADES RESPIRATORIAS ISMAEL COSIO VILLEGAS","CERVANTES NEVAREZ ARIADNA NATALIA","NULL","M02088","NULL"]
[4808,"INSTITUTO NACIONAL DE ENFERMEDADES RESPIRATORIAS ISMAEL COSIO VILLEGAS","CHAPELA MENDOZA MARIA DEL ROCIO","BAJA","NULL","NULL"]
[4809,"INSTITUTO NACIONAL DE ENFERMEDADES RESPIRATORIAS ISMAEL COSIO VILLEGAS","CHAVEZ ALDERETE JAIME","ICM C","CF41046","2009_INGRESO ANTERIOR"]
[4810,"INSTITUTO NACIONAL DE ENFERMEDADES RESPIRATORIAS ISMAEL COSIO VILLEGAS","CHAVEZ GALAN LESLIE","ICM C","CF41046","IPP 2009"]
[4811,"INSTITUTO NACIONAL DE ENFERMEDADES RESPIRATORIAS ISMAEL COSIO VILLEGAS","CHECA CARATACHEA MARCO ANTONIO","BAJA","NULL","NULL"]
[7523,"INSTITUTO NACIONAL DE ENFERMEDADES RESPIRATORIAS ISMAEL COSIO VILLEGAS","CHOREÑO PARRA JOSE ALBERTO","NULL","M04002","NULL"]
[4812,"INSTITUTO NACIONAL DE ENFERMEDADES RESPIRATORIAS ISMAEL COSIO VILLEGAS","CISNEROS LIRA JOSE GUADALUPE","ICM C","CF50000","2009_INGRESO ANTERIOR"]
[4813,"INSTITUTO NACIONAL DE ENFERMEDADES RESPIRATORIAS ISMAEL COSIO VILLEGAS","CRUZ LAGUNAS ALFREDO","ICM B","CF41045","IPP 2009"]
[7381,"INSTITUTO NACIONAL DE ENFERMEDADES RESPIRATORIAS ISMAEL COSIO VILLEGAS","DEBRAY GARCIA YAZMIN","ICM C","CF41046","IPP 2020"]
[4814,"INSTITUTO NACIONAL DE ENFERMEDADES RESPIRATORIAS ISMAEL COSIO VILLEGAS","DEL RIO ESTRADA PERLA MARIANA","BAJA","NULL","NULL"]
[4815,"INSTITUTO NACIONAL DE ENFERMEDADES RESPIRATORIAS ISMAEL COSIO VILLEGAS","ESPINOSA ARCINIEGA HECTOR ENRIQUE","ICM E","CF41042","2009_INGRESO ANTERIOR"]
[4816,"INSTITUTO NACIONAL DE ENFERMEDADES RESPIRATORIAS ISMAEL COSIO VILLEGAS","ESPINOSA MANCILLA MARIA BLANCA","BAJA","NULL","NULL"]
[4817,"INSTITUTO NACIONAL DE ENFERMEDADES RESPIRATORIAS ISMAEL COSIO VILLEGAS","FALFAN VALENCIA RAMCES","ICM D","CF41041","2010_INGRESO ANTERIOR"]
[4818,"INSTITUTO NACIONAL DE ENFERMEDADES RESPIRATORIAS ISMAEL COSIO VILLEGAS","FERNANDEZ PLATA MARIA DEL ROSARIO","ICM C","CF41046","IPP 2010"]
[7384,"INSTITUTO NACIONAL DE ENFERMEDADES RESPIRATORIAS ISMAEL COSIO VILLEGAS","FLORES FLORES ANGELICA","ICM C","CF41046","IPP 2020"]
[7740,"INSTITUTO NACIONAL DE ENFERMEDADES RESPIRATORIAS ISMAEL COSIO VILLEGAS","FLORES GONZALEZ JULIO CESAR","ICM C","CF41046","IPP 2025"]
[4819,"INSTITUTO NACIONAL DE ENFERMEDADES RESPIRATORIAS ISMAEL COSIO VILLEGAS","FLORES SUAREZ LUIS FELIPE","ICM D","CF41041","2009_INGRESO ANTERIOR"]
[4820,"INSTITUTO NACIONAL DE ENFERMEDADES RESPIRATORIAS ISMAEL COSIO VILLEGAS","FRANCO MARINA FRANCISCO","BAJA","NULL","NULL"]
[7529,"INSTITUTO NACIONAL DE ENFERMEDADES RESPIRATORIAS ISMAEL COSIO VILLEGAS","FRICKE GALINDO INGRID","ICM C","CF41046","IPP 2022"]
[4821,"INSTITUTO NACIONAL DE ENFERMEDADES RESPIRATORIAS ISMAEL COSIO VILLEGAS","GARCIA DE ALBA RIVAS CAROLINA","BAJA","NULL","NULL"]
[7377,"INSTITUTO NACIONAL DE ENFERMEDADES RESPIRATORIAS ISMAEL COSIO VILLEGAS","GARCIA MORALES CLAUDIA ","ICM C","CF41046","IPP 2020"]
[4822,"INSTITUTO NACIONAL DE ENFERMEDADES RESPIRATORIAS ISMAEL COSIO VILLEGAS","GARCIA SANCHO FIGUEROA MARIA CECILIA EUGENIA","BAJA","NULL","NULL"]
[6928,"INSTITUTO NACIONAL DE ENFERMEDADES RESPIRATORIAS ISMAEL COSIO VILLEGAS","GARRIDO RODRIGUEZ DANIELA ","BAJA","NULL","NULL"]
[4823,"INSTITUTO NACIONAL DE ENFERMEDADES RESPIRATORIAS ISMAEL COSIO VILLEGAS","GAXIOLA GAXIOLA MIGUEL OCTAVIO","ICM C","CF41046","2009_INGRESO ANTERIOR"]
[6147,"INSTITUTO NACIONAL DE ENFERMEDADES RESPIRATORIAS ISMAEL COSIO VILLEGAS","GOCHICOA RANGEL LAURA GRACIELA","ICM D","CFN3101909","IPP 2019"]
[4824,"INSTITUTO NACIONAL DE ENFERMEDADES RESPIRATORIAS ISMAEL COSIO VILLEGAS","GONZALEZ AVILA GEORGINA","ICM D","CF50000","2006_INGRESO ANTERIOR"]
[4825,"INSTITUTO NACIONAL DE ENFERMEDADES RESPIRATORIAS ISMAEL COSIO VILLEGAS","GONZALEZ HERNANDEZ YOLANDA","ICM D","CF50000","2010_INGRESO ANTERIOR"]
[7380,"INSTITUTO NACIONAL DE ENFERMEDADES RESPIRATORIAS ISMAEL COSIO VILLEGAS","GONZALEZ ISLAS DULCE GABRIELA","ICM C","CF41046","IPP 2020"]
[4826,"INSTITUTO NACIONAL DE ENFERMEDADES RESPIRATORIAS ISMAEL COSIO VILLEGAS","GOROCICA ROSETE PATRICIA SOFIA","BAJA","NULL","NULL"]
[4827,"INSTITUTO NACIONAL DE ENFERMEDADES RESPIRATORIAS ISMAEL COSIO VILLEGAS","GUTIERREZ GONZALEZ LUIS HORACIO","ICM C","CF41046","IPP 2009"]
[4828,"INSTITUTO NACIONAL DE ENFERMEDADES RESPIRATORIAS ISMAEL COSIO VILLEGAS","GUZMAN BELTRAN SILVIA","ICM D","CF41041","IPP 2008"]
[4829,"INSTITUTO NACIONAL DE ENFERMEDADES RESPIRATORIAS ISMAEL COSIO VILLEGAS","HERNANDEZ JIMENEZ CLAUDIA","ICM C","CF41046","IPP 2009"]
[7385,"INSTITUTO NACIONAL DE ENFERMEDADES RESPIRATORIAS ISMAEL COSIO VILLEGAS","HERNANDEZ PLATA EVERARDO","BAJA","NULL","NULL"]
[4830,"INSTITUTO NACIONAL DE ENFERMEDADES RESPIRATORIAS ISMAEL COSIO VILLEGAS","HERNANDEZ SANCHEZ FERNANDO","ICM B","CF41045","IPP 2009"]
[4831,"INSTITUTO NACIONAL DE ENFERMEDADES RESPIRATORIAS ISMAEL COSIO VILLEGAS","HERRERA BARRIOS MARIA TERESA","ICM D","CF41041","2006_INGRESO ANTERIOR"]
[6559,"INSTITUTO NACIONAL DE ENFERMEDADES RESPIRATORIAS ISMAEL COSIO VILLEGAS","HERRERA FUENTES ILIANA","ICM C","CF41046","IPP 2015"]
[4832,"INSTITUTO NACIONAL DE ENFERMEDADES RESPIRATORIAS ISMAEL COSIO VILLEGAS","HERRERA KIENGELHER ESPERANZA LOREDMY","BAJA","NULL","NULL"]
[6146,"INSTITUTO NACIONAL DE ENFERMEDADES RESPIRATORIAS ISMAEL COSIO VILLEGAS","HIGUERA IGLESIAS ANJARATH LORENA","ICM C","CF41046","IPP 2012"]
[4833,"INSTITUTO NACIONAL DE ENFERMEDADES RESPIRATORIAS ISMAEL COSIO VILLEGAS","IGLESIAS CHIESA MARIA CANDELA","BAJA","NULL","NULL"]
[4834,"INSTITUTO NACIONAL DE ENFERMEDADES RESPIRATORIAS ISMAEL COSIO VILLEGAS","JASSO VICTORIA ROGELIO","ICM D","CF50000","2006_INGRESO ANTERIOR"]
[4835,"INSTITUTO NACIONAL DE ENFERMEDADES RESPIRATORIAS ISMAEL COSIO VILLEGAS","JIMENEZ ALVAREZ LUIS ARMANDO","ICM D","CF41041","IPP 2009"]
[4836,"INSTITUTO NACIONAL DE ENFERMEDADES RESPIRATORIAS ISMAEL COSIO VILLEGAS","JUAREZ CARVAJAL ESMERALDA","ICM D","CF41041","2006_INGRESO ANTERIOR"]
[6269,"INSTITUTO NACIONAL DE ENFERMEDADES RESPIRATORIAS ISMAEL COSIO VILLEGAS","LARA LEMUS ANTONIO ROBERTO DE JESUS","ICM C","CF41046","IPP 2013"]
[4837,"INSTITUTO NACIONAL DE ENFERMEDADES RESPIRATORIAS ISMAEL COSIO VILLEGAS","LOPEZ GONZALEZ JOSE SULIVAN","ICM E","CF41042","2006_INGRESO ANTERIOR"]
[7738,"INSTITUTO NACIONAL DE ENFERMEDADES RESPIRATORIAS ISMAEL COSIO VILLEGAS","LOPEZ SANCHEZ DULCE MARIA","ICM C","CF41046","IPP 2025"]
[4838,"INSTITUTO NACIONAL DE ENFERMEDADES RESPIRATORIAS ISMAEL COSIO VILLEGAS","LUGO GOYTIA GUSTAVO","NULL","M01004","NULL"]
[7656,"INSTITUTO NACIONAL DE ENFERMEDADES RESPIRATORIAS ISMAEL COSIO VILLEGAS","LUIS GARCIA ERIKA RUBI","ICM C","CF41046","IPP 2024"]
[7131,"INSTITUTO NACIONAL DE ENFERMEDADES RESPIRATORIAS ISMAEL COSIO VILLEGAS","MALDONADO BONILLA MARIEL SOFIA","ICM C","CF41046","IPP 2018"]
[4839,"INSTITUTO NACIONAL DE ENFERMEDADES RESPIRATORIAS ISMAEL COSIO VILLEGAS","MANJARREZ ZAVALA MARIA EUGENIA","BAJA","NULL","NULL"]
[6926,"INSTITUTO NACIONAL DE ENFERMEDADES RESPIRATORIAS ISMAEL COSIO VILLEGAS","MARQUEZ  GARCIA JOSE EDUARDO","ICM B","CF41045","IPP 2016"]
[4840,"INSTITUTO NACIONAL DE ENFERMEDADES RESPIRATORIAS ISMAEL COSIO VILLEGAS","MARTINEZ BRISEÑO DAVID","ICM B","CF41045","IPP 2013"]
[4841,"INSTITUTO NACIONAL DE ENFERMEDADES RESPIRATORIAS ISMAEL COSIO VILLEGAS","MARTINEZ CORDERO ERASMO","BAJA","NULL","NULL"]
[7657,"INSTITUTO NACIONAL DE ENFERMEDADES RESPIRATORIAS ISMAEL COSIO VILLEGAS","MARTINEZ ESPINOSA ISRAEL","ICM B","CF41045","IPP 2024"]
[7654,"INSTITUTO NACIONAL DE ENFERMEDADES RESPIRATORIAS ISMAEL COSIO VILLEGAS","MARTINEZ SANCHEZ MARIANA ESTHER","ICM A","CF41044","IPP 2024"]
[6929,"INSTITUTO NACIONAL DE ENFERMEDADES RESPIRATORIAS ISMAEL COSIO VILLEGAS","MEJIA NEPOMUCENO FIDENCIO","ICM B","CF41045","IPP 2016"]
[4842,"INSTITUTO NACIONAL DE ENFERMEDADES RESPIRATORIAS ISMAEL COSIO VILLEGAS","MENDEZ GUERRA MONICA","BAJA","NULL","NULL"]
[4843,"INSTITUTO NACIONAL DE ENFERMEDADES RESPIRATORIAS ISMAEL COSIO VILLEGAS","MENDOZA MILLA CRISELDA","ICM D","CF41041","2009_INGRESO ANTERIOR"]
[4844,"INSTITUTO NACIONAL DE ENFERMEDADES RESPIRATORIAS ISMAEL COSIO VILLEGAS","MENDOZA PEREZ FELIPE","BAJA","NULL","NULL"]
[4845,"INSTITUTO NACIONAL DE ENFERMEDADES RESPIRATORIAS ISMAEL COSIO VILLEGAS","MENESES FLORES MANUEL","NO VIGENTE","CF41045","NULL"]
[4846,"INSTITUTO NACIONAL DE ENFERMEDADES RESPIRATORIAS ISMAEL COSIO VILLEGAS","MONTAÑO RAMIREZ MARTHA","BAJA","NULL","NULL"]
[7525,"INSTITUTO NACIONAL DE ENFERMEDADES RESPIRATORIAS ISMAEL COSIO VILLEGAS","MONTERO VARGAS JOSAPHAT MIGUEL","ICM C","CF41046","IPP 2022"]
[4847,"INSTITUTO NACIONAL DE ENFERMEDADES RESPIRATORIAS ISMAEL COSIO VILLEGAS","MONTES MARTINEZ EDUARDO","ICM C","CF41046","IPP 2011"]
[4848,"INSTITUTO NACIONAL DE ENFERMEDADES RESPIRATORIAS ISMAEL COSIO VILLEGAS","MONTES VIZUET AUREA ROSALIA","BAJA","NULL","NULL"]
[4849,"INSTITUTO NACIONAL DE ENFERMEDADES RESPIRATORIAS ISMAEL COSIO VILLEGAS","MOYA NUÑEZ LUZ MIREYA","BAJA","NULL","NULL"]
[6268,"INSTITUTO NACIONAL DE ENFERMEDADES RESPIRATORIAS ISMAEL COSIO VILLEGAS","MUÑOZ TORRICO MARCELA VERONICA","NULL","M01004","NULL"]
[4850,"INSTITUTO NACIONAL DE ENFERMEDADES RESPIRATORIAS ISMAEL COSIO VILLEGAS","NAVARRO GONZALEZ MARIA DEL CARMEN","ICM D","CF41041","2006_INGRESO ANTERIOR"]
[7524,"INSTITUTO NACIONAL DE ENFERMEDADES RESPIRATORIAS ISMAEL COSIO VILLEGAS","NEGREROS AMAYA MIGUEL ANGEL","NO VIGENTE","CF41046","NULL"]
[4851,"INSTITUTO NACIONAL DE ENFERMEDADES RESPIRATORIAS ISMAEL COSIO VILLEGAS","NEGRETE GARCIA MARIA CRISTINA","ICM C","CF41046","2009_INGRESO ANTERIOR"]
[6558,"INSTITUTO NACIONAL DE ENFERMEDADES RESPIRATORIAS ISMAEL COSIO VILLEGAS","OCAÑA GUZMAN AQUILES RANFERI","ICM B","CF41045","IPP 2016"]
[7379,"INSTITUTO NACIONAL DE ENFERMEDADES RESPIRATORIAS ISMAEL COSIO VILLEGAS","OCTAVIO GAMALIEL AZTATZI AGUILAR","BAJA","NULL","NULL"]
[4852,"INSTITUTO NACIONAL DE ENFERMEDADES RESPIRATORIAS ISMAEL COSIO VILLEGAS","OLMOS ZUÑIGA JUAN RAUL","ICM D","CF41041","2006_INGRESO ANTERIOR"]
[5072,"INSTITUTO NACIONAL DE ENFERMEDADES RESPIRATORIAS ISMAEL COSIO VILLEGAS","OREA TEJEDA JOSE ISIDRO ARTURO","NO VIGENTE","CF41013","NULL"]
[4853,"INSTITUTO NACIONAL DE ENFERMEDADES RESPIRATORIAS ISMAEL COSIO VILLEGAS","ORMSBY JENKINS CHRISTOPHER EDWARD","BAJA","NULL","NULL"]
[4854,"INSTITUTO NACIONAL DE ENFERMEDADES RESPIRATORIAS ISMAEL COSIO VILLEGAS","ORTIZ QUINTERO BLANCA","ICM E","CF50000","2009_INGRESO ANTERIOR"]
[7658,"INSTITUTO NACIONAL DE ENFERMEDADES RESPIRATORIAS ISMAEL COSIO VILLEGAS","PALACIOS ARREOLA MARGARITA ISABEL","ICM C","CF50000","IPP 2024"]
[4855,"INSTITUTO NACIONAL DE ENFERMEDADES RESPIRATORIAS ISMAEL COSIO VILLEGAS","PALMA CORTES GABRIEL","ICM A ","CF41044","IPP 2023"]
[4856,"INSTITUTO NACIONAL DE ENFERMEDADES RESPIRATORIAS ISMAEL COSIO VILLEGAS","PARAMO RAMIREZ JOSE IGNACIO","BAJA","NULL","NULL"]
[7020,"INSTITUTO NACIONAL DE ENFERMEDADES RESPIRATORIAS ISMAEL COSIO VILLEGAS","PAZ GOMEZ DANIEL ","NULL","M02001","NULL"]
[7530,"INSTITUTO NACIONAL DE ENFERMEDADES RESPIRATORIAS ISMAEL COSIO VILLEGAS","PERALTA ARRIETA IRLANDA","ICM C","CF41046","IPP 2022"]
[4857,"INSTITUTO NACIONAL DE ENFERMEDADES RESPIRATORIAS ISMAEL COSIO VILLEGAS","PEREZ PADILLA JOSE ROGELIO","EMERITO","CF41043","2006_INGRESO ANTERIOR"]
[6931,"INSTITUTO NACIONAL DE ENFERMEDADES RESPIRATORIAS ISMAEL COSIO VILLEGAS","PEREZ RUBIO GLORIA","ICM C","CF41046","IPP 2016"]
[6413,"INSTITUTO NACIONAL DE ENFERMEDADES RESPIRATORIAS ISMAEL COSIO VILLEGAS","PINTO CARDOSO SANDRA MARIA","ICM D","CF41041","IPP 2014"]
[4858,"INSTITUTO NACIONAL DE ENFERMEDADES RESPIRATORIAS ISMAEL COSIO VILLEGAS","PRADO GARCIA HERIBERTO","ICM D","CF41041","2010_INGRESO ANTERIOR"]
[4859,"INSTITUTO NACIONAL DE ENFERMEDADES RESPIRATORIAS ISMAEL COSIO VILLEGAS","RAMIREZ MARTINEZ GUSTAVO","ICM C","CF41046","IPP 2009"]
[6380,"INSTITUTO NACIONAL DE ENFERMEDADES RESPIRATORIAS ISMAEL COSIO VILLEGAS","RAMIREZ VENEGAS ALEJANDRA","BAJA","NULL","NULL"]
[6270,"INSTITUTO NACIONAL DE ENFERMEDADES RESPIRATORIAS ISMAEL COSIO VILLEGAS","RAMON LUING LUCERO DE LOS ANGELES ","ICM C","CF41046","IPP 2013"]
[4860,"INSTITUTO NACIONAL DE ENFERMEDADES RESPIRATORIAS ISMAEL COSIO VILLEGAS","RAMOS ABRAHAM CARLOS","BAJA","NULL","NULL"]
[7660,"INSTITUTO NACIONAL DE ENFERMEDADES RESPIRATORIAS ISMAEL COSIO VILLEGAS","REGINO ZAMARRIPA NORA ELEMI","ICM C","CF41046","IPP 2024"]
[4862,"INSTITUTO NACIONAL DE ENFERMEDADES RESPIRATORIAS ISMAEL COSIO VILLEGAS","RIVAS FUENTES SELMA CELINA","ICM C","CF41046","IPP 2010"]
[7021,"INSTITUTO NACIONAL DE ENFERMEDADES RESPIRATORIAS ISMAEL COSIO VILLEGAS","ROJAS SERRANO JORGE","NULL","M01011","NULL"]
[4863,"INSTITUTO NACIONAL DE ENFERMEDADES RESPIRATORIAS ISMAEL COSIO VILLEGAS","ROMERO GARCIA AIDA SUSANA","BAJA","NULL","NULL"]
[6561,"INSTITUTO NACIONAL DE ENFERMEDADES RESPIRATORIAS ISMAEL COSIO VILLEGAS","ROMERO RODRIGUEZ DAMARIS PRISCILA","ICM B","CF41045","IPP 2015"]
[7655,"INSTITUTO NACIONAL DE ENFERMEDADES RESPIRATORIAS ISMAEL COSIO VILLEGAS","ROSAS GARCIA JORGE","ICM C","CF41046","IPP 2024"]
[4864,"INSTITUTO NACIONAL DE ENFERMEDADES RESPIRATORIAS ISMAEL COSIO VILLEGAS","ROSETE OLVERA DORA PATRICIA","ICM A","CF41044","IPP 2025"]
[7527,"INSTITUTO NACIONAL DE ENFERMEDADES RESPIRATORIAS ISMAEL COSIO VILLEGAS","RUIZ HUERTA ANDY DOREY","ICM B","CF41045","IPP 2022"]
[4865,"INSTITUTO NACIONAL DE ENFERMEDADES RESPIRATORIAS ISMAEL COSIO VILLEGAS","RUIZ LOPEZ VICTOR MANUEL","ICM D","CF41041","2009_INGRESO ANTERIOR"]
[4866,"INSTITUTO NACIONAL DE ENFERMEDADES RESPIRATORIAS ISMAEL COSIO VILLEGAS","SADA DIAZ EDUARDO","BAJA","NULL","NULL"]
[4867,"INSTITUTO NACIONAL DE ENFERMEDADES RESPIRATORIAS ISMAEL COSIO VILLEGAS","SADA OVALLE MARIA ISABEL","BAJA","NULL","NULL"]
[4868,"INSTITUTO NACIONAL DE ENFERMEDADES RESPIRATORIAS ISMAEL COSIO VILLEGAS","SALGADO AGUAYO ALFONSO RAFAEL","ICM C","CF41046","IPP 2015"]
[4869,"INSTITUTO NACIONAL DE ENFERMEDADES RESPIRATORIAS ISMAEL COSIO VILLEGAS","SANSORES MARTINEZ RAUL HUMBERTO","BAJA","NULL","NULL"]
[4870,"INSTITUTO NACIONAL DE ENFERMEDADES RESPIRATORIAS ISMAEL COSIO VILLEGAS","SANTIAGO CRUZ JULIO RAUL","ICM A","CF41044","IPP 2017"]
[7382,"INSTITUTO NACIONAL DE ENFERMEDADES RESPIRATORIAS ISMAEL COSIO VILLEGAS","SANTIAGO DEL ANGEL ELIZABETH","ICM B","CF41045","IPP 2020"]
[6987,"INSTITUTO NACIONAL DE ENFERMEDADES RESPIRATORIAS ISMAEL COSIO VILLEGAS","SANTILLAN DOHERTY PATRICIO JAVIER","NULL","M01011","NULL"]
[4871,"INSTITUTO NACIONAL DE ENFERMEDADES RESPIRATORIAS ISMAEL COSIO VILLEGAS","SANTOS MENDOZA MARIA TERESA","ICM C","CF41046","IPP 2020"]
[4872,"INSTITUTO NACIONAL DE ENFERMEDADES RESPIRATORIAS ISMAEL COSIO VILLEGAS","SEGURA MEDINA PATRICIA","ICM E","CF50000","2006_INGRESO ANTERIOR"]
[4873,"INSTITUTO NACIONAL DE ENFERMEDADES RESPIRATORIAS ISMAEL COSIO VILLEGAS","SELMAN LAMA MOISES EDUARDO","EMERITO","CF41043","2006_INGRESO ANTERIOR"]
[4874,"INSTITUTO NACIONAL DE ENFERMEDADES RESPIRATORIAS ISMAEL COSIO VILLEGAS","SERRATO PEREZ JOSE ANTONIO ","ICM B","CF41045","IPP 2022"]
[4875,"INSTITUTO NACIONAL DE ENFERMEDADES RESPIRATORIAS ISMAEL COSIO VILLEGAS","SEVILLA REYES EDGAR ENRIQUE","ICM D","CF41041","IPP 2010"]
[4876,"INSTITUTO NACIONAL DE ENFERMEDADES RESPIRATORIAS ISMAEL COSIO VILLEGAS","SIERRA VARGAS MARTHA PATRICIA","ICM D","CF41041","2009_INGRESO ANTERIOR"]
[7528,"INSTITUTO NACIONAL DE ENFERMEDADES RESPIRATORIAS ISMAEL COSIO VILLEGAS","SILVA MARTINEZ MARIANA","ICM B","CF41045","IPP 2022"]
[4877,"INSTITUTO NACIONAL DE ENFERMEDADES RESPIRATORIAS ISMAEL COSIO VILLEGAS","SOMMER CERVANTES MARIA EUGENIA BETINA","ICM C","CF41046","2009_INGRESO ANTERIOR"]
[7661,"INSTITUTO NACIONAL DE ENFERMEDADES RESPIRATORIAS ISMAEL COSIO VILLEGAS","SOTO NAVA MARIBEL","ICM C","CF41046","IPP 2024"]
[4878,"INSTITUTO NACIONAL DE ENFERMEDADES RESPIRATORIAS ISMAEL COSIO VILLEGAS","SOTRES VEGA AVELINA","BAJA","NULL","NULL"]
[4879,"INSTITUTO NACIONAL DE ENFERMEDADES RESPIRATORIAS ISMAEL COSIO VILLEGAS","TERAN JUAREZ LUIS MANUEL","ICM F","CF50000","2006_INGRESO ANTERIOR"]
[6379,"INSTITUTO NACIONAL DE ENFERMEDADES RESPIRATORIAS ISMAEL COSIO VILLEGAS","TORRE BOUSCOULET LUIS","BAJA","NULL","NULL"]
[4880,"INSTITUTO NACIONAL DE ENFERMEDADES RESPIRATORIAS ISMAEL COSIO VILLEGAS","TORRES HERNANDEZ KLINTSY JULIETA","NO VIGENTE","CF41046","NULL"]
[7378,"INSTITUTO NACIONAL DE ENFERMEDADES RESPIRATORIAS ISMAEL COSIO VILLEGAS","TORRES MACHORRO ANA LILIA","ICM C","CF41046","IPP 2020"]
[4881,"INSTITUTO NACIONAL DE ENFERMEDADES RESPIRATORIAS ISMAEL COSIO VILLEGAS","TORRES ROJAS MARTHA","ICM F","CFN3101909","2006_INGRESO ANTERIOR"]
[7659,"INSTITUTO NACIONAL DE ENFERMEDADES RESPIRATORIAS ISMAEL COSIO VILLEGAS","TOSCANO MARQUEZ MARIA FERNANDA","ICM A","CF41044","IPP 2024"]
[4882,"INSTITUTO NACIONAL DE ENFERMEDADES RESPIRATORIAS ISMAEL COSIO VILLEGAS","URREA RAMIREZ FRANCISCO JAVIER","BAJA","NULL","NULL"]
[6145,"INSTITUTO NACIONAL DE ENFERMEDADES RESPIRATORIAS ISMAEL COSIO VILLEGAS","VALENZUELA PONCE JOSE HUMBERTO","ICM C","CF41046","IPP 2012"]
[4883,"INSTITUTO NACIONAL DE ENFERMEDADES RESPIRATORIAS ISMAEL COSIO VILLEGAS","VARGAS BECERRA MARIO HUMBERTO","ICM E","CF41042","2006_INGRESO ANTERIOR"]
[4884,"INSTITUTO NACIONAL DE ENFERMEDADES RESPIRATORIAS ISMAEL COSIO VILLEGAS","VARGAS DOMINGUEZ CLAUDIA ISABEL ARIADNA","BAJA","NULL","NULL"]
[4885,"INSTITUTO NACIONAL DE ENFERMEDADES RESPIRATORIAS ISMAEL COSIO VILLEGAS","VARGAS ROJAS MARIA INES","NO VIGENTE","CF41046","NULL"]
[4886,"INSTITUTO NACIONAL DE ENFERMEDADES RESPIRATORIAS ISMAEL COSIO VILLEGAS","VAZQUEZ PEREZ JOEL ARMANDO","ICM E","CF41042","2009_INGRESO ANTERIOR"]
[4887,"INSTITUTO NACIONAL DE ENFERMEDADES RESPIRATORIAS ISMAEL COSIO VILLEGAS","VEGA MIRANDA ANITA","ICM A","CF41044","2009_INGRESO ANTERIOR"]
[4888,"INSTITUTO NACIONAL DE ENFERMEDADES RESPIRATORIAS ISMAEL COSIO VILLEGAS","VELAZQUEZ GONZALEZ MARIA ANGELICA","BAJA","NULL","NULL"]
[4889,"INSTITUTO NACIONAL DE ENFERMEDADES RESPIRATORIAS ISMAEL COSIO VILLEGAS","VELAZQUEZ RODRIGUEZ JUAN RAYMUNDO","BAJA","NULL","NULL"]
[7019,"INSTITUTO NACIONAL DE ENFERMEDADES RESPIRATORIAS ISMAEL COSIO VILLEGAS","VELLORE SURESH KUMAR  PRIYADHARSHINI","BAJA","NULL","NULL"]
[7739,"INSTITUTO NACIONAL DE ENFERMEDADES RESPIRATORIAS ISMAEL COSIO VILLEGAS","VIETTRI PINTO MERCEDES ISABEL","ICM C","CF41046","IPP 2025"]
[4890,"INSTITUTO NACIONAL DE ENFERMEDADES RESPIRATORIAS ISMAEL COSIO VILLEGAS","VILLALBA CALOCA JAIME","BAJA","NULL","NULL"]
[7526,"INSTITUTO NACIONAL DE ENFERMEDADES RESPIRATORIAS ISMAEL COSIO VILLEGAS","VIZUET DE RUEDA JUAN CARLOS","ICM C","CF41046","IPP 2022"]
[7531,"INSTITUTO NACIONAL DE ENFERMEDADES RESPIRATORIAS ISMAEL COSIO VILLEGAS","ZAMUDIO MEZA HORACIO","ICM C","CF41046","IPP 2023"]
[4891,"INSTITUTO NACIONAL DE ENFERMEDADES RESPIRATORIAS ISMAEL COSIO VILLEGAS","ZUÑIGA RAMOS JOAQUIN ALEJANDRO","ICM F","CFM2101048","2006_INGRESO ANTERIOR"]
[6417,"INSTITUTO NACIONAL DE GERIATRIA","AGUDELO BOTERO MARCELA","BAJA","NULL","NULL"]
[7025,"INSTITUTO NACIONAL DE GERIATRIA","ALVAREZ CISNEROS TERESA","ICM B","CF41045","IPP 2018"]
[6349,"INSTITUTO NACIONAL DE GERIATRIA","ARANGO LOPERA VICTORIA EUGENIA","BAJA","NULL","NULL"]
[6286,"INSTITUTO NACIONAL DE GERIATRIA","ARRIETA CRUZ ISABEL","ICM E","CF41042","IPP 2013"]
[5392,"INSTITUTO NACIONAL DE GERIATRIA","ARROYO ACEVEDO PEDRO","BAJA","NULL","NULL"]
[7026,"INSTITUTO NACIONAL DE GERIATRIA","AVILA GUTIERREZ LIZETH","ICM A","CFO2156503","IPP 2017"]
[7484,"INSTITUTO NACIONAL DE GERIATRIA","BELLO CHAVOLLA OMAR YAXMEHEN","ICM D","CF41041","IPP 2021"]
[7023,"INSTITUTO NACIONAL DE GERIATRIA","CARRILLO VEGA MARIA FERNANDA","ICM D","CF41041","IPP 2017"]
[7262,"INSTITUTO NACIONAL DE GERIATRIA","CASTILLO ARELLANO JORGE IVAN","BAJA","NULL","NULL"]
[5393,"INSTITUTO NACIONAL DE GERIATRIA","CASTREJON PEREZ ROBERTO CARLOS","BAJA","NULL","NULL"]
[7265,"INSTITUTO NACIONAL DE GERIATRIA","DE LA TORRE ROSAS ALETHSE","BAJA","NULL","NULL"]
[7662,"INSTITUTO NACIONAL DE GERIATRIA","FLORES VAZQUEZ JUAN FRANCISCO","ICM C","CF41046","IPP 2024"]
[5394,"INSTITUTO NACIONAL DE GERIATRIA","FOSSION RUBEN YVAN MAARTEN","BAJA","NULL","NULL"]
[7586,"INSTITUTO NACIONAL DE GERIATRIA","GARCIA CHANES ROSA ESTELA","ICM C","CF41046","IPP 2023"]
[7741,"INSTITUTO NACIONAL DE GERIATRIA","GARCIA HERNANDEZ HECTOR","ICM B","CFO2156503","IPP 2025"]
[6781,"INSTITUTO NACIONAL DE GERIATRIA","GARCIA PEÑA MARIA DEL CARMEN","ICM F","CFK2159155","IPP 2015"]
[5395,"INSTITUTO NACIONAL DE GERIATRIA","GIRALDO RODRIGUEZ MARTHA LILIANA","ICM D","CF41041","IPP 2011"]
[7134,"INSTITUTO NACIONAL DE GERIATRIA","GOMEZ VERJAN JUAN CARLOS","ICM D","CF41041","IPP 2018"]
[7132,"INSTITUTO NACIONAL DE GERIATRIA","GONZALEZ  MELJEM JOSE MARIO","BAJA","NULL","NULL"]
[5396,"INSTITUTO NACIONAL DE GERIATRIA","GONZALEZ GONZALEZ CESAR ALFREDO","BAJA","NULL","NULL"]
[6442,"INSTITUTO NACIONAL DE GERIATRIA","GUTIERREZ ROBLEDO LUIS MIGUEL FRANCISCO","ICM E","CF41042","IPP 2015"]
[7263,"INSTITUTO NACIONAL DE GERIATRIA","HERNANDEZ ORTEGA KARINA ","BAJA","NULL","NULL"]
[7532,"INSTITUTO NACIONAL DE GERIATRIA","KAMMAR GARCIA ASHUIN","ICM C","CF41046","IPP 2022"]
[7742,"INSTITUTO NACIONAL DE GERIATRIA","LOPEZ CISNEROS SONIA","NULL","M02049","NULL"]
[5397,"INSTITUTO NACIONAL DE GERIATRIA","LOPEZ ORTEGA MARIANA","ICM D","CF41041","IPP 2014"]
[5398,"INSTITUTO NACIONAL DE GERIATRIA","LUNA LOPEZ ARMANDO","ICM E","CF41042","IPP 2009"]
[6934,"INSTITUTO NACIONAL DE GERIATRIA","MARTINEZ RUIZ ADRIAN","BAJA","NULL","NULL"]
[6433,"INSTITUTO NACIONAL DE GERIATRIA","MEDINA CAMPOS RAUL HERNAN","ICM C","CFM215650","IPP 2016"]
[6418,"INSTITUTO NACIONAL DE GERIATRIA","MENDOZA GARCES LUCIANO","ICM C","CF41046","IPP 2014"]
[5399,"INSTITUTO NACIONAL DE GERIATRIA","MICHAN AGUIRRE SHADAY","BAJA","NULL","NULL"]
[5400,"INSTITUTO NACIONAL DE GERIATRIA","MINO LEON DOLORES","BAJA","NULL","NULL"]
[5401,"INSTITUTO NACIONAL DE GERIATRIA","NANCE DOUGLAS CRITTENDEN","BAJA","NULL","NULL"]
[6935,"INSTITUTO NACIONAL DE GERIATRIA","PARRA RODRIGUEZ LORENA","ICM D","CF41041","IPP 2016"]
[5402,"INSTITUTO NACIONAL DE GERIATRIA","PEREZ ZEPEDA MARIO ULISES","ICM D","CF41041","IPP 2011"]
[5403,"INSTITUTO NACIONAL DE GERIATRIA","QUIROZ BAEZ RICARDO DAVID","ICM C","CF41046","IPP 2020"]
[7133,"INSTITUTO NACIONAL DE GERIATRIA","RAMIREZ ALDANA RICARDO","BAJA","NULL","NULL"]
[7264,"INSTITUTO NACIONAL DE GERIATRIA","RIVERO SEGURA NADIA ALEJANDRA","ICM C","CF41046","IPP 2020"]
[7024,"INSTITUTO NACIONAL DE GERIATRIA","ROA ROJAS PALOMA ARLET","ICM C","CF41046","IPP 2017"]
[5404,"INSTITUTO NACIONAL DE GERIATRIA","ROJAS MAYORQUIN ARGELIA ESPERANZA","BAJA","NULL","NULL"]
[5405,"INSTITUTO NACIONAL DE GERIATRIA","ROSAS CARRASCO OSCAR","BAJA","NULL","NULL"]
[7743,"INSTITUTO NACIONAL DE GERIATRIA","SANCHEZ GARRIDO NATALIA","NULL","M01010","NULL"]
[7261,"INSTITUTO NACIONAL DE GERIATRIA","SILVA PALACIO ALEJANDRO","BAJA","NULL","NULL"]
[7022,"INSTITUTO NACIONAL DE GERIATRIA","TELLA VEGA PAMELA","ICM B","CFN1156502","IPP 2017"]
[5407,"INSTITUTO NACIONAL DE GERIATRIA","TORRES CARRILLO NORA MAGDALENA","BAJA","NULL","NULL"]
[5406,"INSTITUTO NACIONAL DE GERIATRIA","TORRES CASTRO SARA","ICM B","CF41045","IPP 2011"]
[7393,"INSTITUTO NACIONAL DE MEDICINA GENOMICA","ABRAHANTES PEREZ MARIA DEL CARMEN","BAJA","NULL","NULL"]
[6287,"INSTITUTO NACIONAL DE MEDICINA GENOMICA","ACOSTA RODRIGUEZ JOSE LUIS","BAJA","NULL","NULL"]
[5219,"INSTITUTO NACIONAL DE MEDICINA GENOMICA","AGUILAR DELFIN IRMA","BAJA","NULL","NULL"]
[7592,"INSTITUTO NACIONAL DE MEDICINA GENOMICA","AGUILAR ORDOÑEZ ISRAEL","BAJA","NULL","NULL"]
[6515,"INSTITUTO NACIONAL DE MEDICINA GENOMICA","ALAEZ VERSON CARMEN","ICM C","CF51000","IPP 2015"]
[5220,"INSTITUTO NACIONAL DE MEDICINA GENOMICA","ANTUNA PUENTE BARBARA PATRICIA","BAJA","NULL","NULL"]
[6291,"INSTITUTO NACIONAL DE MEDICINA GENOMICA","APARICIO BAUTISTA DIANA IVETTE","ICM C","CF41046","IPP 2014"]
[7394,"INSTITUTO NACIONAL DE MEDICINA GENOMICA","ARELLANES ROBLEDO JAIME","NULL","NULL","NULL"]
[5221,"INSTITUTO NACIONAL DE MEDICINA GENOMICA","ARELLANO MENDEZ ALBERTO","BAJA","NULL","NULL"]
[6939,"INSTITUTO NACIONAL DE MEDICINA GENOMICA","AVENDAÑO VAZQUEZ SELMA ERENDIRA ","ICM D","CF41041","IPP 2016"]
[7029,"INSTITUTO NACIONAL DE MEDICINA GENOMICA","BARAJAS OLMOS FRANCISCO MARTIN","ICM C","CF41046","IPP 2017"]
[4980,"INSTITUTO NACIONAL DE MEDICINA GENOMICA","CANIZALES QUINTEROS SAMUEL","NULL","NULL","NULL"]
[7744,"INSTITUTO NACIONAL DE MEDICINA GENOMICA","CANSECO MENDEZ JULIO CESAR","ICM A","CF41044","IPP 2025"]
[5222,"INSTITUTO NACIONAL DE MEDICINA GENOMICA","CARNEVALE CANTONI ALESSANDRA","EMERITO","CF41043","2006_INGRESO ANTERIOR"]
[6398,"INSTITUTO NACIONAL DE MEDICINA GENOMICA","CARRILLO SANCHEZ KAROL","ICM A","CF41044","IPP 2014"]
[5223,"INSTITUTO NACIONAL DE MEDICINA GENOMICA","CASTELLANOS TAPIA LYSSIA","ICM A","CF41044","IPP 2009"]
[7135,"INSTITUTO NACIONAL DE MEDICINA GENOMICA","CASTRO MARTINEZ XOCHITL HELGA","ICM C","CF41046","IPP 2018"]
[5224,"INSTITUTO NACIONAL DE MEDICINA GENOMICA","CEBALLOS CANCINO GISELA","ICM C","CF41046","2009_INGRESO ANTERIOR"]
[7498,"INSTITUTO NACIONAL DE MEDICINA GENOMICA","CEDRO TANDA ALBERTO","ICM C","CF41046","IPP 2021"]
[5225,"INSTITUTO NACIONAL DE MEDICINA GENOMICA","CENTENO CRUZ FEDERICO","ICM C","CF41046","IPP 2009"]
[7587,"INSTITUTO NACIONAL DE MEDICINA GENOMICA","CERVERA TABOADA ALEJANDRA","ICM C ","CFN0032","IPP 2023"]
[7390,"INSTITUTO NACIONAL DE MEDICINA GENOMICA","CID SOTO MIGUEL ANGEL","BAJA","NULL","NULL"]
[5226,"INSTITUTO NACIONAL DE MEDICINA GENOMICA","CONTRERAS ALEJANDRA VIRGINIA","BAJA","NULL","NULL"]
[6383,"INSTITUTO NACIONAL DE MEDICINA GENOMICA","CONTRERAS CUBAS CECILIA","ICM C","CF41046","IPP 2014"]
[5227,"INSTITUTO NACIONAL DE MEDICINA GENOMICA","CORDOVA ALARCON EMILIO JOAQUIN","ICM E","CFM0023","2009_INGRESO ANTERIOR"]
[7136,"INSTITUTO NACIONAL DE MEDICINA GENOMICA","CRUZ RANGEL ARMANDO","ICM B","CF41045","IPP 2022"]
[7137,"INSTITUTO NACIONAL DE MEDICINA GENOMICA","CUEVAS CORDOBA BETZAIDA","BAJA","NULL","NULL"]
[7395,"INSTITUTO NACIONAL DE MEDICINA GENOMICA","DE ANDA JAUREGUI GUILLERMO ","NULL","NULL","NULL"]
[5228,"INSTITUTO NACIONAL DE MEDICINA GENOMICA","DEL BOSQUE PLATA LAURA","ICM D","CF41041","IPP 2017"]
[5229,"INSTITUTO NACIONAL DE MEDICINA GENOMICA","DEL POZO YAUNER LUIS","BAJA","NULL","NULL"]
[6942,"INSTITUTO NACIONAL DE MEDICINA GENOMICA","DIENER, CHRISTIAN","BAJA","NULL","NULL"]
[7138,"INSTITUTO NACIONAL DE MEDICINA GENOMICA","DOMINGUEZ PEREZ MAYRA","ICM C","CF41046","IPP 2019"]
[6514,"INSTITUTO NACIONAL DE MEDICINA GENOMICA","ESPINAL ENRIQUEZ JESUS","ICM D","CF41041","IPP 2015"]
[5230,"INSTITUTO NACIONAL DE MEDICINA GENOMICA","ESPINOSA CASTILLA MAGALI","ICM D","CF41041","2009_INGRESO ANTERIOR"]
[7139,"INSTITUTO NACIONAL DE MEDICINA GENOMICA","FERNANDEZ FIGUEROA EDITH ARACELI","ICM C","CF41046","IPP 2018"]
[5231,"INSTITUTO NACIONAL DE MEDICINA GENOMICA","FERNANDEZ LOPEZ JUAN CARLOS","ICM C","CF41046","IPP 2010"]
[7027,"INSTITUTO NACIONAL DE MEDICINA GENOMICA","FLORES JASSO CARLOS FABIAN ","ICM C","CF41046","IPP 2020"]
[7391,"INSTITUTO NACIONAL DE MEDICINA GENOMICA","FLORES MORALES JENY","A ICM C","CF41049","IPP 2025"]
[7140,"INSTITUTO NACIONAL DE MEDICINA GENOMICA","FRESNO RODRIGUEZ CRISTOBAL","BAJA","NULL","NULL"]
[7663,"INSTITUTO NACIONAL DE MEDICINA GENOMICA","FRIAS JIMENEZ JESUS EMMANUEL ","ICM B","CF51000","IPP 2024"]
[6292,"INSTITUTO NACIONAL DE MEDICINA GENOMICA","GALICIA CANALES NORMA ANGELICA","BAJA","NULL","NULL"]
[6516,"INSTITUTO NACIONAL DE MEDICINA GENOMICA","GARCIA NARANJO URZAIZ GUILLERMO","BAJA","NULL","NULL"]
[6288,"INSTITUTO NACIONAL DE MEDICINA GENOMICA","GARCIA ORTIZ HUMBERTO","ICM D","CF41041","IPP 2013"]
[6385,"INSTITUTO NACIONAL DE MEDICINA GENOMICA","GARCIA VENCES EDNA ELISA","BAJA","NULL","NULL"]
[7591,"INSTITUTO NACIONAL DE MEDICINA GENOMICA","GARNICA LOPEZ DORA LUISA","BAJA","NULL","NULL"]
[7386,"INSTITUTO NACIONAL DE MEDICINA GENOMICA","GOMEZ ROMERO LAURA LUCILA","ICM C","CFN0032","IPP 2020"]
[6289,"INSTITUTO NACIONAL DE MEDICINA GENOMICA","GONZALEZ ANDRADE MARTIN","BAJA","NULL","NULL"]
[6384,"INSTITUTO NACIONAL DE MEDICINA GENOMICA","GONZALEZ COVARRUBIAS MIRELLE VANESSA","ICM D","CF41041","IPP 2014"]
[7588,"INSTITUTO NACIONAL DE MEDICINA GENOMICA","GONZALEZ GARRIDO ANTONIA","BAJA","NULL","NULL"]
[7497,"INSTITUTO NACIONAL DE MEDICINA GENOMICA","GUTIERREZ GONZALEZ HUMBERTO","ICM D","CF41041","IPP 2021"]
[5232,"INSTITUTO NACIONAL DE MEDICINA GENOMICA","GUTIERREZ NAJERA NORA ANDREA","ICM C","CF41046","IPP 2013"]
[7141,"INSTITUTO NACIONAL DE MEDICINA GENOMICA","HAASE HERNANDEZ JOSHUA ISMAEL ","BAJA","NULL","NULL"]
[5233,"INSTITUTO NACIONAL DE MEDICINA GENOMICA","HERNANDEZ LEMUS ENRIQUE","ICM F","CF41043","IPP 2009"]
[4321,"INSTITUTO NACIONAL DE MEDICINA GENOMICA","HERRERA MONTALVO LUIS ALONSO","BAJA","NULL","NULL"]
[5234,"INSTITUTO NACIONAL DE MEDICINA GENOMICA","HIDALGO MIRANDA ALFREDO","ICM F","CF41043","2006_INGRESO ANTERIOR"]
[6989,"INSTITUTO NACIONAL DE MEDICINA GENOMICA","ISLAS ANDRADE SERGIO","BAJA","NULL","NULL"]
[6293,"INSTITUTO NACIONAL DE MEDICINA GENOMICA","JACOBO ALBAVERA LEONOR","ICM D","CF41041","IPP 2013"]
[5235,"INSTITUTO NACIONAL DE MEDICINA GENOMICA","JIMENEZ MORALES SILVIA","ICM E","CF41042","2009_INGRESO ANTERIOR"]
[7387,"INSTITUTO NACIONAL DE MEDICINA GENOMICA","LEON REYES GUADALUPE","ICM C","CF41046","IPP 2020"]
[5255,"INSTITUTO NACIONAL DE MEDICINA GENOMICA","LIZARRAGA SANCHEZ FLORIA JOSEFINA","ICM C","CF41046","IPP 2013"]
[6290,"INSTITUTO NACIONAL DE MEDICINA GENOMICA","LOPEZ CONTRERAS BLANCA ESTELA","ICM B","CF41045","IPP 2013"]
[6255,"INSTITUTO NACIONAL DE MEDICINA GENOMICA","MALDONADO LAGUNAS VILMA ARACELI","ICM E","CF41042","2009_INGRESO ANTERIOR"]
[5236,"INSTITUTO NACIONAL DE MEDICINA GENOMICA","MARTINEZ HERNANDEZ ANGELICA GRACIELA","ICM D","CF41041","2009_INGRESO ANTERIOR"]
[6940,"INSTITUTO NACIONAL DE MEDICINA GENOMICA","MARTINEZ MARTINEZ EDUARDO","ICM D","CF41041","IPP 2016"]
[6512,"INSTITUTO NACIONAL DE MEDICINA GENOMICA","MATA ROCHA MINERVA","BAJA","NULL","NULL"]
[7593,"INSTITUTO NACIONAL DE MEDICINA GENOMICA","MEJIA ARANGURE JUAN MANUEL","ICM E","CF41042","IPP 2023"]
[5237,"INSTITUTO NACIONAL DE MEDICINA GENOMICA","MELENDEZ ZAJGLA JORGE","ICM F","CFK0022","2009_INGRESO ANTERIOR"]
[7398,"INSTITUTO NACIONAL DE MEDICINA GENOMICA","MENDOZA CAAMAL ELVIA CRISTINA","NULL","M01011","NULL"]
[5258,"INSTITUTO NACIONAL DE MEDICINA GENOMICA","MENDOZA VARGAS ALFREDO","ICM B","CFN0032","IPP 2016"]
[5238,"INSTITUTO NACIONAL DE MEDICINA GENOMICA","MERCADO CELIS GABRIELA ELISA","BAJA","NULL","NULL"]
[5239,"INSTITUTO NACIONAL DE MEDICINA GENOMICA","MIRANDA ORTIZ HAYDEE","ICM A","CF51000","IPP 2017"]
[6938,"INSTITUTO NACIONAL DE MEDICINA GENOMICA","MOJICA ESPINOSA RAUL ","BAJA","NULL","NULL"]
[7496,"INSTITUTO NACIONAL DE MEDICINA GENOMICA","MOLINA GARAY CAROLINA","ICM C","CF41046","IPP 2021"]
[6517,"INSTITUTO NACIONAL DE MEDICINA GENOMICA","MORALES MARIN MIRNA EDITH","ICM C","CF41046","IPP 2015"]
[7396,"INSTITUTO NACIONAL DE MEDICINA GENOMICA","MORAN RAMOS SOFIA","NULL","NULL","NULL"]
[6388,"INSTITUTO NACIONAL DE MEDICINA GENOMICA","MORETT SANCHEZ JUAN ENRIQUE","BAJA","NULL","NULL"]
[7032,"INSTITUTO NACIONAL DE MEDICINA GENOMICA","MUÑOZ RIVAS ANALLELY","ICM B","CF51000","IPP 2017"]
[5411,"INSTITUTO NACIONAL DE MEDICINA GENOMICA","NICOLINI SANCHEZ JOSE HUMBERTO","ICM F","CF41043","2010_INGRESO ANTERIOR"]
[5256,"INSTITUTO NACIONAL DE MEDICINA GENOMICA","OCHOA LEYVA ADRIAN ","BAJA","NULL","NULL"]
[5253,"INSTITUTO NACIONAL DE MEDICINA GENOMICA","OLIVA SANCHEZ PABLO FRANCISCO","BAJA","NULL","NULL"]
[7594,"INSTITUTO NACIONAL DE MEDICINA GENOMICA","OLVERA ACOSTA RICARDO BENJAMIN","NO VIGENTE","CFN0032","NULL"]
[7590,"INSTITUTO NACIONAL DE MEDICINA GENOMICA","OROZCO FLORES DIEGO","NO VIGENTE","CF51000","NULL"]
[5240,"INSTITUTO NACIONAL DE MEDICINA GENOMICA","OROZCO OROZCO LORENA SOFIA","ICM F","CF41043","2006_INGRESO ANTERIOR"]
[7028,"INSTITUTO NACIONAL DE MEDICINA GENOMICA","OROZCO SOLIS DAVID RICARDO","ICM C","CF41046","IPP 2017"]
[6386,"INSTITUTO NACIONAL DE MEDICINA GENOMICA","PALACIOS GONZALEZ BERENICE","ICM D","CF41041","IPP 2014"]
[6271,"INSTITUTO NACIONAL DE MEDICINA GENOMICA","PATIÑO URIOSTEGUI LINDA NELLY","ICM B","CF41045","IPP 2011"]
[7589,"INSTITUTO NACIONAL DE MEDICINA GENOMICA","PEREZ CALIXTO DANIEL","ICM A","CF41044","IPP 2024"]
[5241,"INSTITUTO NACIONAL DE MEDICINA GENOMICA","PEREZ CARREON JULIO ISAEL","ICM E","CF41042","IPP 2009"]
[5259,"INSTITUTO NACIONAL DE MEDICINA GENOMICA","QUINTANAR JURADO VALERIA","BAJA","NULL","NULL"]
[7397,"INSTITUTO NACIONAL DE MEDICINA GENOMICA","RAMIREZ  SALAZAR ERIC GUSTAVO","BAJA","NULL","NULL"]
[7392,"INSTITUTO NACIONAL DE MEDICINA GENOMICA","RANGEL DE LEON DANIEL ARTURO","A ICM C","CF41049","IPP 2020"]
[5243,"INSTITUTO NACIONAL DE MEDICINA GENOMICA","RANGEL ESCARENO CLAUDIA","ICM E","CF41042","IPP 2009"]
[6294,"INSTITUTO NACIONAL DE MEDICINA GENOMICA","RESENDIS ANTONIO OSBALDO","NULL","NULL","NULL"]
[7030,"INSTITUTO NACIONAL DE MEDICINA GENOMICA","RESTREPO ANGULO IVAN AUGUSTO","BAJA","NULL","NULL"]
[5244,"INSTITUTO NACIONAL DE MEDICINA GENOMICA","REYES GRAJEDA JUAN PABLO","ICM D","CFN0032","IPP 2009"]
[5245,"INSTITUTO NACIONAL DE MEDICINA GENOMICA","RODRIGUEZ DORANTES MAURICIO","ICM E","CF41042","IPP 2009"]
[7144,"INSTITUTO NACIONAL DE MEDICINA GENOMICA","ROMAN GONZALEZ SERGIO AGUSTIN","ICM B","CF51000","IPP 2018"]
[5246,"INSTITUTO NACIONAL DE MEDICINA GENOMICA","ROMERO HIDALGO SANDRA","ICM D","CF41041","IPP 2010"]
[7142,"INSTITUTO NACIONAL DE MEDICINA GENOMICA","ROQUE RAMIREZ BLADIMIR","ICM C","CF41046","IPP 2018"]
[7495,"INSTITUTO NACIONAL DE MEDICINA GENOMICA","ROSAS MADRIGAL SANDRA","BAJA","NULL","NULL"]
[6513,"INSTITUTO NACIONAL DE MEDICINA GENOMICA","ROSENDO GUTIERREZ RIGOBERTO","BAJA","NULL","NULL"]
[5247,"INSTITUTO NACIONAL DE MEDICINA GENOMICA","SALAS MARTINEZ MARIA GUADALUPE","NO VIGENTE","CF41045","NULL"]
[5248,"INSTITUTO NACIONAL DE MEDICINA GENOMICA","SALDAÑA ALVAREZ YOLANDA","ICM D","CF41041","2009_INGRESO ANTERIOR"]
[7499,"INSTITUTO NACIONAL DE MEDICINA GENOMICA","SANCHEZ QUINTO FEDERICO ANDRES","BAJA","NULL","NULL"]
[6189,"INSTITUTO NACIONAL DE MEDICINA GENOMICA","SARUWATARI ZAVALA GARBIÑE","ICM C","CF51000","IPP 2012"]
[5254,"INSTITUTO NACIONAL DE MEDICINA GENOMICA","SEBASTIAN MEDINA LETICIA","BAJA","NULL","NULL"]
[7388,"INSTITUTO NACIONAL DE MEDICINA GENOMICA","SILVAHERZOG MARQUEZ EUGENIA LUISA","ICM C","CF41046","IPP 2020"]
[5249,"INSTITUTO NACIONAL DE MEDICINA GENOMICA","SIQUEIROS GARCIA JESUS MARIO","BAJA","NULL","NULL"]
[5257,"INSTITUTO NACIONAL DE MEDICINA GENOMICA","SOBERON MAINERO FRANCISCO XAVIER DEL ESPIRITU SANTO","BAJA","NULL","NULL"]
[5250,"INSTITUTO NACIONAL DE MEDICINA GENOMICA","TEJERO BARRERA MARIA ELIZABETH","ICM E","CF41042","IPP 2010"]
[7143,"INSTITUTO NACIONAL DE MEDICINA GENOMICA","TOVAR ROMERO HUGO ANTONIO","ICM C","CF41046","IPP 2018"]
[7031,"INSTITUTO NACIONAL DE MEDICINA GENOMICA","TOVAR VIVAR VIOLETA ALEJANDRA","NO VIGENTE","CF41044","NULL"]
[7293,"INSTITUTO NACIONAL DE MEDICINA GENOMICA","VADILLO ORTEGA FELIPE","BAJA","NULL","NULL"]
[7389,"INSTITUTO NACIONAL DE MEDICINA GENOMICA","VAZQUEZ JIMENEZ AARON","ICM C","CF41046","IPP 2020"]
[6387,"INSTITUTO NACIONAL DE MEDICINA GENOMICA","VAZQUEZ SANTILLAN KARLA ITZEL","ICM D","CF41041","IPP 2014"]
[5251,"INSTITUTO NACIONAL DE MEDICINA GENOMICA","VELAZQUEZ CRUZ RAFAEL","ICM E","CF41042","2009_INGRESO ANTERIOR"]
[6295,"INSTITUTO NACIONAL DE MEDICINA GENOMICA","VILLALOBOS COMPARAN MARISELA","BAJA","NULL","NULL"]
[5252,"INSTITUTO NACIONAL DE MEDICINA GENOMICA","VILLARREAL MOLINA MARIA TERESA","ICM E","CF41042","IPP 2009"]
[6941,"INSTITUTO NACIONAL DE MEDICINA GENOMICA","VILLEGAS TORRES BEATRIZ EUGENIA","NULL","M02077","NULL"]
[6362,"INSTITUTO NACIONAL DE NEUROLOGIA Y NEUROCIRUGIA MANUEL VELASCO SUAREZ","ACOSTA CASTILLO GILBERTO ISAAC","ICM C","CF41046","IPP 2022"]
[5132,"INSTITUTO NACIONAL DE NEUROLOGIA Y NEUROCIRUGIA MANUEL VELASCO SUAREZ","ADALID PERALTA LAURA VIRGINIA","ICM E","CF41042","IPP 2010"]
[5133,"INSTITUTO NACIONAL DE NEUROLOGIA Y NEUROCIRUGIA MANUEL VELASCO SUAREZ","AGUILERA HERNANDEZ PENELOPE","ICM E","CF41042","IPP 2016"]
[5134,"INSTITUTO NACIONAL DE NEUROLOGIA Y NEUROCIRUGIA MANUEL VELASCO SUAREZ","AGUIRRE CRUZ MARIA LUCINDA","ICM E","CF41042","2006_INGRESO ANTERIOR"]
[5135,"INSTITUTO NACIONAL DE NEUROLOGIA Y NEUROCIRUGIA MANUEL VELASCO SUAREZ","ALCARAZ ZUBELDIA MIREYA","ICM D","CF41041","2009_INGRESO ANTERIOR"]
[7069,"INSTITUTO NACIONAL DE NEUROLOGIA Y NEUROCIRUGIA MANUEL VELASCO SUAREZ","ALONSO  VANEGAS MARIO ARTURO","BAJA","NULL","NULL"]
[5136,"INSTITUTO NACIONAL DE NEUROLOGIA Y NEUROCIRUGIA MANUEL VELASCO SUAREZ","ALONSO VILATELA MARIA ELISA","BAJA","NULL","NULL"]
[7666,"INSTITUTO NACIONAL DE NEUROLOGIA Y NEUROCIRUGIA MANUEL VELASCO SUAREZ","ALQUISIRAS BURGOS IVAN MIJAIL ","ICM C","CF41046","IPP 2024"]
[5137,"INSTITUTO NACIONAL DE NEUROLOGIA Y NEUROCIRUGIA MANUEL VELASCO SUAREZ","ALVARADO CALVILLO RAUL HUMBERTO","BAJA","NULL","NULL"]
[5138,"INSTITUTO NACIONAL DE NEUROLOGIA Y NEUROCIRUGIA MANUEL VELASCO SUAREZ","ALVAREZ LEMUS MAYRA ANGELICA","BAJA","NULL","NULL"]
[7068,"INSTITUTO NACIONAL DE NEUROLOGIA Y NEUROCIRUGIA MANUEL VELASCO SUAREZ","ARAUZ GONGORA ANGEL ANTONIO","ICM E","CFK22","IPP 2021"]
[5139,"INSTITUTO NACIONAL DE NEUROLOGIA Y NEUROCIRUGIA MANUEL VELASCO SUAREZ","BALLESTEROS ZEBADUA PAOLA","ICM D","CF41041","IPP 2011"]
[7669,"INSTITUTO NACIONAL DE NEUROLOGIA Y NEUROCIRUGIA MANUEL VELASCO SUAREZ","BLANCO AYALA TONALI","ICM C","CF41046","IPP 2025"]
[5140,"INSTITUTO NACIONAL DE NEUROLOGIA Y NEUROCIRUGIA MANUEL VELASCO SUAREZ","BOLL WOEHRLEN MARIE CATHERINE","ICM D","CF41041","2006_INGRESO ANTERIOR"]
[7617,"INSTITUTO NACIONAL DE NEUROLOGIA Y NEUROCIRUGIA MANUEL VELASCO SUAREZ","CALDERON GARCIDUEÑAS ANA LAURA","ICM B","CF41045","IPP 2023"]
[7404,"INSTITUTO NACIONAL DE NEUROLOGIA Y NEUROCIRUGIA MANUEL VELASCO SUAREZ","CALLEJA CASTILLO JUAN","BAJA","NULL","NULL"]
[5141,"INSTITUTO NACIONAL DE NEUROLOGIA Y NEUROCIRUGIA MANUEL VELASCO SUAREZ","CALVILLO VELASCO MINERVA EDITH","BAJA","NULL","NULL"]
[7034,"INSTITUTO NACIONAL DE NEUROLOGIA Y NEUROCIRUGIA MANUEL VELASCO SUAREZ","CAMACHO MOLINA ALEJANDRA","BAJA","NULL","NULL"]
[5142,"INSTITUTO NACIONAL DE NEUROLOGIA Y NEUROCIRUGIA MANUEL VELASCO SUAREZ","CAMPOS PEÑA VICTORIA","ICM D","CF41041","2010_INGRESO ANTERIOR"]
[7413,"INSTITUTO NACIONAL DE NEUROLOGIA Y NEUROCIRUGIA MANUEL VELASCO SUAREZ","CAMPOS ROMO AURELIO","BAJA","NULL","NULL"]
[7595,"INSTITUTO NACIONAL DE NEUROLOGIA Y NEUROCIRUGIA MANUEL VELASCO SUAREZ","CANO NIGENDA CLAUDIA VANESSA","ICM D","CF41041","IPP 2025"]
[7485,"INSTITUTO NACIONAL DE NEUROLOGIA Y NEUROCIRUGIA MANUEL VELASCO SUAREZ","CANSECO ALBA ANA GISELA ","ICM C","CF41046","IPP 2021"]
[6363,"INSTITUTO NACIONAL DE NEUROLOGIA Y NEUROCIRUGIA MANUEL VELASCO SUAREZ","CARAM SALAS NADIA LIZETH","BAJA","NULL","NULL"]
[5143,"INSTITUTO NACIONAL DE NEUROLOGIA Y NEUROCIRUGIA MANUEL VELASCO SUAREZ","CARDENAS HERNANDEZ GRACIELA AGAR","NULL","M01011","NULL"]
[5144,"INSTITUTO NACIONAL DE NEUROLOGIA Y NEUROCIRUGIA MANUEL VELASCO SUAREZ","CASTAÑEDA LOPEZ GABRIELA","ICM A","CF41044","IPP 2022"]
[5145,"INSTITUTO NACIONAL DE NEUROLOGIA Y NEUROCIRUGIA MANUEL VELASCO SUAREZ","CASTRO TORRES NELLY NORMA","ICM D","CF41041","IPP 2017"]
[6483,"INSTITUTO NACIONAL DE NEUROLOGIA Y NEUROCIRUGIA MANUEL VELASCO SUAREZ","CELIS LOPEZ MIGUEL ANGEL","NULL","M01011","NULL"]
[7405,"INSTITUTO NACIONAL DE NEUROLOGIA Y NEUROCIRUGIA MANUEL VELASCO SUAREZ","CERVANTES ARRIAGA GREGORIO AMIN","NULL","M01011","NULL"]
[5146,"INSTITUTO NACIONAL DE NEUROLOGIA Y NEUROCIRUGIA MANUEL VELASCO SUAREZ","CHANEZ CARDENAS MARIA ELENA","BAJA","NULL","NULL"]
[5147,"INSTITUTO NACIONAL DE NEUROLOGIA Y NEUROCIRUGIA MANUEL VELASCO SUAREZ","CHAVEZ OLIVEROS MIREYA ALEJANDRA","ICM C","CF41046","IPP 2022"]
[5148,"INSTITUTO NACIONAL DE NEUROLOGIA Y NEUROCIRUGIA MANUEL VELASCO SUAREZ","CORONA VAZQUEZ TERESITA","NULL","M01011","NULL"]
[7406,"INSTITUTO NACIONAL DE NEUROLOGIA Y NEUROCIRUGIA MANUEL VELASCO SUAREZ","CRAIL MELENDEZ DANIEL","NULL","M01011","NULL"]
[5149,"INSTITUTO NACIONAL DE NEUROLOGIA Y NEUROCIRUGIA MANUEL VELASCO SUAREZ","CUSTODIO RAMIREZ VERONICA","ICM C","CF41046","2009_INGRESO ANTERIOR"]
[5150,"INSTITUTO NACIONAL DE NEUROLOGIA Y NEUROCIRUGIA MANUEL VELASCO SUAREZ","DAVILA ORTIZ DE MONTELLANO DAVID JOSE","NULL","M01011","NULL"]
[5151,"INSTITUTO NACIONAL DE NEUROLOGIA Y NEUROCIRUGIA MANUEL VELASCO SUAREZ","DE LA CRUZ AGUILERA DORA LUZ","NO VIGENTE","CF41045","NULL"]
[5152,"INSTITUTO NACIONAL DE NEUROLOGIA Y NEUROCIRUGIA MANUEL VELASCO SUAREZ","DE LA FUENTE SANDOVAL FRANCISCO CAMILO","ICM E","CF41042","2010_INGRESO ANTERIOR"]
[7489,"INSTITUTO NACIONAL DE NEUROLOGIA Y NEUROCIRUGIA MANUEL VELASCO SUAREZ","DEL RIO QUIÑONES MANUEL ALEJANDRO","ICM B","CFN31","IPP 2022"]
[6484,"INSTITUTO NACIONAL DE NEUROLOGIA Y NEUROCIRUGIA MANUEL VELASCO SUAREZ","DIAZ MENESES IVAN EDUALDO","BAJA","NULL","NULL"]
[4408,"INSTITUTO NACIONAL DE NEUROLOGIA Y NEUROCIRUGIA MANUEL VELASCO SUAREZ","DIAZ OLAVARRIETA CLAUDIA AMELIA","BAJA","NULL","NULL"]
[5153,"INSTITUTO NACIONAL DE NEUROLOGIA Y NEUROCIRUGIA MANUEL VELASCO SUAREZ","DIAZ RUIZ MARIA DE LOS ANGELES ARACELI","ICM E","CF41042","2009_INGRESO ANTERIOR"]
[5154,"INSTITUTO NACIONAL DE NEUROLOGIA Y NEUROCIRUGIA MANUEL VELASCO SUAREZ","ESPINOLA NADURILLE MARIANA","NULL","M01011","NULL"]
[7266,"INSTITUTO NACIONAL DE NEUROLOGIA Y NEUROCIRUGIA MANUEL VELASCO SUAREZ","ESTUDILLO HERNANDEZ JESUS ENRIQUE","ICM D","CF41041","IPP 2019"]
[5155,"INSTITUTO NACIONAL DE NEUROLOGIA Y NEUROCIRUGIA MANUEL VELASCO SUAREZ","FERNANDEZ VALVERDE FRANCISCA","ICM A","CF41044","2009_INGRESO ANTERIOR"]
[7415,"INSTITUTO NACIONAL DE NEUROLOGIA Y NEUROCIRUGIA MANUEL VELASCO SUAREZ","FLEURY AGNES ODILE MARIE","NULL","NULL","NULL"]
[7749,"INSTITUTO NACIONAL DE NEUROLOGIA Y NEUROCIRUGIA MANUEL VELASCO SUAREZ","FLORES MORENO EMANUEL ITAMAR","ICM C","CF41046","IPP 2025"]
[6487,"INSTITUTO NACIONAL DE NEUROLOGIA Y NEUROCIRUGIA MANUEL VELASCO SUAREZ","FLORES RIVERA JOSE DE JESUS","NULL","M01011","NULL"]
[5156,"INSTITUTO NACIONAL DE NEUROLOGIA Y NEUROCIRUGIA MANUEL VELASCO SUAREZ","FRANCO PEREZ JAVIER EDGAR","ICM C","CF41046","IPP 2010"]
[5157,"INSTITUTO NACIONAL DE NEUROLOGIA Y NEUROCIRUGIA MANUEL VELASCO SUAREZ","GALVAN ARZATE SONIA","ICM D","CF41041","2006_INGRESO ANTERIOR"]
[7402,"INSTITUTO NACIONAL DE NEUROLOGIA Y NEUROCIRUGIA MANUEL VELASCO SUAREZ","GALVAN DE LA CRUZ OLINCA ","NULL","M03007","NULL"]
[5158,"INSTITUTO NACIONAL DE NEUROLOGIA Y NEUROCIRUGIA MANUEL VELASCO SUAREZ","GARCIA GARDUÑO OLIVIA AMANDA ","ICM C","CF41046","2009_INGRESO ANTERIOR"]
[5159,"INSTITUTO NACIONAL DE NEUROLOGIA Y NEUROCIRUGIA MANUEL VELASCO SUAREZ","GARCIA MENDOZA ESPERANZA","BAJA","NULL","NULL"]
[5215,"INSTITUTO NACIONAL DE NEUROLOGIA Y NEUROCIRUGIA MANUEL VELASCO SUAREZ","GONZALEZ AGUILAR ALBERTO","BAJA","NULL","NULL"]
[7746,"INSTITUTO NACIONAL DE NEUROLOGIA Y NEUROCIRUGIA MANUEL VELASCO SUAREZ","GONZALEZ CONCHILLOS HUGO DAVID","ICM C","CF41046","IPP 2025"]
[5160,"INSTITUTO NACIONAL DE NEUROLOGIA Y NEUROCIRUGIA MANUEL VELASCO SUAREZ","GONZALEZ ESQUIVEL DINORA FABIOLA","ICM D","CF41041","2009_INGRESO ANTERIOR"]
[5161,"INSTITUTO NACIONAL DE NEUROLOGIA Y NEUROCIRUGIA MANUEL VELASCO SUAREZ","GONZALEZ GUEVARA EDITH","ICM C","CF41046","IPP 2009"]
[5162,"INSTITUTO NACIONAL DE NEUROLOGIA Y NEUROCIRUGIA MANUEL VELASCO SUAREZ","GONZALEZ HERNANDEZ ILIANA ELVIRA","ICM C","CF41046","IPP 2009"]
[5163,"INSTITUTO NACIONAL DE NEUROLOGIA Y NEUROCIRUGIA MANUEL VELASCO SUAREZ","GONZALEZ HERRERA IRMA GABRIELA","ICM C","CF41046","IPP 2010"]
[5164,"INSTITUTO NACIONAL DE NEUROLOGIA Y NEUROCIRUGIA MANUEL VELASCO SUAREZ","GUEVARA SALAZAR PATRICIA DORA","BAJA","NULL","NULL"]
[5216,"INSTITUTO NACIONAL DE NEUROLOGIA Y NEUROCIRUGIA MANUEL VELASCO SUAREZ","HERAS ROMERO YESSICA ROSALINDA","BAJA","NULL","NULL"]
[7486,"INSTITUTO NACIONAL DE NEUROLOGIA Y NEUROCIRUGIA MANUEL VELASCO SUAREZ","HERNANDEZ VANEGAS LAURA ELENA","ICM C","CF41046","IPP 2021"]
[5165,"INSTITUTO NACIONAL DE NEUROLOGIA Y NEUROCIRUGIA MANUEL VELASCO SUAREZ","JARA PRADO AURELIO","ICM D","CF41041","IPP 2017"]
[5166,"INSTITUTO NACIONAL DE NEUROLOGIA Y NEUROCIRUGIA MANUEL VELASCO SUAREZ","JUNG COOK HELGI HELENE GISELA FRANZKA","BAJA","NULL","NULL"]
[5167,"INSTITUTO NACIONAL DE NEUROLOGIA Y NEUROCIRUGIA MANUEL VELASCO SUAREZ","LARRAGA GUTIERREZ JOSE MANUEL","ICM D","CF41041","IPP 2009"]
[7407,"INSTITUTO NACIONAL DE NEUROLOGIA Y NEUROCIRUGIA MANUEL VELASCO SUAREZ","LEON ORTIZ PABLO","ICM D","CFN31","IPP 2021"]
[5217,"INSTITUTO NACIONAL DE NEUROLOGIA Y NEUROCIRUGIA MANUEL VELASCO SUAREZ","LOPEZ GONZALEZ ROSENDO","BAJA","NULL","NULL"]
[7416,"INSTITUTO NACIONAL DE NEUROLOGIA Y NEUROCIRUGIA MANUEL VELASCO SUAREZ","LOPEZ LOPEZ MARISOL","BAJA","NULL","NULL"]
[6891,"INSTITUTO NACIONAL DE NEUROLOGIA Y NEUROCIRUGIA MANUEL VELASCO SUAREZ","MAGAÑA MALDONADO ROXANA","ICM C","CF41046","IPP 2015"]
[5168,"INSTITUTO NACIONAL DE NEUROLOGIA Y NEUROCIRUGIA MANUEL VELASCO SUAREZ","MALDONADO JIMENEZ PERLA DEYANIRA","BAJA","NULL","NULL"]
[5169,"INSTITUTO NACIONAL DE NEUROLOGIA Y NEUROCIRUGIA MANUEL VELASCO SUAREZ","MANJARREZ MARMOLEJO JOAQUIN","ICM C","CF41046","2009_INGRESO ANTERIOR"]
[7747,"INSTITUTO NACIONAL DE NEUROLOGIA Y NEUROCIRUGIA MANUEL VELASCO SUAREZ","MARQUEZ NAVARRO ADRIAN","ICM C","CF41046","IPP 2025"]
[7408,"INSTITUTO NACIONAL DE NEUROLOGIA Y NEUROCIRUGIA MANUEL VELASCO SUAREZ","MARRUFO MELENDEZ OSCAR","BAJA","NULL","NULL"]
[5170,"INSTITUTO NACIONAL DE NEUROLOGIA Y NEUROCIRUGIA MANUEL VELASCO SUAREZ","MARTINEZ GONZALEZ VICTOR MANUEL","BAJA","NULL","NULL"]
[7070,"INSTITUTO NACIONAL DE NEUROLOGIA Y NEUROCIRUGIA MANUEL VELASCO SUAREZ","MARTINEZ JUAREZ IRIS ENRIQUETA","NULL","M01011","NULL"]
[5171,"INSTITUTO NACIONAL DE NEUROLOGIA Y NEUROCIRUGIA MANUEL VELASCO SUAREZ","MARTINEZ LAZCANO JUAN CARLOS ","ICM C","CF41046","IPP 2009"]
[7403,"INSTITUTO NACIONAL DE NEUROLOGIA Y NEUROCIRUGIA MANUEL VELASCO SUAREZ","MEJIA PEREZ SONIA ILIANA","NULL","M01011","NULL"]
[5172,"INSTITUTO NACIONAL DE NEUROLOGIA Y NEUROCIRUGIA MANUEL VELASCO SUAREZ","MENDEZ ARMENTA MARISELA            ","ICM D","CF41041","2006_INGRESO ANTERIOR"]
[7664,"INSTITUTO NACIONAL DE NEUROLOGIA Y NEUROCIRUGIA MANUEL VELASCO SUAREZ","MERCADO POMPA ANDRES ALBERTO","ICM A","CF41044","IPP 2024"]
[7668,"INSTITUTO NACIONAL DE NEUROLOGIA Y NEUROCIRUGIA MANUEL VELASCO SUAREZ","MEZA SOSA KARLA FABIOLA ","ICM C","CF41046","IPP 2024"]
[5173,"INSTITUTO NACIONAL DE NEUROLOGIA Y NEUROCIRUGIA MANUEL VELASCO SUAREZ","MONROY JARAMILLO NANCY","ICM D","CF41041","2009_INGRESO ANTERIOR"]
[5174,"INSTITUTO NACIONAL DE NEUROLOGIA Y NEUROCIRUGIA MANUEL VELASCO SUAREZ","MONTES DE OCA BALDERAS PAVEL","BAJA","NULL","NULL"]
[5175,"INSTITUTO NACIONAL DE NEUROLOGIA Y NEUROCIRUGIA MANUEL VELASCO SUAREZ","MONTES DEL CARMEN PEDRO","ICM B","CF41045","IPP 2022"]
[5176,"INSTITUTO NACIONAL DE NEUROLOGIA Y NEUROCIRUGIA MANUEL VELASCO SUAREZ","MONTES LOPEZ SERGIO","BAJA","NULL","NULL"]
[6493,"INSTITUTO NACIONAL DE NEUROLOGIA Y NEUROCIRUGIA MANUEL VELASCO SUAREZ","MORENO JIMENEZ SERGIO","ICM D","CFN31","IPP 2015"]
[7488,"INSTITUTO NACIONAL DE NEUROLOGIA Y NEUROCIRUGIA MANUEL VELASCO SUAREZ","NATHAL VERA EDGAR","NO VIGENTE","CFM21","NULL"]
[5177,"INSTITUTO NACIONAL DE NEUROLOGIA Y NEUROCIRUGIA MANUEL VELASCO SUAREZ","NAVA RUIZ CONCEPCION","ICM C","CF41046","2009_INGRESO ANTERIOR"]
[5178,"INSTITUTO NACIONAL DE NEUROLOGIA Y NEUROCIRUGIA MANUEL VELASCO SUAREZ","OCHOA MORALES ADRIANA","ICM C","CF41046","2009_INGRESO ANTERIOR"]
[5179,"INSTITUTO NACIONAL DE NEUROLOGIA Y NEUROCIRUGIA MANUEL VELASCO SUAREZ","ORDOÑEZ LOZANO GRACIELA","ICM D","CF41041","2009_INGRESO ANTERIOR"]
[7596,"INSTITUTO NACIONAL DE NEUROLOGIA Y NEUROCIRUGIA MANUEL VELASCO SUAREZ","OROZCO MORALES MARIO","ICM C","CF41046","IPP 2023"]
[5181,"INSTITUTO NACIONAL DE NEUROLOGIA Y NEUROCIRUGIA MANUEL VELASCO SUAREZ","ORTIZ ISLAS EMMA ELISA ","ICM D","CF41041","IPP 2007"]
[5182,"INSTITUTO NACIONAL DE NEUROLOGIA Y NEUROCIRUGIA MANUEL VELASCO SUAREZ","ORTIZ PLATA ALMA","ICM D","CF41041","2006_INGRESO ANTERIOR"]
[5183,"INSTITUTO NACIONAL DE NEUROLOGIA Y NEUROCIRUGIA MANUEL VELASCO SUAREZ","OSORIO RICO LAURA","ICM C","CF41046","IPP 2014"]
[7745,"INSTITUTO NACIONAL DE NEUROLOGIA Y NEUROCIRUGIA MANUEL VELASCO SUAREZ","OVALLE  RODRIGUEZ PAULINA ","ICM A","CF50000","IPP 2025"]
[5184,"INSTITUTO NACIONAL DE NEUROLOGIA Y NEUROCIRUGIA MANUEL VELASCO SUAREZ","PALENCIA HERNANDEZ MARIA GUADALUPE","BAJA","NULL","NULL"]
[5185,"INSTITUTO NACIONAL DE NEUROLOGIA Y NEUROCIRUGIA MANUEL VELASCO SUAREZ","PALOMARES ALONSO FRANCISCA","ICM D","CF41041","2009_INGRESO ANTERIOR"]
[5186,"INSTITUTO NACIONAL DE NEUROLOGIA Y NEUROCIRUGIA MANUEL VELASCO SUAREZ","PAZ RODRIGUEZ FRANCISCO","ICM D","CF41041","2006_INGRESO ANTERIOR"]
[5187,"INSTITUTO NACIONAL DE NEUROLOGIA Y NEUROCIRUGIA MANUEL VELASCO SUAREZ","PAZ TRES CARLOS HERLINDO","BAJA","NULL","NULL"]
[5188,"INSTITUTO NACIONAL DE NEUROLOGIA Y NEUROCIRUGIA MANUEL VELASCO SUAREZ","PEREZ DE LA CRUZ VERONICA","ICM E","CF41042","2010_INGRESO ANTERIOR"]
[7035,"INSTITUTO NACIONAL DE NEUROLOGIA Y NEUROCIRUGIA MANUEL VELASCO SUAREZ","PEREZ ESPARZA RODRIGO","BAJA","NULL","NULL"]
[5191,"INSTITUTO NACIONAL DE NEUROLOGIA Y NEUROCIRUGIA MANUEL VELASCO SUAREZ","PEREZ SEVERIANO FRANCISCA","ICM E","CF41042","2006_INGRESO ANTERIOR"]
[5192,"INSTITUTO NACIONAL DE NEUROLOGIA Y NEUROCIRUGIA MANUEL VELASCO SUAREZ","PINEDA OLVERA BENJAMIN","ICM E","CFM21","2006_INGRESO ANTERIOR"]
[6495,"INSTITUTO NACIONAL DE NEUROLOGIA Y NEUROCIRUGIA MANUEL VELASCO SUAREZ","PORCAYO LIBORIO SANDRA","BAJA","NULL","NULL"]
[7409,"INSTITUTO NACIONAL DE NEUROLOGIA Y NEUROCIRUGIA MANUEL VELASCO SUAREZ","PORTOCARRERO ORTIZ LESLY AMINTA","NULL","M01011","NULL"]
[6496,"INSTITUTO NACIONAL DE NEUROLOGIA Y NEUROCIRUGIA MANUEL VELASCO SUAREZ","RAMIREZ BERMUDEZ JESUS","NULL","M01011","NULL"]
[7401,"INSTITUTO NACIONAL DE NEUROLOGIA Y NEUROCIRUGIA MANUEL VELASCO SUAREZ","RAMIREZ GARCIA MIGUEL ANGEL","ICM B","CF41045","IPP 2020"]
[7597,"INSTITUTO NACIONAL DE NEUROLOGIA Y NEUROCIRUGIA MANUEL VELASCO SUAREZ","RAMIREZ ORTEGA DANIELA","ICM C","CF41046","IPP 2023"]
[6498,"INSTITUTO NACIONAL DE NEUROLOGIA Y NEUROCIRUGIA MANUEL VELASCO SUAREZ","RAMOS PEEK MIGUEL ANGEL","BAJA","NULL","NULL"]
[5193,"INSTITUTO NACIONAL DE NEUROLOGIA Y NEUROCIRUGIA MANUEL VELASCO SUAREZ","RANGEL LOPEZ EDGAR","ICM C","CF41046","IPP 2010"]
[5194,"INSTITUTO NACIONAL DE NEUROLOGIA Y NEUROCIRUGIA MANUEL VELASCO SUAREZ","REMBAO BOJORQUEZ JESUS DANIEL","NULL","M01011","NULL"]
[7033,"INSTITUTO NACIONAL DE NEUROLOGIA Y NEUROCIRUGIA MANUEL VELASCO SUAREZ","REYES MADRIGAL FRANCISCO RAMON","ICM C","CF41046","IPP 2017"]
[7145,"INSTITUTO NACIONAL DE NEUROLOGIA Y NEUROCIRUGIA MANUEL VELASCO SUAREZ","RITO GARCIA YAMEL CLAUDIA","BAJA","NULL","NULL"]
[7748,"INSTITUTO NACIONAL DE NEUROLOGIA Y NEUROCIRUGIA MANUEL VELASCO SUAREZ","RIVERA CHAVEZ LUIS FELIPE","NO VIGENTE","CF41045","NULL"]
[5196,"INSTITUTO NACIONAL DE NEUROLOGIA Y NEUROCIRUGIA MANUEL VELASCO SUAREZ","RODRIGUEZ AGUDELO OLGA YANETH","ICM D","CF41041","2006_INGRESO ANTERIOR"]
[7667,"INSTITUTO NACIONAL DE NEUROLOGIA Y NEUROCIRUGIA MANUEL VELASCO SUAREZ","RODRIGUEZ ALBA JUAN CARLOS","ICM D","CF41041","IPP 2025"]
[5218,"INSTITUTO NACIONAL DE NEUROLOGIA Y NEUROCIRUGIA MANUEL VELASCO SUAREZ","RODRIGUEZ BALDERAS CESAR AUGUSTO","BAJA","NULL","NULL"]
[6361,"INSTITUTO NACIONAL DE NEUROLOGIA Y NEUROCIRUGIA MANUEL VELASCO SUAREZ","RODRIGUEZ PEREZ CITLALI EKATERINA","ICM C","CF41046","IPP 2021"]
[7412,"INSTITUTO NACIONAL DE NEUROLOGIA Y NEUROCIRUGIA MANUEL VELASCO SUAREZ","RODRIGUEZ VIOLANTE MAYELA DE JESUS","ICM C","CF41046","IPP 2021"]
[5197,"INSTITUTO NACIONAL DE NEUROLOGIA Y NEUROCIRUGIA MANUEL VELASCO SUAREZ","ROJAS CASTAÑEDA PATRICIA","BAJA","NULL","NULL"]
[5198,"INSTITUTO NACIONAL DE NEUROLOGIA Y NEUROCIRUGIA MANUEL VELASCO SUAREZ","ROJAS TOME IRMA SUSANA","ICM C","CF41046","IPP 2010"]
[6499,"INSTITUTO NACIONAL DE NEUROLOGIA Y NEUROCIRUGIA MANUEL VELASCO SUAREZ","ROMERO FIGUEROA JOSE ANGEL","BAJA","NULL","NULL"]
[5199,"INSTITUTO NACIONAL DE NEUROLOGIA Y NEUROCIRUGIA MANUEL VELASCO SUAREZ","RUBIO OSORNIO MARIA DEL CARMEN","ICM D","CF41041","2009_INGRESO ANTERIOR"]
[5200,"INSTITUTO NACIONAL DE NEUROLOGIA Y NEUROCIRUGIA MANUEL VELASCO SUAREZ","RUBIO OSORNIO MOISES","ICM D","CF41041","IPP 2010"]
[5201,"INSTITUTO NACIONAL DE NEUROLOGIA Y NEUROCIRUGIA MANUEL VELASCO SUAREZ","RUIZ SANCHEZ ELIZABETH","ICM B","CF41045","IPP 2010"]
[7399,"INSTITUTO NACIONAL DE NEUROLOGIA Y NEUROCIRUGIA MANUEL VELASCO SUAREZ","SALAZAR RAMIRO ALELI JANET","ICM C","CF50000","IPP 2020"]
[7410,"INSTITUTO NACIONAL DE NEUROLOGIA Y NEUROCIRUGIA MANUEL VELASCO SUAREZ","SALINAS LARA CITLALTEPETL","NULL","M01011","NULL"]
[5202,"INSTITUTO NACIONAL DE NEUROLOGIA Y NEUROCIRUGIA MANUEL VELASCO SUAREZ","SAN JUAN ORTA DANIEL","NULL","M01011","NULL"]
[5203,"INSTITUTO NACIONAL DE NEUROLOGIA Y NEUROCIRUGIA MANUEL VELASCO SUAREZ","SANCHEZ GARCIA AURORA DEL CARMEN","ICM A","CF41044","IPP 2016"]
[5204,"INSTITUTO NACIONAL DE NEUROLOGIA Y NEUROCIRUGIA MANUEL VELASCO SUAREZ","SANCHEZ GUZMAN MARIA ALEJANDRA","BAJA","NULL","NULL"]
[5205,"INSTITUTO NACIONAL DE NEUROLOGIA Y NEUROCIRUGIA MANUEL VELASCO SUAREZ","SANTAMARIA DEL ANGEL ABEL","BAJA","NULL","NULL"]
[7487,"INSTITUTO NACIONAL DE NEUROLOGIA Y NEUROCIRUGIA MANUEL VELASCO SUAREZ","SERRANO ARIAS FABIOLA EUNICE","ICM C","CFM21","IPP 2025"]
[5206,"INSTITUTO NACIONAL DE NEUROLOGIA Y NEUROCIRUGIA MANUEL VELASCO SUAREZ","SERRANO GARCIA NORMA","ICM C","CF41046","IPP 2022"]
[5207,"INSTITUTO NACIONAL DE NEUROLOGIA Y NEUROCIRUGIA MANUEL VELASCO SUAREZ","SILVA ADAYA IRMA DANIELA","ICM C","CF41046","IPP 2011"]
[7400,"INSTITUTO NACIONAL DE NEUROLOGIA Y NEUROCIRUGIA MANUEL VELASCO SUAREZ","SILVA ISLAS CARLOS ALFREDO","ICM C","CF41046","IPP 2020"]
[5208,"INSTITUTO NACIONAL DE NEUROLOGIA Y NEUROCIRUGIA MANUEL VELASCO SUAREZ","SOLIS VIVANCO RODOLFO","ICM D","CF41041","IPP 2010"]
[5209,"INSTITUTO NACIONAL DE NEUROLOGIA Y NEUROCIRUGIA MANUEL VELASCO SUAREZ","SOSA ORTIZ ANA LUISA","ICM E","CF41042","IPP 2010"]
[5210,"INSTITUTO NACIONAL DE NEUROLOGIA Y NEUROCIRUGIA MANUEL VELASCO SUAREZ","SOTELO MORALES JULIO EVERARDO","EMERITO","CF41090","2006_INGRESO ANTERIOR"]
[6502,"INSTITUTO NACIONAL DE NEUROLOGIA Y NEUROCIRUGIA MANUEL VELASCO SUAREZ","SOTO HERNANDEZ JOSE LUIS","BAJA","NULL","NULL"]
[7411,"INSTITUTO NACIONAL DE NEUROLOGIA Y NEUROCIRUGIA MANUEL VELASCO SUAREZ","TENA SUCK MARTHA LILIA","NO VIGENTE","CF50000","NULL"]
[5211,"INSTITUTO NACIONAL DE NEUROLOGIA Y NEUROCIRUGIA MANUEL VELASCO SUAREZ","TORRES RAMOS MONICA ADRIANA","ICM D","CF41041","IPP 2010"]
[5212,"INSTITUTO NACIONAL DE NEUROLOGIA Y NEUROCIRUGIA MANUEL VELASCO SUAREZ","TREJO SOLIS MARIA CRISTINA","ICM C","CF41046","2009_INGRESO ANTERIOR"]
[7665,"INSTITUTO NACIONAL DE NEUROLOGIA Y NEUROCIRUGIA MANUEL VELASCO SUAREZ","VALLE GARCÍA DAVID","BAJA","NULL","NULL"]
[7414,"INSTITUTO NACIONAL DE NEUROLOGIA Y NEUROCIRUGIA MANUEL VELASCO SUAREZ","VELASCO VELAZQUEZ JAIME IVAN ","NULL","NULL","NULL"]
[5213,"INSTITUTO NACIONAL DE NEUROLOGIA Y NEUROCIRUGIA MANUEL VELASCO SUAREZ","VILLEDA HERNANDEZ JUANA","BAJA","NULL","NULL"]
[6507,"INSTITUTO NACIONAL DE NEUROLOGIA Y NEUROCIRUGIA MANUEL VELASCO SUAREZ","VOLKERS GAUSSMANN GEORGINA SUZANNA","BAJA","NULL","NULL"]
[5214,"INSTITUTO NACIONAL DE NEUROLOGIA Y NEUROCIRUGIA MANUEL VELASCO SUAREZ","YESCAS GOMEZ PETRA","ICM D","CF50000","IPP 2010"]
[6360,"INSTITUTO NACIONAL DE NEUROLOGIA Y NEUROCIRUGIA MANUEL VELASCO SUAREZ","ZAVALA TECUAPETLA CECILIA","ICM C","CF41046","IPP 2014"]
[5260,"INSTITUTO NACIONAL DE PEDIATRIA","ACUÑA AYALA HILDA","BAJA","NULL","NULL"]
[7755,"INSTITUTO NACIONAL DE PEDIATRIA","AGUILAR GOMEZ NANCY EVELYN","NULL","M01004","NULL"]
[5261,"INSTITUTO NACIONAL DE PEDIATRIA","ALCANTARA ORTIGOZA MIGUEL ANGEL","ICM D","CF41041","2010_INGRESO ANTERIOR"]
[5262,"INSTITUTO NACIONAL DE PEDIATRIA","ALEMON MEDINA FRANCISCO RADAMES","ICM C","CF41046","IPP 2009"]
[5263,"INSTITUTO NACIONAL DE PEDIATRIA","ALVARADO RUIZ GERARDO ALBERTO","BAJA","NULL","NULL"]
[7147,"INSTITUTO NACIONAL DE PEDIATRIA","AQUINO ANDRADE ALEJANDRA ","ICM B","CF41045","IPP 2018"]
[5264,"INSTITUTO NACIONAL DE PEDIATRIA","ARREDONDO GARCIA JOSE LUIS","BAJA","NULL","NULL"]
[7275,"INSTITUTO NACIONAL DE PEDIATRIA","ARROYO BELMONTE MIRIAM","ICM C","CF41046","IPP 2025"]
[7533,"INSTITUTO NACIONAL DE PEDIATRIA","AYALA GALVAN CITLALI","A ICM B","CF41048","IPP 2022"]
[5265,"INSTITUTO NACIONAL DE PEDIATRIA","BARRAGAN MEJIA MARCIAL GERARDO","ICM D","CF41041","2009_INGRESO ANTERIOR"]
[7149,"INSTITUTO NACIONAL DE PEDIATRIA","BARRERA CARMONA ISABEL","A ICM B","CF41048","IPP 2025"]
[5266,"INSTITUTO NACIONAL DE PEDIATRIA","BARRIENTOS RIOS REHOTBEVELY","ICM B","CF41045","IPP 2025"]
[5267,"INSTITUTO NACIONAL DE PEDIATRIA","BELMONT MARTINEZ LETICIA","BAJA","NULL","NULL"]
[7676,"INSTITUTO NACIONAL DE PEDIATRIA","BELMONT MONROY LAURA","A ICM C","CF41049","IPP 2024"]
[5268,"INSTITUTO NACIONAL DE PEDIATRIA","BERMUDEZ LOPEZ CESAREA","NO VIGENTE","CF41045","NULL"]
[6313,"INSTITUTO NACIONAL DE PEDIATRIA","BERRON RUIZ LAURA","ICM D","CF41041","IPP 2013"]
[5269,"INSTITUTO NACIONAL DE PEDIATRIA","BLANCAS GALICIA LIZBETH","ICM D","CF41041","IPP 2009"]
[7677,"INSTITUTO NACIONAL DE PEDIATRIA","BOSCH CANTO VANESSA","NO VIGENTE","CF41013","NULL"]
[7672,"INSTITUTO NACIONAL DE PEDIATRIA","BRAVO LINDORO AMALIA GUADALUPE ","ICM B","M21","IPP 2024"]
[7160,"INSTITUTO NACIONAL DE PEDIATRIA","BUSTAMANTE OGANDO JUAN CARLOS","ICM C","CF41046","IPP 2019"]
[5270,"INSTITUTO NACIONAL DE PEDIATRIA","CABALLERO ORTEGA HERIBERTO","ICM D","N31","2009_INGRESO ANTERIOR"]
[5271,"INSTITUTO NACIONAL DE PEDIATRIA","CABALLERO SALAZAR SILVIA","NO VIGENTE","CF41045","NULL"]
[5272,"INSTITUTO NACIONAL DE PEDIATRIA","CALDERON GARCIDUEÑAS LILIAN OFELIA","BAJA","NULL","NULL"]
[5273,"INSTITUTO NACIONAL DE PEDIATRIA","CALDERON GUZMAN DAVID","ICM C","CF41046","IPP 2011"]
[6620,"INSTITUTO NACIONAL DE PEDIATRIA","CALZADA LEON RAUL","NO VIGENTE","CF41013","NULL"]
[6617,"INSTITUTO NACIONAL DE PEDIATRIA","CAMACHO CASTILLO LUZ DEL CARMEN","ICM B","CF41045","IPP 2015"]
[5274,"INSTITUTO NACIONAL DE PEDIATRIA","CAMACHO VIEYRA GUADALUPE ANGELICA","BAJA","NULL","NULL"]
[5387,"INSTITUTO NACIONAL DE PEDIATRIA","CAMPOS GUTIERREZ MARIANA","BAJA","NULL","NULL"]
[5275,"INSTITUTO NACIONAL DE PEDIATRIA","CAÑEDO SOLARES IRMA","ICM C","CF41046","2009_INGRESO ANTERIOR"]
[5276,"INSTITUTO NACIONAL DE PEDIATRIA","CARDENAS RODRIGUEZ NOEMI","ICM E","CF41042","2010_INGRESO ANTERIOR"]
[5277,"INSTITUTO NACIONAL DE PEDIATRIA","CARMONA APARICIO LILIANA","ICM D","CF41041","IPP 2009"]
[7534,"INSTITUTO NACIONAL DE PEDIATRIA","CARRILLO NIETO ROSA ITZEL","BAJA","NULL","NULL"]
[5278,"INSTITUTO NACIONAL DE PEDIATRIA","CARRILLO SANCHEZ SILVIA DEL CARMEN","BAJA","NULL","NULL"]
[5279,"INSTITUTO NACIONAL DE PEDIATRIA","CARVAJAL AGUILERA KARLA GUADALUPE","ICM E","CF41042","IPP 2006"]
[7150,"INSTITUTO NACIONAL DE PEDIATRIA","CASAS MUÑOZ ABIGAIL","ICM C","CF41046","IPP 2019"]
[5280,"INSTITUTO NACIONAL DE PEDIATRIA","CASTILLO CRUZ ROCIO AIDEE","ICM B","CF41045","IPP 2024"]
[7604,"INSTITUTO NACIONAL DE PEDIATRIA","CASTILLO REYES SOFÍA LORENA ","BAJA","NULL","NULL"]
[7422,"INSTITUTO NACIONAL DE PEDIATRIA","CASTILLO RODRIGUEZ ROSA ANGELICA","BAJA","NULL","NULL"]
[5281,"INSTITUTO NACIONAL DE PEDIATRIA","CASTILLO VILLANUEVA ADRIANA","ICM C","CF41046","IPP 2006"]
[7156,"INSTITUTO NACIONAL DE PEDIATRIA","CASTRO AYALA OSCAR RAMON","A ICM C","CF41049","IPP 2025"]
[5388,"INSTITUTO NACIONAL DE PEDIATRIA","CAZAREZ RAMIREZ EDUARDO","BAJA","NULL","NULL"]
[5282,"INSTITUTO NACIONAL DE PEDIATRIA","CEDILLO PELAEZ CARLOS","ICM C","CF41046","IPP 2025"]
[5391,"INSTITUTO NACIONAL DE PEDIATRIA","CHAVEZ PACHECO JUAN LUIS","ICM D","CF41041","2010_INGRESO ANTERIOR"]
[5283,"INSTITUTO NACIONAL DE PEDIATRIA","CHAVEZ SALDAÑA MARGARITA DOLORES","BAJA","NULL","NULL"]
[5284,"INSTITUTO NACIONAL DE PEDIATRIA","COBALLASE URRUTIA ELVIA","ICM D","CF41041","2009_INGRESO ANTERIOR"]
[7164,"INSTITUTO NACIONAL DE PEDIATRIA","CONSS MICHEL KARLA PATRICIA","BAJA","NULL","NULL"]
[7679,"INSTITUTO NACIONAL DE PEDIATRIA","CONTRERAS GARCIA ITZEL JATZIRI","A ICM B","CF41048","IPP 2024"]
[7166,"INSTITUTO NACIONAL DE PEDIATRIA","CONTRERAS VARGAS YOLANDA","A ICM C","CF41049","IPP 2018"]
[5285,"INSTITUTO NACIONAL DE PEDIATRIA","CORIA JIMENEZ VICTOR RAFAEL","ICM D","CF41041","2006_INGRESO ANTERIOR"]
[6950,"INSTITUTO NACIONAL DE PEDIATRIA","CORRAL GUILLE ISMENE","NO VIGENTE","CF41045","NULL"]
[5286,"INSTITUTO NACIONAL DE PEDIATRIA","CORREA BELTRAN MARIA DOLORES","BAJA","NULL","NULL"]
[7151,"INSTITUTO NACIONAL DE PEDIATRIA","CORREA RAMIREZ CARMEN ALICIA","ICM B","CF41045","IPP 2025"]
[6623,"INSTITUTO NACIONAL DE PEDIATRIA","CUEVAS ALPUCHE JUAN OSVALDO","NO VIGENTE","CF41013","NULL"]
[6630,"INSTITUTO NACIONAL DE PEDIATRIA","CUEVAS SCHACHT FRANCISCO JAVIER","NO VIGENTE","CF41013","NULL"]
[5287,"INSTITUTO NACIONAL DE PEDIATRIA","DAVILA BORJA VICTOR MANUEL","BAJA","NULL","NULL"]
[5288,"INSTITUTO NACIONAL DE PEDIATRIA","DE LA MORA DE LA MORA JOSE IGNACIO","ICM C","CF41046","2009_INGRESO ANTERIOR"]
[5289,"INSTITUTO NACIONAL DE PEDIATRIA","DIAZ GARCIA MARIA LUISA","ICM B","CF41045","IPP 2016"]
[6625,"INSTITUTO NACIONAL DE PEDIATRIA","DURAN MCKINCTER LOURDES CAROLA","NULL","M01011","NULL"]
[5290,"INSTITUTO NACIONAL DE PEDIATRIA","ENRIQUEZ FLORES SERGIO","ICM D","CF41041","IPP 2008"]
[7036,"INSTITUTO NACIONAL DE PEDIATRIA","ESPARZA AGUILAR MARCELINO","ICM B","CF41045","IPP 2017"]
[5291,"INSTITUTO NACIONAL DE PEDIATRIA","ESPINOSA PADILLA SARA ELVA","ICM D","M21","IPP 2008"]
[5292,"INSTITUTO NACIONAL DE PEDIATRIA","ESPINOSA ROSALES FRANCISCO JAVIER","BAJA","NULL","NULL"]
[7602,"INSTITUTO NACIONAL DE PEDIATRIA","ESPINOZA SALGADO FATIMA SAGRARIO","A ICM B","CF41048","IPP 2023"]
[7603,"INSTITUTO NACIONAL DE PEDIATRIA","FERNANDEZ BAUTISTA MARIA FERNANDA","NULL","M01004","NULL"]
[7599,"INSTITUTO NACIONAL DE PEDIATRIA","FERNANDEZ HERNANDEZ LILIANA","ICM B","CF41045","IPP 2023"]
[5293,"INSTITUTO NACIONAL DE PEDIATRIA","FERNANDEZ LAINEZ CYNTHIA","ICM C","CF41046","IPP 2010 "]
[7535,"INSTITUTO NACIONAL DE PEDIATRIA","FIESCO ROA MOISES OSCAR","A ICM C","CF41049","IPP 2024"]
[7167,"INSTITUTO NACIONAL DE PEDIATRIA","FIGUEROA CARBAJAL JOSE DE JESUS","BAJA","NULL","NULL"]
[5294,"INSTITUTO NACIONAL DE PEDIATRIA","FIGUEROA OLEA MIRIAM","ICM B","CF41045","2010_INGRESO ANTERIOR"]
[5295,"INSTITUTO NACIONAL DE PEDIATRIA","FLORES PEREZ ANA MARIA DEL CARMEN","NO VIGENTE","CF41041","NULL"]
[5296,"INSTITUTO NACIONAL DE PEDIATRIA","FLORES PEREZ MARIA JANETT","ICM B","CF41041","IPP 2020"]
[5297,"INSTITUTO NACIONAL DE PEDIATRIA","FRENK Y FREUND SILVESTRE","BAJA","NULL","NULL"]
[5298,"INSTITUTO NACIONAL DE PEDIATRIA","FRIAS VAZQUEZ SARA","ICM F","CF41043","2006_INGRESO ANTERIOR"]
[5299,"INSTITUTO NACIONAL DE PEDIATRIA","GARCIA ALVAREZ RAQUEL","ICM A","CF41045","IPP 2020"]
[6401,"INSTITUTO NACIONAL DE PEDIATRIA","GARCIA DE LA PUENTE SILVESTRE","ICM C","CF50000","IPP 2019"]
[7157,"INSTITUTO NACIONAL DE PEDIATRIA","GARCIA DE TERESA BENILDE","ICM A","CF41044","IPP 2022"]
[6333,"INSTITUTO NACIONAL DE PEDIATRIA","GARCIA TORRES ITZHEL","ICM C","CF41046","IPP 2013"]
[7536,"INSTITUTO NACIONAL DE PEDIATRIA","GARCIA VICERA MARIA XIMENA","BAJA","NULL","NULL"]
[7421,"INSTITUTO NACIONAL DE PEDIATRIA","GOMEZ CHAVEZ FERNANDO ","BAJA","NULL","NULL"]
[5300,"INSTITUTO NACIONAL DE PEDIATRIA","GOMEZ GARDUÑO JOSEFINA","ICM A","CF41044","2009_INGRESO ANTERIOR"]
[5301,"INSTITUTO NACIONAL DE PEDIATRIA","GOMEZ LIRA GISELA","BAJA","NULL","NULL"]
[5302,"INSTITUTO NACIONAL DE PEDIATRIA","GOMEZ MANZO SAUL","ICM D","CF41041","IPP 2010"]
[6179,"INSTITUTO NACIONAL DE PEDIATRIA","GONZALEZ DEL ANGEL ARIADNA ESTELA","ICM E","CF41042","IPP 2012"]
[6441,"INSTITUTO NACIONAL DE PEDIATRIA","GONZALEZ GARAY ALEJANDRO GABRIEL","ICM D","CF41041","IPP 2015"]
[5303,"INSTITUTO NACIONAL DE PEDIATRIA","GONZALEZ MACIEL ANGELICA","ICM D","CF41041","2006_INGRESO ANTERIOR"]
[7537,"INSTITUTO NACIONAL DE PEDIATRIA","GONZALEZ ORTIZ AILEMA JANETH","ICM C","CF41046","IPP 2022"]
[6631,"INSTITUTO NACIONAL DE PEDIATRIA","GONZALEZ SALDAÑA NAPOLEON","BAJA","NULL","NULL"]
[5304,"INSTITUTO NACIONAL DE PEDIATRIA","GONZALEZ SERRANO MARIA EDITH","ICM C","CF41046","IPP 2009"]
[6184,"INSTITUTO NACIONAL DE PEDIATRIA","GONZALEZ ZAMORA JOSE FRANCISCO","ICM C","CF41046","IPP 2018"]
[5305,"INSTITUTO NACIONAL DE PEDIATRIA","GRANADOS ROJAS LETICIA","ICM C","CF41046","IPP 2016"]
[5306,"INSTITUTO NACIONAL DE PEDIATRIA","GUILLE PEREZ ADRIAN DE JESUS","BAJA","NULL","NULL"]
[6434,"INSTITUTO NACIONAL DE PEDIATRIA","GUILLEN LOPEZ SARA","ICM B","CF41045","IPP 2015"]
[7168,"INSTITUTO NACIONAL DE PEDIATRIA","GUTIERREZ LEYVA CESAR DE JESUS","A ICM C","CF41049","IPP 2025"]
[5307,"INSTITUTO NACIONAL DE PEDIATRIA","GUTIERREZ PEREZ OSCAR","BAJA","NULL","NULL"]
[7538,"INSTITUTO NACIONAL DE PEDIATRIA","GUTIERREZ SANTANA JUAN CARLOS","NO VIGENTE","CF41049","NULL"]
[5308,"INSTITUTO NACIONAL DE PEDIATRIA","HERNANDEZ ALCANTARA GLORIA","BAJA","NULL","NULL"]
[5309,"INSTITUTO NACIONAL DE PEDIATRIA","HERNANDEZ ANTUNEZ BLANCA GLORIA","BAJA","NULL","NULL"]
[7756,"INSTITUTO NACIONAL DE PEDIATRIA","HERNANDEZ ARRAZOLA DANIEL","ICM B","CF41013","IPP 2025"]
[5310,"INSTITUTO NACIONAL DE PEDIATRIA","HERNANDEZ GARCIA ERNESTINA","ICM C","CF41046","2009_INGRESO ANTERIOR"]
[5311,"INSTITUTO NACIONAL DE PEDIATRIA","HERNANDEZ MARTINEZ NANCY LETICIA","NO VIGENTE","CF41046","NULL"]
[6404,"INSTITUTO NACIONAL DE PEDIATRIA","HERNANDEZ MONTOYA DEWI SHARON","ICM C","CF41046","IPP 2014"]
[7169,"INSTITUTO NACIONAL DE PEDIATRIA","HERNANDEZ URZUA ELIZABETH","A ICM B","CF41048","IPP 2023"]
[7170,"INSTITUTO NACIONAL DE PEDIATRIA","HIDALGO GARCIA FELIPE DE JESUS","BAJA","NULL","NULL"]
[5312,"INSTITUTO NACIONAL DE PEDIATRIA","HUERTA GERTRUDIS BERNARDINO","BAJA","NULL","NULL"]
[7675,"INSTITUTO NACIONAL DE PEDIATRIA","IZUNZA ALONSO OSCAR DANIEL ","NO VIGENTE","CF50000","NULL"]
[5313,"INSTITUTO NACIONAL DE PEDIATRIA","JIMENEZ BRAVO LUNA MIGUEL ANGEL","BAJA","NULL","NULL"]
[6619,"INSTITUTO NACIONAL DE PEDIATRIA","JIMENEZ TREJO FRANCISCO JAVIER","ICM C","CF41046","IPP 2015"]
[7419,"INSTITUTO NACIONAL DE PEDIATRIA","JUAREZ FIGUEROA ULISES EHATL","A ICM B","CF41048","IPP 2020"]
[6405,"INSTITUTO NACIONAL DE PEDIATRIA","JUAREZ MENDEZ SERGIO","ICM D","CF41041","IPP 2020"]
[5314,"INSTITUTO NACIONAL DE PEDIATRIA","JUAREZ OLGUIN MATEO HUGO","BAJA","NULL","NULL"]
[5315,"INSTITUTO NACIONAL DE PEDIATRIA","JUAREZ VELAZQUEZ MARIA DEL ROCIO","ICM C","CF41046","IPP 2009"]
[5316,"INSTITUTO NACIONAL DE PEDIATRIA","LABRA RUIZ NORMA ANGELICA","ICM B","CF41045","2009_INGRESO ANTERIOR"]
[7539,"INSTITUTO NACIONAL DE PEDIATRIA","LANDERO HUERTA DANIEL ADRIAN","ICM C","CF41046","IPP 2022"]
[7540,"INSTITUTO NACIONAL DE PEDIATRIA","LAOS ESPINOZA SANDRA ELIZABETH","A ICM C","CF41049","IPP 2025"]
[6945,"INSTITUTO NACIONAL DE PEDIATRIA","LLAMOSAS GALLARDO BEATRIZ ","ICM B","CF41012","IPP 2024"]
[6947,"INSTITUTO NACIONAL DE PEDIATRIA","LOPEZ CANDIANI CARLOS ","NULL","M01011","NULL"]
[5318,"INSTITUTO NACIONAL DE PEDIATRIA","LOPEZ HERRERA GABRIELA","ICM E","CF41042","IPP 2011"]
[7172,"INSTITUTO NACIONAL DE PEDIATRIA","LOPEZ MEJIA LIZBETH ALEJANDRA","ICM B","CF41045","IPP 2025"]
[7165,"INSTITUTO NACIONAL DE PEDIATRIA","LOPEZ SIMENTAL MARIA MAGDALENA","NO VIGENTE","CF50000","NULL"]
[7541,"INSTITUTO NACIONAL DE PEDIATRIA","LOPEZ SORIANO JUAN CARLOS","A ICM A","CF41047","IPP 2022"]
[5317,"INSTITUTO NACIONAL DE PEDIATRIA","LOPEZ VELAZQUEZ GABRIEL","ICM E","CF41042","2006_INGRESO ANTERIOR"]
[5319,"INSTITUTO NACIONAL DE PEDIATRIA","LOREDO ABDALA ARTURO","ICM B","CF41041","IPP 2018"]
[5386,"INSTITUTO NACIONAL DE PEDIATRIA","LUGO REYES SAUL OSWALDO","ICM C","CF41046","IPP 2012"]
[7268,"INSTITUTO NACIONAL DE PEDIATRIA","MACIAS AVILES HECTOR ALBERTO","NO VIGENTE","CF41013","NULL"]
[6332,"INSTITUTO NACIONAL DE PEDIATRIA","MACIAS PARRA MERCEDES","ICM D","KC2","IPP 2014"]
[5320,"INSTITUTO NACIONAL DE PEDIATRIA","MACIAS VEGA MIGUEL","BAJA","NULL","NULL"]
[7423,"INSTITUTO NACIONAL DE PEDIATRIA","MARCIAL QUINO JAIME","BAJA","NULL","NULL"]
[6946,"INSTITUTO NACIONAL DE PEDIATRIA","MARHX BRACHO ALFONSO","NO VIGENTE","N31","NULL"]
[6636,"INSTITUTO NACIONAL DE PEDIATRIA","MARQUEZ AGUIRRE MARTHA PATRICIA","NO VIGENTE","CF41013","NULL"]
[5321,"INSTITUTO NACIONAL DE PEDIATRIA","MARTIN MARTIN VERONICA","ICM A","CF41044","IPP 2016"]
[5322,"INSTITUTO NACIONAL DE PEDIATRIA","MARTINEZ AVILA MARCO ANTONIO","BAJA","NULL","NULL"]
[5325,"INSTITUTO NACIONAL DE PEDIATRIA","MARTINEZ CRUZ VICTOR","ICM A","CF41045","IPP 2019"]
[5323,"INSTITUTO NACIONAL DE PEDIATRIA","MARTINEZ GORDILLO MARIO NOE","ICM B","CF41045","2009_INGRESO ANTERIOR"]
[5324,"INSTITUTO NACIONAL DE PEDIATRIA","MARTINEZ VAZQUEZ ROSA IVONE","BAJA","NULL","NULL"]
[7759,"INSTITUTO NACIONAL DE PEDIATRIA","MAYORGA BUTRON JOSE LUIS","NO VIGENTE","CF50000","NULL"]
[5326,"INSTITUTO NACIONAL DE PEDIATRIA","MEDINA CORTINA JOSE HUMBERTO","BAJA","NULL","NULL"]
[6314,"INSTITUTO NACIONAL DE PEDIATRIA","MEDINA TORRES EDGAR ALEJANDRO","ICM B","CF41045","IPP 2015"]
[7173,"INSTITUTO NACIONAL DE PEDIATRIA","MEDINA VERA ISABEL DE JESUS","ICM D","CF41041","IPP 2020"]
[5327,"INSTITUTO NACIONAL DE PEDIATRIA","MENDEZ CRUZ SARA TERESA","ICM B","CF41045","2010_INGRESO ANTERIOR"]
[5328,"INSTITUTO NACIONAL DE PEDIATRIA","MENDOZA TORREBLANCA JULIETA GRISELDA","ICM C","CF41046","2010_INGRESO ANTERIOR"]
[7174,"INSTITUTO NACIONAL DE PEDIATRIA","MERIDA VIEYRA JOCELIN ARIADNE","ICM C","CF41046","IPP 2022"]
[7420,"INSTITUTO NACIONAL DE PEDIATRIA","MIRANDA RIOS JUAN","NULL","NULL","NULL"]
[5329,"INSTITUTO NACIONAL DE PEDIATRIA","MOLINA ALVAREZ BERTHA","ICM D","CF41041","2006_INGRESO ANTERIOR"]
[5330,"INSTITUTO NACIONAL DE PEDIATRIA","MOLINA ORTIZ MARIA DORA","ICM C","CF41046","IPP 2023"]
[5332,"INSTITUTO NACIONAL DE PEDIATRIA","MONTESINOS CORREA HORTENCIA","ICM B","CF41045","IPP 2025"]
[7175,"INSTITUTO NACIONAL DE PEDIATRIA","MORALES RAMIREZ ALINE","A ICM C","CF41049","IPP 2022"]
[5333,"INSTITUTO NACIONAL DE PEDIATRIA","MURATA CHIHARU","ICM C","CF41046","IPP 2010"]
[7750,"INSTITUTO NACIONAL DE PEDIATRIA","NAVA HERRERA ALBERTO ARTURO","ICM A","CF50000","IPP 2025"]
[5389,"INSTITUTO NACIONAL DE PEDIATRIA","NAVARRETE MENESES MARIA DEL PILAR","ICM C","CF41046","IPP 2012"]
[5334,"INSTITUTO NACIONAL DE PEDIATRIA","NOSTI PALACIOS ROSARIO","BAJA","NULL","NULL"]
[5335,"INSTITUTO NACIONAL DE PEDIATRIA","ORIA HERNANDEZ JESUS ANTONIO","ICM D","CF41041","IPP 2008"]
[5336,"INSTITUTO NACIONAL DE PEDIATRIA","ORTEGA CUELLAR DANIEL DAGOBERTO","ICM C","CF41046","IPP 2009"]
[5338,"INSTITUTO NACIONAL DE PEDIATRIA","ORTIZ ALEGRIA LUZ BELINDA","ICM C","CF41046","IPP 2009"]
[5337,"INSTITUTO NACIONAL DE PEDIATRIA","ORTIZ HERRERA MARIBEL","ICM A","CF41044","IPP 2011"]
[5340,"INSTITUTO NACIONAL DE PEDIATRIA","OSNAYA BRIZUELA NORMA","ICM C","CF41046","2009_INGRESO ANTERIOR"]
[5339,"INSTITUTO NACIONAL DE PEDIATRIA","OSNAYA ROMERO NEYDI","ICM B","CF41045","IPP 2023"]
[7757,"INSTITUTO NACIONAL DE PEDIATRIA","PALACIOS MACEDO QUENOT ALEXIS JAVIER ","NO VIGENTE","CF41012","NULL"]
[7267,"INSTITUTO NACIONAL DE PEDIATRIA","PARTIDA GAYTAN ARMANDO","BAJA","NULL","NULL"]
[7758,"INSTITUTO NACIONAL DE PEDIATRIA","PEREA MARTINEZ ARTURO","NO VIGENTE","CF50000","NULL"]
[7598,"INSTITUTO NACIONAL DE PEDIATRIA","PEREZ DOSAL MARCIA ROSARIO","ICM B","N31","IPP 2023"]
[5343,"INSTITUTO NACIONAL DE PEDIATRIA","PEREZ GONZALEZ ARACELI","BAJA","NULL","NULL"]
[5344,"INSTITUTO NACIONAL DE PEDIATRIA","PEREZ GONZALEZ OSCAR ALBERTO","NO VIGENTE","CF41045","NULL"]
[5341,"INSTITUTO NACIONAL DE PEDIATRIA","PEREZ GUILLE BEATRIZ EUGENIA","ICM C","CF41046","2010_INGRESO ANTERIOR"]
[5342,"INSTITUTO NACIONAL DE PEDIATRIA","PEREZ GUILLE MARIA GABRIELA","BAJA","NULL","NULL"]
[6402,"INSTITUTO NACIONAL DE PEDIATRIA","PEREZ PEÑA DIAZ CONTI MARIO","ICM C","CF50000","IPP 2025"]
[7542,"INSTITUTO NACIONAL DE PEDIATRIA","PEREZ VELAZQUEZ JESUS RICARDO","A ICM C","CF41049","IPP 2022"]
[5345,"INSTITUTO NACIONAL DE PEDIATRIA","PEREZ VERA SILVIA PATRICIA","ICM E","CF41042","2006_INGRESO ANTERIOR"]
[5346,"INSTITUTO NACIONAL DE PEDIATRIA","PHILLIPS FARFAN BRYAN VICTOR","ICM C","CF41046","IPP 2009"]
[5347,"INSTITUTO NACIONAL DE PEDIATRIA","PONCE MACOTELA MARTHA ","ICM D","CF41041","2009_INGRESO ANTERIOR"]
[7176,"INSTITUTO NACIONAL DE PEDIATRIA","RAMIREZ MARTINEZ LETICIA","BAJA","NULL","NULL"]
[5348,"INSTITUTO NACIONAL DE PEDIATRIA","RAMOS ANGELES SANDRA ELENA","ICM C","CF41046","2009_INGRESO ANTERIOR"]
[7543,"INSTITUTO NACIONAL DE PEDIATRIA","REYES JIMENEZ PEDRO VICENTE","A ICM A","CF41047","IPP 2022"]
[5349,"INSTITUTO NACIONAL DE PEDIATRIA","REYES LEON ADRIANA","ICM C","CF41046","IPP 2009"]
[5350,"INSTITUTO NACIONAL DE PEDIATRIA","REYES REYES ROSA EUGENIA","BAJA","NULL","NULL"]
[5351,"INSTITUTO NACIONAL DE PEDIATRIA","REYES VIVAS HORACIO","ICM D","CF41041","2006_INGRESO ANTERIOR"]
[6312,"INSTITUTO NACIONAL DE PEDIATRIA","REYNA FABIAN MIRIAM ERANDI","ICM C","CF41046","IPP 2013"]
[5352,"INSTITUTO NACIONAL DE PEDIATRIA","REYNOSO ROBLES RAFAEL","ICM A","CF41044","2009_INGRESO ANTERIOR"]
[5353,"INSTITUTO NACIONAL DE PEDIATRIA","RICO TORRES CLAUDIA PATRICIA","ICM C","CF41046","IPP 2009"]
[6627,"INSTITUTO NACIONAL DE PEDIATRIA","RIDAURA SANZ CECILIA","BAJA","NULL","NULL"]
[5355,"INSTITUTO NACIONAL DE PEDIATRIA","RIVERA ESPINOSA LILIANA","ICM C","CF41046","IPP 2011"]
[5354,"INSTITUTO NACIONAL DE PEDIATRIA","RIVERA GONZALEZ IVAN ROLANDO","ICM C","CF41046","2009_INGRESO ANTERIOR"]
[6637,"INSTITUTO NACIONAL DE PEDIATRIA","RIVERA LUNA ROBERTO","NULL","M01011","NULL"]
[5356,"INSTITUTO NACIONAL DE PEDIATRIA","RIVERON NEGRETE LETICIA","NO VIGENTE","CF41046","NULL"]
[6944,"INSTITUTO NACIONAL DE PEDIATRIA","ROBLES VALDES CARLOS","BAJA","NULL","NULL"]
[7154,"INSTITUTO NACIONAL DE PEDIATRIA","RODRIGUEZ CABALLERO AARON","A ICM C","CF41049","IPP 2022"]
[7177,"INSTITUTO NACIONAL DE PEDIATRIA","RODRIGUEZ FLORES MARIA BARTOLA","NO VIGENTE","CF41048","NULL"]
[5390,"INSTITUTO NACIONAL DE PEDIATRIA","RODRIGUEZ GOMEZ ALFREDO DE JESUS","NULL","NULL","NULL"]
[5357,"INSTITUTO NACIONAL DE PEDIATRIA","RODRIGUEZ LOZANO ANA LUISA","ICM C","CF41046","IPP 2020"]
[7158,"INSTITUTO NACIONAL DE PEDIATRIA","RODRIGUEZ REYES JORGE","NO VIGENTE","CF41049","NULL"]
[5358,"INSTITUTO NACIONAL DE PEDIATRIA","ROJAS CASTAÑEDA JULIO CESAR","ICM D","CF41041","2009_INGRESO ANTERIOR"]
[5359,"INSTITUTO NACIONAL DE PEDIATRIA","ROJAS OCHOA ALBERTO","NO VIGENTE","CF41046","NULL"]
[5360,"INSTITUTO NACIONAL DE PEDIATRIA","ROMO GONZALEZ CAROLINA MARIA ANTONIETA ","ICM C","CF41046","IPP 2009"]
[7179,"INSTITUTO NACIONAL DE PEDIATRIA","ROSAS LOPEZ LAURA ELIZABETH","A ICM B","CF41048","IPP 2018"]
[5361,"INSTITUTO NACIONAL DE PEDIATRIA","RUFINO GONZALEZ YADIRA","ICM C","CF41046","2009_INGRESO ANTERIOR"]
[6628,"INSTITUTO NACIONAL DE PEDIATRIA","RUIZ GARCIA MATILDE","NO VIGENTE","CF41013","NULL"]
[6351,"INSTITUTO NACIONAL DE PEDIATRIA","RUIZ MALDONADO RAMON","BAJA","NULL","NULL"]
[7600,"INSTITUTO NACIONAL DE PEDIATRIA","SAEZ DE OCARIZ GUTIERREZ MARÍA DEL MAR ","ICM A ","CF41013","IPP 2023"]
[5362,"INSTITUTO NACIONAL DE PEDIATRIA","SALAS LABADIA CONSUELO","ICM C","CF41046","2010_INGRESO ANTERIOR"]
[7753,"INSTITUTO NACIONAL DE PEDIATRIA","SALTIGERAL SIMENTAL LEONOR PATRICIA","NO VIGENTE","CF41013","NULL"]
[7148,"INSTITUTO NACIONAL DE PEDIATRIA","SANCHEZ HUERTA KARLA BERENICE ","ICM C","CF41046","IPP 2018"]
[5363,"INSTITUTO NACIONAL DE PEDIATRIA","SANCHEZ PEREZ MARIA DEL CARMEN","NO VIGENTE","CF41041","NULL"]
[5364,"INSTITUTO NACIONAL DE PEDIATRIA","SANCHEZ SANDOVAL SILVIA ROSALIA","ICM C","CF41046","IPP 2012"]
[5365,"INSTITUTO NACIONAL DE PEDIATRIA","SANTAMARIA DEL ANGEL DANIEL","NO VIGENTE","CF41046","NULL"]
[7418,"INSTITUTO NACIONAL DE PEDIATRIA","SANTES PALACIOS REBECA","ICM C","CF41046","IPP 2020"]
[7678,"INSTITUTO NACIONAL DE PEDIATRIA","SANTOS JASSO KARLA ALEJANDRA","NULL","M01004","NULL"]
[5366,"INSTITUTO NACIONAL DE PEDIATRIA","SICILIA ARGUMEDO GLORIA","NO VIGENTE","CF41045","NULL"]
[7155,"INSTITUTO NACIONAL DE PEDIATRIA","SIERRA CEDILLO JOSE ANTONIO","A ICM C","CF41049","IPP 2024"]
[5367,"INSTITUTO NACIONAL DE PEDIATRIA","SOLER LIMON KARLA MARIA","ICM A","CF41044","IPP 2019"]
[7159,"INSTITUTO NACIONAL DE PEDIATRIA","SOLORIO LOPEZ EDELMIRA","A ICM B","CF41048","IPP 2018"]
[5368,"INSTITUTO NACIONAL DE PEDIATRIA","SORIA HERNANDEZ MARIA ALEJANDRA","BAJA","NULL","NULL"]
[5369,"INSTITUTO NACIONAL DE PEDIATRIA","SORIANO ROSALES ROSA EUGENIA","ICM C","CF41046","2010_INGRESO ANTERIOR"]
[7673,"INSTITUTO NACIONAL DE PEDIATRIA","TERRAZO LLUCH JAVIER ","ICM C","CF41013","IPP 2025"]
[5370,"INSTITUTO NACIONAL DE PEDIATRIA","TIRADO GOMEZ LAURA LETICIA ","BAJA","NULL","NULL"]
[7153,"INSTITUTO NACIONAL DE PEDIATRIA","TORRES ARROYO ANGELICA","A ICM C","CF41049","IPP 2018"]
[5371,"INSTITUTO NACIONAL DE PEDIATRIA","TORRES ESPINDOLA LUZ MARIA","ICM D","CF41041","2009_INGRESO ANTERIOR"]
[5372,"INSTITUTO NACIONAL DE PEDIATRIA","TORRES MALDONADO LEDA CAROLINA","ICM D","CF41041","IPP 2015"]
[6618,"INSTITUTO NACIONAL DE PEDIATRIA","TORRES ZARATE CARMEN ARACELI","ICM A","CF41044","IPP 2019"]
[5374,"INSTITUTO NACIONAL DE PEDIATRIA","TRUJILLO JIMENEZ FRANCISCA","NO VIGENTE","CF41046","NULL"]
[5375,"INSTITUTO NACIONAL DE PEDIATRIA","VALDERRAMA HERNANDEZ ALEJANDRO","BAJA","NULL","NULL"]
[7545,"INSTITUTO NACIONAL DE PEDIATRIA","VALENZUELA MORENO LUIS FERNANDO","ICM C","CF41046","IPP 2022"]
[5376,"INSTITUTO NACIONAL DE PEDIATRIA","VALENZUELA PERAZA ARMANDO","ICM A","CF41044","IPP 2016"]
[5378,"INSTITUTO NACIONAL DE PEDIATRIA","VANOYE CARLO AMERICA","ICM C","CF41046","IPP 2009"]
[5377,"INSTITUTO NACIONAL DE PEDIATRIA","VARGAS VILLAVICENCIO JOSE ANTONIO","ICM D","CF41041","IPP 2008"]
[5379,"INSTITUTO NACIONAL DE PEDIATRIA","VELA AMIEVA MARCELA BEATRIZ","ICM D","CF41041","2009_INGRESO ANTERIOR"]
[7754,"INSTITUTO NACIONAL DE PEDIATRIA","VELASCO HIDALGO LILIANA ","ICM C","CF41013","IPP 2025"]
[5380,"INSTITUTO NACIONAL DE PEDIATRIA","VELAZQUEZ ARAGON JOSE ANTONIO","ICM D","CF41041","IPP 2012"]
[5381,"INSTITUTO NACIONAL DE PEDIATRIA","VENCES MEJIA ARACELI","ICM C","CF41046","IPP 2025"]
[5382,"INSTITUTO NACIONAL DE PEDIATRIA","VIGUERAS VILLASEÑOR ROSA MARIA","ICM D","CF41041","2012_INGRESO ANTERIOR"]
[5383,"INSTITUTO NACIONAL DE PEDIATRIA","VILLAGOMEZ MARTINEZ SANDRA MARIA","ICM B","CF41045","IPP 2024"]
[7752,"INSTITUTO NACIONAL DE PEDIATRIA","VILLASEÑOR CALOCA RAFAEL","ICM A","CF41013","IPP 2025"]
[5384,"INSTITUTO NACIONAL DE PEDIATRIA","VILLEGAS ALVAREZ FERNANDO","BAJA","NULL","NULL"]
[7751,"INSTITUTO NACIONAL DE PEDIATRIA","YAMAZAKI NAKASHIMADA MARCO ANTONIO","ICM C","CF41013","IPP 2025"]
[5385,"INSTITUTO NACIONAL DE PEDIATRIA","YOKOYAMA REBOLLAR EMIY","NULL","M01004","NULL"]
[7180,"INSTITUTO NACIONAL DE PEDIATRIA","ZAPOTECO NAVA JASBET YSABEL","A ICM B","CF41048","IPP 2022"]
[7671,"INSTITUTO NACIONAL DE PEDIATRIA","ZARATE MONDRAGON FLORA ELVA","ICM C","CF41013","IPP 2024"]
[7605,"INSTITUTO NACIONAL DE PERINATOLOGIA ISIDRO ESPINOSA DE LOS REYES","ACEVEDO GALLEGOS SANDRA","ICM C","CF50000","IPP 2023"]
[4207,"INSTITUTO NACIONAL DE PERINATOLOGIA ISIDRO ESPINOSA DE LOS REYES","ACOSTA GRANADO PEDRO MANUEL","BAJA","NULL","NULL"]
[4208,"INSTITUTO NACIONAL DE PERINATOLOGIA ISIDRO ESPINOSA DE LOS REYES","AGUILAR CARRASCO JOSE CARLOS","ICM B","CF41045","IPP 2011"]
[4209,"INSTITUTO NACIONAL DE PERINATOLOGIA ISIDRO ESPINOSA DE LOS REYES","AGUINAGA RIOS MONICA","BAJA","NULL","NULL"]
[4210,"INSTITUTO NACIONAL DE PERINATOLOGIA ISIDRO ESPINOSA DE LOS REYES","ARIAS MARTINEZ JOEL","BAJA","NULL","NULL"]
[6468,"INSTITUTO NACIONAL DE PERINATOLOGIA ISIDRO ESPINOSA DE LOS REYES","ARTEAGA GOMEZ ANA CRISTINA","BAJA","NULL","NULL"]
[4211,"INSTITUTO NACIONAL DE PERINATOLOGIA ISIDRO ESPINOSA DE LOS REYES","ARTEAGA TRONCOSO GABRIEL","NO VIGENTE","CF41041","NULL"]
[6200,"INSTITUTO NACIONAL DE PERINATOLOGIA ISIDRO ESPINOSA DE LOS REYES","AVILA GARCIA MIROSLAVA","ICM A","CF41044","IPP 2024"]
[7680,"INSTITUTO NACIONAL DE PERINATOLOGIA ISIDRO ESPINOSA DE LOS REYES","AVILA GONZALEZ DANIELA","ICM C","  CF41045","IPP 2024"]
[4212,"INSTITUTO NACIONAL DE PERINATOLOGIA ISIDRO ESPINOSA DE LOS REYES","BAPTISTA GONZALEZ HECTOR ALFREDO","BAJA","NULL","NULL"]
[6335,"INSTITUTO NACIONAL DE PERINATOLOGIA ISIDRO ESPINOSA DE LOS REYES","BELLO MUÑOZ JUAN CARLOS","BAJA","NULL","NULL"]
[4213,"INSTITUTO NACIONAL DE PERINATOLOGIA ISIDRO ESPINOSA DE LOS REYES","BERMEJO MARTINEZ LUISA BERTHA","NULL","NULL","NULL"]
[7040,"INSTITUTO NACIONAL DE PERINATOLOGIA ISIDRO ESPINOSA DE LOS REYES","BORBOA OLIVARES HECTOR JESUS ","ICM D","CFN310191","IPP 2017"]
[6862,"INSTITUTO NACIONAL DE PERINATOLOGIA ISIDRO ESPINOSA DE LOS REYES","CAMACHO ARROYO IGNACIO","ICM F","CF41043","IPP 2015"]
[7683,"INSTITUTO NACIONAL DE PERINATOLOGIA ISIDRO ESPINOSA DE LOS REYES","CANUL EUAN ARTURO ALEJANDRO","BAJA","NULL","NULL"]
[4274,"INSTITUTO NACIONAL DE PERINATOLOGIA ISIDRO ESPINOSA DE LOS REYES","CARREÑO MELENDEZ JORGE","ICM B","CF41045","IPP 2016"]
[6861,"INSTITUTO NACIONAL DE PERINATOLOGIA ISIDRO ESPINOSA DE LOS REYES","CERBON CERVANTES MARCO ANTONIO","BAJA","NULL","NULL"]
[4214,"INSTITUTO NACIONAL DE PERINATOLOGIA ISIDRO ESPINOSA DE LOS REYES","CERBULO VAZQUEZ ARTURO","BAJA","NULL","NULL"]
[4215,"INSTITUTO NACIONAL DE PERINATOLOGIA ISIDRO ESPINOSA DE LOS REYES","CHAVEZ COURTOIS MAYRA LILIA","ICM C","CF41046","2009_INGRESO ANTERIOR"]
[6396,"INSTITUTO NACIONAL DE PERINATOLOGIA ISIDRO ESPINOSA DE LOS REYES","CHICO BARBA LAURA GABRIELA","ICM C","CF41046","IPP 2014"]
[4216,"INSTITUTO NACIONAL DE PERINATOLOGIA ISIDRO ESPINOSA DE LOS REYES","CORDOVA BARRIOS ARMANDO","NO VIGENTE","CF41044","NULL"]
[6477,"INSTITUTO NACIONAL DE PERINATOLOGIA ISIDRO ESPINOSA DE LOS REYES","CORONADO ZARCO IRMA ALEJANDRA","BAJA","NULL","NULL"]
[6266,"INSTITUTO NACIONAL DE PERINATOLOGIA ISIDRO ESPINOSA DE LOS REYES","DIAZ JIMENEZ MARIA JUANA","BAJA","NULL","NULL"]
[4217,"INSTITUTO NACIONAL DE PERINATOLOGIA ISIDRO ESPINOSA DE LOS REYES","DIAZ MARTINEZ NESTOR FABIAN","ICM F","CF41043","IPP 2011"]
[6201,"INSTITUTO NACIONAL DE PERINATOLOGIA ISIDRO ESPINOSA DE LOS REYES","DOMINGUEZ CASTRO MAURICIO","ICM B","CF41045","IPP 2012"]
[6864,"INSTITUTO NACIONAL DE PERINATOLOGIA ISIDRO ESPINOSA DE LOS REYES","ESCOBEDO GUERRA MARCOS RAMSES","ICM B","CF41045","IPP 2015"]
[4218,"INSTITUTO NACIONAL DE PERINATOLOGIA ISIDRO ESPINOSA DE LOS REYES","ESPEJEL NUÑEZ AURORA","ICM C","CF41046","IPP 2009"]
[7038,"INSTITUTO NACIONAL DE PERINATOLOGIA ISIDRO ESPINOSA DE LOS REYES","ESPINO Y SOSA SALVADOR","NULL","M01011","NULL"]
[6472,"INSTITUTO NACIONAL DE PERINATOLOGIA ISIDRO ESPINOSA DE LOS REYES","ESTRADA ALTAMIRANO ARIEL","BAJA","NULL","NULL"]
[4219,"INSTITUTO NACIONAL DE PERINATOLOGIA ISIDRO ESPINOSA DE LOS REYES","ESTRADA GUTIERREZ GUADALUPE DEL CARMEN","ICM F","  CF41043","2009_INGRESO ANTERIOR"]
[4220,"INSTITUTO NACIONAL DE PERINATOLOGIA ISIDRO ESPINOSA DE LOS REYES","ESTRADA JUAREZ HIGINIO","ICM B","CF41045","IPP 2013"]
[4279,"INSTITUTO NACIONAL DE PERINATOLOGIA ISIDRO ESPINOSA DE LOS REYES","FARFAN LABONNE BLANCA EUGENIA","ICM C","CF41046","IPP 2012"]
[7037,"INSTITUTO NACIONAL DE PERINATOLOGIA ISIDRO ESPINOSA DE LOS REYES","FIGUEROA DAMIAN RICARDO","NULL","M01010","NULL"]
[4221,"INSTITUTO NACIONAL DE PERINATOLOGIA ISIDRO ESPINOSA DE LOS REYES","FLORES CISNEROS CARMEN ","NO VIGENTE","CF41044","NULL"]
[6445,"INSTITUTO NACIONAL DE PERINATOLOGIA ISIDRO ESPINOSA DE LOS REYES","FLORES ESPINOSA MARIA DEL PILAR","BAJA","NULL","NULL"]
[4222,"INSTITUTO NACIONAL DE PERINATOLOGIA ISIDRO ESPINOSA DE LOS REYES","FLORES HERRERA HECTOR","ICM D","CF41041","2009_INGRESO ANTERIOR"]
[4223,"INSTITUTO NACIONAL DE PERINATOLOGIA ISIDRO ESPINOSA DE LOS REYES","FLORES MEDINA SAUL","BAJA","NULL","NULL"]
[4224,"INSTITUTO NACIONAL DE PERINATOLOGIA ISIDRO ESPINOSA DE LOS REYES","FLORES PLIEGO ARTURO ERNESTO","ICM C","CF41046","2009_INGRESO ANTERIOR"]
[4225,"INSTITUTO NACIONAL DE PERINATOLOGIA ISIDRO ESPINOSA DE LOS REYES","FLORES QUIJANO MARIA EUGENIA","ICM C","CF41046","IPP 2014"]
[4226,"INSTITUTO NACIONAL DE PERINATOLOGIA ISIDRO ESPINOSA DE LOS REYES","GALINDO SEVILLA NORMA DEL CARMEN","ICM D","CF41041","2009_INGRESO ANTERIOR"]
[7425,"INSTITUTO NACIONAL DE PERINATOLOGIA ISIDRO ESPINOSA DE LOS REYES","GARCIA GOMEZ ELIZABETH","NULL","NULL","NULL"]
[6202,"INSTITUTO NACIONAL DE PERINATOLOGIA ISIDRO ESPINOSA DE LOS REYES","GARCIA LOPEZ GUADALUPE","ICM C","CF41046","IPP 2012"]
[4272,"INSTITUTO NACIONAL DE PERINATOLOGIA ISIDRO ESPINOSA DE LOS REYES","GARZA GORDOA MARIEN","BAJA","NULL","NULL"]
[6858,"INSTITUTO NACIONAL DE PERINATOLOGIA ISIDRO ESPINOSA DE LOS REYES","GARZA MORALES SAUL JESUS","BAJA","NULL","NULL"]
[7609,"INSTITUTO NACIONAL DE PERINATOLOGIA ISIDRO ESPINOSA DE LOS REYES","GODINES ENRIQUEZ MYRNA SOURAYE","ICM C","CFN310191","IPP 2023"]
[4227,"INSTITUTO NACIONAL DE PERINATOLOGIA ISIDRO ESPINOSA DE LOS REYES","GODINEZ MARTINEZ ESTELA YTELINA","ICM B","CF41045","IPP 2010"]
[4228,"INSTITUTO NACIONAL DE PERINATOLOGIA ISIDRO ESPINOSA DE LOS REYES","GOMEZ LOPEZ NARDHY YADIRA","BAJA","NULL","NULL"]
[4229,"INSTITUTO NACIONAL DE PERINATOLOGIA ISIDRO ESPINOSA DE LOS REYES","GONZALEZ JIMENEZ MARCO ANTONIO","BAJA","NULL","NULL"]
[7182,"INSTITUTO NACIONAL DE PERINATOLOGIA ISIDRO ESPINOSA DE LOS REYES","GONZALEZ PEREZ GABRIELA","ICM D","CF41041","IPP 2018"]
[7762,"INSTITUTO NACIONAL DE PERINATOLOGIA ISIDRO ESPINOSA DE LOS REYES","GORBEA CHAVEZ VIRIDIANA","NO VIGENTE","CFM2101057","NULL"]
[4230,"INSTITUTO NACIONAL DE PERINATOLOGIA ISIDRO ESPINOSA DE LOS REYES","GRETHER GONZALEZ PATRICIA","BAJA","NULL","NULL"]
[4231,"INSTITUTO NACIONAL DE PERINATOLOGIA ISIDRO ESPINOSA DE LOS REYES","GUERRA INFANTE FERNANDO MARTIN","ICM D","CF50000","2006_INGRESO ANTERIOR"]
[4232,"INSTITUTO NACIONAL DE PERINATOLOGIA ISIDRO ESPINOSA DE LOS REYES","GUZMAN GRENFELL ALBERTO MARTIN","BAJA","NULL","NULL"]
[6469,"INSTITUTO NACIONAL DE PERINATOLOGIA ISIDRO ESPINOSA DE LOS REYES","GUZMAN HUERTA MARIO ESTANISLAO","ICM D","CF50000","IPP 2015"]
[6392,"INSTITUTO NACIONAL DE PERINATOLOGIA ISIDRO ESPINOSA DE LOS REYES","HELGUERA REPETTO ADDY CECILIA","ICM D","CF50000","IPP 2014"]
[6859,"INSTITUTO NACIONAL DE PERINATOLOGIA ISIDRO ESPINOSA DE LOS REYES","HELLER ROUASSANT SOLANGE","BAJA","NULL","NULL"]
[4270,"INSTITUTO NACIONAL DE PERINATOLOGIA ISIDRO ESPINOSA DE LOS REYES","HERNANDEZ ANDRADE EDGAR","BAJA","NULL","NULL"]
[4233,"INSTITUTO NACIONAL DE PERINATOLOGIA ISIDRO ESPINOSA DE LOS REYES","HERNANDEZ CHAVEZ MARIA DEL CARMEN","ICM C","CF41046","IPP 2021"]
[6173,"INSTITUTO NACIONAL DE PERINATOLOGIA ISIDRO ESPINOSA DE LOS REYES","HERNANDEZ PINEDA JESSICA","ICM B","CF41045","IPP 2012"]
[4278,"INSTITUTO NACIONAL DE PERINATOLOGIA ISIDRO ESPINOSA DE LOS REYES","IBARRA PUIG JORGE MIGUEL","BAJA","NULL","NULL"]
[7041,"INSTITUTO NACIONAL DE PERINATOLOGIA ISIDRO ESPINOSA DE LOS REYES","IRLES MACHUCA CLAUDINE LILIANE","BAJA","NULL","NULL"]
[4234,"INSTITUTO NACIONAL DE PERINATOLOGIA ISIDRO ESPINOSA DE LOS REYES","JUAREZ BENGOA ARMANDO","BAJA","NULL","NULL"]
[6319,"INSTITUTO NACIONAL DE PERINATOLOGIA ISIDRO ESPINOSA DE LOS REYES","LEFF GELMAN FELIPE","ICM C","CF41046","IPP 2014"]
[6203,"INSTITUTO NACIONAL DE PERINATOLOGIA ISIDRO ESPINOSA DE LOS REYES","LEGORRETA LEGORRETA JENNIFER","BAJA","NULL","NULL"]
[6393,"INSTITUTO NACIONAL DE PERINATOLOGIA ISIDRO ESPINOSA DE LOS REYES","LEON JUAREZ MOISES","ICM D","CF41041","IPP 2014"]
[4235,"INSTITUTO NACIONAL DE PERINATOLOGIA ISIDRO ESPINOSA DE LOS REYES","LOPEZ CANALES JORGE SKIOLD","ICM C","CF41046","IPP 2009"]
[4236,"INSTITUTO NACIONAL DE PERINATOLOGIA ISIDRO ESPINOSA DE LOS REYES","LOPEZ HURTADO MARCELA","ICM D","CF41041","2009_INGRESO ANTERIOR"]
[6315,"INSTITUTO NACIONAL DE PERINATOLOGIA ISIDRO ESPINOSA DE LOS REYES","LOPEZ MARTINEZ MARGARITA","ICM C","CF41046","IPP 2013"]
[4237,"INSTITUTO NACIONAL DE PERINATOLOGIA ISIDRO ESPINOSA DE LOS REYES","LOZANO CUENCA JAIR","ICM D","CF41041","IPP 2009"]
[6395,"INSTITUTO NACIONAL DE PERINATOLOGIA ISIDRO ESPINOSA DE LOS REYES","MANCILLA HERRERA ISMAEL","ICM C","CFN310191","IPP 2014"]
[4269,"INSTITUTO NACIONAL DE PERINATOLOGIA ISIDRO ESPINOSA DE LOS REYES","MANCILLA RAMIREZ JAVIER","BAJA","NULL","NULL"]
[4238,"INSTITUTO NACIONAL DE PERINATOLOGIA ISIDRO ESPINOSA DE LOS REYES","MARTINEZ JUAREZ ALEJANDRO","ICM B","CF41045","IPP 2024"]
[6175,"INSTITUTO NACIONAL DE PERINATOLOGIA ISIDRO ESPINOSA DE LOS REYES","MARTINEZ MEDINA SANDRA","NULL","M02015","NULL"]
[4280,"INSTITUTO NACIONAL DE PERINATOLOGIA ISIDRO ESPINOSA DE LOS REYES","MARTINEZ PEÑAFIEL LILIANA","BAJA","NULL","NULL"]
[7491,"INSTITUTO NACIONAL DE PERINATOLOGIA ISIDRO ESPINOSA DE LOS REYES","MARTINEZ PORTILLA RAIGAM JAFET","BAJA","NULL","NULL"]
[4239,"INSTITUTO NACIONAL DE PERINATOLOGIA ISIDRO ESPINOSA DE LOS REYES","MARTINEZ ROJANO HUGO","BAJA","NULL","NULL"]
[4240,"INSTITUTO NACIONAL DE PERINATOLOGIA ISIDRO ESPINOSA DE LOS REYES","MARTINEZ SALAZAR MARIA GUADALUPE","ICM A ","CF41044","IPP 2023"]
[6443,"INSTITUTO NACIONAL DE PERINATOLOGIA ISIDRO ESPINOSA DE LOS REYES","MARTINEZ VILLEGAS OCTAVIO","BAJA","NULL","NULL"]
[7424,"INSTITUTO NACIONAL DE PERINATOLOGIA ISIDRO ESPINOSA DE LOS REYES","MEDINA BASTIDAS DIANA VANESSA","BAJA","NULL","NULL"]
[4241,"INSTITUTO NACIONAL DE PERINATOLOGIA ISIDRO ESPINOSA DE LOS REYES","MENDEZ CABELLO SARA","BAJA","NULL","NULL"]
[7681,"INSTITUTO NACIONAL DE PERINATOLOGIA ISIDRO ESPINOSA DE LOS REYES","MENDOZA ORTEGA JONATAN ALEJANDRO","BAJA","NULL","NULL"]
[4242,"INSTITUTO NACIONAL DE PERINATOLOGIA ISIDRO ESPINOSA DE LOS REYES","MEZA RODRIGUEZ MARIA DEL PILAR","ICM C","CF41046","IPP 2015"]
[4243,"INSTITUTO NACIONAL DE PERINATOLOGIA ISIDRO ESPINOSA DE LOS REYES","MIER CABRERA JENNIFER","BAJA","NULL","NULL"]
[4244,"INSTITUTO NACIONAL DE PERINATOLOGIA ISIDRO ESPINOSA DE LOS REYES","MOLINA HERNANDEZ ANAYANSI","ICM E","CF41042","IPP 2011"]
[6965,"INSTITUTO NACIONAL DE PERINATOLOGIA ISIDRO ESPINOSA DE LOS REYES","MONROY MUÑOZ IRMA ELOISA","ICM C","CF41046","IPP 2016"]
[6430,"INSTITUTO NACIONAL DE PERINATOLOGIA ISIDRO ESPINOSA DE LOS REYES","MONTEMAYOR VARELA ERNESTO FEDERICO","BAJA","NULL","NULL"]
[4245,"INSTITUTO NACIONAL DE PERINATOLOGIA ISIDRO ESPINOSA DE LOS REYES","MONTOYA ESTRADA ARACELI","ICM D","CF41041","IPP 2011"]
[4246,"INSTITUTO NACIONAL DE PERINATOLOGIA ISIDRO ESPINOSA DE LOS REYES","MORALES CARMONA FRANCISCO ANTONIO","BAJA","NULL","NULL"]
[7760,"INSTITUTO NACIONAL DE PERINATOLOGIA ISIDRO ESPINOSA DE LOS REYES","MORALES HERNANDEZ FELA VANESA","ICM C","  CF50000","IPP 2025"]
[6481,"INSTITUTO NACIONAL DE PERINATOLOGIA ISIDRO ESPINOSA DE LOS REYES","MORENO VERDUZCO ELSA ROMELIA","NULL","M01004","NULL"]
[4247,"INSTITUTO NACIONAL DE PERINATOLOGIA ISIDRO ESPINOSA DE LOS REYES","MOTA GONZALEZ CECILIA","ICM B","CF41045","IPP 2013"]
[4248,"INSTITUTO NACIONAL DE PERINATOLOGIA ISIDRO ESPINOSA DE LOS REYES","MUÑOZ ISLAS ENRIQUETA","BAJA","NULL","NULL"]
[6204,"INSTITUTO NACIONAL DE PERINATOLOGIA ISIDRO ESPINOSA DE LOS REYES","MUÑOZ MANRIQUE CINTHYA GUADALUPE","ICM C","CF41046","IPP 2016"]
[6431,"INSTITUTO NACIONAL DE PERINATOLOGIA ISIDRO ESPINOSA DE LOS REYES","MURGUIA PENICHE MARIA TERESA","BAJA","NULL","NULL"]
[7608,"INSTITUTO NACIONAL DE PERINATOLOGIA ISIDRO ESPINOSA DE LOS REYES","NARES TORICES MIGUEL ANGEL","ICM B","CF50000","IPP 2023"]
[4249,"INSTITUTO NACIONAL DE PERINATOLOGIA ISIDRO ESPINOSA DE LOS REYES","NAVA BENITEZ ALMA ARACELI","BAJA","NULL","NULL"]
[4250,"INSTITUTO NACIONAL DE PERINATOLOGIA ISIDRO ESPINOSA DE LOS REYES","NAVA CASTRO KAREN ELIZABETH","BAJA","NULL","NULL"]
[6444,"INSTITUTO NACIONAL DE PERINATOLOGIA ISIDRO ESPINOSA DE LOS REYES","NAVA SALAZAR SONIA","ICM C","CF41046","IPP 2016"]
[6479,"INSTITUTO NACIONAL DE PERINATOLOGIA ISIDRO ESPINOSA DE LOS REYES","NERI MENDEZ CARLOS JULIAN","BAJA","NULL","NULL"]
[7181,"INSTITUTO NACIONAL DE PERINATOLOGIA ISIDRO ESPINOSA DE LOS REYES","OLMOS ORTIZ ANDREA GUADALUPE","ICM C","CF41046","IPP 2018"]
[7548,"INSTITUTO NACIONAL DE PERINATOLOGIA ISIDRO ESPINOSA DE LOS REYES","OROZCO GUILLEN ORALIA ALEJANDRA ","NULL","M01004","NULL"]
[6863,"INSTITUTO NACIONAL DE PERINATOLOGIA ISIDRO ESPINOSA DE LOS REYES","ORTA CASTILLON LAURA","BAJA","NULL","NULL"]
[6471,"INSTITUTO NACIONAL DE PERINATOLOGIA ISIDRO ESPINOSA DE LOS REYES","ORTIZ RAMIREZ MARCO ANTONIO","BAJA","NULL","NULL"]
[4251,"INSTITUTO NACIONAL DE PERINATOLOGIA ISIDRO ESPINOSA DE LOS REYES","OSORIO VALENCIA ERIKA MARCELA","ICM C","CF41046","2009_INGRESO ANTERIOR"]
[7184,"INSTITUTO NACIONAL DE PERINATOLOGIA ISIDRO ESPINOSA DE LOS REYES","PEREZ DURAN JAVIER","ICM C","CF41046","IPP 2018"]
[4252,"INSTITUTO NACIONAL DE PERINATOLOGIA ISIDRO ESPINOSA DE LOS REYES","PERICHART PERERA OTILIA","ICM E","CF41042","2009_INGRESO ANTERIOR"]
[4253,"INSTITUTO NACIONAL DE PERINATOLOGIA ISIDRO ESPINOSA DE LOS REYES","PERRONI HERNANDEZ MARIA ESTELA","BAJA","NULL","NULL"]
[6199,"INSTITUTO NACIONAL DE PERINATOLOGIA ISIDRO ESPINOSA DE LOS REYES","PIMENTEL NIETO DIANA","NO VIGENTE","CF41045","NULL"]
[7490,"INSTITUTO NACIONAL DE PERINATOLOGIA ISIDRO ESPINOSA DE LOS REYES","PIÑA RAMIREZ OMAR","ICM C","CF41046","IPP 2021"]
[4254,"INSTITUTO NACIONAL DE PERINATOLOGIA ISIDRO ESPINOSA DE LOS REYES","PIZANO ZARATE MARIA LUISA","ICM C","CF41046","2009_INGRESO ANTERIOR"]
[6318,"INSTITUTO NACIONAL DE PERINATOLOGIA ISIDRO ESPINOSA DE LOS REYES","RAMIREZ RAMIREZ ALICIA","NO VIGENTE","CF41045","NULL"]
[7682,"INSTITUTO NACIONAL DE PERINATOLOGIA ISIDRO ESPINOSA DE LOS REYES","RAMIREZ SANTES VICTOR HUGO","NULL","M01004","NULL"]
[4255,"INSTITUTO NACIONAL DE PERINATOLOGIA ISIDRO ESPINOSA DE LOS REYES","RAZO AGUILERA GUADALUPE","NO VIGENTE","CF41046","NULL"]
[4256,"INSTITUTO NACIONAL DE PERINATOLOGIA ISIDRO ESPINOSA DE LOS REYES","REYES MUÑOZ ENRIQUE","ICM E","CF41042","IPP 2011"]
[6466,"INSTITUTO NACIONAL DE PERINATOLOGIA ISIDRO ESPINOSA DE LOS REYES","REYES PAREDES NORBERTO","BAJA","NULL","NULL"]
[6467,"INSTITUTO NACIONAL DE PERINATOLOGIA ISIDRO ESPINOSA DE LOS REYES","RODRIGUEZ BOSCH MARIO ROBERTO","BAJA","NULL","NULL"]
[7607,"INSTITUTO NACIONAL DE PERINATOLOGIA ISIDRO ESPINOSA DE LOS REYES","RODRÍGUEZ BOSCH MARIO ROBERTO","ICM C","CFN3101912","IPP 2023"]
[4257,"INSTITUTO NACIONAL DE PERINATOLOGIA ISIDRO ESPINOSA DE LOS REYES","RODRIGUEZ CANO AMEYALLI MARIANA","ICM C","CF41046","IPP 2020"]
[4153,"INSTITUTO NACIONAL DE PERINATOLOGIA ISIDRO ESPINOSA DE LOS REYES","RODRIGUEZ VENTURA ANA LILIA","ICM D","CF41041","IPP 2009"]
[6334,"INSTITUTO NACIONAL DE PERINATOLOGIA ISIDRO ESPINOSA DE LOS REYES","ROLON PORRAS MARIA CONSTANZA","BAJA","NULL","NULL"]
[7763,"INSTITUTO NACIONAL DE PERINATOLOGIA ISIDRO ESPINOSA DE LOS REYES","ROMERO MALDONADO SILVIA","ICM C","CFN3101912","IPP 2025"]
[6394,"INSTITUTO NACIONAL DE PERINATOLOGIA ISIDRO ESPINOSA DE LOS REYES","ROMO YAÑEZ JOSE","ICM C","CF41046","IPP 2014"]
[7383,"INSTITUTO NACIONAL DE PERINATOLOGIA ISIDRO ESPINOSA DE LOS REYES","SALIDO GUADARRAMA ALBERTO IVAN","ICM C","CF50000","IPP 2020"]
[4258,"INSTITUTO NACIONAL DE PERINATOLOGIA ISIDRO ESPINOSA DE LOS REYES","SAMANO SAMANO MARIA REYNA","ICM C","CF41046","2009_INGRESO ANTERIOR"]
[4275,"INSTITUTO NACIONAL DE PERINATOLOGIA ISIDRO ESPINOSA DE LOS REYES","SANCHEZ BRAVO CLAUDIA","ICM C","CF41046","IPP 2012"]
[7039,"INSTITUTO NACIONAL DE PERINATOLOGIA ISIDRO ESPINOSA DE LOS REYES","SANCHEZ GUERRA MARCO ANTONIO","ICM C","CF50000","IPP 2017"]
[4259,"INSTITUTO NACIONAL DE PERINATOLOGIA ISIDRO ESPINOSA DE LOS REYES","SANCHEZ MARTINEZ MARIBEL","ICM A","CF41044","IPP 2016"]
[4260,"INSTITUTO NACIONAL DE PERINATOLOGIA ISIDRO ESPINOSA DE LOS REYES","SCHNAAS Y ARRIETA MARIA DE LOURDES","BAJA","NULL","NULL"]
[6432,"INSTITUTO NACIONAL DE PERINATOLOGIA ISIDRO ESPINOSA DE LOS REYES","SEGOVIA NOVA SELENE MARIA DEL RAYO","BAJA","NULL","NULL"]
[4276,"INSTITUTO NACIONAL DE PERINATOLOGIA ISIDRO ESPINOSA DE LOS REYES","SEGURA CERVANTES ENRIQUE","BAJA","NULL","NULL"]
[6338,"INSTITUTO NACIONAL DE PERINATOLOGIA ISIDRO ESPINOSA DE LOS REYES","SEVILLA MONTOYA ROSALBA","ICM C","CF41046","IPP 2016"]
[4261,"INSTITUTO NACIONAL DE PERINATOLOGIA ISIDRO ESPINOSA DE LOS REYES","SIERRA RAMIREZ JOSE ALFREDO","BAJA","NULL","NULL"]
[7183,"INSTITUTO NACIONAL DE PERINATOLOGIA ISIDRO ESPINOSA DE LOS REYES","SOLIS PAREDES JUAN MARIO","ICM C","CF41046","IPP 2018"]
[7761,"INSTITUTO NACIONAL DE PERINATOLOGIA ISIDRO ESPINOSA DE LOS REYES","SOLLOZO DUPONT MARIA ISABEL","ICM C","CFN310191","IPP 2025"]
[4262,"INSTITUTO NACIONAL DE PERINATOLOGIA ISIDRO ESPINOSA DE LOS REYES","SORIANO BECERRIL DIANA MERCEDES","ICM B","CF41045","IPP 2017"]
[4263,"INSTITUTO NACIONAL DE PERINATOLOGIA ISIDRO ESPINOSA DE LOS REYES","TAPIA YAÑEZ JOSE RAMON","BAJA","NULL","NULL"]
[4264,"INSTITUTO NACIONAL DE PERINATOLOGIA ISIDRO ESPINOSA DE LOS REYES","TORRES COSME JOSE LUIS","NO VIGENTE","CF41045","NULL"]
[4265,"INSTITUTO NACIONAL DE PERINATOLOGIA ISIDRO ESPINOSA DE LOS REYES","TORRES RAMOS YESSICA DORIN","ICM D","CF41041","IPP 2009"]
[7546,"INSTITUTO NACIONAL DE PERINATOLOGIA ISIDRO ESPINOSA DE LOS REYES","TORRES TORRES JOHNATAN ","ICM C","CF50000","IPP 2022"]
[4271,"INSTITUTO NACIONAL DE PERINATOLOGIA ISIDRO ESPINOSA DE LOS REYES","TRUEBA GOMEZ ROCIO","ICM A","CF41044","IPP 2012"]
[7547,"INSTITUTO NACIONAL DE PERINATOLOGIA ISIDRO ESPINOSA DE LOS REYES","VALDESPINO VAZQUEZ MARIA YOLOTZIN","BAJA","NULL","NULL"]
[6956,"INSTITUTO NACIONAL DE PERINATOLOGIA ISIDRO ESPINOSA DE LOS REYES","VAZQUEZ MARTINEZ EDGAR RICARDO","BAJA","NULL","NULL"]
[4266,"INSTITUTO NACIONAL DE PERINATOLOGIA ISIDRO ESPINOSA DE LOS REYES","VEGA SANCHEZ RODRIGO","BAJA","NULL","NULL"]
[7606,"INSTITUTO NACIONAL DE PERINATOLOGIA ISIDRO ESPINOSA DE LOS REYES","VILLEGAS MOTA MARIA ISABEL","NULL","M01004","NULL"]
[6475,"INSTITUTO NACIONAL DE PERINATOLOGIA ISIDRO ESPINOSA DE LOS REYES","YLLESCAS MEDRANO EUCARIO","BAJA","NULL","NULL"]
[4267,"INSTITUTO NACIONAL DE PERINATOLOGIA ISIDRO ESPINOSA DE LOS REYES","ZAGA CLAVELLINA CLAUDIA VERONICA","ICM E","CFM210105","2006_INGRESO ANTERIOR"]
[6397,"INSTITUTO NACIONAL DE PERINATOLOGIA ISIDRO ESPINOSA DE LOS REYES","ZAMORA LOPEZ BEATRIZ","BAJA","NULL","NULL"]
[4659,"INSTITUTO NACIONAL DE PSIQUIATRIA RAMON DE LA FUENTE MUNIZ","AGUILAR GARCIA ALEJANDRO","ICM B","CF41045","IPP 2019"]
[4660,"INSTITUTO NACIONAL DE PSIQUIATRIA RAMON DE LA FUENTE MUNIZ","AGUILERA GUZMAN ROSA MARIA","BAJA","NULL","NULL"]
[4661,"INSTITUTO NACIONAL DE PSIQUIATRIA RAMON DE LA FUENTE MUNIZ","AGUILLON PANTALEON MIGUEL ANGEL","BAJA","NULL","NULL"]
[7273,"INSTITUTO NACIONAL DE PSIQUIATRIA RAMON DE LA FUENTE MUNIZ","ALARCON ELIZALDE SALVADOR","NULL","M02003","NULL"]
[7042,"INSTITUTO NACIONAL DE PSIQUIATRIA RAMON DE LA FUENTE MUNIZ","ALCALA LOZANO RUTH","ICM C","CF41046","IPP 2017"]
[4662,"INSTITUTO NACIONAL DE PSIQUIATRIA RAMON DE LA FUENTE MUNIZ","ALMANZA GUTIERREZ MARIA ANGELICA","ICM C","CF41046","IPP 2009"]
[4663,"INSTITUTO NACIONAL DE PSIQUIATRIA RAMON DE LA FUENTE MUNIZ","ALMAZAN ALVARADO SALVADOR","ICM B","CF50000","IPP 2025"]
[7430,"INSTITUTO NACIONAL DE PSIQUIATRIA RAMON DE LA FUENTE MUNIZ","ALVAREZ ICAZA GONZALEZ DENI DEL CARMEN","BAJA","NULL","NULL"]
[6970,"INSTITUTO NACIONAL DE PSIQUIATRIA RAMON DE LA FUENTE MUNIZ","ALVAREZ SALAS ELENA","ICM C","CF41046","IPP 2016"]
[4664,"INSTITUTO NACIONAL DE PSIQUIATRIA RAMON DE LA FUENTE MUNIZ","AMADOR BUENABAD NANCY GIGLIOLA","ICM B","CF41045","IPP 2009"]
[7044,"INSTITUTO NACIONAL DE PSIQUIATRIA RAMON DE LA FUENTE MUNIZ","ANGELES LOPEZ GUADALUPE ESTHER","BAJA","NULL","NULL"]
[4665,"INSTITUTO NACIONAL DE PSIQUIATRIA RAMON DE LA FUENTE MUNIZ","ANTON PALMA BENITO","BAJA","NULL","NULL"]
[4666,"INSTITUTO NACIONAL DE PSIQUIATRIA RAMON DE LA FUENTE MUNIZ","ARREOLA ALEMON RODRIGO","ICM C","CF41046","IPP 2011"]
[4667,"INSTITUTO NACIONAL DE PSIQUIATRIA RAMON DE LA FUENTE MUNIZ","ASAI CAMACHO MIGUEL","NO VIGENTE","CF41043","NULL"]
[7213,"INSTITUTO NACIONAL DE PSIQUIATRIA RAMON DE LA FUENTE MUNIZ","ASTUDILLO GARCIA CLAUDIA IVETH","ICM C","CF41046","IPP 2018"]
[7272,"INSTITUTO NACIONAL DE PSIQUIATRIA RAMON DE LA FUENTE MUNIZ","BARBOSA MENDEZ SUSANA","A ICM B","CF41048","IPP 2022"]
[7073,"INSTITUTO NACIONAL DE PSIQUIATRIA RAMON DE LA FUENTE MUNIZ","BECERRA PALARS CLAUDIA ","ICM C","CFM2101030","IPP 2018"]
[4668,"INSTITUTO NACIONAL DE PSIQUIATRIA RAMON DE LA FUENTE MUNIZ","BECERRIL VILLANUEVA LUIS ENRIQUE","ICM B","CF41045","IPP 2008"]
[4669,"INSTITUTO NACIONAL DE PSIQUIATRIA RAMON DE LA FUENTE MUNIZ","BENITEZ KING GLORIA ACACIA","ICM F","CF41043","2006_INGRESO ANTERIOR"]
[4670,"INSTITUTO NACIONAL DE PSIQUIATRIA RAMON DE LA FUENTE MUNIZ","BENJET CORINA LENORA","ICM F","CF41043","2006_INGRESO ANTERIOR"]
[4671,"INSTITUTO NACIONAL DE PSIQUIATRIA RAMON DE LA FUENTE MUNIZ","BERENZON GORN SHOSHANA","ICM E","CFM2101030","2009_INGRESO ANTERIOR"]
[4672,"INSTITUTO NACIONAL DE PSIQUIATRIA RAMON DE LA FUENTE MUNIZ","BERLANGA CISNEROS CARLOS HERNAN","BAJA","NULL","NULL"]
[7278,"INSTITUTO NACIONAL DE PSIQUIATRIA RAMON DE LA FUENTE MUNIZ","BUSTOS GAMIÑO MARYCARMEN NOEMI","A ICM C","CF41049","IPP 2019"]
[4673,"INSTITUTO NACIONAL DE PSIQUIATRIA RAMON DE LA FUENTE MUNIZ","CABALLERO GUTIERREZ MIGUEL ANGEL","NO VIGENTE","CF41045","NULL"]
[4674,"INSTITUTO NACIONAL DE PSIQUIATRIA RAMON DE LA FUENTE MUNIZ","CABRERA MUÑOZ EDITH ARACELI","ICM B","CF41045","IPP 2025"]
[4675,"INSTITUTO NACIONAL DE PSIQUIATRIA RAMON DE LA FUENTE MUNIZ","CALIXTO GONZALEZ JAIME EDUARDO","ICM C","CF50000","2009_INGRESO ANTERIOR"]
[4676,"INSTITUTO NACIONAL DE PSIQUIATRIA RAMON DE LA FUENTE MUNIZ","CAMARENA MEDELLIN BEATRIZ ELENA","ICM E","CF50000","2006_INGRESO ANTERIOR"]
[4677,"INSTITUTO NACIONAL DE PSIQUIATRIA RAMON DE LA FUENTE MUNIZ","CARAVEO Y ANDUAGA JORGE JAVIER","ICM F","CF41043","2006_INGRESO ANTERIOR"]
[4678,"INSTITUTO NACIONAL DE PSIQUIATRIA RAMON DE LA FUENTE MUNIZ","CARREÑO GARCIA MARIA SILVIA","ICM C","CF41046","IPP 2021"]
[4679,"INSTITUTO NACIONAL DE PSIQUIATRIA RAMON DE LA FUENTE MUNIZ","CASANOVA RODAS LETICIA","NO VIGENTE","CF41046","NULL"]
[4680,"INSTITUTO NACIONAL DE PSIQUIATRIA RAMON DE LA FUENTE MUNIZ","CASTRO GARCIA MARIO","ICM A","CF41044","IPP 2014"]
[4681,"INSTITUTO NACIONAL DE PSIQUIATRIA RAMON DE LA FUENTE MUNIZ","CERDA MOLINA ANA LILIA","ICM D","CF41041","IPP 2008"]
[7684,"INSTITUTO NACIONAL DE PSIQUIATRIA RAMON DE LA FUENTE MUNIZ","CHAN MONROY JESSICA MONTSERRAT","A ICM B","CF41048","IPP 2024"]
[4683,"INSTITUTO NACIONAL DE PSIQUIATRIA RAMON DE LA FUENTE MUNIZ","CHIAPPA CARRARA MARIA DEL PILAR","ICM A ","CF50000","IPP 2023"]
[4684,"INSTITUTO NACIONAL DE PSIQUIATRIA RAMON DE LA FUENTE MUNIZ","COFFEEN MEDINA ULISES REGINALDO","ICM C","CF41046","2009_INGRESO ANTERIOR"]
[7217,"INSTITUTO NACIONAL DE PSIQUIATRIA RAMON DE LA FUENTE MUNIZ","CORTES MEDA GABRIELA MARIA","NO VIGENTE","CF41013","NULL"]
[4685,"INSTITUTO NACIONAL DE PSIQUIATRIA RAMON DE LA FUENTE MUNIZ","CRUZ AGUILAR MANUEL ALEJANDRO","ICM C","CF41046","IPP 2019"]
[4686,"INSTITUTO NACIONAL DE PSIQUIATRIA RAMON DE LA FUENTE MUNIZ","CRUZ FUENTES CARLOS SABAS","ICM E","CF50000","2006_INGRESO ANTERIOR"]
[7270,"INSTITUTO NACIONAL DE PSIQUIATRIA RAMON DE LA FUENTE MUNIZ","CRUZ LOPEZ BEATRIZ","A ICM B","CF41048","IPP 2019"]
[4687,"INSTITUTO NACIONAL DE PSIQUIATRIA RAMON DE LA FUENTE MUNIZ","DE GORTARI GALLARDO PATRICIA BERTHA JUDITH","ICM E","CF41042","2006_INGRESO ANTERIOR"]
[4688,"INSTITUTO NACIONAL DE PSIQUIATRIA RAMON DE LA FUENTE MUNIZ","DE LA PEÑA OLVERA FRANCISCO RAFAEL","ICM D","CF41004","2006_INGRESO ANTERIOR"]
[4689,"INSTITUTO NACIONAL DE PSIQUIATRIA RAMON DE LA FUENTE MUNIZ","DIAZ ANZALDUA ADRIANA","ICM D","CF41041","IPP 2008"]
[6986,"INSTITUTO NACIONAL DE PSIQUIATRIA RAMON DE LA FUENTE MUNIZ","DIAZ CASTRO LINA","ICM D","CF41041","IPP 2016"]
[4690,"INSTITUTO NACIONAL DE PSIQUIATRIA RAMON DE LA FUENTE MUNIZ","DIAZ MARTINEZ LEONILA ROSA","BAJA","NULL","NULL"]
[4691,"INSTITUTO NACIONAL DE PSIQUIATRIA RAMON DE LA FUENTE MUNIZ","DOMINGUEZ GARCIA MARIO JOAQUIN","ICM B","CF41045","IPP 2014"]
[7429,"INSTITUTO NACIONAL DE PSIQUIATRIA RAMON DE LA FUENTE MUNIZ","DOMINGUEZ MARTINEZ TECELLI","ICM D","CF41041","IPP 2020"]
[7218,"INSTITUTO NACIONAL DE PSIQUIATRIA RAMON DE LA FUENTE MUNIZ","DURAND ARIAS SOL","ICM C","CF41013","IPP 2025"]
[7074,"INSTITUTO NACIONAL DE PSIQUIATRIA RAMON DE LA FUENTE MUNIZ","ESCAMILLA OROZCO RAUL IVAN","ICM C","CFN3101914","IPP 2018"]
[6897,"INSTITUTO NACIONAL DE PSIQUIATRIA RAMON DE LA FUENTE MUNIZ","ESQUIVIAS ZAVALA HECTOR VALENTIN","NO VIGENTE","CF50000","NULL"]
[4692,"INSTITUTO NACIONAL DE PSIQUIATRIA RAMON DE LA FUENTE MUNIZ","ESTRADA CAMARENA ERIKA MONSERRAT","ICM E","CF41042","IPP 2008"]
[4693,"INSTITUTO NACIONAL DE PSIQUIATRIA RAMON DE LA FUENTE MUNIZ","ESTRADA REYES ROSA","ICM C","CF41046","2009_INGRESO ANTERIOR"]
[4694,"INSTITUTO NACIONAL DE PSIQUIATRIA RAMON DE LA FUENTE MUNIZ","FERNANDEZ MAS RODRIGO","BAJA","NULL","NULL"]
[4695,"INSTITUTO NACIONAL DE PSIQUIATRIA RAMON DE LA FUENTE MUNIZ","FLEIZ BAUTISTA CLARA MACEDONIA","ICM D","CF41041","2009_INGRESO ANTERIOR"]
[4696,"INSTITUTO NACIONAL DE PSIQUIATRIA RAMON DE LA FUENTE MUNIZ","FLORES GUTIERREZ ENRIQUE OCTAVIO","NO VIGENTE","CF41046","NULL"]
[4273,"INSTITUTO NACIONAL DE PSIQUIATRIA RAMON DE LA FUENTE MUNIZ","FLORES RAMOS MONICA","ICM D","CF41041","IPP 2024"]
[4697,"INSTITUTO NACIONAL DE PSIQUIATRIA RAMON DE LA FUENTE MUNIZ","FLORES ZAMORA ANABEL","ICM A","CF41044","IPP 2024"]
[4698,"INSTITUTO NACIONAL DE PSIQUIATRIA RAMON DE LA FUENTE MUNIZ","FRESAN ORELLANA ANA","ICM D","CF41041","2009_INGRESO ANTERIOR"]
[7046,"INSTITUTO NACIONAL DE PSIQUIATRIA RAMON DE LA FUENTE MUNIZ","FUENTES AQUINO PATRICIA MARIA DEL CARMEN","ICM C","CF50000","IPP 2024"]
[4699,"INSTITUTO NACIONAL DE PSIQUIATRIA RAMON DE LA FUENTE MUNIZ","GALVAN REYES JORGE","ICM D","CF41041","2006_INGRESO ANTERIOR"]
[4700,"INSTITUTO NACIONAL DE PSIQUIATRIA RAMON DE LA FUENTE MUNIZ","GARCIA ANAYA MARIA DE LOURDES","ICM C","CF41046","IPP 2022"]
[4701,"INSTITUTO NACIONAL DE PSIQUIATRIA RAMON DE LA FUENTE MUNIZ","GARCIA SILBERMAN SARA","BAJA","NULL","NULL"]
[6968,"INSTITUTO NACIONAL DE PSIQUIATRIA RAMON DE LA FUENTE MUNIZ","GARZA VILLARREAL EDUARDO ADRIAN","BAJA","NULL","NULL"]
[4702,"INSTITUTO NACIONAL DE PSIQUIATRIA RAMON DE LA FUENTE MUNIZ","GAYTAN FLORES FILIBERTO ITZCOATL","ICM A","CF41044","IPP 2024"]
[4703,"INSTITUTO NACIONAL DE PSIQUIATRIA RAMON DE LA FUENTE MUNIZ","GONZALEZ FORTEZA CATALINA FRANCISCA","ICM F","CF41043","2006_INGRESO ANTERIOR"]
[7431,"INSTITUTO NACIONAL DE PSIQUIATRIA RAMON DE LA FUENTE MUNIZ","GONZALEZ MACIAS LAURA","BAJA","NULL","NULL"]
[4705,"INSTITUTO NACIONAL DE PSIQUIATRIA RAMON DE LA FUENTE MUNIZ","GONZALEZ TRUJANO MARIA EVA","ICM E","CF41042","2009_INGRESO ANTERIOR"]
[4706,"INSTITUTO NACIONAL DE PSIQUIATRIA RAMON DE LA FUENTE MUNIZ","GUERRERO CERCOS MONTSERRAT","ICM C","CF41046","IPP 2009"]
[4707,"INSTITUTO NACIONAL DE PSIQUIATRIA RAMON DE LA FUENTE MUNIZ","GUIMARAES BORGES GUILHERME LUIZ","EMERITO","CF41043","2006_INGRESO ANTERIOR"]
[4708,"INSTITUTO NACIONAL DE PSIQUIATRIA RAMON DE LA FUENTE MUNIZ","GUTIERREZ BENJAMIN RAFAEL","NO VIGENTE","CF41046","NULL"]
[4709,"INSTITUTO NACIONAL DE PSIQUIATRIA RAMON DE LA FUENTE MUNIZ","GUTIERREZ LOPEZ MARIA DE LOURDES","NO VIGENTE","CF41045","NULL"]
[4710,"INSTITUTO NACIONAL DE PSIQUIATRIA RAMON DE LA FUENTE MUNIZ","GUTIERREZ REYNAGA REYNA ALMA","ICM C","CF41046","IPP 2015"]
[4711,"INSTITUTO NACIONAL DE PSIQUIATRIA RAMON DE LA FUENTE MUNIZ","HERNANDEZ CALDERON JORGE ALBERTO","ICM A","CF41044","IPP 2025"]
[4712,"INSTITUTO NACIONAL DE PSIQUIATRIA RAMON DE LA FUENTE MUNIZ","HERNANDEZ FONSECA KARLA","ICM C","CF41046","IPP 2025"]
[4713,"INSTITUTO NACIONAL DE PSIQUIATRIA RAMON DE LA FUENTE MUNIZ","HERNANDEZ GUTIERREZ MARIA EUGENIA","NO VIGENTE","CF41041","NULL"]
[7280,"INSTITUTO NACIONAL DE PSIQUIATRIA RAMON DE LA FUENTE MUNIZ","HERNANDEZ LEON ALBERTO","ICM C","CF41046","IPP 2022"]
[4714,"INSTITUTO NACIONAL DE PSIQUIATRIA RAMON DE LA FUENTE MUNIZ","HERNANDEZ LOPEZ LEONOR ESTELA","ICM C","CF41046","2009_INGRESO ANTERIOR"]
[7281,"INSTITUTO NACIONAL DE PSIQUIATRIA RAMON DE LA FUENTE MUNIZ","HERNANDEZ MELESIO MARIA DE LA PAZ ALEJANDRA","NO VIGENTE","CF41048","NULL"]
[7550,"INSTITUTO NACIONAL DE PSIQUIATRIA RAMON DE LA FUENTE MUNIZ","HERNANDEZ MIRAMONTES RICARDO JESUS","A ICM C","CF41049","IPP 2022"]
[6969,"INSTITUTO NACIONAL DE PSIQUIATRIA RAMON DE LA FUENTE MUNIZ","HERNANDEZ MUÑOZ SANDRA","BAJA","NULL","NULL"]
[7078,"INSTITUTO NACIONAL DE PSIQUIATRIA RAMON DE LA FUENTE MUNIZ","HERRERA PEREZ JOSE JAIME","ICM C","CF41046","IPP 2019"]
[7426,"INSTITUTO NACIONAL DE PSIQUIATRIA RAMON DE LA FUENTE MUNIZ","ISLAS PRECIADO DANNIA MELINE","ICM C","CF41046","IPP 2020"]
[7072,"INSTITUTO NACIONAL DE PSIQUIATRIA RAMON DE LA FUENTE MUNIZ","JIMENEZ GENCHI ALEJANDRO MARCELINO","NULL","M01011","NULL"]
[4715,"INSTITUTO NACIONAL DE PSIQUIATRIA RAMON DE LA FUENTE MUNIZ","JIMENEZ RUBIO GRACIELA","ICM C","CF41046","IPP 2017"]
[4716,"INSTITUTO NACIONAL DE PSIQUIATRIA RAMON DE LA FUENTE MUNIZ","JIMENEZ TAPIA JOSE ALBERTO","ICM C","CF41046","2009_INGRESO ANTERIOR"]
[4717,"INSTITUTO NACIONAL DE PSIQUIATRIA RAMON DE LA FUENTE MUNIZ","JUAREZ GARCIA FRANCISCO LORENZO","ICM D","CF41041","2009_INGRESO ANTERIOR"]
[4718,"INSTITUTO NACIONAL DE PSIQUIATRIA RAMON DE LA FUENTE MUNIZ","LARA CANTU MARIA ASUNCION","ICM E","CF50000","2006_INGRESO ANTERIOR"]
[4719,"INSTITUTO NACIONAL DE PSIQUIATRIA RAMON DE LA FUENTE MUNIZ","LEON OLEA MARTHA MARIA DE LA SALUD","ICM E","CF50000","2006_INGRESO ANTERIOR"]
[4720,"INSTITUTO NACIONAL DE PSIQUIATRIA RAMON DE LA FUENTE MUNIZ","LOPEZ AVILA JORGE ALBERTO","BAJA","NULL","NULL"]
[4721,"INSTITUTO NACIONAL DE PSIQUIATRIA RAMON DE LA FUENTE MUNIZ","LOPEZ JIMENEZ JORGE LUIS","NO VIGENTE","CF41041","NULL"]
[7216,"INSTITUTO NACIONAL DE PSIQUIATRIA RAMON DE LA FUENTE MUNIZ","MADRIGAL DE LEON EDUARDO ANGEL","ICM B","CFK2252339","IPP 2025"]
[4722,"INSTITUTO NACIONAL DE PSIQUIATRIA RAMON DE LA FUENTE MUNIZ","MAGDALENO MADRIGAL VICTOR MANUEL","ICM C","CF41046","IPP 2008"]
[4775,"INSTITUTO NACIONAL DE PSIQUIATRIA RAMON DE LA FUENTE MUNIZ","MARIA ALEJANDRA SORIANO RODRIGUEZ","BAJA","NULL","NULL"]
[4723,"INSTITUTO NACIONAL DE PSIQUIATRIA RAMON DE LA FUENTE MUNIZ","MARIN NAVARRETE RODRIGO ALONZO","BAJA","NULL","NULL"]
[7433,"INSTITUTO NACIONAL DE PSIQUIATRIA RAMON DE LA FUENTE MUNIZ","MARTINEZ CAMARILLO SARA","BAJA","NULL","NULL"]
[4724,"INSTITUTO NACIONAL DE PSIQUIATRIA RAMON DE LA FUENTE MUNIZ","MARTINEZ CERVANTES ADRIAN","BAJA","NULL","NULL"]
[4725,"INSTITUTO NACIONAL DE PSIQUIATRIA RAMON DE LA FUENTE MUNIZ","MARTINEZ LEVY GABRIELA ARIADNA","ICM C","CF41046","IPP 2009"]
[6308,"INSTITUTO NACIONAL DE PSIQUIATRIA RAMON DE LA FUENTE MUNIZ","MARTINEZ LOPEZ JOSE NICOLAS IVAN","ICM C","CF41046","IPP 2013"]
[4726,"INSTITUTO NACIONAL DE PSIQUIATRIA RAMON DE LA FUENTE MUNIZ","MARTINEZ MARTINEZ ANA LAURA","BAJA","NULL","NULL"]
[4727,"INSTITUTO NACIONAL DE PSIQUIATRIA RAMON DE LA FUENTE MUNIZ","MARTINEZ MARTINEZ ROSARIO","BAJA","NULL","NULL"]
[4728,"INSTITUTO NACIONAL DE PSIQUIATRIA RAMON DE LA FUENTE MUNIZ","MARTINEZ MOTA LUCIA ALBA","ICM D","CFN3101914","2009_INGRESO ANTERIOR"]
[4729,"INSTITUTO NACIONAL DE PSIQUIATRIA RAMON DE LA FUENTE MUNIZ","MARTINEZ VARGAS DAVID","ICM C","CF41046","IPP 2008"]
[4730,"INSTITUTO NACIONAL DE PSIQUIATRIA RAMON DE LA FUENTE MUNIZ","MARTINEZ VELEZ NORA ANGELICA","ICM B","CF41045","IPP 2016"]
[7043,"INSTITUTO NACIONAL DE PSIQUIATRIA RAMON DE LA FUENTE MUNIZ","MARTIÑON GUTIERREZ SILVIA SUSANA","ICM C","CF41046","IPP 2017"]
[4731,"INSTITUTO NACIONAL DE PSIQUIATRIA RAMON DE LA FUENTE MUNIZ","MATAMOROS TREJO GILBERTO JUAN","ICM A","CF41044","IPP 2016"]
[4732,"INSTITUTO NACIONAL DE PSIQUIATRIA RAMON DE LA FUENTE MUNIZ","MATUS ORTEGA MAURA EPIFANIA","ICM A","CF41046","IPP 2018"]
[4733,"INSTITUTO NACIONAL DE PSIQUIATRIA RAMON DE LA FUENTE MUNIZ","MAYAGOITIA NOVALES LILIAN","NO VIGENTE","CF41041","NULL"]
[4734,"INSTITUTO NACIONAL DE PSIQUIATRIA RAMON DE LA FUENTE MUNIZ","MEDINA MORA ICAZA MARIA ELENA TERESA","EMERITO","CF41090","2006_INGRESO ANTERIOR"]
[7271,"INSTITUTO NACIONAL DE PSIQUIATRIA RAMON DE LA FUENTE MUNIZ","MEJIA MAURIES SILVIA ROCIO","A ICM C","CF41049","IPP 2025"]
[4735,"INSTITUTO NACIONAL DE PSIQUIATRIA RAMON DE LA FUENTE MUNIZ","MENDEZ UBACH MILAGROS","BAJA","NULL","NULL"]
[4736,"INSTITUTO NACIONAL DE PSIQUIATRIA RAMON DE LA FUENTE MUNIZ","MERCADO ACA FRANCISCO SALVADOR","ICM D","CF41041","IPP 2009"]
[4737,"INSTITUTO NACIONAL DE PSIQUIATRIA RAMON DE LA FUENTE MUNIZ","MILLER PEREZ CAROLINA","NO VIGENTE","CF41046","NULL"]
[4738,"INSTITUTO NACIONAL DE PSIQUIATRIA RAMON DE LA FUENTE MUNIZ","MONDRAGON BARRIOS LILIANA","ICM D","CF41041","2009_INGRESO ANTERIOR"]
[4739,"INSTITUTO NACIONAL DE PSIQUIATRIA RAMON DE LA FUENTE MUNIZ","MONDRAGON CEBALLOS RICARDO","NO VIGENTE","CF41042","NULL"]
[4740,"INSTITUTO NACIONAL DE PSIQUIATRIA RAMON DE LA FUENTE MUNIZ","MORA RIOS ELIA JAZMIN","ICM D","CF41041","2009_INGRESO ANTERIOR"]
[4741,"INSTITUTO NACIONAL DE PSIQUIATRIA RAMON DE LA FUENTE MUNIZ","MORALES MULIA MARCELA MARGARITA","ICM D","CF41041","2009_INGRESO ANTERIOR"]
[7428,"INSTITUTO NACIONAL DE PSIQUIATRIA RAMON DE LA FUENTE MUNIZ","MORELOS SANTANA ERIK DANIEL","ICM A","CF41044","IPP 2020"]
[4742,"INSTITUTO NACIONAL DE PSIQUIATRIA RAMON DE LA FUENTE MUNIZ","MORENO AGUILAR JULIA","BAJA","NULL","NULL"]
[4743,"INSTITUTO NACIONAL DE PSIQUIATRIA RAMON DE LA FUENTE MUNIZ","MORENO LOPEZ MIDIAM","ICM B","CF41045","IPP 2020"]
[4744,"INSTITUTO NACIONAL DE PSIQUIATRIA RAMON DE LA FUENTE MUNIZ","MUCIO RAMIREZ JOSE SAMUEL","ICM A ","CF41046","IPP 2023"]
[4745,"INSTITUTO NACIONAL DE PSIQUIATRIA RAMON DE LA FUENTE MUNIZ","MUÑOZ DELGADO JAIRO IGNACIO","ICM D","CF41041","2006_INGRESO ANTERIOR"]
[7045,"INSTITUTO NACIONAL DE PSIQUIATRIA RAMON DE LA FUENTE MUNIZ","MUÑOZ SUAREZ MANUEL ALEJANDRO ","ICM A","CFN3101914","IPP 2022"]
[4746,"INSTITUTO NACIONAL DE PSIQUIATRIA RAMON DE LA FUENTE MUNIZ","NATERA REY GUILLERMINA","BAJA","NULL","NULL"]
[4747,"INSTITUTO NACIONAL DE PSIQUIATRIA RAMON DE LA FUENTE MUNIZ","NAVARRETE REYES LAURA ELENA","ICM C","CF41046","IPP 2009"]
[4748,"INSTITUTO NACIONAL DE PSIQUIATRIA RAMON DE LA FUENTE MUNIZ","NAVARRO GUZMAN CLAUDIA","BAJA","NULL","NULL"]
[6582,"INSTITUTO NACIONAL DE PSIQUIATRIA RAMON DE LA FUENTE MUNIZ","NIETO GARCIA MARIA DE LOURDES","ICM C","CF41046","IPP 2016"]
[4749,"INSTITUTO NACIONAL DE PSIQUIATRIA RAMON DE LA FUENTE MUNIZ","OROZCO ZAVALA RICARDO","ICM D","CF41041","IPP 2009"]
[4750,"INSTITUTO NACIONAL DE PSIQUIATRIA RAMON DE LA FUENTE MUNIZ","ORTIZ CASTRO JOSE ARTURO RODOLFO","NO VIGENTE","CF41046","NULL"]
[4751,"INSTITUTO NACIONAL DE PSIQUIATRIA RAMON DE LA FUENTE MUNIZ","PALACIOS CRUZ LINO","ICM D","CF41041","IPP 2020"]
[4752,"INSTITUTO NACIONAL DE PSIQUIATRIA RAMON DE LA FUENTE MUNIZ","PAVON ROMERO LENIN","ICM E","CF41042","2006_INGRESO ANTERIOR"]
[4753,"INSTITUTO NACIONAL DE PSIQUIATRIA RAMON DE LA FUENTE MUNIZ","PELLICER GRAHAM FRANCISCO JULIO","ICM F","CF41043","2006_INGRESO ANTERIOR"]
[7549,"INSTITUTO NACIONAL DE PSIQUIATRIA RAMON DE LA FUENTE MUNIZ","PEREZ CARMONA FRANCISCO ISAAC","NO VIGENTE","CF41049","NULL"]
[6967,"INSTITUTO NACIONAL DE PSIQUIATRIA RAMON DE LA FUENTE MUNIZ","PEREZ SANCHEZ GILBERTO","ICM D","CF41041","IPP 2016"]
[4754,"INSTITUTO NACIONAL DE PSIQUIATRIA RAMON DE LA FUENTE MUNIZ","RAMIREZ RODRIGUEZ GERARDO BERNABE","ICM F","CF41043","2009_INGRESO ANTERIOR"]
[4755,"INSTITUTO NACIONAL DE PSIQUIATRIA RAMON DE LA FUENTE MUNIZ","RAMIREZ SALADO IGNACIO","ICM C","CF41046","IPP 2022"]
[7686,"INSTITUTO NACIONAL DE PSIQUIATRIA RAMON DE LA FUENTE MUNIZ","RAMOS CRUZ MAURICIO","NO VIGENTE","CF41049","NULL"]
[4756,"INSTITUTO NACIONAL DE PSIQUIATRIA RAMON DE LA FUENTE MUNIZ","RAMOS LIRA LUCIANA ESTHER","ICM F","CF41043","2006_INGRESO ANTERIOR"]
[4757,"INSTITUTO NACIONAL DE PSIQUIATRIA RAMON DE LA FUENTE MUNIZ","RASCON GASCA MARIA LUISA","NO VIGENTE","CF41042","NULL"]
[4758,"INSTITUTO NACIONAL DE PSIQUIATRIA RAMON DE LA FUENTE MUNIZ","REAL QUINTANAR TANIA","ICM B","CF41045","IPP 2010"]
[4759,"INSTITUTO NACIONAL DE PSIQUIATRIA RAMON DE LA FUENTE MUNIZ","RIVERA GARCIA ANA PAULA","ICM C","CF41046","IPP 2009"]
[4760,"INSTITUTO NACIONAL DE PSIQUIATRIA RAMON DE LA FUENTE MUNIZ","ROBLES GARCIA REBECA","ICM F","CF41043","IPP 2009"]
[4761,"INSTITUTO NACIONAL DE PSIQUIATRIA RAMON DE LA FUENTE MUNIZ","RODRIGUEZ RUIZ EVA MA. DEL ROSARIO","NO VIGENTE","CF41045","NULL"]
[4762,"INSTITUTO NACIONAL DE PSIQUIATRIA RAMON DE LA FUENTE MUNIZ","ROJAS GUIOT MARIA LUISA ESTELA","BAJA","NULL","NULL"]
[4763,"INSTITUTO NACIONAL DE PSIQUIATRIA RAMON DE LA FUENTE MUNIZ","ROMERO MENDOZA MARTHA PATRICIA","ICM F","CF41043","2009_INGRESO ANTERIOR"]
[4764,"INSTITUTO NACIONAL DE PSIQUIATRIA RAMON DE LA FUENTE MUNIZ","RUIZ CORTES EUNICE MAGDALENA","ICM A","CF41044","IPP 2021"]
[4765,"INSTITUTO NACIONAL DE PSIQUIATRIA RAMON DE LA FUENTE MUNIZ","SAAVEDRA SOLANO NAYELHI ITANDEHUI","ICM C","CF41046","IPP 2016"]
[4766,"INSTITUTO NACIONAL DE PSIQUIATRIA RAMON DE LA FUENTE MUNIZ","SALAZAR JUAREZ ALBERTO","ICM D","CF41041","IPP 2008"]
[4767,"INSTITUTO NACIONAL DE PSIQUIATRIA RAMON DE LA FUENTE MUNIZ","SALDIVAR HERNANDEZ GABRIELA JOSEFINA","NO VIGENTE","CF41041","NULL"]
[4768,"INSTITUTO NACIONAL DE PSIQUIATRIA RAMON DE LA FUENTE MUNIZ","SALTIJERAL MENDEZ MARIA TERESA","BAJA","NULL","NULL"]
[7685,"INSTITUTO NACIONAL DE PSIQUIATRIA RAMON DE LA FUENTE MUNIZ","SANABRAIS JIMENEZ MARCO ANTONIO ","ICM C","CF41046","IPP 2024"]
[4769,"INSTITUTO NACIONAL DE PSIQUIATRIA RAMON DE LA FUENTE MUNIZ","SANCHEZ ISLAS EDUARDO","ICM C","CF41046","IPP 2023"]
[4770,"INSTITUTO NACIONAL DE PSIQUIATRIA RAMON DE LA FUENTE MUNIZ","SANCHEZ JARAMILLO EDITH","ICM D","CF41041","IPP 2008"]
[7075,"INSTITUTO NACIONAL DE PSIQUIATRIA RAMON DE LA FUENTE MUNIZ","SANCHEZ ROSAS EDEN CRISTIAN","BAJA","NULL","NULL"]
[4771,"INSTITUTO NACIONAL DE PSIQUIATRIA RAMON DE LA FUENTE MUNIZ","SANTILLAN DOHERTY ANA MARIA","BAJA","NULL","NULL"]
[7077,"INSTITUTO NACIONAL DE PSIQUIATRIA RAMON DE LA FUENTE MUNIZ","SARACCO ALVAREZ RICARDO ARTURO","ICM C","CFM2101030","IPP 2020"]
[7493,"INSTITUTO NACIONAL DE PSIQUIATRIA RAMON DE LA FUENTE MUNIZ","SARMIENTO HERNANDEZ EMMANUEL ISAIAS","ICM B"," CFM2101030","IPP 2021"]
[4772,"INSTITUTO NACIONAL DE PSIQUIATRIA RAMON DE LA FUENTE MUNIZ","SIMON ARCEO KARINA","ICM A","CF41046","IPP 2022"]
[4773,"INSTITUTO NACIONAL DE PSIQUIATRIA RAMON DE LA FUENTE MUNIZ","SOBERANES CHAVEZ PAULINA","ICM C","CF41046","IPP 2023"]
[4774,"INSTITUTO NACIONAL DE PSIQUIATRIA RAMON DE LA FUENTE MUNIZ","SOLIS CHAGOYAN HECTOR","BAJA","NULL","NULL"]
[7274,"INSTITUTO NACIONAL DE PSIQUIATRIA RAMON DE LA FUENTE MUNIZ","SOTO PLARRE LENI BAUI","A ICM C","CF41049","IPP 2023"]
[4776,"INSTITUTO NACIONAL DE PSIQUIATRIA RAMON DE LA FUENTE MUNIZ","TIBURCIO SAINZ MARCELA ALEJANDRA","ICM C","CF50000","IPP 2016"]
[4777,"INSTITUTO NACIONAL DE PSIQUIATRIA RAMON DE LA FUENTE MUNIZ","TRUETA SEGOVIA CITLALI","ICM D","CF50000","IPP 2008"]
[4778,"INSTITUTO NACIONAL DE PSIQUIATRIA RAMON DE LA FUENTE MUNIZ","UNIKEL SANTONCINI CLAUDIA","ICM D","CF41041","2006_INGRESO ANTERIOR"]
[4779,"INSTITUTO NACIONAL DE PSIQUIATRIA RAMON DE LA FUENTE MUNIZ","VALDES CRUZ ALEJANDRO","ICM C","CF41046","2009_INGRESO ANTERIOR"]
[4780,"INSTITUTO NACIONAL DE PSIQUIATRIA RAMON DE LA FUENTE MUNIZ","VALDES TOVAR MARCELA","ICM D","CF41041","2009_INGRESO ANTERIOR"]
[4781,"INSTITUTO NACIONAL DE PSIQUIATRIA RAMON DE LA FUENTE MUNIZ","VALENCIA COLLAZOS MARTIN ANTONIO MARCELO EDMUNDO","ICM D","CF41041","2006_INGRESO ANTERIOR"]
[6382,"INSTITUTO NACIONAL DE PSIQUIATRIA RAMON DE LA FUENTE MUNIZ","VARGAS HUICOCHEA INGRID","BAJA","NULL","NULL"]
[7764,"INSTITUTO NACIONAL DE PSIQUIATRIA RAMON DE LA FUENTE MUNIZ","VARGAS ORIHUELA KARLA YAMILI","ICM A","CF41044","IPP 2025"]
[4782,"INSTITUTO NACIONAL DE PSIQUIATRIA RAMON DE LA FUENTE MUNIZ","VAZQUEZ PEREZ LUCIA","ICM A","CF41044","IPP 2010"]
[4783,"INSTITUTO NACIONAL DE PSIQUIATRIA RAMON DE LA FUENTE MUNIZ","VEGA HOYOS LETICIA","NO VIGENTE","CF41046","NULL"]
[7610,"INSTITUTO NACIONAL DE PSIQUIATRIA RAMON DE LA FUENTE MUNIZ","VEGA RAMIREZ EDGARDO HAMID","ICM C","CF41046","IPP 2023"]
[4784,"INSTITUTO NACIONAL DE PSIQUIATRIA RAMON DE LA FUENTE MUNIZ","VEGA RIVERA NELLY MARITZA","ICM C","CF41046","IPP 2009"]
[4785,"INSTITUTO NACIONAL DE PSIQUIATRIA RAMON DE LA FUENTE MUNIZ","VILLAMIL SALCEDO VALERIO","BAJA","NULL","NULL"]
[4786,"INSTITUTO NACIONAL DE PSIQUIATRIA RAMON DE LA FUENTE MUNIZ","VILLATORO VELAZQUEZ JORGE AMETH","ICM E","CF41042","2006_INGRESO ANTERIOR"]
[7427,"INSTITUTO NACIONAL DE PSIQUIATRIA RAMON DE LA FUENTE MUNIZ","YOLDI NEGRETE MARIA","ICM C","CF41046","IPP 2020"]
[4892,"INSTITUTO NACIONAL DE REHABILITACION","ABARCA BUIS RENE FERNANDO ","ICM C","CF41046","IPP 2011"]
[7219,"INSTITUTO NACIONAL DE REHABILITACION","AGUILAR CABALLERO LAURA","BAJA","NULL","NULL"]
[6814,"INSTITUTO NACIONAL DE REHABILITACION","AGUILAR DIAZ OSCAR ARTURO","BAJA","NULL","NULL"]
[7220,"INSTITUTO NACIONAL DE REHABILITACION","AGUILAR GAYTAN MARIA DEL ROCIO","A ICM C","CF41049","IPP 2018"]
[6410,"INSTITUTO NACIONAL DE REHABILITACION","AGUIRRE MENESES HERIBERTO","NO VIGENTE","CF41045","NULL"]
[4894,"INSTITUTO NACIONAL DE REHABILITACION","ALFARO RODRIGUEZ ALFONSO BENITO","ICM D","CF41041","2006_INGRESO ANTERIOR"]
[4895,"INSTITUTO NACIONAL DE REHABILITACION","ALVAREZ CAMACHO MICHELIN","BAJA","NULL","NULL"]
[7440,"INSTITUTO NACIONAL DE REHABILITACION","ANAYA CAMPOS LEONARDO ELIU","ICM B","CF41045","IPP 2021"]
[4896,"INSTITUTO NACIONAL DE REHABILITACION","ARAUJO MONSALVO VICTOR MANUEL","ICM C","CF41046","IPP 2017"]
[4897,"INSTITUTO NACIONAL DE REHABILITACION","ARCH TIRADO EMILIO","BAJA","NULL","NULL"]
[6282,"INSTITUTO NACIONAL DE REHABILITACION","ARIAS CARRION OSCAR","ICM F","CF41043","IPP 2013"]
[6149,"INSTITUTO NACIONAL DE REHABILITACION","AVILA LUNA LAURO ALBERTO","ICM C","CF41046","IPP 2012"]
[4955,"INSTITUTO NACIONAL DE REHABILITACION","BARBOSA VIVANCO SOFIA ZOILA","BAJA","NULL","NULL"]
[7611,"INSTITUTO NACIONAL DE REHABILITACION","BERNAL GONZALEZ ARACELI","ICM A ","CF41025","IPP 2023"]
[7221,"INSTITUTO NACIONAL DE REHABILITACION","BERTOLAZZI CHIARA ","BAJA","NULL","NULL"]
[4898,"INSTITUTO NACIONAL DE REHABILITACION","BORGONIO CUADRA VERONICA MARUSA","ICM C","CF41046","IPP 2008"]
[4899,"INSTITUTO NACIONAL DE REHABILITACION","BRUST CARMONA HECTOR","BAJA","NULL","NULL"]
[4900,"INSTITUTO NACIONAL DE REHABILITACION","BUENO NAVA ANTONIO","ICM D","CF41041","IPP 2008"]
[7222,"INSTITUTO NACIONAL DE REHABILITACION","BUEYES ROIZ VIRGINIA","ICM B","CF41045","IPP 2023"]
[7442,"INSTITUTO NACIONAL DE REHABILITACION","CABRERA RUIZ ELIZABETH","ICM B","CF41045","IPP 2022"]
[6562,"INSTITUTO NACIONAL DE REHABILITACION","CABRERA WROOMAN ALEJANDRO","ICM C","CF41046","IPP 2015"]
[6799,"INSTITUTO NACIONAL DE REHABILITACION","CAMPOS GONZALEZ PAULA DIANA","BAJA","NULL","NULL"]
[6865,"INSTITUTO NACIONAL DE REHABILITACION","CANTILLO NEGRETE JESSICA","ICM D","CFN3101789","IPP 2015"]
[7223,"INSTITUTO NACIONAL DE REHABILITACION","CARLOS MARTINEZ ALBERTO","A ICM C","CF41049","IPP 2022"]
[6187,"INSTITUTO NACIONAL DE REHABILITACION","CARRILLO MORA PAUL","ICM D","CF41041","2010_INGRESO ANTERIOR"]
[4901,"INSTITUTO NACIONAL DE REHABILITACION","CASAS AVILA LEONORA","ICM C","CF41046","2009_INGRESO ANTERIOR"]
[6800,"INSTITUTO NACIONAL DE REHABILITACION","CASTAÑEDA GOMEZ CUAHUTEMOC","BAJA","NULL","NULL"]
[6866,"INSTITUTO NACIONAL DE REHABILITACION","CERVANTES DURAN CLAUDIA","BAJA","NULL","NULL"]
[7439,"INSTITUTO NACIONAL DE REHABILITACION","CHAVEZ HERES TATIANA","ICM B","CF41013","IPP 2020"]
[6563,"INSTITUTO NACIONAL DE REHABILITACION","CLAVIJO CORNEJO MARIA DEL REFUGIO DENISE","ICM D","CF41041","IPP 2015"]
[7443,"INSTITUTO NACIONAL DE REHABILITACION","CONDE ESPINOSA RUBEN","BAJA","NULL","NULL"]
[6807,"INSTITUTO NACIONAL DE REHABILITACION","CORONADO ZARCO ROBERTO","ICM C","CFN3101789","IPP 2020"]
[7562,"INSTITUTO NACIONAL DE REHABILITACION","CORTES ALTAMIRANO JOSE LUIS","ICM B","CF41045","IPP 2022"]
[6153,"INSTITUTO NACIONAL DE REHABILITACION","CORTES CALLEJAS HERNAN","ICM C","CF41046","IPP 2012"]
[4902,"INSTITUTO NACIONAL DE REHABILITACION","DELGADO ESQUERRA RUTH EVELYN","BAJA","NULL","NULL"]
[6810,"INSTITUTO NACIONAL DE REHABILITACION","DIEZ GARCIA MARIA DEL PILAR","BAJA","NULL","NULL"]
[4903,"INSTITUTO NACIONAL DE REHABILITACION","DOMINGUEZ HERNANDEZ VICTOR MANUEL","ICM C","CF41046","2009_INGRESO ANTERIOR"]
[6155,"INSTITUTO NACIONAL DE REHABILITACION","DURAND RIVERA JUAN ALFREDO","BAJA","NULL","NULL"]
[6812,"INSTITUTO NACIONAL DE REHABILITACION","ESCOBAR CEDILLO ROSA ELENA","ICM C","CF41013","IPP 2015"]
[7613,"INSTITUTO NACIONAL DE REHABILITACION","ESPINOSA MORALES ROLANDO ","ICM C","CF41013","IPP 2023"]
[7702,"INSTITUTO NACIONAL DE REHABILITACION","ESTRADA ROMO LAURA DANIELA","A ICM C","CF41049","IPP 2024"]
[4904,"INSTITUTO NACIONAL DE REHABILITACION","FALCON RAMIREZ EDITH","BAJA","NULL","NULL"]
[6408,"INSTITUTO NACIONAL DE REHABILITACION","FERNANDEZ TORRES JAVIER","ICM C","CF41046","IPP 2014"]
[6817,"INSTITUTO NACIONAL DE REHABILITACION","FERRUSCA SORRIBAS JUAN ANTONIO ENRIQUE","BAJA","NULL","NULL"]
[6156,"INSTITUTO NACIONAL DE REHABILITACION","FLORES MONDRAGON GABRIELA","ICM A","CF41044","IPP 2012"]
[7766,"INSTITUTO NACIONAL DE REHABILITACION","FLORES PADUA SARA GABRIELA","A ICM C","CF41049","IPP 2025"]
[6789,"INSTITUTO NACIONAL DE REHABILITACION","FLORES RODRIGUEZ TEODORO BERNARDO","BAJA","NULL","NULL"]
[6973,"INSTITUTO NACIONAL DE REHABILITACION","FRANCO CENDEJAS RAFAEL","ICM D","CFN3101789","IPP 2016"]
[4905,"INSTITUTO NACIONAL DE REHABILITACION","FRANCO Y BOURLAND REBECCA ELIZABETH","ICM C","CF41013","IPP 2024"]
[6978,"INSTITUTO NACIONAL DE REHABILITACION","GALICIA ALVARADO MARLENE ALEJANDRA","ICM B","CF41045","IPP 2017"]
[7560,"INSTITUTO NACIONAL DE REHABILITACION","GALICIA ZAPATERO SERGIO","A ICM C","CF41049","IPP 2025"]
[7224,"INSTITUTO NACIONAL DE REHABILITACION","GALVEZ ROSAS ARTURO","ICM C","CF41046","IPP 2024"]
[7225,"INSTITUTO NACIONAL DE REHABILITACION","GARCIA CAMPILLO HIRAM","NO VIGENTE","CF41049","NULL"]
[6979,"INSTITUTO NACIONAL DE REHABILITACION","GARCIA LOPEZ SANDRA JULIETA","ICM A","CF41044","IPP 2016"]
[7699,"INSTITUTO NACIONAL DE REHABILITACION","GARCIA MARTINEZ BETZABETH ANALI ","ICM C","CF41046","IPP 2024"]
[7284,"INSTITUTO NACIONAL DE REHABILITACION","GARCIA RAMOS CARLA LISETTE","NULL","M01004 ","NULL"]
[4907,"INSTITUTO NACIONAL DE REHABILITACION","GARCIADIEGO CAZARES DAVID","ICM C","CF41046","IPP 2016"]
[4908,"INSTITUTO NACIONAL DE REHABILITACION","GAYOL MERIDA DIANA ALICIA","BAJA","NULL","NULL"]
[7700,"INSTITUTO NACIONAL DE REHABILITACION","GOMEZ COELLO ANNEL","ICM B","CFN3101789","IPP 2024"]
[4909,"INSTITUTO NACIONAL DE REHABILITACION","GOMEZ DIAZ BENJAMIN","ICM C","CF41046","IPP 2010"]
[4910,"INSTITUTO NACIONAL DE REHABILITACION","GOMEZ GARCIA RICARDO","BAJA","NULL","NULL"]
[7226,"INSTITUTO NACIONAL DE REHABILITACION","GONZALEZ CORTES JAIME","NO VIGENTE","CF41049","NULL"]
[7698,"INSTITUTO NACIONAL DE REHABILITACION","GONZALEZ NAVARRO MAURICIO ","ICM C","CF41013","IPP 2024"]
[4911,"INSTITUTO NACIONAL DE REHABILITACION","GONZALEZ PIÑA RIGOBERTO","BAJA","NULL","NULL"]
[7435,"INSTITUTO NACIONAL DE REHABILITACION","GONZALEZ TORRES MAYKEL","NULL","NULL","NULL"]
[6273,"INSTITUTO NACIONAL DE REHABILITACION","GRANADOS MONTIEL JULIO","ICM D","CF41041","IPP 2013"]
[6821,"INSTITUTO NACIONAL DE REHABILITACION","GUERRERO GODINEZ MARCO ANTONIO","BAJA","NULL","NULL"]
[4912,"INSTITUTO NACIONAL DE REHABILITACION","GUTIERREZ MARTINEZ JOSEFINA","NULL","NULL","NULL"]
[6870,"INSTITUTO NACIONAL DE REHABILITACION","GUTIERREZ RIVEROS MARWIN SAADY","BAJA","NULL","NULL"]
[7436,"INSTITUTO NACIONAL DE REHABILITACION","GUTIERREZ VELASCO MARIO IBRAHIN","NULL","NULL","NULL"]
[6157,"INSTITUTO NACIONAL DE REHABILITACION","HERNANDEZ DIAZ CRISTINA","BAJA","NULL","NULL"]
[6158,"INSTITUTO NACIONAL DE REHABILITACION","HERNANDEZ FLORES CECILIA","ICM B","CF41045","IPP 2012"]
[7434,"INSTITUTO NACIONAL DE REHABILITACION","HERNANDEZ GONZALEZ OLIVIA","ICM C","CF41046","IPP 2020"]
[4914,"INSTITUTO NACIONAL DE REHABILITACION","HERNANDEZ HERNANDEZ OSCAR","ICM D","CF41041","IPP 2009"]
[4915,"INSTITUTO NACIONAL DE REHABILITACION","HERNANDEZ ZAMORA EDGAR","ICM C","CF41046","2009_INGRESO ANTERIOR"]
[7227,"INSTITUTO NACIONAL DE REHABILITACION","HERRERA LOPEZ BRIGIDA","A ICM C","CF41049","IPP 2018"]
[6369,"INSTITUTO NACIONAL DE REHABILITACION","HIDALGO BRAVO ALBERTO","ICM D","CFM2356510","IPP 2014"]
[6235,"INSTITUTO NACIONAL DE REHABILITACION","IBARRA PONCE DE LEON JOSE CLEMENTE","BAJA","NULL","NULL"]
[6409,"INSTITUTO NACIONAL DE REHABILITACION","ILIZALITURRI FLORES IAN","BAJA","NULL","NULL"]
[6855,"INSTITUTO NACIONAL DE REHABILITACION","ILIZALITURRI SANCHEZ VICTOR MANUEL","ICM B","CF41012","IPP 2025"]
[4916,"INSTITUTO NACIONAL DE REHABILITACION","IZAGUIRRE HERNANDEZ ALDO FIDEL","BAJA","NULL","NULL"]
[7563,"INSTITUTO NACIONAL DE REHABILITACION","JARA QUEZADA LUIS JAVIER","BAJA","NULL","NULL"]
[7554,"INSTITUTO NACIONAL DE REHABILITACION","JIMENEZ GUTIERREZ GUADALUPE ELIZABETH ","ICM C","CF41046","IPP 2022"]
[4917,"INSTITUTO NACIONAL DE REHABILITACION","KROTZSCH GOMEZ FERNANDO EDGAR","ICM D","CF41041","IPP 2009"]
[4918,"INSTITUTO NACIONAL DE REHABILITACION","LANDA SOLIS CARLOS","ICM D","CF41041","IPP 2009"]
[7438,"INSTITUTO NACIONAL DE REHABILITACION","LECONA BUTRON HUGO","NO VIGENTE","CF41013","NULL"]
[4919,"INSTITUTO NACIONAL DE REHABILITACION","LETECHIPA MORENO JORGE ERNESTO","BAJA","NULL","NULL"]
[6329,"INSTITUTO NACIONAL DE REHABILITACION","LEYVA GARCIA NORBERTO","NULL","M01010","NULL"]
[6159,"INSTITUTO NACIONAL DE REHABILITACION","LEYVA GOMEZ GERARDO","BAJA","NULL","NULL"]
[4920,"INSTITUTO NACIONAL DE REHABILITACION","LOMELI MEJIA PEDRO ALEJANDRO","BAJA","NULL","NULL"]
[6407,"INSTITUTO NACIONAL DE REHABILITACION","LOPEZ MACAY AMBAR","ICM C","CF41046","IPP 2014"]
[4921,"INSTITUTO NACIONAL DE REHABILITACION","LOPEZ REYES ALBERTO GABRIEL","ICM E","CF41042","IPP 2010"]
[7229,"INSTITUTO NACIONAL DE REHABILITACION","LOZADA PEREZ CARLOS ALBERTO","ICM C","CF41046","IPP 2020"]
[6868,"INSTITUTO NACIONAL DE REHABILITACION","LUNA ANGULO ALEXANDRA BERENICE","ICM B","CF41045","IPP 2019"]
[7300,"INSTITUTO NACIONAL DE REHABILITACION","LUNA PEREZ DAVID GABRIEL","ICM A","CF41044 ","IPP 2024"]
[7557,"INSTITUTO NACIONAL DE REHABILITACION","MACIAS GALLARDO JULIO JOSE","ICM C","CF41013","IPP 2022"]
[7080,"INSTITUTO NACIONAL DE REHABILITACION","MACIAS HERNANDEZ SALVADOR ISRAEL","BAJA","NULL","NULL"]
[4922,"INSTITUTO NACIONAL DE REHABILITACION","MAGAÑA AGUIRRE JONATHAN JAVIER","ICM E","CF41042","IPP 2009"]
[7282,"INSTITUTO NACIONAL DE REHABILITACION","MANDUJANO TINOCO EDNA AYERIM","BAJA","NULL","NULL"]
[7697,"INSTITUTO NACIONAL DE REHABILITACION","MARTINEZ ARMENTA CARLOS ALEJANDRO","ICM C","CF41046","IPP 2024"]
[4923,"INSTITUTO NACIONAL DE REHABILITACION","MARTINEZ CANSECO CARLOS JORGE","ICM B","CF41045","IPP 2024"]
[4924,"INSTITUTO NACIONAL DE REHABILITACION","MARTINEZ FLORES FRANCISCO","NO VIGENTE","CF41012","NULL"]
[6331,"INSTITUTO NACIONAL DE REHABILITACION","MARTINEZ FLORES KARINA","ICM C","CF41046","IPP 2013"]
[7558,"INSTITUTO NACIONAL DE REHABILITACION","MARTINEZ GOMEZ LAURA EDITH","ICM C","CF41046","IPP 2023"]
[4925,"INSTITUTO NACIONAL DE REHABILITACION","MARTINEZ LOPEZ GUILLERMO","BAJA","NULL","NULL"]
[6160,"INSTITUTO NACIONAL DE REHABILITACION","MARTINEZ LOPEZ VALENTIN","ICM B","CF41045","IPP 2012"]
[6564,"INSTITUTO NACIONAL DE REHABILITACION","MARTINEZ NAVA GABRIELA ANGELICA","ICM D","CF41041","IPP 2015"]
[6188,"INSTITUTO NACIONAL DE REHABILITACION","MARTINEZ WBALDO MARIA CONSUELO","NO VIGENTE","CF41013","NULL"]
[7564,"INSTITUTO NACIONAL DE REHABILITACION","MARTINEZ ZAVALETA MARIA GUADALUPE ","A ICM C","CF41049","IPP 2022"]
[6161,"INSTITUTO NACIONAL DE REHABILITACION","MELGAREJO RAMIREZ YAAZIEL","ICM D","CF41041","IPP 2012"]
[6829,"INSTITUTO NACIONAL DE REHABILITACION","MENA AYALA JULIO CESAR AUGUSTO","BAJA","NULL","NULL"]
[7703,"INSTITUTO NACIONAL DE REHABILITACION","MENDOZA VAZQUEZ AUREANAYAD ARIDED","A ICM C","CF41049","IPP 2025"]
[7555,"INSTITUTO NACIONAL DE REHABILITACION","MERCADO GUTIERREZ JORGE AIRY","ICM C","CF41046","IPP 2022"]
[4926,"INSTITUTO NACIONAL DE REHABILITACION","MIRANDA DUARTE ANTONIO","ICM D","CF41013","2009_INGRESO ANTERIOR"]
[7701,"INSTITUTO NACIONAL DE REHABILITACION","MORRAZ VARELA ABRIL","A ICM C","CF41049","IPP 2024"]
[7079,"INSTITUTO NACIONAL DE REHABILITACION","NAVA BRINGAS TANIA INES","NULL","M01011","NULL"]
[6276,"INSTITUTO NACIONAL DE REHABILITACION","NUÑEZ GAONA MARCO ANTONIO","ICM A","CF51000","IPP 2021"]
[4928,"INSTITUTO NACIONAL DE REHABILITACION","NUÑO LICONA ALBERTO ENRIQUE","BAJA","NULL","NULL"]
[7441,"INSTITUTO NACIONAL DE REHABILITACION","OLASCOAGA GOMEZ DE LEON ANDREA","NULL","M01004","NULL"]
[6976,"INSTITUTO NACIONAL DE REHABILITACION","ORTEGA PEÑA SILVESTRE VICENTE","ICM C","CF41046","IPP 2016"]
[7243,"INSTITUTO NACIONAL DE REHABILITACION","ORTEGA ROBLES EMMANUEL DANIEL","ICM C","CF41046","IPP 2019"]
[6411,"INSTITUTO NACIONAL DE REHABILITACION","ORTEGA SANCHEZ CARMINA","ICM B","CF41045","IPP 2014"]
[4929,"INSTITUTO NACIONAL DE REHABILITACION","PANIAGUA PEREZ ROGELIO","ICM C","CF41046","IPP 2017"]
[4930,"INSTITUTO NACIONAL DE REHABILITACION","PARRA CID MARIA DEL CARMEN","ICM C","CF41046","IPP 2014"]
[4931,"INSTITUTO NACIONAL DE REHABILITACION","PEÑALOZA LOPEZ YOLANDA REBECA","BAJA","NULL","NULL"]
[7231,"INSTITUTO NACIONAL DE REHABILITACION","PEÑUELAS ROMERO JULIETA KARINA","NO VIGENTE","CF41049","NULL"]
[5190,"INSTITUTO NACIONAL DE REHABILITACION","PEREZ NERI PEDRO IVAN","ICM C","CF41046","2010_INGRESO ANTERIOR"]
[7232,"INSTITUTO NACIONAL DE REHABILITACION","PEREZ ORIVE JAVIER","BAJA","NULL","NULL"]
[4933,"INSTITUTO NACIONAL DE REHABILITACION","PEREZ SANPABLO ALBERTO ISAAC","ICM C","CF41046","IPP 2009"]
[6835,"INSTITUTO NACIONAL DE REHABILITACION","PEREZ ZAVALA RAMIRO","BAJA","NULL","NULL"]
[6836,"INSTITUTO NACIONAL DE REHABILITACION","PINEDA GOMEZ ERNESTO","BAJA","NULL","NULL"]
[4934,"INSTITUTO NACIONAL DE REHABILITACION","PINEDA VILLASEÑOR CARLOS JAVIER","ICM F","CFK2259156","2006_INGRESO ANTERIOR"]
[4935,"INSTITUTO NACIONAL DE REHABILITACION","POBLANO LUNA HECTOR ADRIAN","ICM D","CF41041","2009_INGRESO ANTERIOR"]
[6330,"INSTITUTO NACIONAL DE REHABILITACION","PONCE DE LEON SUAREZ VALERIA","ICM C","CF41046","IPP 2025"]
[7049,"INSTITUTO NACIONAL DE REHABILITACION","QUIJANO GONZALEZ YANNICK ","BAJA","NULL","NULL"]
[7233,"INSTITUTO NACIONAL DE REHABILITACION","QUINTANA ARMENTA ALEJANDRA","A ICM C","CF41049","IPP 2018"]
[6795,"INSTITUTO NACIONAL DE REHABILITACION","QUINZAÑOS FRESNEDO JIMENA","ICM C","CF41012","IPP 2020"]
[6164,"INSTITUTO NACIONAL DE REHABILITACION","QUIÑONES URIOSTEGUI IVETT","ICM C","CF41013","IPP 2012"]
[4936,"INSTITUTO NACIONAL DE REHABILITACION","RAMIREZ PEREZ ESPERANZA","BAJA","NULL","NULL"]
[6565,"INSTITUTO NACIONAL DE REHABILITACION","RAZO ESTRADA AMPARO CELENE","BAJA","NULL","NULL"]
[6974,"INSTITUTO NACIONAL DE REHABILITACION","REDON TAVERA ANTONIO","BAJA","NULL","NULL"]
[4937,"INSTITUTO NACIONAL DE REHABILITACION","REYES CADENA MARIA SUSANA","BAJA","NULL","NULL"]
[4938,"INSTITUTO NACIONAL DE REHABILITACION","REYES LEGORRETA CELIA","ICM C","CF41046","IPP 2013"]
[7559,"INSTITUTO NACIONAL DE REHABILITACION","REYES LONG SAMUEL ALEJANDRO","A ICM C","CF41049","IPP 2022"]
[5195,"INSTITUTO NACIONAL DE REHABILITACION","RIOS CASTAÑEDA LUIS CAMILO","ICM F","CF41043","IPP 2010"]
[6150,"INSTITUTO NACIONAL DE REHABILITACION","RODRIGUEZ BANDALA CINDY","BAJA","NULL","NULL"]
[4940,"INSTITUTO NACIONAL DE REHABILITACION","RODRIGUEZ REYES GERARDO","ICM C","CF41013","2009_INGRESO ANTERIOR"]
[7001,"INSTITUTO NACIONAL DE REHABILITACION","ROLDAN VALADEZ ERNESTO ALEJANDRO ","ICM D","CF41041","IPP 2017"]
[7292,"INSTITUTO NACIONAL DE REHABILITACION","ROMANO RIQUER SONIA PATRICIA","NULL","CF41012","NULL"]
[7553,"INSTITUTO NACIONAL DE REHABILITACION","ROSAS ALQUICIRA GRACIELA","A ICM C","CF41049","IPP 2022"]
[7765,"INSTITUTO NACIONAL DE REHABILITACION","RUIZ DIAZ FRANCISCO DANIEL","A ICM C","CF41049","IPP 2025"]
[7234,"INSTITUTO NACIONAL DE REHABILITACION","RUIZ ROSANO LIDIA","A ICM C","CF41049","IPP 2018"]
[4954,"INSTITUTO NACIONAL DE REHABILITACION","RUIZ ZAVALA JORGE HUMBERTO","BAJA","NULL","NULL"]
[6166,"INSTITUTO NACIONAL DE REHABILITACION","RUVALCABA PAREDES ERIKA KARINA","ICM B","CF41045","IPP 2012"]
[6841,"INSTITUTO NACIONAL DE REHABILITACION","SAHAGUN OLMOS ROBERTO CARLOS","BAJA","NULL","NULL"]
[4941,"INSTITUTO NACIONAL DE REHABILITACION","SALGADO CURIEL ROSA MARIA","ICM B","CF41045","IPP 2009"]
[7561,"INSTITUTO NACIONAL DE REHABILITACION","SAMUDIO CRUZ MARIA ALEJANDRA","A ICM C","CF41049","IPP 2022"]
[4942,"INSTITUTO NACIONAL DE REHABILITACION","SANCHEZ BRINGAS MARIA GUADALUPE","BAJA","NULL","NULL"]
[4943,"INSTITUTO NACIONAL DE REHABILITACION","SANCHEZ CHAPUL LAURA","ICM D","CF41041","2009_INGRESO ANTERIOR"]
[6169,"INSTITUTO NACIONAL DE REHABILITACION","SANCHEZ SANCHEZ ROBERTO","ICM D","CF41041","IPP 2012"]
[6871,"INSTITUTO NACIONAL DE REHABILITACION","SANDOVAL ZAMORA HUGO EUGENIO","ICM C","CF41010","IPP 2015"]
[4944,"INSTITUTO NACIONAL DE REHABILITACION","SAVITSKAJA YULIA ANTOLEVNA","BAJA","NULL","NULL"]
[4945,"INSTITUTO NACIONAL DE REHABILITACION","SERRANO MIRANDA AURELIO TIRZO","BAJA","NULL","NULL"]
[6566,"INSTITUTO NACIONAL DE REHABILITACION","SILVA BERMUDEZ PHAEDRA SURIEL","ICM D","CF41041","IPP 2015"]
[4946,"INSTITUTO NACIONAL DE REHABILITACION","SOLIS ARRIETA LILIA","BAJA","NULL","NULL"]
[7551,"INSTITUTO NACIONAL DE REHABILITACION","SOTO FAJARDO ROSA CARINA","ICM C","CF41046","IPP 2022"]
[4947,"INSTITUTO NACIONAL DE REHABILITACION","SUAREZ SANCHEZ MARIA DEL ROCIO","ICM C","CF41046","IPP 2011"]
[6846,"INSTITUTO NACIONAL DE REHABILITACION","TELLEZ GASTELUM RENE MARTIN","BAJA","NULL","NULL"]
[7319,"INSTITUTO NACIONAL DE REHABILITACION","TOLEDANO TOLEDANO FILIBERTO","NO VIGENTE","CF41046","NULL"]
[6867,"INSTITUTO NACIONAL DE REHABILITACION","TRUJILLO ROMERO CITLALLI JESSICA","ICM D","CF41041","IPP 2015"]
[6796,"INSTITUTO NACIONAL DE REHABILITACION","VALADEZ JIMENEZ VICTOR MANUEL","BAJA","NULL","NULL"]
[6406,"INSTITUTO NACIONAL DE REHABILITACION","VALDES FLORES MARGARITA","BAJA","NULL","NULL"]
[4948,"INSTITUTO NACIONAL DE REHABILITACION","VALDEZ MIJARES RENE","ICM B","CF41045","IPP 2018"]
[4949,"INSTITUTO NACIONAL DE REHABILITACION","VARGAS SANCHEZ JAVIER","NO VIGENTE","CF41041","NULL"]
[4950,"INSTITUTO NACIONAL DE REHABILITACION","VELA PEÑA EVARISTO","BAJA","NULL","NULL"]
[7544,"INSTITUTO NACIONAL DE REHABILITACION","VELASCO ROJANO ANGEL EDUARDO","ICM C","CF41046","IPP 2022"]
[4951,"INSTITUTO NACIONAL DE REHABILITACION","VELASQUILLO MARTINEZ MARIA CRISTINA","ICM F","CF41043","2009_INGRESO ANTERIOR"]
[6267,"INSTITUTO NACIONAL DE REHABILITACION","VENTURA RIOS LUCIO","ICM C","CF41046","IPP 2013"]
[4952,"INSTITUTO NACIONAL DE REHABILITACION","VERDUZCO MENDOZA ANTONIO","ICM C","CF41046","IPP 2021"]
[4953,"INSTITUTO NACIONAL DE REHABILITACION","VILLEGAS CASTREJON HILDA","BAJA","NULL","NULL"]
[6849,"INSTITUTO NACIONAL DE REHABILITACION","YAÑEZ SANTANA MARA LEONOR","BAJA","NULL","NULL"]
[7236,"INSTITUTO NACIONAL DE REHABILITACION","ZACAULA JUAREZ NOE","A ICM C","CF41049","IPP 2018"]
[6975,"INSTITUTO NACIONAL DE REHABILITACION","ZAMUDIO CUEVAS YESSICA EDUVIGES","ICM D","CF41041","IPP 2016"]
[6850,"INSTITUTO NACIONAL DE REHABILITACION","ZAVALA RAMIREZ JUANA","ICM A","CF41012","IPP 2024"]
[7444,"INSTITUTO NACIONAL DE REHABILITACION","ZEPEDA MORA RAFAEL","NULL","M01011","NULL"]
[6851,"INSTITUTO NACIONAL DE REHABILITACION","ZULUAGA GOMEZ ALVARO JOSE","BAJA","NULL","NULL"]
[7461,"INSTITUTO NACIONAL DE SALUD PUBLICA","ABURTO SOTO TANIA CONY","ICM C","CF41046","IPP 2020"]
[7460,"INSTITUTO NACIONAL DE SALUD PUBLICA","ACOSTA RUIZ OMAR","ICM B","CF41045","IPP 2020"]
[4354,"INSTITUTO NACIONAL DE SALUD PUBLICA","AGUILAR GUTIERREZ GERMAN RUBEN","BAJA","NULL","NULL"]
[7692,"INSTITUTO NACIONAL DE SALUD PUBLICA","AGUILAR LOPEZ LUIS JAVIER","ICM A","CF50000","IPP 2024"]
[7186,"INSTITUTO NACIONAL DE SALUD PUBLICA","AGUILAR VERA EDGAR","A ICM C","CF41049","IPP 2018"]
[4355,"INSTITUTO NACIONAL DE SALUD PUBLICA","ALAMO HERNANDEZ URINDA","ICM B","CF41045","IPP 2013"]
[6458,"INSTITUTO NACIONAL DE SALUD PUBLICA","ALCALDE RABANAL JACQUELINE ELIZABETH","ICM E","CF41042","IPP 2015"]
[4356,"INSTITUTO NACIONAL DE SALUD PUBLICA","ALLEN LEIGH BETHANY LEIGH ","ICM E","CF41042","2006_INGRESO ANTERIOR"]
[6301,"INSTITUTO NACIONAL DE SALUD PUBLICA","ALPUCHE ARANDA CELIA MERCEDES","ICM F","CF41043","IPP 2013"]
[4357,"INSTITUTO NACIONAL DE SALUD PUBLICA","ALVARADO DELGADO ALEJANDRO","ICM C","CF41046","2010_INGRESO ANTERIOR"]
[7187,"INSTITUTO NACIONAL DE SALUD PUBLICA","ALVAREZ FERNANDEZ MARTHA PILAR","NO VIGENTE","CF41049","NULL"]
[4358,"INSTITUTO NACIONAL DE SALUD PUBLICA","AMORIM CLARO DE CASTRO ELGA FILIPA","BAJA","NULL","NULL"]
[6980,"INSTITUTO NACIONAL DE SALUD PUBLICA","ANGEL GARCIA DANIEL","BAJA","NULL","NULL"]
[4359,"INSTITUTO NACIONAL DE SALUD PUBLICA","ANGELES LLERENAS ANGELICA ROCIO","ICM D","CF50000","2009_INGRESO ANTERIOR"]
[4360,"INSTITUTO NACIONAL DE SALUD PUBLICA","ARACENA GENAO BELKIS MERCEDES","ICM D","CF41041","IPP 2017"]
[4361,"INSTITUTO NACIONAL DE SALUD PUBLICA","ARENAS MONREAL MARIA DE LA LUZ","ICM D","CF41041","2009_INGRESO ANTERIOR"]
[4362,"INSTITUTO NACIONAL DE SALUD PUBLICA","ARGOTTE RAMOS ROCIO SOLEDAD","ICM B","CF41046","IPP 2021"]
[4363,"INSTITUTO NACIONAL DE SALUD PUBLICA","ARILLO SANTILLAN EDNA JUDITH","ICM D","CF41041","2006_INGRESO ANTERIOR"]
[4364,"INSTITUTO NACIONAL DE SALUD PUBLICA","ARREDONDO LOPEZ ABEL ARMANDO","BAJA","NULL","NULL"]
[4365,"INSTITUTO NACIONAL DE SALUD PUBLICA","ATIENZO DE LA CRUZ ERIKA ELIZABETH","BAJA","NULL","NULL"]
[7050,"INSTITUTO NACIONAL DE SALUD PUBLICA","ATRIAN SALAZAR MAGDA LUZ","BAJA","NULL","NULL"]
[4366,"INSTITUTO NACIONAL DE SALUD PUBLICA","AVILA BURGOS LETICIA DEL SOCORRO","ICM F","CF41043","2006_INGRESO ANTERIOR"]
[4367,"INSTITUTO NACIONAL DE SALUD PUBLICA","AYALA AGUILAR GUADALUPE","BAJA","NULL","NULL"]
[4368,"INSTITUTO NACIONAL DE SALUD PUBLICA","BAEZ SALDAÑA ALEJANDRA RENATA","BAJA","NULL","NULL"]
[4369,"INSTITUTO NACIONAL DE SALUD PUBLICA","BAHENA ROMAN MARGARITA","ICM C","CF41046","2009_INGRESO ANTERIOR"]
[4370,"INSTITUTO NACIONAL DE SALUD PUBLICA","BARBOSA SANCHEZ ANA LARISSA","A ICM C","CF41049","IPP 2019"]
[4371,"INSTITUTO NACIONAL DE SALUD PUBLICA","BARQUERA CERVERA SIMON","ICM F","CFM4152405","2006_INGRESO ANTERIOR"]
[4372,"INSTITUTO NACIONAL DE SALUD PUBLICA","BARRAZA VILLARREAL ALBINO","ICM F","CF41043","2009_INGRESO ANTERIOR"]
[7767,"INSTITUTO NACIONAL DE SALUD PUBLICA","BARRERA NUÑEZ DAVID ALEJANDRO","A ICM C","CF41049","IPP 2025"]
[4563,"INSTITUTO NACIONAL DE SALUD PUBLICA","BARRIENTOS GUTIERREZ INTI","ICM C","CF41046","IPP 2012"]
[4373,"INSTITUTO NACIONAL DE SALUD PUBLICA","BARRIENTOS GUTIERREZ TONATIUH","ICM F","CFM4152405","IPP 2009"]
[4374,"INSTITUTO NACIONAL DE SALUD PUBLICA","BARRIOS CAMACHO HUMBERTO","ICM C","CF41046","IPP 2011"]
[7285,"INSTITUTO NACIONAL DE SALUD PUBLICA","BARRIOS LARA MARIEL","A ICM C","CF41049","IPP 2023"]
[6451,"INSTITUTO NACIONAL DE SALUD PUBLICA","BASTO ABREU ANA CRISTINA","ICM D","CF41041","IPP 2015"]
[7447,"INSTITUTO NACIONAL DE SALUD PUBLICA","BATIS RUVALCABA CAROLINA","ICM F","CF41043","IPP 2024"]
[4375,"INSTITUTO NACIONAL DE SALUD PUBLICA","BAUTISTA ARREDONDO SERGIO ANTONIO","ICM F","CF41043","2006_INGRESO ANTERIOR"]
[7051,"INSTITUTO NACIONAL DE SALUD PUBLICA","BAUTISTA MORALES ARTURO CUAUHTEMOC","ICM B","CF50000","IPP 2017"]
[4376,"INSTITUTO NACIONAL DE SALUD PUBLICA","BECERRIL MONTEKIO VICTOR MANUEL","ICM D","CF50000","IPP 2011"]
[4377,"INSTITUTO NACIONAL DE SALUD PUBLICA","BERMUDEZ MORALES VICTOR HUGO","ICM D","CF41041","2006_INGRESO ANTERIOR"]
[6454,"INSTITUTO NACIONAL DE SALUD PUBLICA","BLAIR GRANT DARNEY","BAJA","NULL","NULL"]
[4378,"INSTITUTO NACIONAL DE SALUD PUBLICA","BLANCO MUÑOZ JULIA","ICM D","CF41041","2006_INGRESO ANTERIOR"]
[4379,"INSTITUTO NACIONAL DE SALUD PUBLICA","BOND COMPEAN JUAN GUILLERMO","ICM E","CF41042","IPP 2009"]
[4380,"INSTITUTO NACIONAL DE SALUD PUBLICA","BONILLA FERNANDEZ PASTOR","BAJA","NULL","NULL"]
[4381,"INSTITUTO NACIONAL DE SALUD PUBLICA","BONVECCHIO ARENAS ANABELLE YUDITH","ICM E","CFM2101060","2006_INGRESO ANTERIOR"]
[7185,"INSTITUTO NACIONAL DE SALUD PUBLICA","BRENES MONGE GREIVIN ALEXANDER","ICM B","CF50000","IPP 2018"]
[4382,"INSTITUTO NACIONAL DE SALUD PUBLICA","BURGUETE GARCIA ANA ISABEL","ICM E","CF41042","IPP 2008"]
[4383,"INSTITUTO NACIONAL DE SALUD PUBLICA","CAHUANA HURTADO LUCERO","BAJA","NULL","NULL"]
[4384,"INSTITUTO NACIONAL DE SALUD PUBLICA","CAMPERO CUENCA MARIA DE LOURDES EUGENIA","ICM E","CF41042","2006_INGRESO ANTERIOR"]
[4385,"INSTITUTO NACIONAL DE SALUD PUBLICA","CAMPOS NONATO ISMAEL RICARDO","ICM E","CF50000","IPP 2009"]
[4386,"INSTITUTO NACIONAL DE SALUD PUBLICA","CANIZALES QUINTERO SERGIO","ICM A ","CF41045","IPP 2023"]
[7448,"INSTITUTO NACIONAL DE SALUD PUBLICA","CANTORAL PRECIADO ALEJANDRA DE JESUS","BAJA","NULL","NULL"]
[4387,"INSTITUTO NACIONAL DE SALUD PUBLICA","CARNALLA BARAJAS MARIA NOEMI","ICM B","CF41045","2009_INGRESO ANTERIOR"]
[7688,"INSTITUTO NACIONAL DE SALUD PUBLICA","CARNALLA CORTES MARTHA","ICM C","CF41046","IPP 2024"]
[4388,"INSTITUTO NACIONAL DE SALUD PUBLICA","CARREON RODRIGUEZ ALFONSO","NO VIGENTE","CF41046","NULL"]
[4389,"INSTITUTO NACIONAL DE SALUD PUBLICA","CARRILLO QUIROZ BERTA ALICIA","ICM B","CF41045","IPP 2022"]
[4390,"INSTITUTO NACIONAL DE SALUD PUBLICA","CARRION RABAGO MARIA CITLALLI","BAJA","NULL","NULL"]
[4391,"INSTITUTO NACIONAL DE SALUD PUBLICA","CASAS MARTINEZ MAURICIO","ICM C","CF41046","2010_INGRESO ANTERIOR"]
[6162,"INSTITUTO NACIONAL DE SALUD PUBLICA","CASTILLO CASTILLO LORENA ELIZABETH","BAJA","NULL","NULL"]
[4392,"INSTITUTO NACIONAL DE SALUD PUBLICA","CASTRO ROMERO JULIETA IVONE","BAJA","NULL","NULL"]
[6378,"INSTITUTO NACIONAL DE SALUD PUBLICA","CASTRO TINOCO MANUEL","BAJA","NULL","NULL"]
[4393,"INSTITUTO NACIONAL DE SALUD PUBLICA","CHAVEZ AYALA RUBEN","BAJA","NULL","NULL"]
[4394,"INSTITUTO NACIONAL DE SALUD PUBLICA","CHIHU AMPARAN LILIA","ICM D","CF41041","2009_INGRESO ANTERIOR"]
[7455,"INSTITUTO NACIONAL DE SALUD PUBLICA","CIME CASTILLO JORGE ARMANDO","ICM C","CF41042","IPP 2021"]
[7286,"INSTITUTO NACIONAL DE SALUD PUBLICA","CISNEROS VAZQUEZ LUIS ALBERTO","ICM B","CF50000","IPP 2019"]
[4395,"INSTITUTO NACIONAL DE SALUD PUBLICA","COLCHERO ARAGONES MONICA ARANTXA","ICM F","CF41043","IPP 2009"]
[4396,"INSTITUTO NACIONAL DE SALUD PUBLICA","CONDE GONZALEZ CARLOS JESUS","BAJA","NULL","NULL"]
[6168,"INSTITUTO NACIONAL DE SALUD PUBLICA","CONDE RENAUD HUGUES JEANPOL","ICM C","CF41046","IPP 2012"]
[4397,"INSTITUTO NACIONAL DE SALUD PUBLICA","CONTRERAS OCHOA CARLA OLBIA","ICM C","CF41046","IPP 2018"]
[4398,"INSTITUTO NACIONAL DE SALUD PUBLICA","CORTEZ LUGO MARLENE","ICM E","CF41042","2009_INGRESO ANTERIOR"]
[4400,"INSTITUTO NACIONAL DE SALUD PUBLICA","CRUZ HERVERT LUIS PABLO","BAJA","NULL","NULL"]
[4401,"INSTITUTO NACIONAL DE SALUD PUBLICA","CRUZ VALDEZ AURELIO","ICM D","CFN3101913","2009_INGRESO ANTERIOR"]
[4402,"INSTITUTO NACIONAL DE SALUD PUBLICA","CUADRA HERNANDEZ SILVIA MAGALI","ICM C","CF41046","2009_INGRESO ANTERIOR"]
[4403,"INSTITUTO NACIONAL DE SALUD PUBLICA","CUEVAS NASU LUCIA","ICM D","CFM2101060","2009_INGRESO ANTERIOR"]
[6373,"INSTITUTO NACIONAL DE SALUD PUBLICA","CUPUL UICAB LEA AURORA","ICM D","CF41041","IPP 2014"]
[7188,"INSTITUTO NACIONAL DE SALUD PUBLICA","DAMIAN GARCIA MARIA TERESA","BAJA","NULL","NULL"]
[4404,"INSTITUTO NACIONAL DE SALUD PUBLICA","DANIS LOZANO ROGELIO","ICM D","CF41041","2006_INGRESO ANTERIOR"]
[7189,"INSTITUTO NACIONAL DE SALUD PUBLICA","DE LA CRUZ GONGORA VANESSA VIANEY","ICM D","CF41041","IPP 2018"]
[6455,"INSTITUTO NACIONAL DE SALUD PUBLICA","DE LA RIVA TORRES OMAR","BAJA","NULL","NULL"]
[6452,"INSTITUTO NACIONAL DE SALUD PUBLICA","DE LA VARA SALAZAR ELVIA","ICM C","CF41046","IPP 2015"]
[4405,"INSTITUTO NACIONAL DE SALUD PUBLICA","DELGADO SANCHEZ GUADALUPE","ICM D","CF41041","IPP 2011"]
[6933,"INSTITUTO NACIONAL DE SALUD PUBLICA","DENOVA GUTIERREZ EDGAR","ICM E","CF50000","IPP 2016"]
[4406,"INSTITUTO NACIONAL DE SALUD PUBLICA","DIAZ ACOSTA RODRIGO","BAJA","NULL","NULL"]
[4407,"INSTITUTO NACIONAL DE SALUD PUBLICA","DIAZ BENITEZ CINTHYA ESTEFHANY","ICM C","CF41046","IPP 2016"]
[4409,"INSTITUTO NACIONAL DE SALUD PUBLICA","DIAZ ORTEGA JOSE LUIS","BAJA","NULL","NULL"]
[7689,"INSTITUTO NACIONAL DE SALUD PUBLICA","DIAZ PORTILLO SANDRA PATRICIA","ICM C","CF50000","IPP 2024"]
[4410,"INSTITUTO NACIONAL DE SALUD PUBLICA","DRESER MANSILLA ANAHI CRISTINA","ICM D","CF41041","IPP 2009"]
[4411,"INSTITUTO NACIONAL DE SALUD PUBLICA","DUARTE GOMEZ MARIA BEATRIZ","BAJA","NULL","NULL"]
[4412,"INSTITUTO NACIONAL DE SALUD PUBLICA","DURAN BEDOLLA JOSEFINA","ICM C","CF41046","IPP 2014"]
[4413,"INSTITUTO NACIONAL DE SALUD PUBLICA","ECHANIZ AVILES IRMA GABRIELA","ICM F","CF41043","2006_INGRESO ANTERIOR"]
[6372,"INSTITUTO NACIONAL DE SALUD PUBLICA","ERIN CHRISTY MCKIERNAN","BAJA","NULL","NULL"]
[4414,"INSTITUTO NACIONAL DE SALUD PUBLICA","ESCAMILLA NUÑEZ MARIA CONSUELO","ICM D","CF41041","IPP 2009"]
[4415,"INSTITUTO NACIONAL DE SALUD PUBLICA","ESPINOSA MONTERO JUAN","ICM C","CF41046","IPP 2010"]
[7449,"INSTITUTO NACIONAL DE SALUD PUBLICA","ESTRADA MARQUEZ FATIMA","NULL","NULL","NULL"]
[4416,"INSTITUTO NACIONAL DE SALUD PUBLICA","FARIAS SERRA PAULINA","ICM D","CF41041","IPP 2011"]
[6449,"INSTITUTO NACIONAL DE SALUD PUBLICA","FERNANDEZ ELORRIAGA MARIA","BAJA","NULL","NULL"]
[6456,"INSTITUTO NACIONAL DE SALUD PUBLICA","FERNANDEZ NIÑO JULIAN ALFREDO","BAJA","NULL","NULL"]
[6375,"INSTITUTO NACIONAL DE SALUD PUBLICA","FERNANDEZ SALAS ILDEFONSO","ICM F","CFM2301061","IPP 2025"]
[4417,"INSTITUTO NACIONAL DE SALUD PUBLICA","FERREIRA GUERRERO EDITH ELIZABETH","ICM D","CF41041","IPP 2010"]
[4418,"INSTITUTO NACIONAL DE SALUD PUBLICA","FERREYRA REYES LETICIA DOLORES","ICM C","CF41046","IPP 2010"]
[7456,"INSTITUTO NACIONAL DE SALUD PUBLICA","FIGUEROA OROPEZA JOSE LUIS","ICM C","CF50000","IPP 2020"]
[4419,"INSTITUTO NACIONAL DE SALUD PUBLICA","FLORES ALDANA MARIO EFRAIN","ICM E","CFM2101060","2006_INGRESO ANTERIOR"]
[6305,"INSTITUTO NACIONAL DE SALUD PUBLICA","FLORES HERNANDEZ SERGIO","ICM D","CF41041","IPP 2013"]
[4420,"INSTITUTO NACIONAL DE SALUD PUBLICA","FLORES LUNA MA. DE LOURDES GUADALUPE","ICM D","CF41041","2009_INGRESO ANTERIOR"]
[6307,"INSTITUTO NACIONAL DE SALUD PUBLICA","FRANCO NUÑEZ AURORA","BAJA","NULL","NULL"]
[4422,"INSTITUTO NACIONAL DE SALUD PUBLICA","GALVAN PORTILLO MARCIA VERONICA","ICM D","CF41041","IPP 2008"]
[4423,"INSTITUTO NACIONAL DE SALUD PUBLICA","GARCIA FEREGRINO RAQUEL","ICM B","CF41045","IPP 2010"]
[4424,"INSTITUTO NACIONAL DE SALUD PUBLICA","GARCIA GARCIA MARIA DE LOURDES","ICM F","CFN3101913","2006_INGRESO ANTERIOR"]
[4425,"INSTITUTO NACIONAL DE SALUD PUBLICA","GARCIA GUERRA FRANCISCO ARMANDO","ICM C","CF41046","2009_INGRESO ANTERIOR"]
[7191,"INSTITUTO NACIONAL DE SALUD PUBLICA","GARCIA PORTILLO NELIDA LEONOR","NO VIGENTE","CF41049","NULL"]
[6374,"INSTITUTO NACIONAL DE SALUD PUBLICA","GARRIDO LATORRE FRANCISCO JAVIER","BAJA","NULL","NULL"]
[4426,"INSTITUTO NACIONAL DE SALUD PUBLICA","GARZA RAMOS MARTINEZ JESUS ULISES","ICM E","CFM1101062","2009_INGRESO ANTERIOR"]
[4427,"INSTITUTO NACIONAL DE SALUD PUBLICA","GLORIA HERNANDEZ LAURA ELENA","BAJA","NULL","NULL"]
[7453,"INSTITUTO NACIONAL DE SALUD PUBLICA","GODOY LOZANO ELIZABETH ERNESTINA","ICM C","CF50000","IPP 2020"]
[4428,"INSTITUTO NACIONAL DE SALUD PUBLICA","GOMEZ CAMPONOVO MARIANA PANCHITA","BAJA","NULL","NULL"]
[4429,"INSTITUTO NACIONAL DE SALUD PUBLICA","GOMEZ DANTES HECTOR","ICM E","CFM2101060","IPP 2009"]
[4430,"INSTITUTO NACIONAL DE SALUD PUBLICA","GOMEZ DANTES OCTAVIO","ICM E","CF41042","IPP 2009"]
[7463,"INSTITUTO NACIONAL DE SALUD PUBLICA","GOMEZ FLORES RAMOS LILIANA","NULL","NULL","NULL"]
[4431,"INSTITUTO NACIONAL DE SALUD PUBLICA","GONZALEZ BLOCK MIGUEL ANGEL","BAJA","NULL","NULL"]
[4432,"INSTITUTO NACIONAL DE SALUD PUBLICA","GONZALEZ CASTELL LUZ DINORAH","ICM C","CF41046","IPP 2010"]
[4433,"INSTITUTO NACIONAL DE SALUD PUBLICA","GONZALEZ CERON LILIA","ICM E","CF41042","2006_INGRESO ANTERIOR"]
[4434,"INSTITUTO NACIONAL DE SALUD PUBLICA","GONZALEZ DE COSIO MARTINEZ TERESITA DEL NIÑO JESUS","BAJA","NULL","NULL"]
[4435,"INSTITUTO NACIONAL DE SALUD PUBLICA","GONZALEZ GONZALEZ EDGAR LEONEL","ICM C","CFM2101060","IPP 2024"]
[4436,"INSTITUTO NACIONAL DE SALUD PUBLICA","GONZALEZ HERNANDEZ DOLORES","ICM B","CF41045","IPP 2014"]
[6377,"INSTITUTO NACIONAL DE SALUD PUBLICA","GONZALEZ ROBLEDO MARIA CECILIA","ICM D","CFM2101060","IPP 2014"]
[7469,"INSTITUTO NACIONAL DE SALUD PUBLICA","GONZALEZ SANCHEZ HILDA MINERVA","NULL","NULL","NULL"]
[7192,"INSTITUTO NACIONAL DE SALUD PUBLICA","GONZALEZ SANCHEZ MARIA EDITH","A ICM B","CF41048","IPP 2018"]
[4437,"INSTITUTO NACIONAL DE SALUD PUBLICA","GONZALEZ VAZQUEZ TONATIUH TOMAS","ICM C","CF41046","2009_INGRESO ANTERIOR"]
[6306,"INSTITUTO NACIONAL DE SALUD PUBLICA","GUERRA Y GUERRA GERMAN GALILEO","ICM C","CF41046","IPP 2013"]
[7470,"INSTITUTO NACIONAL DE SALUD PUBLICA","GUTIERREZ CABRERA ANA ERIKA","NULL","NULL","NULL"]
[4438,"INSTITUTO NACIONAL DE SALUD PUBLICA","GUTIERREZ REYES JUAN PABLO","BAJA","NULL","NULL"]
[4439,"INSTITUTO NACIONAL DE SALUD PUBLICA","GUTIERREZ XICOTENCATL MARIA DE LOURDES","ICM E","CF41042","2006_INGRESO ANTERIOR"]
[6981,"INSTITUTO NACIONAL DE SALUD PUBLICA","HEGEWISCH TAYLOR JENNIFER","ICM B","CF41045","IPP 2016"]
[4564,"INSTITUTO NACIONAL DE SALUD PUBLICA","HEREDIA PI ILEANA BEATRIZ","ICM D","CF41041","IPP 2012"]
[4440,"INSTITUTO NACIONAL DE SALUD PUBLICA","HERNANDEZ AVILA JUAN EUGENIO","ICM F","CF41043","2006_INGRESO ANTERIOR"]
[4448,"INSTITUTO NACIONAL DE SALUD PUBLICA","HERNANDEZ AVILA MAURICIO","BAJA","NULL","NULL"]
[6304,"INSTITUTO NACIONAL DE SALUD PUBLICA","HERNANDEZ BARRERA LUCIA","ICM D","CF41041","IPP 2013"]
[6176,"INSTITUTO NACIONAL DE SALUD PUBLICA","HERNANDEZ BONILLA DAVID","ICM B","CF41045","IPP 2016"]
[4441,"INSTITUTO NACIONAL DE SALUD PUBLICA","HERNANDEZ CADENA LETICIA","ICM D","CF41041","2009_INGRESO ANTERIOR"]
[4442,"INSTITUTO NACIONAL DE SALUD PUBLICA","HERNANDEZ CORDERO SONIA LIZETH","BAJA","NULL","NULL"]
[4443,"INSTITUTO NACIONAL DE SALUD PUBLICA","HERNANDEZ GIRON CARLOS ALFONSO","ICM D","CF41041","2006_INGRESO ANTERIOR"]
[4444,"INSTITUTO NACIONAL DE SALUD PUBLICA","HERNANDEZ MARQUEZ EVA","BAJA","NULL","NULL"]
[4445,"INSTITUTO NACIONAL DE SALUD PUBLICA","HERNANDEZ MARTINEZ SALVADOR","ICM E","CF41042","2009_INGRESO ANTERIOR"]
[4446,"INSTITUTO NACIONAL DE SALUD PUBLICA","HERNANDEZ NEVAREZ MARIA DEL PILAR","BAJA","NULL","NULL"]
[7687,"INSTITUTO NACIONAL DE SALUD PUBLICA","HERNANDEZ PRADO BERNARDO","ICM F","CFM4152405","IPP 2024"]
[4447,"INSTITUTO NACIONAL DE SALUD PUBLICA","HERNANDEZ SERRATO MARIA ISIDRA","ICM C","CF51000","IPP 2011"]
[7193,"INSTITUTO NACIONAL DE SALUD PUBLICA","HERNANDEZ TORRES ALMA PATRICIA","A ICM C","CF41049","IPP 2019"]
[4449,"INSTITUTO NACIONAL DE SALUD PUBLICA","HERRERA CRISTINA MARIA","BAJA","NULL","NULL"]
[4450,"INSTITUTO NACIONAL DE SALUD PUBLICA","HERRERA ORTIZ ANTONIA","ICM D","CF41041","IPP 2011"]
[6371,"INSTITUTO NACIONAL DE SALUD PUBLICA","HERRERA VALDEZ MARCO ARIELI","BAJA","NULL","NULL"]
[4451,"INSTITUTO NACIONAL DE SALUD PUBLICA","HIDALGO SOLORZANO ELISA DEL CARMEN","ICM D","CF41041","2009_INGRESO ANTERIOR"]
[7451,"INSTITUTO NACIONAL DE SALUD PUBLICA","HUBERT LOPEZ CELIA","ICM C","CF51000","IPP 2020"]
[7693,"INSTITUTO NACIONAL DE SALUD PUBLICA","HUERTA ICELO HILDA IVONNE","ICM B","CF50000","IPP 2024"]
[4452,"INSTITUTO NACIONAL DE SALUD PUBLICA","HURTADO DIAZ MAGALI","ICM D","CF41041","IPP 2009"]
[4453,"INSTITUTO NACIONAL DE SALUD PUBLICA","HURTADO SIL ASCENCION GERARDO","BAJA","NULL","NULL"]
[4454,"INSTITUTO NACIONAL DE SALUD PUBLICA","IDROVO VELANDIA ALVARO JAVIER","BAJA","NULL","NULL"]
[4455,"INSTITUTO NACIONAL DE SALUD PUBLICA","INFANTE XIBILLE CESAR","ICM E","CF41042","2006_INGRESO ANTERIOR"]
[7768,"INSTITUTO NACIONAL DE SALUD PUBLICA","JACOME SANCHEZ BRENDA","A ICM C","CF41049","IPP 2025"]
[7194,"INSTITUTO NACIONAL DE SALUD PUBLICA","JAUREGUI DE LA MOTA ALEJANDRA","ICM F","CF50000","IPP 2018"]
[7052,"INSTITUTO NACIONAL DE SALUD PUBLICA","JIMENEZ AGUILAR ALEJANDRA","NO VIGENTE","CF41046","NULL"]
[4456,"INSTITUTO NACIONAL DE SALUD PUBLICA","JIMENEZ CORONA AIDA","BAJA","NULL","NULL"]
[4457,"INSTITUTO NACIONAL DE SALUD PUBLICA","JUAREZ RAMIREZ CLARA","ICM E","CF41042","2009_INGRESO ANTERIOR"]
[4458,"INSTITUTO NACIONAL DE SALUD PUBLICA","LAGUNAS MARTINEZ ALFREDO","ICM C","CF41046","2009_INGRESO ANTERIOR"]
[4459,"INSTITUTO NACIONAL DE SALUD PUBLICA","LAJOUS LOAEZA MARTIN","ICM E","CF41042","IPP 2010"]
[4460,"INSTITUTO NACIONAL DE SALUD PUBLICA","LAMADRID FIGUEROA HECTOR MANUEL","ICM F","CF50000","2009_INGRESO ANTERIOR"]
[4461,"INSTITUTO NACIONAL DE SALUD PUBLICA","LANZ MENDOZA CUAUHTEMOC JUAN HUMBERTO","ICM F","CFM2101060","2009_INGRESO ANTERIOR"]
[7691,"INSTITUTO NACIONAL DE SALUD PUBLICA","LARA HERNANDEZ ANYELA MIYELA","A ICM B","CF41048","IPP 2024"]
[7195,"INSTITUTO NACIONAL DE SALUD PUBLICA","LARA LOPEZ LUZ MARIA","BAJA","NULL","NULL"]
[7196,"INSTITUTO NACIONAL DE SALUD PUBLICA","LAZCANO LOPEZ MA. FELIX","BAJA","NULL","NULL"]
[4462,"INSTITUTO NACIONAL DE SALUD PUBLICA","LAZCANO PONCE EDUARDO CESAR","ICM F","CFK2252404","2006_INGRESO ANTERIOR"]
[7466,"INSTITUTO NACIONAL DE SALUD PUBLICA","LEON MALDONADO LEITH SOLEDAD","ICM C","CF41046","IPP 2022"]
[4463,"INSTITUTO NACIONAL DE SALUD PUBLICA","LEYVA FLORES RENE","ICM E","CF41042","2006_INGRESO ANTERIOR"]
[4464,"INSTITUTO NACIONAL DE SALUD PUBLICA","LEYVA LOPEZ AHIDEE GUADALUPE","NO VIGENTE","CF41046","NULL"]
[4465,"INSTITUTO NACIONAL DE SALUD PUBLICA","LOPEZ CARRILLO LIZBETH TERESITA","ICM F","CF41043","2006_INGRESO ANTERIOR"]
[6302,"INSTITUTO NACIONAL DE SALUD PUBLICA","LOPEZ GATELL RAMIREZ HUGO","BAJA","NULL","NULL"]
[7492,"INSTITUTO NACIONAL DE SALUD PUBLICA","LOPEZ OLMEDO NANCY PAULINA","ICM D","CF41041","IPP 2021"]
[4466,"INSTITUTO NACIONAL DE SALUD PUBLICA","LOPEZ ORDOÑEZ TERESA","ICM C","CF41046","IPP 2017"]
[4467,"INSTITUTO NACIONAL DE SALUD PUBLICA","LOPEZ RIDAURA RUY","BAJA","NULL","NULL"]
[6347,"INSTITUTO NACIONAL DE SALUD PUBLICA","LOZANO ASCENCIO PEDRO RAFAEL","BAJA","NULL","NULL"]
[4468,"INSTITUTO NACIONAL DE SALUD PUBLICA","MACIAS MORALES NAYELI","ICM C","CF41046","2009_INGRESO ANTERIOR"]
[4469,"INSTITUTO NACIONAL DE SALUD PUBLICA","MADRID MARINA VICENTE","ICM F","CF41043","2006_INGRESO ANTERIOR"]
[4470,"INSTITUTO NACIONAL DE SALUD PUBLICA","MAGAÑA VALLADARES LAURA","BAJA","NULL","NULL"]
[4471,"INSTITUTO NACIONAL DE SALUD PUBLICA","MALDONADO GAMA MINERVA","ICM A","CF41044","IPP 2016"]
[4472,"INSTITUTO NACIONAL DE SALUD PUBLICA","MANRIQUE ESPINOZA BETTY SOLEDAD","ICM E","CF41042","IPP 2010"]
[4473,"INSTITUTO NACIONAL DE SALUD PUBLICA","MARINA FERNANDEZ CARLOS FELIX","ICM D","CF41041","2009_INGRESO ANTERIOR"]
[4474,"INSTITUTO NACIONAL DE SALUD PUBLICA","MARQUEZ SERRANO MARGARITA","ICM B","CF50000","IPP 2022"]
[7197,"INSTITUTO NACIONAL DE SALUD PUBLICA","MARTINEZ AVILES ISIDORA JAQUELIN","A ICM C","CF41049","IPP 2018"]
[4475,"INSTITUTO NACIONAL DE SALUD PUBLICA","MARTINEZ BARNETCHE JESUS","ICM E","CFM2101060","2009_INGRESO ANTERIOR"]
[6984,"INSTITUTO NACIONAL DE SALUD PUBLICA","MARTINEZ NICOLAS ISMAEL","BAJA","NULL","NULL"]
[6348,"INSTITUTO NACIONAL DE SALUD PUBLICA","MARTINEZ VALLE ADOLFO","BAJA","NULL","NULL"]
[7769,"INSTITUTO NACIONAL DE SALUD PUBLICA","MATIAS VALDEZ KARLA LESLIE","NO VIGENTE","CF50000","NULL"]
[7287,"INSTITUTO NACIONAL DE SALUD PUBLICA","MEDINA GARCIA CATALINA","ICM C","CF41046","IPP 2019"]
[4476,"INSTITUTO NACIONAL DE SALUD PUBLICA","MEJIA RODRIGUEZ FABIOLA","ICM D","CF41041","IPP 2010"]
[4477,"INSTITUTO NACIONAL DE SALUD PUBLICA","MENDOZA ALVARADO LAURA ROSARIO","ICM B","CF51000","2006_INGRESO ANTERIOR"]
[4478,"INSTITUTO NACIONAL DE SALUD PUBLICA","MENESES NAVARRO SERGIO","NULL","NULL","NULL"]
[6178,"INSTITUTO NACIONAL DE SALUD PUBLICA","MOLINA RODRIGUEZ JUAN FRANCISCO","NO VIGENTE","CFN3101913","NULL"]
[7459,"INSTITUTO NACIONAL DE SALUD PUBLICA","MONGUA RODRIGUEZ NORMA PIEDAD","ICM B","CF41045","IPP 2020"]
[7198,"INSTITUTO NACIONAL DE SALUD PUBLICA","MONTAÑEZ HERNANDEZ JULIO CESAR","ICM C","CF50000","IPP 2018"]
[4479,"INSTITUTO NACIONAL DE SALUD PUBLICA","MONTERRUBIO FLORES ERIC ALEJANDRO","ICM C","CF41046","IPP 2014"]
[7199,"INSTITUTO NACIONAL DE SALUD PUBLICA","MONTES ROMERO LUZ MARIA","A ICM C","CF41049","IPP 2018"]
[7057,"INSTITUTO NACIONAL DE SALUD PUBLICA","MORALES CARMONA EVANGELINA","ICM B","CF50000","IPP 2021"]
[7288,"INSTITUTO NACIONAL DE SALUD PUBLICA","MORALES RUAN MARIA DEL CARMEN","ICM D","CF41041","IPP 2019"]
[4480,"INSTITUTO NACIONAL DE SALUD PUBLICA","MORENO BANDA GREA LITAI","NO VIGENTE","CF41046","NULL"]
[7053,"INSTITUTO NACIONAL DE SALUD PUBLICA","MORENO ZEGBE ESTEPHANIA","BAJA","NULL","NULL"]
[4482,"INSTITUTO NACIONAL DE SALUD PUBLICA","MUNDO ROSAS VERONICA","ICM D","CFN3101913","2009_INGRESO ANTERIOR"]
[4483,"INSTITUTO NACIONAL DE SALUD PUBLICA","NIGENDA LOPEZ GUSTAVO HUMBERTO","BAJA","NULL","NULL"]
[7200,"INSTITUTO NACIONAL DE SALUD PUBLICA","OCAMPO GRANADOS MARIA EUGENIA","BAJA","NULL","NULL"]
[4484,"INSTITUTO NACIONAL DE SALUD PUBLICA","OLAMENDI PORTUGAL MA. LEONIDEZ","ICM C","CF41046","2009_INGRESO ANTERIOR"]
[4485,"INSTITUTO NACIONAL DE SALUD PUBLICA","ONDARZA VIDAURRETA RAUL NARCISO","BAJA","NULL","NULL"]
[4486,"INSTITUTO NACIONAL DE SALUD PUBLICA","ORDOÑEZ GONZALEZ JOSE GENARO","ICM B","CF41045","IPP 2021"]
[7201,"INSTITUTO NACIONAL DE SALUD PUBLICA","ORDUÑA CARRILLO ERIKA","A ICM C","CF41049","IPP 2018"]
[4487,"INSTITUTO NACIONAL DE SALUD PUBLICA","OROZCO NUÑEZ EMANUEL","ICM E","CF41042","2009_INGRESO ANTERIOR"]
[4488,"INSTITUTO NACIONAL DE SALUD PUBLICA","ORTEGA ALTAMIRANO DORIS VERONICA","ICM D","CF41041","IPP 2016"]
[7202,"INSTITUTO NACIONAL DE SALUD PUBLICA","ORTEGA ROMAN BLANCA LAURA ","A ICM C","CF41049","IPP 2018"]
[4489,"INSTITUTO NACIONAL DE SALUD PUBLICA","PALACIO MEJIA LINA SOFIA","ICM E","CF41042","IPP 2024"]
[4490,"INSTITUTO NACIONAL DE SALUD PUBLICA","PANDO ROBLES ROSA VICTORIA","ICM E","CF41042","IPP 2010"]
[4491,"INSTITUTO NACIONAL DE SALUD PUBLICA","PARRA CABRERA MARIA DEL SOCORRO","ICM C","CF41042","IPP 2020"]
[7690,"INSTITUTO NACIONAL DE SALUD PUBLICA","PECH MAY ANGELICA DEL ROSARIO","ICM B","CF41045","IPP 2024"]
[4492,"INSTITUTO NACIONAL DE SALUD PUBLICA","PEDROZA SAAVEDRA ADOLFO","ICM C","CF41046","2009_INGRESO ANTERIOR"]
[4493,"INSTITUTO NACIONAL DE SALUD PUBLICA","PELCASTRE VILLAFUERTE BLANCA ESTELA","ICM F","CF41043","2009_INGRESO ANTERIOR"]
[4494,"INSTITUTO NACIONAL DE SALUD PUBLICA","PENILLA NAVARRO ROSA PATRICIA","ICM E","CF41042","2009_INGRESO ANTERIOR"]
[4495,"INSTITUTO NACIONAL DE SALUD PUBLICA","PERALES ORTIZ GUILLERMO","NO VIGENTE","CF41045","NULL"]
[4496,"INSTITUTO NACIONAL DE SALUD PUBLICA","PERALTA ZARAGOZA OSCAR","ICM E","CF41042","2006_INGRESO ANTERIOR"]
[7203,"INSTITUTO NACIONAL DE SALUD PUBLICA","PEREZ CUEVAS RICARDO ENRIQUE","BAJA","NULL","NULL"]
[7468,"INSTITUTO NACIONAL DE SALUD PUBLICA","PEREZ FERRER CAROLINA","ICM D","CFM2101060","IPP 2024"]
[6459,"INSTITUTO NACIONAL DE SALUD PUBLICA","PIÑA POZAS MA. MARICELA","ICM C","CF51000","IPP 2015"]
[6457,"INSTITUTO NACIONAL DE SALUD PUBLICA","POBLANO VERASTEGUI OFELIA","ICM D","CFM2101060","IPP 2016"]
[7054,"INSTITUTO NACIONAL DE SALUD PUBLICA","QUEZADA SANCHEZ AMADO DAVID","ICM C","CF41046","IPP 2017"]
[7204,"INSTITUTO NACIONAL DE SALUD PUBLICA","QUIÑONES BAEZ MAYRA JANNETH","A ICM C","CF41049","IPP 2018"]
[4497,"INSTITUTO NACIONAL DE SALUD PUBLICA","QUITERIO TRENADO MANUEL","ICM C","CF50000","2009_INGRESO ANTERIOR"]
[6300,"INSTITUTO NACIONAL DE SALUD PUBLICA","RAMIREZ RODRIGUEZ BARUCH","BAJA","NULL","NULL"]
[4498,"INSTITUTO NACIONAL DE SALUD PUBLICA","RAMIREZ SILVA CLAUDIA IVONNE","ICM D","CF41041","2009_INGRESO ANTERIOR"]
[4499,"INSTITUTO NACIONAL DE SALUD PUBLICA","RAMIREZ VILLALOBOS MARIA DOLORES","ICM C","CF41046","2009_INGRESO ANTERIOR"]
[4500,"INSTITUTO NACIONAL DE SALUD PUBLICA","RAMOS CASTAÑEDA JOSE","ICM E","CF41042","2006_INGRESO ANTERIOR"]
[4501,"INSTITUTO NACIONAL DE SALUD PUBLICA","RAMOS GARCIA CELSO","BAJA","NULL","NULL"]
[4502,"INSTITUTO NACIONAL DE SALUD PUBLICA","RAMSEY WILLOQUET JANINE MADELEINE","BAJA","NULL","NULL"]
[7205,"INSTITUTO NACIONAL DE SALUD PUBLICA","REBOLLAR CAMPOS MA. DEL ROSARIO","A ICM C","CF41049","IPP 2018"]
[7206,"INSTITUTO NACIONAL DE SALUD PUBLICA","REYES CASTAÑEDA MIGUEL ANGEL","BAJA","NULL","NULL"]
[4503,"INSTITUTO NACIONAL DE SALUD PUBLICA","REYES MORALES HORTENSIA","ICM F","CFM4152405","IPP 2009"]
[4504,"INSTITUTO NACIONAL DE SALUD PUBLICA","REYNALES SHIGEMATSU LUZ MYRIAM","ICM F","CF51000","2009_INGRESO ANTERIOR"]
[4505,"INSTITUTO NACIONAL DE SALUD PUBLICA","RIOJAS RODRIGUEZ HORACIO","ICM F","CFM2301061","2006_INGRESO ANTERIOR"]
[4506,"INSTITUTO NACIONAL DE SALUD PUBLICA","RIOS SALGADO VICTOR HUGO","BAJA","NULL","NULL"]
[4507,"INSTITUTO NACIONAL DE SALUD PUBLICA","RIVERA DOMMARCO JUAN ANGEL","EMERITO","CF41043","2006_INGRESO ANTERIOR"]
[4508,"INSTITUTO NACIONAL DE SALUD PUBLICA","RIVERA PASQUEL MARTA ELENA","ICM C","CF41046","2009_INGRESO ANTERIOR"]
[4509,"INSTITUTO NACIONAL DE SALUD PUBLICA","RIVERA RIVERA LEONOR","ICM E","CF41042","2009_INGRESO ANTERIOR"]
[7055,"INSTITUTO NACIONAL DE SALUD PUBLICA","RIVERO PEREZ NORMA EDITH","NO VIGENTE","CF41046","NULL"]
[4511,"INSTITUTO NACIONAL DE SALUD PUBLICA","RODRIGUEZ BOLAÑOS ROSIBEL DE LOS ANGELES","ICM D","CF41041","IPP 2011"]
[7207,"INSTITUTO NACIONAL DE SALUD PUBLICA","RODRIGUEZ CID ALFONSO","NO VIGENTE","CF41049","NULL"]
[4512,"INSTITUTO NACIONAL DE SALUD PUBLICA","RODRIGUEZ DOZAL SANDRA LETICIA","ICM C","CF41046","IPP 2011"]
[4513,"INSTITUTO NACIONAL DE SALUD PUBLICA","RODRIGUEZ GUTIERREZ MARIA DEL CARMEN","BAJA","NULL","NULL"]
[4514,"INSTITUTO NACIONAL DE SALUD PUBLICA","RODRIGUEZ LOPEZ MARIO HENRY","EMERITO","CF41043","2006_INGRESO ANTERIOR"]
[4515,"INSTITUTO NACIONAL DE SALUD PUBLICA","RODRIGUEZ OLIVEROS MARIA GUADALUPE","ICM C","CF41046","IPP 2012"]
[4516,"INSTITUTO NACIONAL DE SALUD PUBLICA","RODRIGUEZ RAMIREZ AMERICO DAVID","BAJA","NULL","NULL"]
[4517,"INSTITUTO NACIONAL DE SALUD PUBLICA","RODRIGUEZ RAMIREZ SONIA CONCEPCION","ICM D","CF50000","IPP 2010"]
[4518,"INSTITUTO NACIONAL DE SALUD PUBLICA","RODRIGUEZ VALENTIN ROCIO","ICM C","CF41046","IPP 2012"]
[4519,"INSTITUTO NACIONAL DE SALUD PUBLICA","ROJAS MARTINEZ MARIA ROSALBA","ICM F","CF41043","2010_INGRESO ANTERIOR"]
[6303,"INSTITUTO NACIONAL DE SALUD PUBLICA","ROMAN PEREZ SUSANA","ICM C","CF41046","IPP 2013"]
[6376,"INSTITUTO NACIONAL DE SALUD PUBLICA","ROMERO MARTINEZ MARTIN","ICM D","CF51000","IPP 2014"]
[4520,"INSTITUTO NACIONAL DE SALUD PUBLICA","ROTHENBERG LORENZ STEPHEN JOEL","BAJA","NULL","NULL"]
[4521,"INSTITUTO NACIONAL DE SALUD PUBLICA","RUEDA NERIA CELINA MAGALLY","ICM A","CF41044","IPP 2018"]
[4522,"INSTITUTO NACIONAL DE SALUD PUBLICA","RUELAS GONZALEZ MARIA GUADALUPE","ICM D","CF41041","IPP 2014"]
[7458,"INSTITUTO NACIONAL DE SALUD PUBLICA","SAAVEDRA LARA NENETZEN","ICM C","CFN3101913","IPP 2020"]
[4523,"INSTITUTO NACIONAL DE SALUD PUBLICA","SALAZAR MARTINEZ EDUARDO","BAJA","NULL","NULL"]
[4524,"INSTITUTO NACIONAL DE SALUD PUBLICA","SALGADO DIEZ VELIA NELLY","BAJA","NULL","NULL"]
[7208,"INSTITUTO NACIONAL DE SALUD PUBLICA","SALGADO JIMENEZ LETICIA EMILIA ","NO VIGENTE","CF41049","NULL"]
[4525,"INSTITUTO NACIONAL DE SALUD PUBLICA","SALINAS RODRIGUEZ AARON","ICM E","CF41042","2009_INGRESO ANTERIOR"]
[4526,"INSTITUTO NACIONAL DE SALUD PUBLICA","SANCHEZ ALEMAN MIGUEL ANGEL","ICM E","CF41042","2010_INGRESO ANTERIOR"]
[6167,"INSTITUTO NACIONAL DE SALUD PUBLICA","SANCHEZ DOMINGUEZ MARIO SALVADOR","ICM C","CF41046","IPP 2018"]
[7209,"INSTITUTO NACIONAL DE SALUD PUBLICA","SANCHEZ ESTRADA MARCELA","A ICM C","CF41049","IPP 2019"]
[6982,"INSTITUTO NACIONAL DE SALUD PUBLICA","SANCHEZ GONZALEZ GILBERTO","ICM D","CF41041","IPP 2016"]
[4527,"INSTITUTO NACIONAL DE SALUD PUBLICA","SANCHEZ ZAMORANO LUISA MARIA","ICM D","CF41041","2006_INGRESO ANTERIOR"]
[7210,"INSTITUTO NACIONAL DE SALUD PUBLICA","SANTIBAÑEZ RUELAS RAFAEL","A ICM A","CF41047","IPP 2019"]
[7211,"INSTITUTO NACIONAL DE SALUD PUBLICA","SANTOS HERNANDEZ LEONOR","NO VIGENTE","CF41049","NULL"]
[4528,"INSTITUTO NACIONAL DE SALUD PUBLICA","SANTOS LUNA RENE","ICM C","CFN3101913 ","2010_INGRESO ANTERIOR"]
[6453,"INSTITUTO NACIONAL DE SALUD PUBLICA","SATURNO HERNANDEZ PEDRO JESUS","ICM F","CF41043","IPP 2015"]
[4529,"INSTITUTO NACIONAL DE SALUD PUBLICA","SAUCEDA VALENZUELA ALMA LUCILA","ICM B","CF41045","IPP 2018"]
[4530,"INSTITUTO NACIONAL DE SALUD PUBLICA","SCHILMANN HALBINGER ASTRID","ICM D","CF41041","IPP 2009"]
[4531,"INSTITUTO NACIONAL DE SALUD PUBLICA","SEPULVEDA AMOR JAIME","EMERITO","CF41090","2006_INGRESO ANTERIOR"]
[4565,"INSTITUTO NACIONAL DE SALUD PUBLICA","SERVAN MORI EDSON ENRIQUE","ICM F","CF41043","IPP 2020"]
[4532,"INSTITUTO NACIONAL DE SALUD PUBLICA","SHAMAH LEVY TERESA","ICM F","CFM4352407","2009_INGRESO ANTERIOR"]
[4533,"INSTITUTO NACIONAL DE SALUD PUBLICA","SILVA SANCHEZ JESUS","BAJA","NULL","NULL"]
[6257,"INSTITUTO NACIONAL DE SALUD PUBLICA","SOBERON ACEVEDO GUILLERMO","BAJA","NULL","NULL"]
[4534,"INSTITUTO NACIONAL DE SALUD PUBLICA","SOLANO GONZALEZ MARITSA","ICM A","CF41044","2009_INGRESO ANTERIOR"]
[4535,"INSTITUTO NACIONAL DE SALUD PUBLICA","SOSA RUBI SANDRA GABRIELA","BAJA","NULL","NULL"]
[4536,"INSTITUTO NACIONAL DE SALUD PUBLICA","SOTO NOGUERON ARACELI","ICM B","CF41045","2009_INGRESO ANTERIOR"]
[7464,"INSTITUTO NACIONAL DE SALUD PUBLICA","STERN SOLODKIN DALIA","NULL","NULL","NULL"]
[4537,"INSTITUTO NACIONAL DE SALUD PUBLICA","SUAREZ LOPEZ LETICIA","ICM C","CF41046","2009_INGRESO ANTERIOR"]
[4538,"INSTITUTO NACIONAL DE SALUD PUBLICA","TAMAYO LEGORRETA ELSA MARIA","ICM D","CF41041","2006_INGRESO ANTERIOR"]
[7465,"INSTITUTO NACIONAL DE SALUD PUBLICA","TAMAYO Y ORTIZ MARCELA","BAJA","NULL","NULL"]
[4539,"INSTITUTO NACIONAL DE SALUD PUBLICA","TELLEZ ROJO SOLIS MARTHA MARIA","ICM F","CF41043","2010_INGRESO ANTERIOR"]
[4540,"INSTITUTO NACIONAL DE SALUD PUBLICA","TELLEZ SOSA JUAN MAURICIO","ICM D","CF41041","IPP 2009"]
[4541,"INSTITUTO NACIONAL DE SALUD PUBLICA","TELLEZ VAZQUEZ NORMA ARACELI","ICM A","CF41044","IPP 2011"]
[4542,"INSTITUTO NACIONAL DE SALUD PUBLICA","TELLO LOPEZ ANGEL TOLENTINO","NO VIGENTE","CF41045","NULL"]
[4543,"INSTITUTO NACIONAL DE SALUD PUBLICA","TEXCALAC SANGRADOR JOSE LUIS","ICM D","CF41041","IPP 2010"]
[4544,"INSTITUTO NACIONAL DE SALUD PUBLICA","THEODORE ROWLERSON FLORENCE LISE","ICM E","CF41042","IPP 2010"]
[7457,"INSTITUTO NACIONAL DE SALUD PUBLICA","TORRES ARREOLA LAURA DEL PILAR","BAJA","NULL","NULL"]
[4545,"INSTITUTO NACIONAL DE SALUD PUBLICA","TORRES ESTRADA JOSE LUIS","BAJA","NULL","NULL"]
[6391,"INSTITUTO NACIONAL DE SALUD PUBLICA","TORRES IBARRA LETICIA","ICM D","CF41041","IPP 2014"]
[4546,"INSTITUTO NACIONAL DE SALUD PUBLICA","TORRES MEJIA GABRIELA","ICM F","CF41043","2009_INGRESO ANTERIOR"]
[4547,"INSTITUTO NACIONAL DE SALUD PUBLICA","TORRES MONZON JORGE AURELIO","ICM C","CF41046","IPP 2020"]
[4548,"INSTITUTO NACIONAL DE SALUD PUBLICA","TORRES PEREDA MARIA DEL PILAR","ICM D","CF41041","IPP 2012"]
[7462,"INSTITUTO NACIONAL DE SALUD PUBLICA","TORRES POVEDA KIRVIS JANNETH ","NO VIGENTE","CF41042","NULL"]
[4549,"INSTITUTO NACIONAL DE SALUD PUBLICA","TORRES SANCHEZ LUISA ELVIRA","ICM F","CF41043","2010_INGRESO ANTERIOR"]
[6172,"INSTITUTO NACIONAL DE SALUD PUBLICA","TREJO ACEVEDO ANTONIO","NO VIGENTE","CF41046","NULL"]
[4550,"INSTITUTO NACIONAL DE SALUD PUBLICA","TREJO VALDIVIA GLORIA MARIA BELEM","ICM E","CF41042","2010_INGRESO ANTERIOR"]
[4551,"INSTITUTO NACIONAL DE SALUD PUBLICA","TREVIÑO SILLER SANDRA GUADALUPE","ICM C","CF41046","IPP 2016"]
[4552,"INSTITUTO NACIONAL DE SALUD PUBLICA","ULLOA GARCIA ARMANDO","BAJA","NULL","NULL"]
[6983,"INSTITUTO NACIONAL DE SALUD PUBLICA","UNAR MUNGUIA MISHEL","ICM D","CF51000","IPP 2016"]
[4553,"INSTITUTO NACIONAL DE SALUD PUBLICA","URQUIETA SALOMON JOSE EDMUNDO","BAJA","NULL","NULL"]
[7056,"INSTITUTO NACIONAL DE SALUD PUBLICA","VALDEZ DELGADO KENIA MAYELA","ICM C","CF50000","IPP 2021"]
[4554,"INSTITUTO NACIONAL DE SALUD PUBLICA","VALDEZ SANTIAGO MARIA DEL ROSARIO","ICM D","CF41041","2006_INGRESO ANTERIOR"]
[4555,"INSTITUTO NACIONAL DE SALUD PUBLICA","VALVERDE GARDUNO BERTHA VERONICA","ICM D","CF41041","IPP 2018"]
[4556,"INSTITUTO NACIONAL DE SALUD PUBLICA","VAZQUEZ MARTINEZ MARIA GUADALUPE","BAJA","NULL","NULL"]
[7467,"INSTITUTO NACIONAL DE SALUD PUBLICA","VAZQUEZ SALAS RUTH ARGELIA","ICM C","CF41046","IPP 2022"]
[6163,"INSTITUTO NACIONAL DE SALUD PUBLICA","VAZQUEZ SEGOVIA LUIS ALONSO","BAJA","NULL","NULL"]
[7212,"INSTITUTO NACIONAL DE SALUD PUBLICA","VELAZQUEZ MEZA MANUEL","NO VIGENTE","CF41049","NULL"]
[4557,"INSTITUTO NACIONAL DE SALUD PUBLICA","VELAZQUEZ MEZA MARIA ELENA","ICM E","CF41042","2006_INGRESO ANTERIOR"]
[7614,"INSTITUTO NACIONAL DE SALUD PUBLICA","VERA MALOOF FARAH ZAMIRA","ICM A ","CF41044","IPP 2023"]
[7566,"INSTITUTO NACIONAL DE SALUD PUBLICA","VERMANDERE HELEEN MARIA","BAJA","NULL","NULL"]
[6171,"INSTITUTO NACIONAL DE SALUD PUBLICA","VERTIZ RAMIREZ JOSE DE JESUS","ICM B","CFN3101913","IPP 2013"]
[6450,"INSTITUTO NACIONAL DE SALUD PUBLICA","VIEYRA ROMERO WALDO IVAN","BAJA","NULL","NULL"]
[4558,"INSTITUTO NACIONAL DE SALUD PUBLICA","VILLALOBOS HERNANDEZ AREMIS LITAI","ICM D","CFM2101060","IPP 2008"]
[4559,"INSTITUTO NACIONAL DE SALUD PUBLICA","VILLALPANDO HERNANDEZ SALVADOR FRANCISCO","BAJA","NULL","NULL"]
[4560,"INSTITUTO NACIONAL DE SALUD PUBLICA","VILLANUEVA BORBOLLA MARIA ANGELES","ICM B","CF41046","IPP 2024"]
[4561,"INSTITUTO NACIONAL DE SALUD PUBLICA","VILLARREAL TREVIÑO CUAUHTEMOC","ICM D","CF41041","IPP 2016"]
[4562,"INSTITUTO NACIONAL DE SALUD PUBLICA","WIRTZ VERONIKA JOSEFA","BAJA","NULL","NULL"]
[7454,"INSTITUTO NACIONAL DE SALUD PUBLICA","YAÑEZ ALVAREZ IRAIS","ICM C","CF41046","IPP 2020"]
[4566,"INSTITUTO NACIONAL DE SALUD PUBLICA","YUNES DIAZ ELSA MARIA","BAJA","NULL","NULL"]
[7450,"INSTITUTO NACIONAL DE SALUD PUBLICA","ZUMAYA ESTRADA FEDERICO ALONSO","ICM C","CF41046","IPP 2020"]

{"sheet":"Equivalencias","index":2,"n_rows":11,"n_cols":2,"rows_kept":11,"cut":false,"hidden":true,"merged":[]}
["CVE","Data"]
["Autor libro Gpo A ","Artículo Grupo VII"]
["Autor libro Gpo B ","Artículo Grupo V"]
["Autor Cap Gpo A ","Artículo Grupo IV"]
["Autor Cap Gpo B ","Artículo Grupo III"]
["Autor Cap Gpo C ","Artículo Grupo II"]
["Coautor Cap Gpo A ","Artículo Grupo IV"]
["Coautor Cap Gpo B ","Artículo Grupo III"]
["Coautor Cap Gpo C ","Artículo Grupo II"]
["Pat. Reg. Y Aprob ","Artículo Grupo IV"]
["Pat. Reg., Aprob. Y en Uso ","Artículo Grupo VI"]

{"sheet":"Dictamen","index":3,"n_rows":23,"n_cols":1,"rows_kept":23,"cut":false,"hidden":true,"merged":[]}
["Dictamen"]
["NO CUMPLE"]
["ICM A-I"]
["ICM A-II"]
["ICM A-III"]
["ICM B-I"]
["ICM B-II"]
["ICM B-III"]
["ICM C-I"]
["ICM C-II"]
["ICM C-III"]
["ICM D-I"]
["ICM D-II"]
["ICM D-III"]
["ICM E-I"]
["ICM E-II"]
["ICM E-III"]
["ICM F-I"]
["ICM F-II"]
["ICM F-III"]
["ICM EMÉRITO-I"]
["ICM EMÉRITO-II"]
["ICM EMÉRITO-III"]

{"sheet":"Puntuación","index":4,"n_rows":48,"n_cols":12,"rows_kept":48,"cut":false,"hidden":true,"merged":[]}
["Espejo Logica","Dictamen","Publicaciones","Límite Inferior","Límite Superior","Puntaje Total","Lógica","Plus","Resultado"]
[{"$f":"Rangos[[#This Row],[Lógica]]","v":"< 39"},"NO CUMPLE","N/A",null,null,{"$f":"Registro!$F$20","v":0},"< 39",null,{"$f":"IF(Rangos[[#This Row],[Puntaje Total]]>Rangos[[#This Row],[Límite Inferior]],Rangos[[#This Row],[Dictamen]],I1)","v":"Resultado"}]
[{"$f":"Rangos[[#This Row],[Lógica]]","v":0},"ICM A-I",1,40,80,{"$f":"Registro!$F$20","v":0},{"$f":"SUM(SUM(Registro!D35:D39),SUM(Registro!D49:D53))","v":0},null,{"$f":"IF(Rangos[[#This Row],[Puntaje Total]]>Rangos[[#This Row],[Límite Inferior]],Rangos[[#This Row],[Dictamen]],I2)","v":"Resultado"}]
[{"$f":"Rangos[[#This Row],[Lógica]]","v":0},"ICM A-II",1,81,200,{"$f":"Registro!$F$20","v":0},{"$f":"SUM(SUM(Registro!D35:D39),SUM(Registro!D49:D53))","v":0},null,{"$f":"IF(Rangos[[#This Row],[Puntaje Total]]>Rangos[[#This Row],[Límite Inferior]],Rangos[[#This Row],[Dictamen]],I3)","v":"Resultado"}]
[{"$f":"Rangos[[#This Row],[Lógica]]","v":0},"ICM A-III",1,201,400,{"$f":"Registro!$F$20","v":0},{"$f":"SUM(SUM(Registro!D35:D39),SUM(Registro!D49:D53))","v":0},null,null,null,"Almenos en dos","Dos artículos grupo II"]
[{"$f":"Rangos[[#This Row],[Lógica]]","v":0},"ICM B-I",2,80,100,{"$f":"Registro!$F$20","v":0},null,null,null,null,{"$f":"IF(COUNT(Registro!D48:D53)>1,COUNT(Registro!D48:D53),0)","v":0},"2 del grupo II"]
[{"$f":"Rangos[[#This Row],[Lógica]]","v":0},"ICM B-II",2,101,210,{"$f":"Registro!$F$20","v":0},null,null,null,null,null,"1 del 3 al VII"]
[{"$f":"Rangos[[#This Row],[Lógica]]","v":0},"ICM B-III",2,211,450,{"$f":"Registro!$F$20","v":0}]
[{"$f":"Rangos[[#This Row],[Lógica]]","v":0},"ICM C-I",2,100,150,{"$f":"Registro!$F$20","v":0}]
[{"$f":"Rangos[[#This Row],[Lógica]]","v":0},"ICM C-II",2,151,400,{"$f":"Registro!$F$20","v":0}]
[{"$f":"Rangos[[#This Row],[Lógica]]","v":0},"ICM C-III",2,401,800,{"$f":"Registro!$F$20","v":0}]
[{"$f":"Rangos[[#This Row],[Lógica]]","v":0},"ICM D-I",3,120,200,{"$f":"Registro!$F$20","v":0}]
[{"$f":"Rangos[[#This Row],[Lógica]]","v":0},"ICM D-II",3,201,500,{"$f":"Registro!$F$20","v":0}]
[{"$f":"Rangos[[#This Row],[Lógica]]","v":0},"ICM D-III",3,501,800,{"$f":"Registro!$F$20","v":0}]
[{"$f":"Rangos[[#This Row],[Lógica]]","v":0},"ICM E-I",3,200,250,{"$f":"Registro!$F$20","v":0}]
[{"$f":"Rangos[[#This Row],[Lógica]]","v":0},"ICM E-II",3,251,500,{"$f":"Registro!$F$20","v":0}]
[{"$f":"Rangos[[#This Row],[Lógica]]","v":0},"ICM E-III",3,501,800,{"$f":"Registro!$F$20","v":0}]
[{"$f":"Rangos[[#This Row],[Lógica]]","v":0},"ICM F-I",3,350,450,{"$f":"Registro!$F$20","v":0}]
[{"$f":"Rangos[[#This Row],[Lógica]]","v":0},"ICM F-II",3,451,800,{"$f":"Registro!$F$20","v":0}]
[{"$f":"Rangos[[#This Row],[Lógica]]","v":0},"ICM F-III",3,800,null,{"$f":"Registro!$F$20","v":0}]
[{"$f":"Rangos[[#This Row],[Lógica]]","v":0},"ICM EMÉRITO-I",3,350,null,{"$f":"Registro!$F$20","v":0}]
[{"$f":"Rangos[[#This Row],[Lógica]]","v":0},"ICM EMÉRITO-II",3,451,null,{"$f":"Registro!$F$20","v":0}]
[{"$f":"Rangos[[#This Row],[Lógica]]","v":0},"ICM EMÉRITO-III",3,800,null,{"$f":"Registro!$F$20","v":0}]
[]
[]
[null,null,null,"ID","Value"]
["Tabla compl","Columna1",null,"CatCon",{"$f":"Registro!$D$8","v":0}]
["ICM A-I",null,null,"ArtIII_VII",{"$f":"SUM(Registro!$I$35,Registro!$I$36,Registro!$I$37,Registro!$I$38,Registro!$I$39,Registro!$I$49,Registro!$I$50,Registro!$I$51,Registro!$I$52,Registro!$I$53)","v":0}]
["ICM A-II",null,null,"ArtII",{"$f":"SUM(Registro!$I$34,Registro!$I$48)","v":0}]
["ICM A-III",null,null,"ArtIV_VII",{"$f":"SUM(Registro!$I$36,Registro!$I$37,Registro!$I$38,Registro!$I$39,Registro!$I$50,Registro!$I$51,Registro!$I$52,Registro!$I$53)","v":0}]
["ICM B-I",null,null,"Puntos",{"$f":"Registro!K18","v":0}]
["ICM B-II"]
["ICM B-III"]
["ICM C-I"]
["ICM C-II"]
["ICM C-III"]
["ICM D-I"]
["ICM D-II"]
["ICM D-III"]
["ICM E-I"]
["ICM E-II"]
["ICM E-III"]
["ICM F-I"]
["ICM F-II"]
["ICM F-III"]
["ICM EMÉRITO-I"]
["ICM EMÉRITO-II"]
["ICM EMÉRITO-III"]